{"text_format":"1","workbook":"xlsx","n_sheets":25,"sheets":["MATRIZ DE INDICADORES","ATH-1","ATH-2","AFI-1","AFI-3","AFI-2","AFI-4 ","MCT-2","MCT-3","MCT-4","MCT-5","MCT-6","MDM-1","MDM-2 ","MDM-3 ","SCI-3","SCI-6","INS-2","INS-5","MGD-1","MGD-2","MGD-3 ","MGD-4","ACTUALIZACIONES","ITEM"],"not_rendered":{"charts":22,"images":4,"macros":1,"external_links":15,"defined_names":18,"comments":22,"pivot_tables":0},"unopened":[],"bounds":{"document_bytes":16777216,"sheet_cells":100000,"rows_first":2000,"rows_last":500,"rows_between":2000,"halvings":0,"cell_chars":16384,"cell_head_chars":4096},"cells_cut":0,"cells_raw":0,"read":"whole","date_system":"1900"}

{"sheet":"MATRIZ DE INDICADORES","index":0,"n_rows":94,"n_cols":21,"rows_kept":94,"cut":false,"hidden":false,"merged":[[6,16,7,17],[9,1,10,20],[24,2,30,2],[24,6,30,6],[1,1,4,2],[1,3,1,17],[1,18,1,20],[2,3,2,17],[2,18,2,20],[3,3,4,17],[3,18,3,20],[4,18,4,20],[12,17,23,17],[12,18,23,18],[12,19,23,19],[12,20,23,20],[92,1,92,20],[93,1,93,20],[24,17,30,17],[31,17,35,17],[24,19,30,19],[31,19,35,19],[31,2,35,2],[31,6,35,6],[31,7,35,7],[31,8,35,8],[31,9,35,9],[24,7,30,7],[24,8,30,8],[24,9,30,9],[24,10,30,10],[24,11,30,11],[31,18,35,18],[24,18,30,18],[31,20,35,20],[31,10,35,10],[31,11,35,11],[24,20,30,20],[12,1,35,1],[12,6,23,6],[12,5,35,5],[12,4,35,4],[12,3,35,3],[12,2,23,2],[12,11,23,11],[12,10,23,10],[12,9,23,9],[12,8,23,8],[12,7,23,7]]}
[]
[null,null,null,"MACROPROCESO ESTRATÉGICO",null,null,null,null,null,null,null,null,null,null,null,null,null,null,"CÓDIGO: ESGr027"]
[null,null,null,"PROCESO GESTIÓN SISTEMAS INTEGRADOS - CALIDAD",null,null,null,null,null,null,null,null,null,null,null,null,null,null,"VERSIÓN: 8"]
[null,null,null,"MATRIZ DE MEDICIÓN Y SEGUIMIENTO A LOS PROCESOS DE GESTIÓN",null,null,null,null,null,null,null,null,null,null,null,null,null,null,"VIGENCIA: 2023-07-28"]
[null,null,null,null,null,null,null,null,null,null,null,null,null,null,null,null,null,null,"PÁGINA: 1 de 5"]
[]
[null,null,null,null,null,null,null,null,null,null,null,null,null,null,null,null,"FECHA DE ACTUALIZACIÓN:",null,"AÑO","MES","DÍA"]
[null,null,null,null,null,null,null,null,null,null,null,null,null,null,null,null,null,null,2023,4,25]
[]
[null,"ALINEACIÓN DE LOS INDICADORES CON LOS DOCUMENTOS ESTRATÉGICOS Y LOS OBJETIVOS DE CALIDAD"]
[]
[null,"PROCESO GESTIÓN","FRENTES DEL PLAN ESTRATÉGICO","LINEAMIENTOS DE LA POLÍTICA DE CALIDAD","OBJETIVOS DE CALIDAD","OBJETIVO GENERAL DEL PROCESO","OBJETIVOS ESPECÍFICOS","NOMBRE INDICADOR","FÓRMULA","TIPO DE INDICADOR","SEGUIMIENTO MEDICIÓN","META","ACTIVIDAD","RESPONSABLE DE LA ACTIVIDAD","¿QUÉ RECURSOS SE REQUIEREN?","FECHA EJECUCIÓN DE ACTIVIDADES","EVIDENCIA","¿CUÁNDO FINALIZARÁ?","RESULTADO ","NIVEL OBTENIDO","ACCESO"]
[null,"GRADUADOS","Frente Estratégico I: Campo Multidimensional de Aprendizaje (CMA)","Se legitima como una organización social del conocimiento y el aprendizaje, que se compromete con el pensamiento basado en riesgos y el mejoramiento continuo, mediante buenas prácticas administrativas y académicas en busca de la acreditación de programas y la acreditación institucional  ","2. Lograr la acreditación de programas y la acreditación institucional de acuerdo a la planificación de las metas institucionales resultantes de los ejercicios de autoevaluación y acreditación. A su vez se relacionan todos los requisitos.","Planear, promover y ejecutar los lineamientos establecidos en el Acuerdo 007 del 21 de mayo de 2020 por el cual se adopta la política de graduados de la Universidad de Cundinamarca. Con el fin de Fortalecer la identidad del graduado de la UCUNDINAMARCA promoviendo la participación en los procesos institucionales e identificar el impacto de su desempeño profesional para la transformación de la sociedad y para el mejoramiento de los programas académicos.","Lograr un nivel de satisfacción de los graduados del 60%, en la participación de los mismos en los eventos realizados por la Universidad durante la vigencia 2023.","Satisfacción de Graduados","Número de graduados satisfechos *100 / Número de graduados que participan en eventos ","Eficacia","Semestral",0.6,"Jornadas y talleres de formación para tarjeta profesional ","Graduados","Tecnológicos","Febrero 2023\nMarzo 2023","Listados de asistencia\nRegistro fotográfico","Diciembre 2023",{"$f":"'MGD-1'!E49","v":0.51600000000000001},"BUENO","\n\n\n\n\n\n\n\n\n\n\n\n\n\n\n\n\n\nMGD-1"]
[null,null,null,null,null,null,null,null,null,null,null,null,"1° feria virtual laboral Ucundinamarca","Graduados","Tecnológicos","2021-03-01","Listados de asistencia\nRegistro fotográfico"]
[null,null,null,null,null,null,null,null,null,null,null,null,"Reunión y socialización de política de graduados \nEncuentro de graduandos","Graduados ","Financiero\nPlanta Física - todas las sedes","Marzo 2023\nSeptiembre 2023","Asistencia\nRegistro Fotográfico"]
[null,null,null,null,null,null,null,null,null,null,null,null,"Conversatorio con graduados de ingeniería de sistemas Fusagasugá","Graduados - Programa de ingeniería","Espacios acade4micos universidad de Cundinamarca sede Fusagasugá\nTecnológicos\n","2023-05-01","Listados de asistencia\nRegistro fotográfico"]
[null,null,null,null,null,null,null,null,null,null,null,null,"contratar ingeniero de sistemas para el mejoramiento del sistema de información de graduados","Graduados - Talento Humano","Financiero","2023-08-01","Contrato"]
[null,null,null,null,null,null,null,null,null,null,null,null,"Difusión de eventos ","Graduados - Comunicaciones","Redes sociales\nCorreos masivos\nImpresos","Vigencia 2023","Correos electrónico "]
[null,null,null,null,null,null,null,null,null,null,null,null,"Ejecutar el V encuentro deportivo y cultural de graduados","Graduados - Bienestar Universitario","Financiero\nPlanta Física Universidad de Cundinamarca sedes Facatativá, Ubaté, Fusagasugá, Girardot","Agosto 2023\nNoviembre 2023","Asistencia\nRegistro Fotográfico"]
[null,null,null,null,null,null,null,null,null,null,null,null,"Ejecutar 3 talleres de empleabilidad y clínica de hoja de vida","Graduados ","Financiero\nTecnológico","2023-08-01","Asistencia\nRegistro Fotográfico\nContrato"]
[null,null,null,null,null,null,null,null,null,null,null,null,"Ejecutar el IV congreso de graduados Cundinamarca - Emprendimiento e Innovación ","Graduados ","Financiero\nPlanta Física Universidad de Cundinamarca sede Chía","2023-10-28","Asistencia\nRegistro Fotográfico"]
[null,null,null,null,null,null,null,null,null,null,null,null,"Gestionar ofertas laborales de las empresas que contactan a la Universidad.","Graduados ","Tecnológicos","Vigencia 2023","Correos electrónico "]
[null,null,null,null,null,null,null,null,null,null,null,null,"Medir el indicador","Graduados","Base de datos","Julio 2023\nDiciembre 2023","Matriz del indicador"]
[null,null,null,null,null,null,null,null,null,null,null,null,"Implementar acciones según los resultados","Graduados ","N/A","2023-12-01","Ficha técnica del indicador"]
[null,null,"Frente Estratégico III: Cultura Translocal Transmoderna",null,null,null," Alcanzar una participación de los graduados en los eventos institucionales del 60% de los invitados durante la vigencia 2023.","Participación de los Graduados en los eventos institucionales","Número de graduados vinculados a la dinámica institucional *100 / Número de graduados esperados para la vigencia 2021 (5.000) ","Eficacia","Semestral",0.6,"contratar ingeniero de sistemas para el mejoramiento del sistema de información de graduados","Graduados - Talento Humano","Financiero","2023-08-01","Contrato","Diciembre 2023",{"$f":"'MGD-2'!E49","v":0.51600000000000001},"BUENO","\n\n\n\n\nMGD-2"]
[null,null,null,null,null,null,null,null,null,null,null,null,"Difusión de eventos ","Graduados - Comunicaciones","Redes sociales\nCorreos masivos\nImpresos","Vigencia 2023","Correos electrónico "]
[null,null,null,null,null,null,null,null,null,null,null,null,"boletín trimestral de graduados ","Graduados - Comunicaciones","Redes sociales\nCorreos masivos","Marzo 2023\nJunio 2023\nOctubre 2023\nDiciembre 2023","Correos electrónico "]
[null,null,null,null,null,null,null,null,null,null,null,null,"Periódico de graduados ","Graduados - Comunicaciones","Tecnológicos\nMicrositio del proceso","Junio 2023\nNoviembre 2023","Pagina web"]
[null,null,null,null,null,null,null,null,null,null,null,null,"Difundir los servicios prestados por la oficina ","Graduados - Comunicaciones","Redes sociales\nCorreos masivos\nImpresos\nPlanta física en todas las sedes ","Vigencia 2023","Piezas publicitarias\nRegistros fotográficos "]
[null,null,null,null,null,null,null,null,null,null,null,null,"Medir el indicador","Graduados","Base de datos","2023-07-01","Matriz del indicador"]
[null,null,null,null,null,null,null,null,null,null,null,null,"Implementar acciones según los resultados","Graduados ","N/A","2023-12-01","Ficha técnica del indicador"]
[null,null,"Frente Estratégico III: Cultura Translocal Transmoderna",null,null,null,"Generar procesos de formación continuada, desarrollo profesional por lo menos al 20% de los graduados de la universidad que se inscriben a los procesos de formación para la vida.","Eficacia en la certificación de cursos ","Número de certificados *100 / Número de inscritos","Eficacia","Semestral",0.2,"Ejecutar el cronograma de cursos de formación.","Graduados - OEVA - Talento Humano","Humanos\nTecnológicos","Vigencia 2023","Power BI","Diciembre 2023",{"$f":"'MGD-4'!E49","v":0.27272727272727271},"EXCELENTE","\n\n\n\n\n\nMGD-4"]
[null,null,null,null,null,null,null,null,null,null,null,null,"Promoción y difusión de cursos.","Graduados - Comunicaciones","Redes sociales\nCorreos masivos\nImpresos","Vigencia 2023","Correos electrónico "]
[null,null,null,null,null,null,null,null,null,null,null,null,"Seguimiento al proceso de formación.","Graduados - OEVA","Corres","Vigencia 2023","Correos electrónico "]
[null,null,null,null,null,null,null,null,null,null,null,null,"Medir el indicador","Graduados","Base de datos","2023-07-01","Matriz del indicador"]
[null,null,null,null,null,null,null,null,null,null,null,null,"Implementar acciones según los resultados","Graduados ","N/A","2023-12-01","Ficha técnica del indicador"]
[]
[]
[]
[]
[]
[]
[]
[]
[]
[]
[]
[]
[]
[]
[]
[]
[]
[]
[]
[]
[]
[]
[]
[]
[]
[]
[]
[]
[]
[]
[]
[]
[]
[]
[]
[]
[]
[]
[]
[]
[]
[]
[]
[]
[]
[]
[]
[]
[]
[]
[]
[]
[]
[]
[]
[]
[null,"Diagonal 18 No. 20-29 Fusagasugá – Cundinamarca\nTeléfono (601)  8281483 Línea Gratuita 018000180414\nwww.ucundinamarca.edu.co   E-mail:  info@ucundinamarca.edu.co\nNIT: 890.680.062-2                                                                             "]
[null,"Documento controlado por el Sistema de Gestión de la Calidad\nAsegúrese que corresponde a la última versión consultando el Portal Institucional"]

{"sheet":"ATH-1","index":1,"n_rows":98,"n_cols":15,"rows_kept":98,"cut":false,"hidden":true,"merged":[[1,1,3,2],[4,2,7,3],[4,4,4,11],[4,12,4,14],[5,4,5,11],[5,12,5,14],[6,4,7,11],[6,12,6,14],[7,12,7,14],[15,2,15,14],[8,2,8,14],[9,2,10,14],[11,2,11,3],[11,4,11,7],[11,8,11,9],[11,10,11,14],[12,2,12,3],[12,4,12,14],[13,2,13,3],[13,4,13,14],[14,2,14,14],[16,15,17,15],[17,2,18,3],[17,4,17,5],[17,6,17,10],[17,11,18,12],[17,13,18,14],[18,4,18,5],[18,6,18,10],[16,2,16,3],[16,4,16,6],[16,7,16,8],[16,9,16,10],[16,11,16,12],[16,13,16,14],[19,2,21,3],[19,4,21,6],[19,7,21,8],[19,9,21,10],[19,11,19,14],[22,13,23,14],[23,2,23,3],[23,4,23,6],[25,2,25,14],[26,2,42,8],[26,9,26,14],[42,9,42,14],[22,2,22,3],[22,4,22,6],[22,7,23,8],[22,9,23,10],[22,11,23,12],[53,2,53,5],[53,6,53,9],[53,10,53,14],[26,15,27,15],[27,9,32,14],[33,9,33,14],[34,9,39,14],[40,9,40,14],[41,9,41,14],[44,2,44,14],[51,2,51,14],[52,2,52,5],[52,6,52,9],[52,10,52,14],[54,2,54,5],[54,6,54,9],[54,10,54,14],[55,2,55,5],[55,6,55,9],[55,10,55,14],[56,2,56,5],[56,6,56,9],[56,10,56,14],[57,2,57,5],[57,6,57,9],[57,10,57,14],[58,2,58,5],[58,6,58,9],[58,10,58,14],[59,2,59,5],[59,6,59,9],[59,10,59,14]]}
[]
[null,"      REGRESAR"]
[]
[]
[null,null,null,null,"MACROPROCESO ESTRATÉGICO",null,null,null,null,null,null,null,"CÓDIGO: ESGr027"]
[null,null,null,null,"PROCESO GESTIÓN SISTEMAS INTEGRADOS",null,null,null,null,null,null,null,"VERSIÓN: 7"]
[null,null,null,null,"MATRIZ DE MEDICIÓN Y SEGUIMIENTO A LOS PROCESOS DE GESTIÓN",null,null,null,null,null,null,null,"VIGENCIA: 2020-03-20"]
[null,null,null,null,null,null,null,null,null,null,null,null,"PÁGINA: 1 de 1"]
[]
[null,null,"FICHA DE INDICADOR"]
[]
[null,null,"MACROPROCESO",null,"Apoyo",null,null,null,"NOMBRE DEL INDICADOR",null,"Cobertura de las capacitaciones"]
[null,null,"PROCESO GESTIÓN",null,"Talento Humano"]
[null,null,"RESPONSABLE DE MEDICIÓN",null,"Director(a) de Talento Humano"]
[]
[null,null,"1. COMPORTAMIENTO DE INDICADOR"]
[null,null,"CLASIFICACIÓN DE LA MEDICIÓN",null,1,null,null,"TIPO DE INDICADOR",null,"Eficiencia",null,"META",null,0.8]
[null,null,"FORMULA",null,"NUMERADOR",null,"Número de personas capacitadas*100",null,null,null,null,"UNIDAD DE MEDIDA",null,"Porcentual"]
[null,null,null,null,"DENOMINADOR",null,"Número total de empleados"]
[null,null,"TENDENCIA",null,"Positiva",null,null,"NIVEL DE SEGREGACIÓN *",null,"No Aplica",null,"ESCALA"]
[null,null,null,null,null,null,null,null,null,null,null,"Deficiente","Aceptable","Bueno","Excelente"]
[null,null,null,null,null,null,null,null,null,null,null,"0 - 50%","51% - 70%","71% - 80%","81% - 100%"]
[null,null,"ORIGEN DE DATOS NUMERADOR",null,"Listado de Asistencia",null,null,"FRECUENCIA DE LA MEDICIÓN",null,"SEMESTRAL",null,"FRECUENCIA DE RESULTADO",null,"ANUAL"]
[null,null,"ORIGEN DE DATOS DENOMINADOR",null,"Base de Empleados "]
[]
[null,null,"RESULTADOS"]
[null,null,null,null,null,null,null,null,null,"ANÁLISIS DE DATOS"]
[null,null,null,null,null,null,null,null,null,"\"SEMESTRE I : Durante el primer semestre se adelanto, el proceso de contratación para ofrecer las capacitaciones a partir de Abril de la vigencia en curso.\nA corte del 30 de Junio del 2021, se han realizado 9 capacitaciones virtualmente (Cursos con el área de Educación Virtual y a Distancia), garantizando la participación de 132 personas.\n\nSEMESTRE II : "]
[]
[]
[]
[]
[]
[null,null,null,null,null,null,null,null,null,"ACCIÓN FORMULADA"]
[null,null,null,null,null,null,null,null,null,"SEMESTRE I : Se programaran y se realizaran las capacitaciones restantes a partir del segundo semestre del año en curso, del total de las capacitaciones registradas en el Programa de Capacitación.\n\nSEMESTRE II : "]
[]
[]
[]
[]
[]
[null,null,null,null,null,null,null,null,null,"RESPONSABLE "]
[null,null,null,null,null,null,null,null,null,{"$f":"E14","v":"Director(a) de Talento Humano"}]
[]
[]
[null,null,"PERIODO DE EVALUACIÓN"]
[null,null,"MES",{"$f":"IF(J23=\"MENSUAL\",\"ENERO\",IF(J23=\"TRIMESTRAL\",\"MARZO\",IF(J23=\"SEMESTRAL\",\"JUNIO\",IF(J23=\"ANUAL\",YEAR(TODAY()),\"\"))))","v":"JUNIO"},{"$f":"IF(J23=\"MENSUAL\",\"FEBRERO\",IF(J23=\"TRIMESTRAL\",\"JUNIO\",IF(J23=\"SEMESTRAL\",\"DICIEMBRE\",\"\")))","v":"DICIEMBRE"},{"$f":"IF(J23=\"MENSUAL\",\"MARZO\",IF(J23=\"TRIMESTRAL\",\"SEPTIEMBRE\",\"\"))","v":""},{"$f":"IF(J23=\"MENSUAL\",\"ABRIL\",IF(J23=\"TRIMESTRAL\",\"DICIEMBRE\",\"\"))","v":""},{"$f":"IF(J23=\"MENSUAL\",\"MAYO\",\"\")","v":""},{"$f":"IF(J23=\"MENSUAL\",\"JUNIO\",\"\")","v":""},{"$f":"IF(J23=\"MENSUAL\",\"JULIO\",\"\")","v":""},{"$f":"IF(J23=\"MENSUAL\",\"AGOSTO\",\"\")","v":""},{"$f":"IF(J23=\"MENSUAL\",\"SEPTIEMBRE\",\"\")","v":""},{"$f":"IF(J23=\"MENSUAL\",\"OCTUBRE\",\"\")","v":""},{"$f":"IF(J23=\"MENSUAL\",\"NOVIEMBRE\",\"\")","v":""},{"$f":"IF(J23=\"MENSUAL\",\"DICIEMBRE\",\"\")","v":""}]
[null,null,{"$f":"G18","v":"Número de personas capacitadas*100"},132]
[null,null,{"$f":"G19","v":"Número total de empleados"},{"$f":"123+312","v":435}]
[null,null,"VALOR ",{"$f":"IFERROR(IF($E$17=1,D47/D48,IF($E$17=2,D47,\"\")),\"\")","v":0.30344827586206896},{"$f":"IFERROR(IF($E$17=1,E47/E48,IF($E$17=2,E47,\"\")),\"\")","v":""},"","","","","","","","","",""]
[null,null,"META PONDERADA",{"$f":"IF(AND(N23=\"ANUAL\",J23=\"MENSUAL\"),N17/12,IF(AND(N23=\"ANUAL\",J23=\"TRIMESTRAL\"),N17/4,IF(AND(N23=\"ANUAL\",J23=\"SEMESTRAL\"),N17/2,IF(AND(N23=\"ANUAL\",J23=\"ANUAL\"),N17,IF(AND(N23=\"SEMESTRAL\",J23=\"MENSUAL\"),N17/6,IF(AND(N23=\"SEMESTRAL\",J23=\"TRIMESTRAL\"),N17/2,IF(AND(N23=\"SEMESTRAL\",J23=\"SEMESTRAL\"),N17,IF(AND(N23=\"SEMESTRAL\",J23=\"ANUAL\"),\"REVISAR FRECUENCIAS\",IF(AND(N23=\"TRIMESTRAL\",J23=\"MENSUAL\"),N17/3,IF(AND(N23=\"TRIMESTRAL\",J23=\"TRIMESTRAL\"),N17,IF(AND(N23=\"TRIMESTRAL\",J23=\"SEMESTRAL\"),\"REVISAR FRECUENCIAS\",IF(AND(N23=\"TRIMESTRAL\",J23=\"ANUAL\"),\"REVISAR FRECUENCIAS\",IF(AND(N23=\"MENSUAL\",J23=\"MENSUAL\"),N17,IF(AND(N23=\"MENSUAL\",J23=\"TRIMESTRAL\"),\"REVISAR FRECUENCIAS\",IF(AND(N23=\"MENSUAL\",J23=\"SEMESTRAL\"),\"REVISAR FRECUENCIAS\",IF(AND(N23=\"MENSUAL\",J23=\"ANUAL\"),\"REVISAR FRECUENCIAS\",\"\"))))))))))))))))","v":0.4},{"$f":"IF(AND(N23=\"ANUAL\",J23=\"MENSUAL\"),N17/12+D50,IF(AND(N23=\"ANUAL\",J23=\"TRIMESTRAL\"),N17/4+D50,IF(AND(N23=\"ANUAL\",J23=\"SEMESTRAL\"),N17/2+D50,IF(AND(N23=\"SEMESTRAL\",J23=\"MENSUAL\"),N17/6+D50,IF(AND(N23=\"SEMESTRAL\",J23=\"TRIMESTRAL\"),N17/2+D50,IF(AND(N23=\"SEMESTRAL\",J23=\"SEMESTRAL\"),N17,IF(AND(N23=\"TRIMESTRAL\",J23=\"MENSUAL\"),N17/3+D50,IF(AND(N23=\"TRIMESTRAL\",J23=\"TRIMESTRAL\"),N17,IF(AND(N23=\"MENSUAL\",J23=\"MENSUAL\"),N17,\"\")))))))))","v":0.8},{"$f":"IF(AND(N23=\"ANUAL\",J23=\"MENSUAL\"),N17/12+E50,IF(AND(N23=\"ANUAL\",J23=\"TRIMESTRAL\"),N17/4+E50,IF(AND(N23=\"SEMESTRAL\",J23=\"MENSUAL\"),N17/6+E50,IF(AND(N23=\"SEMESTRAL\",J23=\"TRIMESTRAL\"),N17/2,IF(AND(N23=\"TRIMESTRAL\",J23=\"MENSUAL\"),N17/3+E50,IF(AND(N23=\"TRIMESTRAL\",J23=\"TRIMESTRAL\"),N17,IF(AND(N23=\"MENSUAL\",J23=\"MENSUAL\"),N17,\"\")))))))","v":""},{"$f":"IF(AND(N23=\"ANUAL\",J23=\"MENSUAL\"),N17/12+F50,IF(AND(N23=\"ANUAL\",J23=\"TRIMESTRAL\"),N17/4+F50,IF(AND(N23=\"SEMESTRAL\",J23=\"MENSUAL\"),N17/6+F50,IF(AND(N23=\"SEMESTRAL\",J23=\"TRIMESTRAL\"),N17/2+F50,IF(AND(N23=\"TRIMESTRAL\",J23=\"MENSUAL\"),N17/3,IF(AND(N23=\"TRIMESTRAL\",J23=\"TRIMESTRAL\"),N17,IF(AND(N23=\"MENSUAL\",J23=\"MENSUAL\"),N17,\"\")))))))","v":""},{"$f":"IF(AND($N$23=\"ANUAL\",$J$23=\"MENSUAL\"),$N$17/12+G50,IF(AND(N23=\"SEMESTRAL\",J23=\"MENSUAL\"),N17/6+G50,IF(AND(N23=\"TRIMESTRAL\",J23=\"MENSUAL\"),N17/3+G50,IF(AND(N23=\"MENSUAL\",J23=\"MENSUAL\"),N17,\"\"))))","v":""},{"$f":"IF(AND($N$23=\"ANUAL\",$J$23=\"MENSUAL\"),$N$17/12+H50,IF(AND(N23=\"SEMESTRAL\",J23=\"MENSUAL\"),N17/6+H50,IF(AND(N23=\"TRIMESTRAL\",J23=\"MENSUAL\"),N17/3+H50,IF(AND(N23=\"MENSUAL\",J23=\"MENSUAL\"),N17,\"\"))))","v":""},{"$f":"IF(AND($N$23=\"ANUAL\",$J$23=\"MENSUAL\"),$N$17/12+I50,IF(AND(N23=\"SEMESTRAL\",J23=\"MENSUAL\"),N17/6,IF(AND(N23=\"TRIMESTRAL\",J23=\"MENSUAL\"),N17/3,IF(AND(N23=\"MENSUAL\",J23=\"MENSUAL\"),N17,\"\"))))","v":""},{"$f":"IF(AND($N$23=\"ANUAL\",$J$23=\"MENSUAL\"),$N$17/12+J50,IF(AND(N23=\"SEMESTRAL\",J23=\"MENSUAL\"),N17/6+J50,IF(AND(N23=\"TRIMESTRAL\",J23=\"MENSUAL\"),N17/3+J50,IF(AND(N23=\"MENSUAL\",J23=\"MENSUAL\"),N17,\"\"))))","v":""},{"$f":"IF(AND($N$23=\"ANUAL\",$J$23=\"MENSUAL\"),$N$17/12+K50,IF(AND(N23=\"SEMESTRAL\",J23=\"MENSUAL\"),N17/6+K50,IF(AND(N23=\"TRIMESTRAL\",J23=\"MENSUAL\"),N17/3+K50,IF(AND(N23=\"MENSUAL\",J23=\"MENSUAL\"),N17,\"\"))))","v":""},{"$f":"IF(AND($N$23=\"ANUAL\",$J$23=\"MENSUAL\"),$N$17/12+L50,IF(AND(N23=\"SEMESTRAL\",J23=\"MENSUAL\"),N17/6+L50,IF(AND(N23=\"TRIMESTRAL\",J23=\"MENSUAL\"),N17/3,IF(AND(N23=\"MENSUAL\",J23=\"MENSUAL\"),N17,\"\"))))","v":""},{"$f":"IF(AND($N$23=\"ANUAL\",$J$23=\"MENSUAL\"),$N$17/12+M50,IF(AND(N23=\"SEMESTRAL\",J23=\"MENSUAL\"),N17/6+M50,IF(AND(N23=\"TRIMESTRAL\",J23=\"MENSUAL\"),N17/3+M50,IF(AND(N23=\"MENSUAL\",J23=\"MENSUAL\"),N17,\"\"))))","v":""},{"$f":"IF(AND($N$23=\"ANUAL\",$J$23=\"MENSUAL\"),$N$17/12+N50,IF(AND(N23=\"SEMESTRAL\",J23=\"MENSUAL\"),N17/6+N50,IF(AND(N23=\"TRIMESTRAL\",J23=\"MENSUAL\"),N17/3+N50,IF(AND(N23=\"MENSUAL\",J23=\"MENSUAL\"),N17,\"\"))))","v":""}]
[]
[null,null,"NIVEL DE SEGREGACIÓN *"]
[null,null,"UNIDAD SEGREGADA (Ej. Facultad, Programa Académico, Área)",null,null,null,"RESULTADO",null,null,null,"ANALISIS DE DATOS SEGREGADO"]
[]
[]
[]
[]
[]
[]
[]
[]
[]
[]
[]
[]
[]
[]
[]
[]
[]
[]
[null,null,null,null,null,null,"Estratégico",null,null,"Eficacia"]
[null,null,null,null,null,null,"Misional",null,null,"Eficiencia"]
[null,null,null,null,null,null,"Apoyo",null,null,"Acreditación"]
[null,null,null,null,null,null,"Seguimiento, Medición, Análisis y Evaluación",null,null,"Positiva"]
[null,null,null,null,null,null,"Direccionamiento Estratégico",null,null,"Negativa"]
[null,null,null,null,null,null,"Planeación Institucional",null,null,"Por Unidad Regional"]
[null,null,null,null,null,null,"Proyectos Especiales y Relaciones Interinstitucionales",null,null,"Por Facultad"]
[null,null,null,null,null,null,"Sistemas Integrados",null,null,"Por Programa Académico"]
[null,null,null,null,null,null,"Autoevaluación y Acreditación",null,null,"Por área"]
[null,null,null,null,null,null,"Comunicaciones",null,null,"Por Laboratorio"]
[null,null,null,null,null,null,"Formación y Aprendizaje",null,null,"Otros"]
[null,null,null,null,null,null,"Ciencia, Tecnología e Innovación",null,null,"No Aplica"]
[null,null,null,null,null,null,"Interacción Social Universitaria"]
[null,null,null,null,null,null,"Bienestar Universitario"]
[null,null,null,null,null,null,"Admisiones y Registro"]
[null,null,null,null,null,null,"Graduados"]
[null,null,null,null,null,null,"Dialogando con el Mundo"]
[null,null,null,null,null,null,"Talento Humano"]
[null,null,null,null,null,null,"Jurídica"]
[null,null,null,null,null,null,"Financiera"]
[null,null,null,null,null,null,"Sistemas y Tecnología"]
[null,null,null,null,null,null,"Bienes y Servicios"]
[null,null,null,null,null,null,"Documental"]
[null,null,null,null,null,null,"Apoyo Académico"]
[null,null,null,null,null,null,"Control Interno"]
[null,null,null,null,null,null,"Control Disciplinario"]
[null,null,null,null,null,null,"Servicio de Atención al Ciudadano"]

{"sheet":"ATH-2","index":2,"n_rows":98,"n_cols":15,"rows_kept":98,"cut":false,"hidden":true,"merged":[[1,1,3,2],[4,2,7,3],[4,4,4,11],[4,12,4,14],[5,4,5,11],[5,12,5,14],[6,4,7,11],[6,12,6,14],[7,12,7,14],[15,2,15,14],[8,2,8,14],[9,2,10,14],[11,2,11,3],[11,4,11,7],[11,8,11,9],[11,10,11,14],[12,2,12,3],[12,4,12,14],[13,2,13,3],[13,4,13,14],[14,2,14,14],[16,15,17,15],[17,2,18,3],[17,4,17,5],[17,6,17,10],[17,11,18,12],[17,13,18,14],[18,4,18,5],[18,6,18,10],[16,2,16,3],[16,4,16,6],[16,7,16,8],[16,9,16,10],[16,11,16,12],[16,13,16,14],[19,2,21,3],[19,4,21,6],[19,7,21,8],[19,9,21,10],[19,11,19,14],[22,13,23,14],[23,2,23,3],[23,4,23,6],[25,2,25,14],[26,2,42,8],[26,9,26,14],[42,9,42,14],[22,2,22,3],[22,4,22,6],[22,7,23,8],[22,9,23,10],[22,11,23,12],[53,2,53,5],[53,6,53,9],[53,10,53,14],[26,15,27,15],[27,9,32,14],[33,9,33,14],[34,9,39,14],[40,9,40,14],[41,9,41,14],[44,2,44,14],[51,2,51,14],[52,2,52,5],[52,6,52,9],[52,10,52,14],[54,2,54,5],[54,6,54,9],[54,10,54,14],[55,2,55,5],[55,6,55,9],[55,10,55,14],[56,2,56,5],[56,6,56,9],[56,10,56,14],[57,2,57,5],[57,6,57,9],[57,10,57,14],[58,2,58,5],[58,6,58,9],[58,10,58,14],[59,2,59,5],[59,6,59,9],[59,10,59,14]]}
[]
[null,"      REGRESAR"]
[]
[]
[null,null,null,null,"MACROPROCESO ESTRATÉGICO",null,null,null,null,null,null,null,"CÓDIGO: ESGr027"]
[null,null,null,null,"PROCESO GESTIÓN SISTEMAS INTEGRADOS",null,null,null,null,null,null,null,"VERSIÓN: 7"]
[null,null,null,null,"MATRIZ DE MEDICIÓN Y SEGUIMIENTO A LOS PROCESOS DE GESTIÓN",null,null,null,null,null,null,null,"VIGENCIA: 2020-03-20"]
[null,null,null,null,null,null,null,null,null,null,null,null,"PÁGINA: 1 de 1"]
[]
[null,null,"FICHA DE INDICADOR"]
[]
[null,null,"MACROPROCESO",null,"Apoyo",null,null,null,"NOMBRE DEL INDICADOR",null,"Cobertura capacitaciones puesto de trabajo"]
[null,null,"PROCESO GESTIÓN",null,"Talento Humano"]
[null,null,"RESPONSABLE DE MEDICIÓN",null,"Director(a) de Talento Humano"]
[]
[null,null,"1. COMPORTAMIENTO DE INDICADOR"]
[null,null,"CLASIFICACIÓN DE LA MEDICIÓN",null,1,null,null,"TIPO DE INDICADOR",null,"Eficiencia",null,"META",null,0.9]
[null,null,"FORMULA",null,"NUMERADOR",null,"Inducciones realizadas puesto de trabajo*100",null,null,null,null,"UNIDAD DE MEDIDA",null,"Porcentual"]
[null,null,null,null,"DENOMINADOR",null,"Numero de funcionarios vinculados en el periodo"]
[null,null,"TENDENCIA",null,"Positiva",null,null,"NIVEL DE SEGREGACIÓN *",null,"No Aplica",null,"ESCALA"]
[null,null,null,null,null,null,null,null,null,null,null,"Deficiente","Aceptable","Bueno","Excelente"]
[null,null,null,null,null,null,null,null,null,null,null,"0 - 60%","61% - 80%","81% -90%","91% - 100%"]
[null,null,"ORIGEN DE DATOS NUMERADOR",null,"Registros de asistencia, reporte generado por aplicativo",null,null,"FRECUENCIA DE LA MEDICIÓN",null,"SEMESTRAL",null,"FRECUENCIA DE RESULTADO",null,"SEMESTRAL"]
[null,null,"ORIGEN DE DATOS DENOMINADOR",null,"Base de funcionarios contratados en el periodo"]
[]
[null,null,"RESULTADOS"]
[null,null,null,null,null,null,null,null,null,"ANÁLISIS DE DATOS"]
[null,null,null,null,null,null,null,null,null,"SEMESTRE I: \"Como el indicador es de medición semestral, nos permitimos informar que el porcentaje a corte del II Trimestre es del 54.86%, contando con un total de personal de nuevo ingreso de 114, y un envío del formato de inducción al puesto de trabajo de 62, lo cual muestra un avance en la elaboración de este proceso, dando claridad que al contar con las alertas realizadas vía correo electrónico por parte del Proceso de Talento Humano, se ha tenido una respuesta poco favorable por parte de los jefes y directores de las áreas. \nEs de aclarar que, aunque se cuenta con las alertas vía correo electrónico a cada proceso, aun no se tiene la cultura de la realización de esta inducción, por lo cual no se ha logrado dar cumplimiento a la meta propuesta, para lo cual se formulara la acción necesaria para ello.\"      "]
[]
[]
[]
[]
[]
[null,null,null,null,null,null,null,null,null,"ACCIÓN FORMULADA"]
[null,null,null,null,null,null,null,null,null,"SEMESTRE I: \"Envío de alertas por correo electrónico de la ejecución del proceso de inducción al puesto de trabajo.\nPara el siguiente semestre, se realizara la creación del formato virtualmente por medio de la plataforma FORMS, con esta estrategia se consigue que la mayor cantidad de personas nuevas puedan realizar el proceso de inducción al puesto de trabajo, dado que no se requerirá el lleno de formulario físico junto con firmas de las partes, sino solo el lleno del formulario por el personal nuevo y el jefe inmediato, para que conozcan el proceso de inducción al puesto de trabajo y tratar de general cultura de su importancia\".  \n     \n     \n     \n     "]
[]
[]
[]
[]
[]
[null,null,null,null,null,null,null,null,null,"RESPONSABLE "]
[null,null,null,null,null,null,null,null,null,{"$f":"E14","v":"Director(a) de Talento Humano"}]
[]
[]
[null,null,"PERIODO DE EVALUACIÓN"]
[null,null,"MES",{"$f":"IF(J23=\"MENSUAL\",\"ENERO\",IF(J23=\"TRIMESTRAL\",\"MARZO\",IF(J23=\"SEMESTRAL\",\"JUNIO\",IF(J23=\"ANUAL\",YEAR(TODAY()),\"\"))))","v":"JUNIO"},{"$f":"IF(J23=\"MENSUAL\",\"FEBRERO\",IF(J23=\"TRIMESTRAL\",\"JUNIO\",IF(J23=\"SEMESTRAL\",\"DICIEMBRE\",\"\")))","v":"DICIEMBRE"},{"$f":"IF(J23=\"MENSUAL\",\"MARZO\",IF(J23=\"TRIMESTRAL\",\"SEPTIEMBRE\",\"\"))","v":""},{"$f":"IF(J23=\"MENSUAL\",\"ABRIL\",IF(J23=\"TRIMESTRAL\",\"DICIEMBRE\",\"\"))","v":""},{"$f":"IF(J23=\"MENSUAL\",\"MAYO\",\"\")","v":""},{"$f":"IF(J23=\"MENSUAL\",\"JUNIO\",\"\")","v":""},{"$f":"IF(J23=\"MENSUAL\",\"JULIO\",\"\")","v":""},{"$f":"IF(J23=\"MENSUAL\",\"AGOSTO\",\"\")","v":""},{"$f":"IF(J23=\"MENSUAL\",\"SEPTIEMBRE\",\"\")","v":""},{"$f":"IF(J23=\"MENSUAL\",\"OCTUBRE\",\"\")","v":""},{"$f":"IF(J23=\"MENSUAL\",\"NOVIEMBRE\",\"\")","v":""},{"$f":"IF(J23=\"MENSUAL\",\"DICIEMBRE\",\"\")","v":""}]
[null,null,{"$f":"G18","v":"Inducciones realizadas puesto de trabajo*100"},62]
[null,null,{"$f":"G19","v":"Numero de funcionarios vinculados en el periodo"},114]
[null,null,"VALOR ",{"$f":"IFERROR(IF($E$17=1,D47/D48,IF($E$17=2,D47,\"\")),\"\")","v":0.54385964912280704},{"$f":"IFERROR(IF($E$17=1,E47/E48,IF($E$17=2,E47,\"\")),\"\")","v":""},"","","","","","","","","",""]
[null,null,"META PONDERADA",{"$f":"IF(AND(N23=\"ANUAL\",J23=\"MENSUAL\"),N17/12,IF(AND(N23=\"ANUAL\",J23=\"TRIMESTRAL\"),N17/4,IF(AND(N23=\"ANUAL\",J23=\"SEMESTRAL\"),N17/2,IF(AND(N23=\"ANUAL\",J23=\"ANUAL\"),N17,IF(AND(N23=\"SEMESTRAL\",J23=\"MENSUAL\"),N17/6,IF(AND(N23=\"SEMESTRAL\",J23=\"TRIMESTRAL\"),N17/2,IF(AND(N23=\"SEMESTRAL\",J23=\"SEMESTRAL\"),N17,IF(AND(N23=\"SEMESTRAL\",J23=\"ANUAL\"),\"REVISAR FRECUENCIAS\",IF(AND(N23=\"TRIMESTRAL\",J23=\"MENSUAL\"),N17/3,IF(AND(N23=\"TRIMESTRAL\",J23=\"TRIMESTRAL\"),N17,IF(AND(N23=\"TRIMESTRAL\",J23=\"SEMESTRAL\"),\"REVISAR FRECUENCIAS\",IF(AND(N23=\"TRIMESTRAL\",J23=\"ANUAL\"),\"REVISAR FRECUENCIAS\",IF(AND(N23=\"MENSUAL\",J23=\"MENSUAL\"),N17,IF(AND(N23=\"MENSUAL\",J23=\"TRIMESTRAL\"),\"REVISAR FRECUENCIAS\",IF(AND(N23=\"MENSUAL\",J23=\"SEMESTRAL\"),\"REVISAR FRECUENCIAS\",IF(AND(N23=\"MENSUAL\",J23=\"ANUAL\"),\"REVISAR FRECUENCIAS\",\"\"))))))))))))))))","v":0.9},{"$f":"IF(AND(N23=\"ANUAL\",J23=\"MENSUAL\"),N17/12+D50,IF(AND(N23=\"ANUAL\",J23=\"TRIMESTRAL\"),N17/4+D50,IF(AND(N23=\"ANUAL\",J23=\"SEMESTRAL\"),N17/2+D50,IF(AND(N23=\"SEMESTRAL\",J23=\"MENSUAL\"),N17/6+D50,IF(AND(N23=\"SEMESTRAL\",J23=\"TRIMESTRAL\"),N17/2+D50,IF(AND(N23=\"SEMESTRAL\",J23=\"SEMESTRAL\"),N17,IF(AND(N23=\"TRIMESTRAL\",J23=\"MENSUAL\"),N17/3+D50,IF(AND(N23=\"TRIMESTRAL\",J23=\"TRIMESTRAL\"),N17,IF(AND(N23=\"MENSUAL\",J23=\"MENSUAL\"),N17,\"\")))))))))","v":0.9},{"$f":"IF(AND(N23=\"ANUAL\",J23=\"MENSUAL\"),N17/12+E50,IF(AND(N23=\"ANUAL\",J23=\"TRIMESTRAL\"),N17/4+E50,IF(AND(N23=\"SEMESTRAL\",J23=\"MENSUAL\"),N17/6+E50,IF(AND(N23=\"SEMESTRAL\",J23=\"TRIMESTRAL\"),N17/2,IF(AND(N23=\"TRIMESTRAL\",J23=\"MENSUAL\"),N17/3+E50,IF(AND(N23=\"TRIMESTRAL\",J23=\"TRIMESTRAL\"),N17,IF(AND(N23=\"MENSUAL\",J23=\"MENSUAL\"),N17,\"\")))))))","v":""},{"$f":"IF(AND(N23=\"ANUAL\",J23=\"MENSUAL\"),N17/12+F50,IF(AND(N23=\"ANUAL\",J23=\"TRIMESTRAL\"),N17/4+F50,IF(AND(N23=\"SEMESTRAL\",J23=\"MENSUAL\"),N17/6+F50,IF(AND(N23=\"SEMESTRAL\",J23=\"TRIMESTRAL\"),N17/2+F50,IF(AND(N23=\"TRIMESTRAL\",J23=\"MENSUAL\"),N17/3,IF(AND(N23=\"TRIMESTRAL\",J23=\"TRIMESTRAL\"),N17,IF(AND(N23=\"MENSUAL\",J23=\"MENSUAL\"),N17,\"\")))))))","v":""},{"$f":"IF(AND($N$23=\"ANUAL\",$J$23=\"MENSUAL\"),$N$17/12+G50,IF(AND(N23=\"SEMESTRAL\",J23=\"MENSUAL\"),N17/6+G50,IF(AND(N23=\"TRIMESTRAL\",J23=\"MENSUAL\"),N17/3+G50,IF(AND(N23=\"MENSUAL\",J23=\"MENSUAL\"),N17,\"\"))))","v":""},{"$f":"IF(AND($N$23=\"ANUAL\",$J$23=\"MENSUAL\"),$N$17/12+H50,IF(AND(N23=\"SEMESTRAL\",J23=\"MENSUAL\"),N17/6+H50,IF(AND(N23=\"TRIMESTRAL\",J23=\"MENSUAL\"),N17/3+H50,IF(AND(N23=\"MENSUAL\",J23=\"MENSUAL\"),N17,\"\"))))","v":""},{"$f":"IF(AND($N$23=\"ANUAL\",$J$23=\"MENSUAL\"),$N$17/12+I50,IF(AND(N23=\"SEMESTRAL\",J23=\"MENSUAL\"),N17/6,IF(AND(N23=\"TRIMESTRAL\",J23=\"MENSUAL\"),N17/3,IF(AND(N23=\"MENSUAL\",J23=\"MENSUAL\"),N17,\"\"))))","v":""},{"$f":"IF(AND($N$23=\"ANUAL\",$J$23=\"MENSUAL\"),$N$17/12+J50,IF(AND(N23=\"SEMESTRAL\",J23=\"MENSUAL\"),N17/6+J50,IF(AND(N23=\"TRIMESTRAL\",J23=\"MENSUAL\"),N17/3+J50,IF(AND(N23=\"MENSUAL\",J23=\"MENSUAL\"),N17,\"\"))))","v":""},{"$f":"IF(AND($N$23=\"ANUAL\",$J$23=\"MENSUAL\"),$N$17/12+K50,IF(AND(N23=\"SEMESTRAL\",J23=\"MENSUAL\"),N17/6+K50,IF(AND(N23=\"TRIMESTRAL\",J23=\"MENSUAL\"),N17/3+K50,IF(AND(N23=\"MENSUAL\",J23=\"MENSUAL\"),N17,\"\"))))","v":""},{"$f":"IF(AND($N$23=\"ANUAL\",$J$23=\"MENSUAL\"),$N$17/12+L50,IF(AND(N23=\"SEMESTRAL\",J23=\"MENSUAL\"),N17/6+L50,IF(AND(N23=\"TRIMESTRAL\",J23=\"MENSUAL\"),N17/3,IF(AND(N23=\"MENSUAL\",J23=\"MENSUAL\"),N17,\"\"))))","v":""},{"$f":"IF(AND($N$23=\"ANUAL\",$J$23=\"MENSUAL\"),$N$17/12+M50,IF(AND(N23=\"SEMESTRAL\",J23=\"MENSUAL\"),N17/6+M50,IF(AND(N23=\"TRIMESTRAL\",J23=\"MENSUAL\"),N17/3+M50,IF(AND(N23=\"MENSUAL\",J23=\"MENSUAL\"),N17,\"\"))))","v":""},{"$f":"IF(AND($N$23=\"ANUAL\",$J$23=\"MENSUAL\"),$N$17/12+N50,IF(AND(N23=\"SEMESTRAL\",J23=\"MENSUAL\"),N17/6+N50,IF(AND(N23=\"TRIMESTRAL\",J23=\"MENSUAL\"),N17/3+N50,IF(AND(N23=\"MENSUAL\",J23=\"MENSUAL\"),N17,\"\"))))","v":""}]
[]
[null,null,"NIVEL DE SEGREGACIÓN *"]
[null,null,"UNIDAD SEGREGADA (Ej. Facultad, Programa Académico, Área)",null,null,null,"RESULTADO",null,null,null,"ANALISIS DE DATOS SEGREGADO"]
[]
[]
[]
[]
[]
[]
[]
[]
[]
[]
[]
[]
[]
[]
[]
[]
[]
[]
[null,null,null,null,null,null,"Estratégico",null,null,"Eficacia"]
[null,null,null,null,null,null,"Misional",null,null,"Eficiencia"]
[null,null,null,null,null,null,"Apoyo",null,null,"Acreditación"]
[null,null,null,null,null,null,"Seguimiento, Medición, Análisis y Evaluación",null,null,"Positiva"]
[null,null,null,null,null,null,"Direccionamiento Estratégico",null,null,"Negativa"]
[null,null,null,null,null,null,"Planeación Institucional",null,null,"Por Unidad Regional"]
[null,null,null,null,null,null,"Proyectos Especiales y Relaciones Interinstitucionales",null,null,"Por Facultad"]
[null,null,null,null,null,null,"Sistemas Integrados",null,null,"Por Programa Académico"]
[null,null,null,null,null,null,"Autoevaluación y Acreditación",null,null,"Por área"]
[null,null,null,null,null,null,"Comunicaciones",null,null,"Por Laboratorio"]
[null,null,null,null,null,null,"Formación y Aprendizaje",null,null,"Otros"]
[null,null,null,null,null,null,"Ciencia, Tecnología e Innovación",null,null,"No Aplica"]
[null,null,null,null,null,null,"Interacción Social Universitaria"]
[null,null,null,null,null,null,"Bienestar Universitario"]
[null,null,null,null,null,null,"Admisiones y Registro"]
[null,null,null,null,null,null,"Graduados"]
[null,null,null,null,null,null,"Dialogando con el Mundo"]
[null,null,null,null,null,null,"Talento Humano"]
[null,null,null,null,null,null,"Jurídica"]
[null,null,null,null,null,null,"Financiera"]
[null,null,null,null,null,null,"Sistemas y Tecnología"]
[null,null,null,null,null,null,"Bienes y Servicios"]
[null,null,null,null,null,null,"Documental"]
[null,null,null,null,null,null,"Apoyo Académico"]
[null,null,null,null,null,null,"Control Interno"]
[null,null,null,null,null,null,"Control Disciplinario"]
[null,null,null,null,null,null,"Servicio de Atención al Ciudadano"]

{"sheet":"AFI-1","index":3,"n_rows":98,"n_cols":15,"rows_kept":98,"cut":false,"hidden":true,"merged":[[1,1,3,2],[4,2,7,3],[4,4,4,11],[4,12,4,14],[5,4,5,11],[5,12,5,14],[6,4,7,11],[6,12,6,14],[7,12,7,14],[15,2,15,14],[8,2,8,14],[9,2,10,14],[11,2,11,3],[11,4,11,7],[11,8,11,9],[11,10,11,14],[12,2,12,3],[12,4,12,14],[13,2,13,3],[13,4,13,14],[14,2,14,14],[16,15,17,15],[17,2,18,3],[17,4,17,5],[17,6,17,10],[17,11,18,12],[17,13,18,14],[18,4,18,5],[18,6,18,10],[16,2,16,3],[16,4,16,6],[16,7,16,8],[16,9,16,10],[16,11,16,12],[16,13,16,14],[19,2,21,3],[19,4,21,6],[19,7,21,8],[19,9,21,10],[19,11,19,14],[22,13,23,14],[23,2,23,3],[23,4,23,6],[25,2,25,14],[26,2,42,8],[26,9,26,14],[42,9,42,14],[22,2,22,3],[22,4,22,6],[22,7,23,8],[22,9,23,10],[22,11,23,12],[53,2,53,5],[53,6,53,9],[53,10,53,14],[26,15,27,15],[27,9,32,14],[33,9,33,14],[34,9,39,14],[40,9,40,14],[41,9,41,14],[44,2,44,14],[51,2,51,14],[52,2,52,5],[52,6,52,9],[52,10,52,14],[54,2,54,5],[54,6,54,9],[54,10,54,14],[55,2,55,5],[55,6,55,9],[55,10,55,14],[56,2,56,5],[56,6,56,9],[56,10,56,14],[57,2,57,5],[57,6,57,9],[57,10,57,14],[58,2,58,5],[58,6,58,9],[58,10,58,14],[59,2,59,5],[59,6,59,9],[59,10,59,14]]}
[]
[null,"      REGRESAR"]
[]
[]
[null,null,null,null,"MACROPROCESO ESTRATÉGICO",null,null,null,null,null,null,null,"CÓDIGO: ESGr027"]
[null,null,null,null,"PROCESO GESTIÓN SISTEMAS INTEGRADOS",null,null,null,null,null,null,null,"VERSIÓN: 7"]
[null,null,null,null,"MATRIZ DE MEDICIÓN Y SEGUIMIENTO A LOS PROCESOS DE GESTIÓN",null,null,null,null,null,null,null,"VIGENCIA: 2020-03-20"]
[null,null,null,null,null,null,null,null,null,null,null,null,"PÁGINA: 1 de 1"]
[]
[null,null,"FICHA DE INDICADOR"]
[]
[null,null,"MACROPROCESO",null,"Apoyo",null,null,null,"NOMBRE DEL INDICADOR",null,"Oportunidad en pagos "]
[null,null,"PROCESO GESTIÓN",null,"Financiera"]
[null,null,"RESPONSABLE DE MEDICIÓN",null,"Director(a) Financiera"]
[]
[null,null,"1. COMPORTAMIENTO DE INDICADOR"]
[null,null,"CLASIFICACIÓN DE LA MEDICIÓN",null,1,null,null,"TIPO DE INDICADOR",null,null,null,"META",null,0.95]
[null,null,"FORMULA",null,"NUMERADOR",null,"Total cuentas pagadas fecha establecida*100",null,null,null,null,"UNIDAD DE MEDIDA",null,"Porcentual"]
[null,null,null,null,"DENOMINADOR",null,"Total cuentas pagadas"]
[null,null,"TENDENCIA",null,"Positiva",null,null,"NIVEL DE SEGREGACIÓN *",null,"No Aplica",null,"ESCALA"]
[null,null,null,null,null,null,null,null,null,null,null,"Deficiente","Aceptable","Bueno","Excelente"]
[null,null,null,null,null,null,null,null,null,null,null,"0 -70%","71% - 84%","85% - 95%","96% - 100%"]
[null,null,"ORIGEN DE DATOS NUMERADOR",null,"Base de datos pagos",null,null,"FRECUENCIA DE LA MEDICIÓN",null,"TRIMESTRAL",null,"FRECUENCIA DE RESULTADO",null,"TRIMESTRAL"]
[null,null,"ORIGEN DE DATOS DENOMINADOR",null,"Base de datos pagos"]
[]
[null,null,"RESULTADOS"]
[null,null,null,null,null,null,null,null,null,"ANÁLISIS DE DATOS"]
[null,null,null,null,null,null,null,null,null,"TRIMESTRE I: En comparación al primer trimestre de la vigencia 2020, subimos el indicador de oportunidad de pago en un 20%. Tomando acciones preventivas en pro de un mejor nivel de  rotación de cuentas en el área de tesorería.  Como lo fue el excluir las cuentas por pagar que fueron recibidas en el  cierre de la vigencia 2020 para la medición de este indicador, dado a que tales cuentas son canceladas en el mes de febrero de la siguiente vigencia. \nTRIMESTRE ll: En comparacion al primer trimestre de la vigencia 2021, subimos el indicador de oportunidad de pago en un 3 %. Logrando pagar 536 Ordenes de Prestación de Servicios (OPS), ademas de acuerdo al porcetaje obtenido del 88% nos indica que se encuentra en tendencia ascendente el compartamiento del indicador."]
[]
[]
[]
[]
[]
[null,null,null,null,null,null,null,null,null,"ACCIÓN FORMULADA"]
[null,null,null,null,null,null,null,null,null,"SEMESTRE I: El modelo de pagos bajo el aplicativo Integradoc,  necesita mayor acompañamiento, dado que es necesario la capacitación a los supervisores y contratistas, a fin de eliminar los cuellos de botella dentro del proceso. \nTRIMESTRE ll: El modelo de pagos bajo el aplicativo Integradoc, le faltan reingeneria dado que para el proceso de pago aun es muy manual, ya que se debe descargar una a una las cuentas para llevar a cabo el desembolso a los contratistas.  "]
[]
[]
[]
[]
[]
[null,null,null,null,null,null,null,null,null,"RESPONSABLE "]
[null,null,null,null,null,null,null,null,null,{"$f":"E14","v":"Director(a) Financiera"}]
[]
[]
[null,null,"PERIODO DE EVALUACIÓN"]
[null,null,"MES",{"$f":"IF(J23=\"MENSUAL\",\"ENERO\",IF(J23=\"TRIMESTRAL\",\"MARZO\",IF(J23=\"SEMESTRAL\",\"JUNIO\",IF(J23=\"ANUAL\",YEAR(TODAY()),\"\"))))","v":"MARZO"},{"$f":"IF(J23=\"MENSUAL\",\"FEBRERO\",IF(J23=\"TRIMESTRAL\",\"JUNIO\",IF(J23=\"SEMESTRAL\",\"DICIEMBRE\",\"\")))","v":"JUNIO"},{"$f":"IF(J23=\"MENSUAL\",\"MARZO\",IF(J23=\"TRIMESTRAL\",\"SEPTIEMBRE\",\"\"))","v":"SEPTIEMBRE"},{"$f":"IF(J23=\"MENSUAL\",\"ABRIL\",IF(J23=\"TRIMESTRAL\",\"DICIEMBRE\",\"\"))","v":"DICIEMBRE"},{"$f":"IF(J23=\"MENSUAL\",\"MAYO\",\"\")","v":""},{"$f":"IF(J23=\"MENSUAL\",\"JUNIO\",\"\")","v":""},{"$f":"IF(J23=\"MENSUAL\",\"JULIO\",\"\")","v":""},{"$f":"IF(J23=\"MENSUAL\",\"AGOSTO\",\"\")","v":""},{"$f":"IF(J23=\"MENSUAL\",\"SEPTIEMBRE\",\"\")","v":""},{"$f":"IF(J23=\"MENSUAL\",\"OCTUBRE\",\"\")","v":""},{"$f":"IF(J23=\"MENSUAL\",\"NOVIEMBRE\",\"\")","v":""},{"$f":"IF(J23=\"MENSUAL\",\"DICIEMBRE\",\"\")","v":""}]
[null,null,{"$f":"G18","v":"Total cuentas pagadas fecha establecida*100"},225,473]
[null,null,{"$f":"G19","v":"Total cuentas pagadas"},266,536]
[null,null,"VALOR ",{"$f":"IFERROR(IF($E$17=1,D47/D48,IF($E$17=2,D47,\"\")),\"\")","v":0.84586466165413532},{"$f":"IFERROR(IF($E$17=1,E47/E48,IF($E$17=2,E47,\"\")),\"\")","v":0.8824626865671642},"","","","","","","","","",""]
[null,null,"META PONDERADA",{"$f":"IF(AND(N23=\"ANUAL\",J23=\"MENSUAL\"),N17/12,IF(AND(N23=\"ANUAL\",J23=\"TRIMESTRAL\"),N17/4,IF(AND(N23=\"ANUAL\",J23=\"SEMESTRAL\"),N17/2,IF(AND(N23=\"ANUAL\",J23=\"ANUAL\"),N17,IF(AND(N23=\"SEMESTRAL\",J23=\"MENSUAL\"),N17/6,IF(AND(N23=\"SEMESTRAL\",J23=\"TRIMESTRAL\"),N17/2,IF(AND(N23=\"SEMESTRAL\",J23=\"SEMESTRAL\"),N17,IF(AND(N23=\"SEMESTRAL\",J23=\"ANUAL\"),\"REVISAR FRECUENCIAS\",IF(AND(N23=\"TRIMESTRAL\",J23=\"MENSUAL\"),N17/3,IF(AND(N23=\"TRIMESTRAL\",J23=\"TRIMESTRAL\"),N17,IF(AND(N23=\"TRIMESTRAL\",J23=\"SEMESTRAL\"),\"REVISAR FRECUENCIAS\",IF(AND(N23=\"TRIMESTRAL\",J23=\"ANUAL\"),\"REVISAR FRECUENCIAS\",IF(AND(N23=\"MENSUAL\",J23=\"MENSUAL\"),N17,IF(AND(N23=\"MENSUAL\",J23=\"TRIMESTRAL\"),\"REVISAR FRECUENCIAS\",IF(AND(N23=\"MENSUAL\",J23=\"SEMESTRAL\"),\"REVISAR FRECUENCIAS\",IF(AND(N23=\"MENSUAL\",J23=\"ANUAL\"),\"REVISAR FRECUENCIAS\",\"\"))))))))))))))))","v":0.95},{"$f":"IF(AND(N23=\"ANUAL\",J23=\"MENSUAL\"),N17/12+D50,IF(AND(N23=\"ANUAL\",J23=\"TRIMESTRAL\"),N17/4+D50,IF(AND(N23=\"ANUAL\",J23=\"SEMESTRAL\"),N17/2+D50,IF(AND(N23=\"SEMESTRAL\",J23=\"MENSUAL\"),N17/6+D50,IF(AND(N23=\"SEMESTRAL\",J23=\"TRIMESTRAL\"),N17/2+D50,IF(AND(N23=\"SEMESTRAL\",J23=\"SEMESTRAL\"),N17,IF(AND(N23=\"TRIMESTRAL\",J23=\"MENSUAL\"),N17/3+D50,IF(AND(N23=\"TRIMESTRAL\",J23=\"TRIMESTRAL\"),N17,IF(AND(N23=\"MENSUAL\",J23=\"MENSUAL\"),N17,\"\")))))))))","v":0.95},{"$f":"IF(AND(N23=\"ANUAL\",J23=\"MENSUAL\"),N17/12+E50,IF(AND(N23=\"ANUAL\",J23=\"TRIMESTRAL\"),N17/4+E50,IF(AND(N23=\"SEMESTRAL\",J23=\"MENSUAL\"),N17/6+E50,IF(AND(N23=\"SEMESTRAL\",J23=\"TRIMESTRAL\"),N17/2,IF(AND(N23=\"TRIMESTRAL\",J23=\"MENSUAL\"),N17/3+E50,IF(AND(N23=\"TRIMESTRAL\",J23=\"TRIMESTRAL\"),N17,IF(AND(N23=\"MENSUAL\",J23=\"MENSUAL\"),N17,\"\")))))))","v":0.95},{"$f":"IF(AND(N23=\"ANUAL\",J23=\"MENSUAL\"),N17/12+F50,IF(AND(N23=\"ANUAL\",J23=\"TRIMESTRAL\"),N17/4+F50,IF(AND(N23=\"SEMESTRAL\",J23=\"MENSUAL\"),N17/6+F50,IF(AND(N23=\"SEMESTRAL\",J23=\"TRIMESTRAL\"),N17/2+F50,IF(AND(N23=\"TRIMESTRAL\",J23=\"MENSUAL\"),N17/3,IF(AND(N23=\"TRIMESTRAL\",J23=\"TRIMESTRAL\"),N17,IF(AND(N23=\"MENSUAL\",J23=\"MENSUAL\"),N17,\"\")))))))","v":0.95},{"$f":"IF(AND($N$23=\"ANUAL\",$J$23=\"MENSUAL\"),$N$17/12+G50,IF(AND(N23=\"SEMESTRAL\",J23=\"MENSUAL\"),N17/6+G50,IF(AND(N23=\"TRIMESTRAL\",J23=\"MENSUAL\"),N17/3+G50,IF(AND(N23=\"MENSUAL\",J23=\"MENSUAL\"),N17,\"\"))))","v":""},{"$f":"IF(AND($N$23=\"ANUAL\",$J$23=\"MENSUAL\"),$N$17/12+H50,IF(AND(N23=\"SEMESTRAL\",J23=\"MENSUAL\"),N17/6+H50,IF(AND(N23=\"TRIMESTRAL\",J23=\"MENSUAL\"),N17/3+H50,IF(AND(N23=\"MENSUAL\",J23=\"MENSUAL\"),N17,\"\"))))","v":""},{"$f":"IF(AND($N$23=\"ANUAL\",$J$23=\"MENSUAL\"),$N$17/12+I50,IF(AND(N23=\"SEMESTRAL\",J23=\"MENSUAL\"),N17/6,IF(AND(N23=\"TRIMESTRAL\",J23=\"MENSUAL\"),N17/3,IF(AND(N23=\"MENSUAL\",J23=\"MENSUAL\"),N17,\"\"))))","v":""},{"$f":"IF(AND($N$23=\"ANUAL\",$J$23=\"MENSUAL\"),$N$17/12+J50,IF(AND(N23=\"SEMESTRAL\",J23=\"MENSUAL\"),N17/6+J50,IF(AND(N23=\"TRIMESTRAL\",J23=\"MENSUAL\"),N17/3+J50,IF(AND(N23=\"MENSUAL\",J23=\"MENSUAL\"),N17,\"\"))))","v":""},{"$f":"IF(AND($N$23=\"ANUAL\",$J$23=\"MENSUAL\"),$N$17/12+K50,IF(AND(N23=\"SEMESTRAL\",J23=\"MENSUAL\"),N17/6+K50,IF(AND(N23=\"TRIMESTRAL\",J23=\"MENSUAL\"),N17/3+K50,IF(AND(N23=\"MENSUAL\",J23=\"MENSUAL\"),N17,\"\"))))","v":""},{"$f":"IF(AND($N$23=\"ANUAL\",$J$23=\"MENSUAL\"),$N$17/12+L50,IF(AND(N23=\"SEMESTRAL\",J23=\"MENSUAL\"),N17/6+L50,IF(AND(N23=\"TRIMESTRAL\",J23=\"MENSUAL\"),N17/3,IF(AND(N23=\"MENSUAL\",J23=\"MENSUAL\"),N17,\"\"))))","v":""},{"$f":"IF(AND($N$23=\"ANUAL\",$J$23=\"MENSUAL\"),$N$17/12+M50,IF(AND(N23=\"SEMESTRAL\",J23=\"MENSUAL\"),N17/6+M50,IF(AND(N23=\"TRIMESTRAL\",J23=\"MENSUAL\"),N17/3+M50,IF(AND(N23=\"MENSUAL\",J23=\"MENSUAL\"),N17,\"\"))))","v":""},{"$f":"IF(AND($N$23=\"ANUAL\",$J$23=\"MENSUAL\"),$N$17/12+N50,IF(AND(N23=\"SEMESTRAL\",J23=\"MENSUAL\"),N17/6+N50,IF(AND(N23=\"TRIMESTRAL\",J23=\"MENSUAL\"),N17/3+N50,IF(AND(N23=\"MENSUAL\",J23=\"MENSUAL\"),N17,\"\"))))","v":""}]
[]
[null,null,"NIVEL DE SEGREGACIÓN *"]
[null,null,"UNIDAD SEGREGADA (Ej. Facultad, Programa Académico, Área)",null,null,null,"RESULTADO",null,null,null,"ANALISIS DE DATOS SEGREGADO"]
[]
[]
[]
[]
[]
[]
[]
[]
[]
[]
[]
[]
[]
[]
[]
[]
[]
[]
[null,null,null,null,null,null,"Estratégico",null,null,"Eficacia"]
[null,null,null,null,null,null,"Misional",null,null,"Eficiencia"]
[null,null,null,null,null,null,"Apoyo",null,null,"Acreditación"]
[null,null,null,null,null,null,"Seguimiento, Medición, Análisis y Evaluación",null,null,"Positiva"]
[null,null,null,null,null,null,"Direccionamiento Estratégico",null,null,"Negativa"]
[null,null,null,null,null,null,"Planeación Institucional",null,null,"Por Unidad Regional"]
[null,null,null,null,null,null,"Proyectos Especiales y Relaciones Interinstitucionales",null,null,"Por Facultad"]
[null,null,null,null,null,null,"Sistemas Integrados",null,null,"Por Programa Académico"]
[null,null,null,null,null,null,"Autoevaluación y Acreditación",null,null,"Por área"]
[null,null,null,null,null,null,"Comunicaciones",null,null,"Por Laboratorio"]
[null,null,null,null,null,null,"Formación y Aprendizaje",null,null,"Otros"]
[null,null,null,null,null,null,"Ciencia, Tecnología e Innovación",null,null,"No Aplica"]
[null,null,null,null,null,null,"Interacción Social Universitaria"]
[null,null,null,null,null,null,"Bienestar Universitario"]
[null,null,null,null,null,null,"Admisiones y Registro"]
[null,null,null,null,null,null,"Graduados"]
[null,null,null,null,null,null,"Dialogando con el Mundo"]
[null,null,null,null,null,null,"Talento Humano"]
[null,null,null,null,null,null,"Jurídica"]
[null,null,null,null,null,null,"Financiera"]
[null,null,null,null,null,null,"Sistemas y Tecnología"]
[null,null,null,null,null,null,"Bienes y Servicios"]
[null,null,null,null,null,null,"Documental"]
[null,null,null,null,null,null,"Apoyo Académico"]
[null,null,null,null,null,null,"Control Interno"]
[null,null,null,null,null,null,"Control Disciplinario"]
[null,null,null,null,null,null,"Servicio de Atención al Ciudadano"]

{"sheet":"AFI-3","index":4,"n_rows":103,"n_cols":15,"rows_kept":103,"cut":false,"hidden":true,"merged":[[64,2,64,5],[64,6,64,9],[64,10,64,14],[62,2,62,5],[62,6,62,9],[62,10,62,14],[63,2,63,5],[63,6,63,9],[63,10,63,14],[60,2,60,5],[60,6,60,9],[60,10,60,14],[61,2,61,5],[61,6,61,9],[61,10,61,14],[58,2,58,5],[58,6,58,9],[58,10,58,14],[59,2,59,5],[59,6,59,9],[59,10,59,14],[46,9,46,14],[47,9,47,14],[49,2,49,14],[56,2,56,14],[57,2,57,5],[57,6,57,9],[57,10,57,14],[26,15,27,15],[27,9,28,14],[29,9,30,14],[31,9,32,14],[33,9,34,14],[35,9,36,14],[22,13,23,14],[23,2,23,3],[23,4,23,6],[25,2,25,14],[26,2,47,8],[26,9,26,14],[37,9,37,14],[38,9,38,14],[39,9,44,14],[45,9,45,14],[22,2,22,3],[22,4,22,6],[22,7,23,8],[22,9,23,10],[22,11,23,12],[19,2,21,3],[19,4,21,6],[19,7,21,8],[19,9,21,10],[19,11,19,14],[16,15,17,15],[17,2,18,3],[17,4,17,5],[17,6,17,10],[17,11,18,12],[17,13,18,14],[18,4,18,5],[18,6,18,10],[16,2,16,3],[16,4,16,6],[16,7,16,8],[16,9,16,10],[16,11,16,12],[16,13,16,14],[15,2,15,14],[8,2,8,14],[9,2,10,14],[11,2,11,3],[11,4,11,7],[11,8,11,9],[11,10,11,14],[12,2,12,3],[12,4,12,14],[13,2,13,3],[13,4,13,14],[14,2,14,14],[1,1,3,2],[4,2,7,3],[4,4,4,11],[4,12,4,14],[5,4,5,11],[5,12,5,14],[6,4,7,11],[6,12,6,14],[7,12,7,14]]}
[]
[null,"      REGRESAR"]
[]
[]
[null,null,null,null,"MACROPROCESO ESTRATÉGICO",null,null,null,null,null,null,null,"CÓDIGO: ESGr027"]
[null,null,null,null,"PROCESO GESTIÓN SISTEMAS INTEGRADOS",null,null,null,null,null,null,null,"VERSIÓN: 7"]
[null,null,null,null,"MATRIZ DE MEDICIÓN Y SEGUIMIENTO A LOS PROCESOS DE GESTIÓN",null,null,null,null,null,null,null,"VIGENCIA: 2020-03-20"]
[null,null,null,null,null,null,null,null,null,null,null,null,"PÁGINA: 1 de 1"]
[]
[null,null,"FICHA DE INDICADOR"]
[]
[null,null,"MACROPROCESO",null,"Apoyo",null,null,null,"NOMBRE DEL INDICADOR",null,"Recuperación de IVA"]
[null,null,"PROCESO GESTIÓN",null,"Financiera"]
[null,null,"RESPONSABLE DE MEDICIÓN",null,"Director(a) Financiera"]
[]
[null,null,"1. COMPORTAMIENTO DE INDICADOR"]
[null,null,"CLASIFICACIÓN DE LA MEDICIÓN",null,1,null,null,"TIPO DE INDICADOR",null,"Eficacia",null,"META ANUAL",null,0.97]
[null,null,"FÓRMULA",null,"NUMERADOR",null,"Total  IVA recuperado*100",null,null,null,null,"UNIDAD DE MEDIDA",null,"Porcentual"]
[null,null,null,null,"DENOMINADOR",null,"Total  IVA cobrado "]
[null,null,"TENDENCIA",null,"Positiva",null,null,"NIVEL DE SEGREGACIÓN *",null,"No Aplica",null,"ESCALA"]
[null,null,null,null,null,null,null,null,null,null,null,"Deficiente","Aceptable","Bueno","Excelente"]
[null,null,null,null,null,null,null,null,null,null,null,"0 65%","66% - 81%","82% - 97%","98% - 100%"]
[null,null,"ORIGEN DE DATOS NUMERADOR",null,"AFIr055 y Resolución DIAN",null,null,"FRECUENCIA DE LA MEDICIÓN",null,"BIMENSUAL",null,"FRECUENCIA DE RESULTADO",null,"BIMENSUAL"]
[null,null,"ORIGEN DE DATOS DENOMINADOR",null,"AFIr055 y Resolución DIAN"]
[]
[null,null,"RESULTADOS"]
[null,null,null,null,null,null,null,null,null,"ANÁLISIS DE DATOS"]
[null,null,null,null,null,null,null,null,null,"BIMESTRE I:  Durante el primer bimestre del año 2021, se solicito ante la Dirección de impuestos y Aduanas nacionales en el mes de enero; según el Decreto 1625/2016 (El cual establece la devolución del impuesto sobre las ventas a las instituciones estatales u oficiales de educación superior)   la suma de $831.691.146, correspondiente al VI BIMESTRE del año 2020.  En el mes de abril de 2021 la DIAN envió resolución numero 6282011 de fecha 09 de abril de 2021 notificando la devolución de $831.691.146 correspondientes a el VI bimestre de 2020 quedando 100%. Durante el mes de febrero del presente año la DIAN realizo  devolución   por valor de $704,592,100,  correspondiente al V BIMESTRE del año 2020; quedando el indicador durante el Primer bimestre del año en un 100% de cumplimiento.           "]
[]
[null,null,null,null,null,null,null,null,null,"BIMESTRE II . Durante el segundo bimestre del año 2021, se solicito ante la Dirección de impuestos y Aduanas nacionales en el mes de marzo; según el Decreto 1625/2016 (El cual establece la devolución del impuesto sobre las ventas a las instituciones estatales u oficiales de educación superior)   la suma de $143.017.363, correspondiente al I BIMESTRE del año 2021. En el mes de junio de 2021 la DIAN envió resolución numero 6282023 de fecha 04 de junio de 2021 notificando la devolución de $143.017.363 correspondientes a el I bimestre de 2021 quedando 100%. "]
[]
[]
[]
[]
[]
[]
[]
[]
[null,null,null,null,null,null,null,null,null,"ACCIÓN FORMULADA"]
[null,null,null,null,null,null,null,null,null,"BIMESTRE I:  "]
[]
[]
[]
[]
[]
[null,null,null,null,null,null,null,null,null,"RESPONSABLE "]
[null,null,null,null,null,null,null,null,null,{"$f":"E14","v":"Director(a) Financiera"}]
[]
[]
[null,null,"PERIODO DE EVALUACIÓN"]
[null,null,"MES","FEBRERO","ABRIL","JUNIO","AGOSTO","OCTUBRE","DICIEMBRE",{"$f":"IF(J23=\"MENSUAL\",\"JULIO\",\"\")","v":""},{"$f":"IF(J23=\"MENSUAL\",\"AGOSTO\",\"\")","v":""},{"$f":"IF(J23=\"MENSUAL\",\"SEPTIEMBRE\",\"\")","v":""},{"$f":"IF(J23=\"MENSUAL\",\"OCTUBRE\",\"\")","v":""},{"$f":"IF(J23=\"MENSUAL\",\"NOVIEMBRE\",\"\")","v":""},{"$f":"IF(J23=\"MENSUAL\",\"DICIEMBRE\",\"\")","v":""}]
[null,null,{"$f":"G18","v":"Total  IVA recuperado*100"},831691146,143017363]
[null,null,{"$f":"G19","v":"Total  IVA cobrado "},831691146,143017363]
[null,null,"VALOR ",{"$f":"IFERROR(IF($E$17=1,D52/D53,IF($E$17=2,D52,\"\")),\"\")","v":1},{"$f":"IFERROR(IF($E$17=1,E52/E53,IF($E$17=2,E52,\"\")),\"\")","v":1},{"$f":"IFERROR(IF($E$17=1,F52/F53,IF($E$17=2,F52,\"\")),\"\")","v":""},{"$f":"IFERROR(IF($E$17=1,G52/G53,IF($E$17=2,G52,\"\")),\"\")","v":""},{"$f":"IFERROR(IF($E$17=1,H52/H53,IF($E$17=2,H52,\"\")),\"\")","v":""},{"$f":"IFERROR(IF($E$17=1,I52/I53,IF($E$17=2,I52,\"\")),\"\")","v":""},"","","","","",""]
[null,null,"META PONDERADA",0.97,0.97,0.97,0.97,0.97,{"$f":"IF(AND($N$23=\"ANUAL\",$J$23=\"MENSUAL\"),$N$17/12+H55,IF(AND(N23=\"SEMESTRAL\",J23=\"MENSUAL\"),N17/6+H55,IF(AND(N23=\"TRIMESTRAL\",J23=\"MENSUAL\"),N17/3+H55,IF(AND(N23=\"MENSUAL\",J23=\"MENSUAL\"),N17,\"\"))))","v":""},{"$f":"IF(AND($N$23=\"ANUAL\",$J$23=\"MENSUAL\"),$N$17/12+I55,IF(AND(N23=\"SEMESTRAL\",J23=\"MENSUAL\"),N17/6,IF(AND(N23=\"TRIMESTRAL\",J23=\"MENSUAL\"),N17/3,IF(AND(N23=\"MENSUAL\",J23=\"MENSUAL\"),N17,\"\"))))","v":""},{"$f":"IF(AND($N$23=\"ANUAL\",$J$23=\"MENSUAL\"),$N$17/12+J55,IF(AND(N23=\"SEMESTRAL\",J23=\"MENSUAL\"),N17/6+J55,IF(AND(N23=\"TRIMESTRAL\",J23=\"MENSUAL\"),N17/3+J55,IF(AND(N23=\"MENSUAL\",J23=\"MENSUAL\"),N17,\"\"))))","v":""},{"$f":"IF(AND($N$23=\"ANUAL\",$J$23=\"MENSUAL\"),$N$17/12+K55,IF(AND(N23=\"SEMESTRAL\",J23=\"MENSUAL\"),N17/6+K55,IF(AND(N23=\"TRIMESTRAL\",J23=\"MENSUAL\"),N17/3+K55,IF(AND(N23=\"MENSUAL\",J23=\"MENSUAL\"),N17,\"\"))))","v":""},{"$f":"IF(AND($N$23=\"ANUAL\",$J$23=\"MENSUAL\"),$N$17/12+L55,IF(AND(N23=\"SEMESTRAL\",J23=\"MENSUAL\"),N17/6+L55,IF(AND(N23=\"TRIMESTRAL\",J23=\"MENSUAL\"),N17/3,IF(AND(N23=\"MENSUAL\",J23=\"MENSUAL\"),N17,\"\"))))","v":""},{"$f":"IF(AND($N$23=\"ANUAL\",$J$23=\"MENSUAL\"),$N$17/12+M55,IF(AND(N23=\"SEMESTRAL\",J23=\"MENSUAL\"),N17/6+M55,IF(AND(N23=\"TRIMESTRAL\",J23=\"MENSUAL\"),N17/3+M55,IF(AND(N23=\"MENSUAL\",J23=\"MENSUAL\"),N17,\"\"))))","v":""},{"$f":"IF(AND($N$23=\"ANUAL\",$J$23=\"MENSUAL\"),$N$17/12+N55,IF(AND(N23=\"SEMESTRAL\",J23=\"MENSUAL\"),N17/6+N55,IF(AND(N23=\"TRIMESTRAL\",J23=\"MENSUAL\"),N17/3+N55,IF(AND(N23=\"MENSUAL\",J23=\"MENSUAL\"),N17,\"\"))))","v":""}]
[]
[null,null,"NIVEL DE SEGREGACIÓN *"]
[null,null,"UNIDAD SEGREGADA (Ej. Facultad, Programa Académico, Área)",null,null,null,"RESULTADO",null,null,null,"ANÁLISIS DE DATOS SEGREGADO"]
[]
[]
[]
[]
[]
[]
[]
[]
[]
[]
[]
[]
[]
[]
[]
[]
[]
[]
[null,null,null,null,null,null,"Estratégico",null,null,"Eficacia"]
[null,null,null,null,null,null,"Misional",null,null,"Eficiencia"]
[null,null,null,null,null,null,"Apoyo",null,null,"Acreditación"]
[null,null,null,null,null,null,"Seguimiento, Medición, Análisis y Evaluación",null,null,"Positiva"]
[null,null,null,null,null,null,"Direccionamiento Estratégico",null,null,"Negativa"]
[null,null,null,null,null,null,"Planeación Institucional",null,null,"Por Unidad Regional"]
[null,null,null,null,null,null,"Proyectos Especiales y Relaciones Interinstitucionales",null,null,"Por Facultad"]
[null,null,null,null,null,null,"Sistemas Integrados",null,null,"Por Programa Académico"]
[null,null,null,null,null,null,"Autoevaluación y Acreditación",null,null,"Por área"]
[null,null,null,null,null,null,"Comunicaciones",null,null,"Por Laboratorio"]
[null,null,null,null,null,null,"Formación y Aprendizaje",null,null,"Otros"]
[null,null,null,null,null,null,"Ciencia, Tecnología e Innovación",null,null,"No Aplica"]
[null,null,null,null,null,null,"Interacción Social Universitaria"]
[null,null,null,null,null,null,"Bienestar Universitario"]
[null,null,null,null,null,null,"Admisiones y Registro"]
[null,null,null,null,null,null,"Graduados"]
[null,null,null,null,null,null,"Dialogando con el Mundo"]
[null,null,null,null,null,null,"Talento Humano"]
[null,null,null,null,null,null,"Jurídica"]
[null,null,null,null,null,null,"Financiera"]
[null,null,null,null,null,null,"Sistemas y Tecnología"]
[null,null,null,null,null,null,"Bienes y Servicios"]
[null,null,null,null,null,null,"Documental"]
[null,null,null,null,null,null,"Apoyo Académico"]
[null,null,null,null,null,null,"Control Interno"]
[null,null,null,null,null,null,"Control Disciplinario"]
[null,null,null,null,null,null,"Servicio de Atención al Ciudadano"]

{"sheet":"AFI-2","index":5,"n_rows":98,"n_cols":20,"rows_kept":98,"cut":false,"hidden":true,"merged":[[1,1,3,2],[4,2,7,3],[4,4,4,11],[4,12,4,14],[5,4,5,11],[5,12,5,14],[6,4,7,11],[6,12,6,14],[7,12,7,14],[15,2,15,14],[8,2,8,14],[9,2,10,14],[11,2,11,3],[11,4,11,7],[11,8,11,9],[11,10,11,14],[12,2,12,3],[12,4,12,14],[13,2,13,3],[13,4,13,14],[14,2,14,14],[16,15,17,15],[17,2,18,3],[17,4,17,5],[17,6,17,10],[17,11,18,12],[17,13,18,14],[18,4,18,5],[18,6,18,10],[16,2,16,3],[16,4,16,6],[16,7,16,8],[16,9,16,10],[16,11,16,12],[16,13,16,14],[19,2,21,3],[19,4,21,6],[19,7,21,8],[19,9,21,10],[19,11,19,14],[22,13,23,14],[23,2,23,3],[23,4,23,6],[25,2,25,14],[26,2,42,8],[26,9,26,14],[42,9,42,14],[22,2,22,3],[22,4,22,6],[22,7,23,8],[22,9,23,10],[22,11,23,12],[53,6,53,9],[53,10,53,14],[53,2,53,5],[26,15,27,15],[27,9,32,14],[33,9,33,14],[34,9,39,14],[40,9,40,14],[41,9,41,14],[44,2,44,14],[51,2,51,14],[52,2,52,5],[52,6,52,9],[52,10,52,14],[54,6,54,9],[54,10,54,14],[55,6,55,9],[55,10,55,14],[54,2,54,5],[55,2,55,5],[56,2,56,5],[56,6,56,9],[56,10,56,14],[57,2,57,5],[57,6,57,9],[57,10,57,14],[58,2,58,5],[58,6,58,9],[58,10,58,14],[59,2,59,5],[59,6,59,9],[59,10,59,14]]}
[]
[null,"      REGRESAR"]
[]
[]
[null,null,null,null,"MACROPROCESO ESTRATÉGICO",null,null,null,null,null,null,null,"CÓDIGO: ESGr027"]
[null,null,null,null,"PROCESO GESTIÓN SISTEMAS INTEGRADOS",null,null,null,null,null,null,null,"VERSIÓN: 7"]
[null,null,null,null,"MATRIZ DE MEDICIÓN Y SEGUIMIENTO A LOS PROCESOS DE GESTIÓN",null,null,null,null,null,null,null,"VIGENCIA: 2020-03-20"]
[null,null,null,null,null,null,null,null,null,null,null,null,"PÁGINA: 1 de 1"]
[]
[null,null,"FICHA DE INDICADOR"]
[]
[null,null,"MACROPROCESO",null,"Apoyo",null,null,null,"NOMBRE DEL INDICADOR",null,"Recuperación de cartera"]
[null,null,"PROCESO GESTIÓN",null,"Financiera"]
[null,null,"RESPONSABLE DE MEDICIÓN",null,"Director(a) Financiera"]
[]
[null,null,"1. COMPORTAMIENTO DE INDICADOR"]
[null,null,"CLASIFICACIÓN DE LA MEDICIÓN",null,1,null,null,"TIPO DE INDICADOR",null,null,null,"META",null,0.9]
[null,null,"FORMULA",null,"NUMERADOR",null,"Total cartera recuperada*100",null,null,null,null,"UNIDAD DE MEDIDA",null,"Porcentual"]
[null,null,null,null,"DENOMINADOR",null,"Total cartera por matriculas"]
[null,null,"TENDENCIA",null,"Positiva",null,null,"NIVEL DE SEGREGACIÓN *",null,"Otros",null,"ESCALA"]
[null,null,null,null,null,null,null,null,null,null,null,"Deficiente","Aceptable","Bueno","Excelente"]
[null,null,null,null,null,null,null,null,null,null,null,"0 -70%","71% - 84%","85% - 95%","96% - 100%"]
[null,null,"ORIGEN DE DATOS NUMERADOR",null,"Informes de gestión de la oficina de apoyo financiero",null,null,"FRECUENCIA DE LA MEDICIÓN",null,"SEMESTRAL",null,"FRECUENCIA DE RESULTADO",null,"ANUAL"]
[null,null,"ORIGEN DE DATOS DENOMINADOR",null,"Informes de gestión de la oficina de apoyo financiero"]
[]
[null,null,"RESULTADOS"]
[null,null,null,null,null,null,null,null,null,"ANÁLISIS DE DATOS"]
[null,null,null,null,null,null,null,null,null,"SEMESTRE I: Que al inicio del primer periodo del  2021 se  contaba con una cartera consolidada de $  33,523,182 y a su vez para el 2021-1 se financio el monto de $2,054,025 , al cierre de Junio se ha recaudado el 100% de los 2,054,025.                                                                                                                                                                                                                                                                            NOTA: Cabe resaltar que al cierre de junio  del  2021  de los  33,523,182 se recuperaron  un total de 6,874,487  Cabe anotar que la cartera del primer periodo académico del 2010 al segundo periodo académico del 2017 se ha entregado a la oficina de Jurídica, para entablar la respectiva demanda y dar así al inicio del cobro jurídico, estos casos suman 26,648,695  millones de los cuales en los 2 últimos años no ha ingresado ni un peso a las cuentas de la Universidad de Cundinamarca."]
[]
[]
[]
[]
[]
[null,null,null,null,null,null,null,null,null,"ACCIÓN FORMULADA"]
[null,null,null,null,null,null,null,null,null,"SEMESTRE I:   En la actualidad se estan realizando mesas de trabajo junto con la oficina de juridica para determinar la estrategia que se seguira para la recuperacion o el castigo de la cartera  (costo-beneficio)",null,null,null,null,null,null,null,null,"total cartera IPAI",{"$f":"S39+S42","v":35577207}]
[null,null,null,null,null,null,null,null,null,null,null,null,null,null,null,null,null,null,"Cartera recuperada IPAI",{"$f":"S40+S42","v":8928512}]
[null,null,null,null,null,null,null,null,null,null,null,null,null,null,null,null,null,null,"Cartera pendiente cierre IPA",{"$f":"S39-S40","v":26648695}]
[]
[null,null,null,null,null,null,null,null,null,null,null,null,null,null,null,null,null,null,33523182]
[null,null,null,null,null,null,null,null,null,null,null,null,null,null,null,null,null,null,6874487]
[null,null,null,null,null,null,null,null,null,"RESPONSABLE ",null,null,null,null,null,null,null,null,24594670,26648695]
[null,null,null,null,null,null,null,null,null,{"$f":"E14","v":"Director(a) Financiera"},null,null,null,null,null,null,null,null,2054025,24594670]
[]
[null,null,null,null,null,null,null,null,null,null,null,null,null,null,null,null,null,null,33523182]
[null,null,"PERIODO DE EVALUACIÓN"]
[null,null,"MES",{"$f":"IF(J23=\"MENSUAL\",\"ENERO\",IF(J23=\"TRIMESTRAL\",\"MARZO\",IF(J23=\"SEMESTRAL\",\"JUNIO\",IF(J23=\"ANUAL\",YEAR(TODAY()),\"\"))))","v":"JUNIO"},{"$f":"IF(J23=\"MENSUAL\",\"FEBRERO\",IF(J23=\"TRIMESTRAL\",\"JUNIO\",IF(J23=\"SEMESTRAL\",\"DICIEMBRE\",\"\")))","v":"DICIEMBRE"},{"$f":"IF(J23=\"MENSUAL\",\"MARZO\",IF(J23=\"TRIMESTRAL\",\"SEPTIEMBRE\",\"\"))","v":""},{"$f":"IF(J23=\"MENSUAL\",\"ABRIL\",IF(J23=\"TRIMESTRAL\",\"DICIEMBRE\",\"\"))","v":""},{"$f":"IF(J23=\"MENSUAL\",\"MAYO\",\"\")","v":""},{"$f":"IF(J23=\"MENSUAL\",\"JUNIO\",\"\")","v":""},{"$f":"IF(J23=\"MENSUAL\",\"JULIO\",\"\")","v":""},{"$f":"IF(J23=\"MENSUAL\",\"AGOSTO\",\"\")","v":""},{"$f":"IF(J23=\"MENSUAL\",\"SEPTIEMBRE\",\"\")","v":""},{"$f":"IF(J23=\"MENSUAL\",\"OCTUBRE\",\"\")","v":""},{"$f":"IF(J23=\"MENSUAL\",\"NOVIEMBRE\",\"\")","v":""},{"$f":"IF(J23=\"MENSUAL\",\"DICIEMBRE\",\"\")","v":""},null,null,null,0]
[null,null,{"$f":"G18","v":"Total cartera recuperada*100"},8928512]
[null,null,{"$f":"G19","v":"Total cartera por matriculas"},35577207,null,null,null,null,null,null,null,null,null,null,null,null,null,null,{"$f":"S39-S40","v":26648695}]
[null,null,"VALOR ",{"$f":"IFERROR(IF($E$17=1,D47/D48,IF($E$17=2,D47,\"\")),\"\")","v":0.25096157773149536},{"$f":"IFERROR(IF($E$17=1,E47/E48,IF($E$17=2,E47,\"\")),\"\")","v":""},"","","","","","","","","",""]
[null,null,"META PONDERADA",{"$f":"IF(AND(N23=\"ANUAL\",J23=\"MENSUAL\"),N17/12,IF(AND(N23=\"ANUAL\",J23=\"TRIMESTRAL\"),N17/4,IF(AND(N23=\"ANUAL\",J23=\"SEMESTRAL\"),N17/2,IF(AND(N23=\"ANUAL\",J23=\"ANUAL\"),N17,IF(AND(N23=\"SEMESTRAL\",J23=\"MENSUAL\"),N17/6,IF(AND(N23=\"SEMESTRAL\",J23=\"TRIMESTRAL\"),N17/2,IF(AND(N23=\"SEMESTRAL\",J23=\"SEMESTRAL\"),N17,IF(AND(N23=\"SEMESTRAL\",J23=\"ANUAL\"),\"REVISAR FRECUENCIAS\",IF(AND(N23=\"TRIMESTRAL\",J23=\"MENSUAL\"),N17/3,IF(AND(N23=\"TRIMESTRAL\",J23=\"TRIMESTRAL\"),N17,IF(AND(N23=\"TRIMESTRAL\",J23=\"SEMESTRAL\"),\"REVISAR FRECUENCIAS\",IF(AND(N23=\"TRIMESTRAL\",J23=\"ANUAL\"),\"REVISAR FRECUENCIAS\",IF(AND(N23=\"MENSUAL\",J23=\"MENSUAL\"),N17,IF(AND(N23=\"MENSUAL\",J23=\"TRIMESTRAL\"),\"REVISAR FRECUENCIAS\",IF(AND(N23=\"MENSUAL\",J23=\"SEMESTRAL\"),\"REVISAR FRECUENCIAS\",IF(AND(N23=\"MENSUAL\",J23=\"ANUAL\"),\"REVISAR FRECUENCIAS\",\"\"))))))))))))))))","v":0.45},{"$f":"IF(AND(N23=\"ANUAL\",J23=\"MENSUAL\"),N17/12+D50,IF(AND(N23=\"ANUAL\",J23=\"TRIMESTRAL\"),N17/4+D50,IF(AND(N23=\"ANUAL\",J23=\"SEMESTRAL\"),N17/2+D50,IF(AND(N23=\"SEMESTRAL\",J23=\"MENSUAL\"),N17/6+D50,IF(AND(N23=\"SEMESTRAL\",J23=\"TRIMESTRAL\"),N17/2+D50,IF(AND(N23=\"SEMESTRAL\",J23=\"SEMESTRAL\"),N17,IF(AND(N23=\"TRIMESTRAL\",J23=\"MENSUAL\"),N17/3+D50,IF(AND(N23=\"TRIMESTRAL\",J23=\"TRIMESTRAL\"),N17,IF(AND(N23=\"MENSUAL\",J23=\"MENSUAL\"),N17,\"\")))))))))","v":0.9},{"$f":"IF(AND(N23=\"ANUAL\",J23=\"MENSUAL\"),N17/12+E50,IF(AND(N23=\"ANUAL\",J23=\"TRIMESTRAL\"),N17/4+E50,IF(AND(N23=\"SEMESTRAL\",J23=\"MENSUAL\"),N17/6+E50,IF(AND(N23=\"SEMESTRAL\",J23=\"TRIMESTRAL\"),N17/2,IF(AND(N23=\"TRIMESTRAL\",J23=\"MENSUAL\"),N17/3+E50,IF(AND(N23=\"TRIMESTRAL\",J23=\"TRIMESTRAL\"),N17,IF(AND(N23=\"MENSUAL\",J23=\"MENSUAL\"),N17,\"\")))))))","v":""},{"$f":"IF(AND(N23=\"ANUAL\",J23=\"MENSUAL\"),N17/12+F50,IF(AND(N23=\"ANUAL\",J23=\"TRIMESTRAL\"),N17/4+F50,IF(AND(N23=\"SEMESTRAL\",J23=\"MENSUAL\"),N17/6+F50,IF(AND(N23=\"SEMESTRAL\",J23=\"TRIMESTRAL\"),N17/2+F50,IF(AND(N23=\"TRIMESTRAL\",J23=\"MENSUAL\"),N17/3,IF(AND(N23=\"TRIMESTRAL\",J23=\"TRIMESTRAL\"),N17,IF(AND(N23=\"MENSUAL\",J23=\"MENSUAL\"),N17,\"\")))))))","v":""},{"$f":"IF(AND($N$23=\"ANUAL\",$J$23=\"MENSUAL\"),$N$17/12+G50,IF(AND(N23=\"SEMESTRAL\",J23=\"MENSUAL\"),N17/6+G50,IF(AND(N23=\"TRIMESTRAL\",J23=\"MENSUAL\"),N17/3+G50,IF(AND(N23=\"MENSUAL\",J23=\"MENSUAL\"),N17,\"\"))))","v":""},{"$f":"IF(AND($N$23=\"ANUAL\",$J$23=\"MENSUAL\"),$N$17/12+H50,IF(AND(N23=\"SEMESTRAL\",J23=\"MENSUAL\"),N17/6+H50,IF(AND(N23=\"TRIMESTRAL\",J23=\"MENSUAL\"),N17/3+H50,IF(AND(N23=\"MENSUAL\",J23=\"MENSUAL\"),N17,\"\"))))","v":""},{"$f":"IF(AND($N$23=\"ANUAL\",$J$23=\"MENSUAL\"),$N$17/12+I50,IF(AND(N23=\"SEMESTRAL\",J23=\"MENSUAL\"),N17/6,IF(AND(N23=\"TRIMESTRAL\",J23=\"MENSUAL\"),N17/3,IF(AND(N23=\"MENSUAL\",J23=\"MENSUAL\"),N17,\"\"))))","v":""},{"$f":"IF(AND($N$23=\"ANUAL\",$J$23=\"MENSUAL\"),$N$17/12+J50,IF(AND(N23=\"SEMESTRAL\",J23=\"MENSUAL\"),N17/6+J50,IF(AND(N23=\"TRIMESTRAL\",J23=\"MENSUAL\"),N17/3+J50,IF(AND(N23=\"MENSUAL\",J23=\"MENSUAL\"),N17,\"\"))))","v":""},{"$f":"IF(AND($N$23=\"ANUAL\",$J$23=\"MENSUAL\"),$N$17/12+K50,IF(AND(N23=\"SEMESTRAL\",J23=\"MENSUAL\"),N17/6+K50,IF(AND(N23=\"TRIMESTRAL\",J23=\"MENSUAL\"),N17/3+K50,IF(AND(N23=\"MENSUAL\",J23=\"MENSUAL\"),N17,\"\"))))","v":""},{"$f":"IF(AND($N$23=\"ANUAL\",$J$23=\"MENSUAL\"),$N$17/12+L50,IF(AND(N23=\"SEMESTRAL\",J23=\"MENSUAL\"),N17/6+L50,IF(AND(N23=\"TRIMESTRAL\",J23=\"MENSUAL\"),N17/3,IF(AND(N23=\"MENSUAL\",J23=\"MENSUAL\"),N17,\"\"))))","v":""},{"$f":"IF(AND($N$23=\"ANUAL\",$J$23=\"MENSUAL\"),$N$17/12+M50,IF(AND(N23=\"SEMESTRAL\",J23=\"MENSUAL\"),N17/6+M50,IF(AND(N23=\"TRIMESTRAL\",J23=\"MENSUAL\"),N17/3+M50,IF(AND(N23=\"MENSUAL\",J23=\"MENSUAL\"),N17,\"\"))))","v":""},{"$f":"IF(AND($N$23=\"ANUAL\",$J$23=\"MENSUAL\"),$N$17/12+N50,IF(AND(N23=\"SEMESTRAL\",J23=\"MENSUAL\"),N17/6+N50,IF(AND(N23=\"TRIMESTRAL\",J23=\"MENSUAL\"),N17/3+N50,IF(AND(N23=\"MENSUAL\",J23=\"MENSUAL\"),N17,\"\"))))","v":""}]
[]
[null,null,"NIVEL DE SEGREGACIÓN *"]
[null,null,"UNIDAD SEGREGADA (Ej. Facultad, Programa Académico, Área)",null,null,null,"RESULTADO",null,null,null,"ANALISIS DE DATOS SEGREGADO"]
[null,null,"Total de cartera prestada durante el primer semestre de la vigencia 2021-1",null,null,null,2054025,null,null,null,"Durante el primer semestre se realizó una financiación a estudiantes por un valor de 2,054,025 la cual fue recuperada en un 100% durante el periodo objeto de medición gracias a la gestión de seguimiento realizada desde la oficina de apoyo financiero. "]
[null,null,"Valor de la cartera pendiente por recupera de la vigencia 2021-1",null,null,null,0,null,null,null,"N/A"]
[null,null,"Total de cartera prestada durante el primer semestre de la vigencias anteriores ",null,null,null,6874487,null,null,null,"En el periodo objeto de medición se realizó gestión para recuperar la cartera que se encontraba en mora de vigencias anteriores,  logrando como resultado la recuperación de un monto equivalente a:  6.874.487\n"]
[null,null,"Valor de la cartera pendiente por recuperar de vigencias anteriores y que se encuentra en el proceso Jurídico ",null,null,null,26648695,null,null,null,"La cartera relacionada en esta ítem es la cartera vencida que se tiene desde el año 2010 la cual fue  entregada al proceso jurídico para realizar las gestiones pertinentes para su recuperación \n"]
[]
[]
[]
[]
[]
[]
[]
[]
[]
[]
[]
[]
[]
[]
[null,null,null,null,null,null,"Estratégico",null,null,"Eficacia"]
[null,null,null,null,null,null,"Misional",null,null,"Eficiencia"]
[null,null,null,null,null,null,"Apoyo",null,null,"Acreditación"]
[null,null,null,null,null,null,"Seguimiento, Medición, Análisis y Evaluación",null,null,"Positiva"]
[null,null,null,null,null,null,"Direccionamiento Estratégico",null,null,"Negativa"]
[null,null,null,null,null,null,"Planeación Institucional",null,null,"Por Unidad Regional"]
[null,null,null,null,null,null,"Proyectos Especiales y Relaciones Interinstitucionales",null,null,"Por Facultad"]
[null,null,null,null,null,null,"Sistemas Integrados",null,null,"Por Programa Académico"]
[null,null,null,null,null,null,"Autoevaluación y Acreditación",null,null,"Por área"]
[null,null,null,null,null,null,"Comunicaciones",null,null,"Por Laboratorio"]
[null,null,null,null,null,null,"Formación y Aprendizaje",null,null,"Otros"]
[null,null,null,null,null,null,"Ciencia, Tecnología e Innovación",null,null,"No Aplica"]
[null,null,null,null,null,null,"Interacción Social Universitaria"]
[null,null,null,null,null,null,"Bienestar Universitario"]
[null,null,null,null,null,null,"Admisiones y Registro"]
[null,null,null,null,null,null,"Graduados"]
[null,null,null,null,null,null,"Dialogando con el Mundo"]
[null,null,null,null,null,null,"Talento Humano"]
[null,null,null,null,null,null,"Jurídica"]
[null,null,null,null,null,null,"Financiera"]
[null,null,null,null,null,null,"Sistemas y Tecnología"]
[null,null,null,null,null,null,"Bienes y Servicios"]
[null,null,null,null,null,null,"Documental"]
[null,null,null,null,null,null,"Apoyo Académico"]
[null,null,null,null,null,null,"Control Interno"]
[null,null,null,null,null,null,"Control Disciplinario"]
[null,null,null,null,null,null,"Servicio de Atención al Ciudadano"]

{"sheet":"AFI-4 ","index":6,"n_rows":99,"n_cols":17,"rows_kept":99,"cut":false,"hidden":true,"merged":[[59,2,59,5],[59,6,59,9],[59,10,59,14],[60,2,60,5],[60,6,60,9],[60,10,60,14],[57,2,57,5],[57,6,57,9],[57,10,57,14],[58,2,58,5],[58,6,58,9],[58,10,58,14],[55,2,55,5],[55,6,55,9],[55,10,55,14],[56,2,56,5],[56,6,56,9],[56,10,56,14],[54,2,54,5],[54,6,54,9],[54,10,54,14],[26,15,27,15],[27,9,30,14],[31,9,36,14],[37,9,37,14],[38,9,40,14],[41,9,41,14],[45,2,45,14],[52,2,52,14],[53,2,53,5],[53,6,53,9],[53,10,53,14],[22,13,23,14],[23,2,23,3],[23,4,23,6],[25,2,25,14],[26,2,43,8],[26,9,26,14],[42,9,42,14],[43,9,43,14],[22,2,22,3],[22,4,22,6],[22,7,23,8],[22,9,23,10],[22,11,23,12],[19,2,21,3],[19,4,21,6],[19,7,21,8],[19,9,21,10],[19,11,19,14],[16,15,17,15],[17,2,18,3],[17,4,17,5],[17,6,17,10],[17,11,18,12],[17,13,18,14],[18,4,18,5],[18,6,18,10],[16,2,16,3],[16,4,16,6],[16,7,16,8],[16,9,16,10],[16,11,16,12],[16,13,16,14],[15,2,15,14],[8,2,8,14],[9,2,10,14],[11,2,11,3],[11,4,11,7],[11,8,11,9],[11,10,11,14],[12,2,12,3],[12,4,12,14],[13,2,13,3],[13,4,13,14],[14,2,14,14],[1,1,3,2],[4,2,7,3],[4,4,4,11],[4,12,4,14],[5,4,5,11],[5,12,5,14],[6,4,7,11],[6,12,6,14],[7,12,7,14]]}
[]
[null,"      REGRESAR"]
[]
[]
[null,null,null,null,"MACROPROCESO ESTRATÉGICO",null,null,null,null,null,null,null,"CÓDIGO: ESGr027"]
[null,null,null,null,"PROCESO GESTIÓN SISTEMAS INTEGRADOS",null,null,null,null,null,null,null,"VERSIÓN: 7"]
[null,null,null,null,"MATRIZ DE MEDICIÓN Y SEGUIMIENTO A LOS PROCESOS DE GESTIÓN",null,null,null,null,null,null,null,"VIGENCIA: 2020-03-20"]
[null,null,null,null,null,null,null,null,null,null,null,null,"PÁGINA: 1 de 1"]
[]
[null,null,"FICHA DE INDICADOR"]
[]
[null,null,"MACROPROCESO",null,"Apoyo",null,null,null,"NOMBRE DEL INDICADOR",null,"Trámites de cuentas para causación"]
[null,null,"PROCESO GESTIÓN",null,"Financiera"]
[null,null,"RESPONSABLE DE MEDICIÓN",null,"Director(a) Financiera"]
[]
[null,null,"1. COMPORTAMIENTO DE INDICADOR"]
[null,null,"CLASIFICACIÓN DE LA MEDICIÓN",null,1,null,null,"TIPO DE INDICADOR",null,"Eficacia",null,"META ANUAL",null,0.2]
[null,null,"FÓRMULA",null,"NUMERADOR",null,"Número trámites de cuentas para causación devueltas *100",null,null,null,null,"UNIDAD DE MEDIDA",null,"Porcentual"]
[null,null,null,null,"DENOMINADOR",null,"Número tramites de cuentas para causación "]
[null,null,"TENDENCIA",null,"Negativa",null,null,"NIVEL DE SEGREGACIÓN *",null,"No Aplica",null,"ESCALA"]
[null,null,null,null,null,null,null,null,null,null,null,"Deficiente","Aceptable","Bueno","Excelente"]
[null,null,null,null,null,null,null,null,null,null,null,"25% - 100%","21% - 24%","11% - 20% ","0% - 10%"]
[null,null,"ORIGEN DE DATOS NUMERADOR",null,"Base de datos radicación de cuentas de cobro",null,null,"FRECUENCIA DE LA MEDICIÓN",null,"MENSUAL",null,"FRECUENCIA DE RESULTADO",null,"MENSUAL"]
[null,null,"ORIGEN DE DATOS DENOMINADOR",null,"Base de datos radicación de cuentas de cobro"]
[]
[null,null,"RESULTADOS"]
[null,null,null,null,null,null,null,null,null,"ANÁLISIS DE DATOS"]
[null,null,null,null,null,null,null,null,null,"TRIMESTRE I:  En los meses de enero, febrero de 2021 se observa una disminución del porcentaje de devolución de las cuentas debido que estos meses no se radican un volumen alto de cuentas de proveedores y ops. Para el mes de marzo se da un aumento en el numero de radicación de cuentas y de devoluciones debido que para este mes se presenta casi finalizado el proceso de contratación de ops.                                                        Observación: para el mes de marzo las cuentas se radican por medio de la plataforma Integradoc, por esto no se adjunta evidencia debido que no existe reporte de devolución de cuentas al momento."]
[]
[]
[]
[null,null,null,null,null,null,null,null,null,"TRIMESTRE II: A partir del mes de abril del la vigencia en curso se incluyeron para la medición del indicador todas las tipologías de cuentas que se gestionan por la herramienta Integradoc. Motivo por el cual se evidencia un incremento en el numero de devoluciones en parte porque los registros AFIr067 y  AFIr068 se encuentran digitalizados solamente con alcance a las cuentas de los contratistas OPS. Motivo por el cual las demás tipologías aun realizan la gestión del formato de forma manual lo cual es un factor que influye en los errores al realizar la tabulación de la información. "]
[]
[]
[]
[]
[]
[null,null,null,null,null,null,null,null,null,"ACCIÓN FORMULADA"]
[null,null,null,null,null,null,null,null,null,"TRIMESTRE II:Se realizarán mesas de trabajo con el proceso de sistemas y tecnología para analizar la posibilidad de ampliar el alcance de los registros  AFIr067 y  AFIr068 que ya se encuentran digitalizados  a todas las tipologías de contrato."]
[]
[]
[null,null,null,null,null,null,null,null,null,"RESPONSABLE "]
[null,null,null,null,null,null,null,null,null,{"$f":"E14","v":"Director(a) Financiera"}]
[]
[]
[null,null,"PERIODO DE EVALUACIÓN"]
[null,null,"MES",{"$f":"IF(J23=\"MENSUAL\",\"ENERO\",IF(J23=\"TRIMESTRAL\",\"MARZO\",IF(J23=\"SEMESTRAL\",\"JUNIO\",IF(J23=\"ANUAL\",YEAR(TODAY()),\"\"))))","v":"ENERO"},{"$f":"IF(J23=\"MENSUAL\",\"FEBRERO\",IF(J23=\"TRIMESTRAL\",\"JUNIO\",IF(J23=\"SEMESTRAL\",\"DICIEMBRE\",\"\")))","v":"FEBRERO"},{"$f":"IF(J23=\"MENSUAL\",\"MARZO\",IF(J23=\"TRIMESTRAL\",\"SEPTIEMBRE\",\"\"))","v":"MARZO"},{"$f":"IF(J23=\"MENSUAL\",\"ABRIL\",IF(J23=\"TRIMESTRAL\",\"DICIEMBRE\",\"\"))","v":"ABRIL"},{"$f":"IF(J23=\"MENSUAL\",\"MAYO\",\"\")","v":"MAYO"},{"$f":"IF(J23=\"MENSUAL\",\"JUNIO\",\"\")","v":"JUNIO"},{"$f":"IF(J23=\"MENSUAL\",\"JULIO\",\"\")","v":"JULIO"},{"$f":"IF(J23=\"MENSUAL\",\"AGOSTO\",\"\")","v":"AGOSTO"},{"$f":"IF(J23=\"MENSUAL\",\"SEPTIEMBRE\",\"\")","v":"SEPTIEMBRE"},{"$f":"IF(J23=\"MENSUAL\",\"OCTUBRE\",\"\")","v":"OCTUBRE"},{"$f":"IF(J23=\"MENSUAL\",\"NOVIEMBRE\",\"\")","v":"NOVIEMBRE"},{"$f":"IF(J23=\"MENSUAL\",\"DICIEMBRE\",\"\")","v":"DICIEMBRE"}]
[null,null,{"$f":"G18","v":"Número trámites de cuentas para causación devueltas *100"},0,36,73,69,70,59,60]
[null,null,{"$f":"G19","v":"Número tramites de cuentas para causación "},31,178,335,216,258,276,155]
[null,null,"VALOR ",{"$f":"+D48/D49","v":0},{"$f":"+E48/E49","v":0.20224719101123595},{"$f":"+F48/F49","v":0.21791044776119403},{"$f":"+G48/G49","v":0.31944444444444442},{"$f":"+H48/H49","v":0.27131782945736432},{"$f":"+I48/I49","v":0.21376811594202899},{"$f":"+J48/J49","v":0.38709677419354838},0,0,0,0,{"$f":"IFERROR(IF($E$17=1,O48/O49,IF($E$17=2,O48,\"\")),\"\")","v":""},null,"Nota. El indicador se calculara con el promedio de las 3 tres mediciones que se realizan "]
[null,null,"META PONDERADA",{"$f":"IF(AND(N23=\"ANUAL\",J23=\"MENSUAL\"),N17/12,IF(AND(N23=\"ANUAL\",J23=\"TRIMESTRAL\"),N17/4,IF(AND(N23=\"ANUAL\",J23=\"SEMESTRAL\"),N17/2,IF(AND(N23=\"ANUAL\",J23=\"ANUAL\"),N17,IF(AND(N23=\"SEMESTRAL\",J23=\"MENSUAL\"),N17/6,IF(AND(N23=\"SEMESTRAL\",J23=\"TRIMESTRAL\"),N17/2,IF(AND(N23=\"SEMESTRAL\",J23=\"SEMESTRAL\"),N17,IF(AND(N23=\"SEMESTRAL\",J23=\"ANUAL\"),\"REVISAR FRECUENCIAS\",IF(AND(N23=\"TRIMESTRAL\",J23=\"MENSUAL\"),N17/3,IF(AND(N23=\"TRIMESTRAL\",J23=\"TRIMESTRAL\"),N17,IF(AND(N23=\"TRIMESTRAL\",J23=\"SEMESTRAL\"),\"REVISAR FRECUENCIAS\",IF(AND(N23=\"TRIMESTRAL\",J23=\"ANUAL\"),\"REVISAR FRECUENCIAS\",IF(AND(N23=\"MENSUAL\",J23=\"MENSUAL\"),N17,IF(AND(N23=\"MENSUAL\",J23=\"TRIMESTRAL\"),\"REVISAR FRECUENCIAS\",IF(AND(N23=\"MENSUAL\",J23=\"SEMESTRAL\"),\"REVISAR FRECUENCIAS\",IF(AND(N23=\"MENSUAL\",J23=\"ANUAL\"),\"REVISAR FRECUENCIAS\",\"\"))))))))))))))))","v":0.2},{"$f":"IF(AND(N23=\"ANUAL\",J23=\"MENSUAL\"),N17/12+D51,IF(AND(N23=\"ANUAL\",J23=\"TRIMESTRAL\"),N17/4+D51,IF(AND(N23=\"ANUAL\",J23=\"SEMESTRAL\"),N17/2+D51,IF(AND(N23=\"SEMESTRAL\",J23=\"MENSUAL\"),N17/6+D51,IF(AND(N23=\"SEMESTRAL\",J23=\"TRIMESTRAL\"),N17/2+D51,IF(AND(N23=\"SEMESTRAL\",J23=\"SEMESTRAL\"),N17,IF(AND(N23=\"TRIMESTRAL\",J23=\"MENSUAL\"),N17/3+D51,IF(AND(N23=\"TRIMESTRAL\",J23=\"TRIMESTRAL\"),N17,IF(AND(N23=\"MENSUAL\",J23=\"MENSUAL\"),N17,\"\")))))))))","v":0.2},{"$f":"IF(AND(N23=\"ANUAL\",J23=\"MENSUAL\"),N17/12+E51,IF(AND(N23=\"ANUAL\",J23=\"TRIMESTRAL\"),N17/4+E51,IF(AND(N23=\"SEMESTRAL\",J23=\"MENSUAL\"),N17/6+E51,IF(AND(N23=\"SEMESTRAL\",J23=\"TRIMESTRAL\"),N17/2,IF(AND(N23=\"TRIMESTRAL\",J23=\"MENSUAL\"),N17/3+E51,IF(AND(N23=\"TRIMESTRAL\",J23=\"TRIMESTRAL\"),N17,IF(AND(N23=\"MENSUAL\",J23=\"MENSUAL\"),N17,\"\")))))))","v":0.2},{"$f":"IF(AND(N23=\"ANUAL\",J23=\"MENSUAL\"),N17/12+F51,IF(AND(N23=\"ANUAL\",J23=\"TRIMESTRAL\"),N17/4+F51,IF(AND(N23=\"SEMESTRAL\",J23=\"MENSUAL\"),N17/6+F51,IF(AND(N23=\"SEMESTRAL\",J23=\"TRIMESTRAL\"),N17/2+F51,IF(AND(N23=\"TRIMESTRAL\",J23=\"MENSUAL\"),N17/3,IF(AND(N23=\"TRIMESTRAL\",J23=\"TRIMESTRAL\"),N17,IF(AND(N23=\"MENSUAL\",J23=\"MENSUAL\"),N17,\"\")))))))","v":0.2},{"$f":"IF(AND($N$23=\"ANUAL\",$J$23=\"MENSUAL\"),$N$17/12+G51,IF(AND(N23=\"SEMESTRAL\",J23=\"MENSUAL\"),N17/6+G51,IF(AND(N23=\"TRIMESTRAL\",J23=\"MENSUAL\"),N17/3+G51,IF(AND(N23=\"MENSUAL\",J23=\"MENSUAL\"),N17,\"\"))))","v":0.2},{"$f":"IF(AND($N$23=\"ANUAL\",$J$23=\"MENSUAL\"),$N$17/12+H51,IF(AND(N23=\"SEMESTRAL\",J23=\"MENSUAL\"),N17/6+H51,IF(AND(N23=\"TRIMESTRAL\",J23=\"MENSUAL\"),N17/3+H51,IF(AND(N23=\"MENSUAL\",J23=\"MENSUAL\"),N17,\"\"))))","v":0.2},{"$f":"IF(AND($N$23=\"ANUAL\",$J$23=\"MENSUAL\"),$N$17/12+I51,IF(AND(N23=\"SEMESTRAL\",J23=\"MENSUAL\"),N17/6,IF(AND(N23=\"TRIMESTRAL\",J23=\"MENSUAL\"),N17/3,IF(AND(N23=\"MENSUAL\",J23=\"MENSUAL\"),N17,\"\"))))","v":0.2},{"$f":"IF(AND($N$23=\"ANUAL\",$J$23=\"MENSUAL\"),$N$17/12+J51,IF(AND(N23=\"SEMESTRAL\",J23=\"MENSUAL\"),N17/6+J51,IF(AND(N23=\"TRIMESTRAL\",J23=\"MENSUAL\"),N17/3+J51,IF(AND(N23=\"MENSUAL\",J23=\"MENSUAL\"),N17,\"\"))))","v":0.2},{"$f":"IF(AND($N$23=\"ANUAL\",$J$23=\"MENSUAL\"),$N$17/12+K51,IF(AND(N23=\"SEMESTRAL\",J23=\"MENSUAL\"),N17/6+K51,IF(AND(N23=\"TRIMESTRAL\",J23=\"MENSUAL\"),N17/3+K51,IF(AND(N23=\"MENSUAL\",J23=\"MENSUAL\"),N17,\"\"))))","v":0.2},{"$f":"IF(AND($N$23=\"ANUAL\",$J$23=\"MENSUAL\"),$N$17/12+L51,IF(AND(N23=\"SEMESTRAL\",J23=\"MENSUAL\"),N17/6+L51,IF(AND(N23=\"TRIMESTRAL\",J23=\"MENSUAL\"),N17/3,IF(AND(N23=\"MENSUAL\",J23=\"MENSUAL\"),N17,\"\"))))","v":0.2},{"$f":"IF(AND($N$23=\"ANUAL\",$J$23=\"MENSUAL\"),$N$17/12+M51,IF(AND(N23=\"SEMESTRAL\",J23=\"MENSUAL\"),N17/6+M51,IF(AND(N23=\"TRIMESTRAL\",J23=\"MENSUAL\"),N17/3+M51,IF(AND(N23=\"MENSUAL\",J23=\"MENSUAL\"),N17,\"\"))))","v":0.2},{"$f":"IF(AND($N$23=\"ANUAL\",$J$23=\"MENSUAL\"),$N$17/12+N51,IF(AND(N23=\"SEMESTRAL\",J23=\"MENSUAL\"),N17/6+N51,IF(AND(N23=\"TRIMESTRAL\",J23=\"MENSUAL\"),N17/3+N51,IF(AND(N23=\"MENSUAL\",J23=\"MENSUAL\"),N17,\"\"))))","v":0.2}]
[]
[null,null,"NIVEL DE SEGREGACIÓN *"]
[null,null,"UNIDAD SEGREGADA (Ej. Facultad, Programa Académico, Área)",null,null,null,"RESULTADO",null,null,null,"ANÁLISIS DE DATOS SEGREGADO"]
[]
[]
[]
[]
[]
[]
[]
[]
[]
[]
[]
[]
[]
[]
[]
[]
[]
[]
[null,null,null,null,null,null,"Estratégico",null,null,"Eficacia"]
[null,null,null,null,null,null,"Misional",null,null,"Eficiencia"]
[null,null,null,null,null,null,"Apoyo",null,null,"Acreditación"]
[null,null,null,null,null,null,"Seguimiento, Medición, Análisis y Evaluación",null,null,"Positiva"]
[null,null,null,null,null,null,"Direccionamiento Estratégico",null,null,"Negativa"]
[null,null,null,null,null,null,"Planeación Institucional",null,null,"Por Unidad Regional"]
[null,null,null,null,null,null,"Proyectos Especiales y Relaciones Interinstitucionales",null,null,"Por Facultad"]
[null,null,null,null,null,null,"Sistemas Integrados",null,null,"Por Programa Académico"]
[null,null,null,null,null,null,"Autoevaluación y Acreditación",null,null,"Por área"]
[null,null,null,null,null,null,"Comunicaciones",null,null,"Por Laboratorio"]
[null,null,null,null,null,null,"Formación y Aprendizaje",null,null,"Otros"]
[null,null,null,null,null,null,"Ciencia, Tecnología e Innovación",null,null,"No Aplica"]
[null,null,null,null,null,null,"Interacción Social Universitaria"]
[null,null,null,null,null,null,"Bienestar Universitario"]
[null,null,null,null,null,null,"Admisiones y Registro"]
[null,null,null,null,null,null,"Graduados"]
[null,null,null,null,null,null,"Dialogando con el Mundo"]
[null,null,null,null,null,null,"Talento Humano"]
[null,null,null,null,null,null,"Jurídica"]
[null,null,null,null,null,null,"Financiera"]
[null,null,null,null,null,null,"Sistemas y Tecnología"]
[null,null,null,null,null,null,"Bienes y Servicios"]
[null,null,null,null,null,null,"Documental"]
[null,null,null,null,null,null,"Apoyo Académico"]
[null,null,null,null,null,null,"Control Interno"]
[null,null,null,null,null,null,"Control Disciplinario"]
[null,null,null,null,null,null,"Servicio de Atención al Ciudadano"]

{"sheet":"MCT-2","index":7,"n_rows":99,"n_cols":15,"rows_kept":99,"cut":false,"hidden":true,"merged":[[58,2,58,5],[58,6,58,9],[58,10,58,14],[59,2,59,5],[59,6,59,9],[59,10,59,14],[56,2,56,5],[56,6,56,9],[56,10,56,14],[57,2,57,5],[57,6,57,9],[57,10,57,14],[54,2,54,5],[54,6,54,9],[54,10,54,14],[55,2,55,5],[55,6,55,9],[55,10,55,14],[26,18,27,19],[44,2,44,14],[51,2,51,14],[52,2,52,5],[52,6,52,9],[52,10,52,14],[53,2,53,5],[53,6,53,9],[53,10,53,14],[26,17,27,17],[22,7,23,8],[26,20,27,20],[26,21,27,21],[27,9,32,14],[33,9,33,14],[22,9,23,10],[22,11,23,12],[22,13,23,14],[25,2,25,14],[26,2,42,8],[26,9,26,14],[34,9,39,14],[40,9,40,14],[41,9,41,14],[18,20,25,20],[18,21,25,21],[19,2,21,3],[16,15,17,15],[16,16,17,16],[16,17,17,17],[16,18,17,21],[17,2,18,3],[17,4,18,10],[17,11,18,12],[17,13,18,14],[18,17,25,17],[18,18,25,19],[19,4,21,6],[19,7,21,8],[19,9,21,10],[19,11,19,14],[22,2,23,3],[22,4,23,6],[13,2,13,3],[13,4,13,14],[14,2,14,14],[15,2,15,14],[16,2,16,3],[16,4,16,6],[16,7,16,8],[16,9,16,10],[16,11,16,12],[16,13,16,14],[12,2,12,3],[12,4,12,14],[1,1,3,2],[4,2,7,3],[4,4,4,11],[4,12,4,14],[5,4,5,11],[5,12,5,14],[6,4,7,11],[6,12,6,14],[7,12,7,14],[9,2,10,14],[11,2,11,3],[11,4,11,7],[11,8,11,9],[11,10,11,14]]}
[]
[null,"      REGRESAR"]
[]
[]
[null,null,null,null,"MACROPROCESO ESTRATÉGICO",null,null,null,null,null,null,null,"CÓDIGO: ESGr027"]
[null,null,null,null,"PROCESO GESTIÓN SISTEMAS INTEGRADOS",null,null,null,null,null,null,null,"VERSIÓN: 7"]
[null,null,null,null,"MATRIZ DE MEDICIÓN Y SEGUIMIENTO A LOS PROCESOS DE GESTIÓN",null,null,null,null,null,null,null,"VIGENCIA: 2020-03-20"]
[null,null,null,null,null,null,null,null,null,null,null,null,"PÁGINA: 1 de 1"]
[]
[null,null,"FICHA DE INDICADOR"]
[]
[null,null,"MACROPROCESO",null,"Misional",null,null,null,"NOMBRE DEL INDICADOR",null,"Investigadores de la Universidad reconocidos ante Colciencias"]
[null,null,"PROCESO GESTIÓN",null,"Ciencia, Tecnología e Innovación"]
[null,null,"RESPONSABLE DE MEDICIÓN",null,"Director(a) de Investigación Universitaria"]
[]
[null,null,"1. COMPORTAMIENTO DE INDICADOR"]
[null,null,"CLASIFICACIÓN DE LA MEDICIÓN ",null,2,null,null,"TIPO DE INDICADOR",null,"Eficiencia",null,"META",null,55]
[null,null,"FÓRMULA",null,"Número ponderado de investigadores de la Universidad sujeto a convocatoria de Colciencias",null,null,null,null,null,null,"UNIDAD DE MEDIDA",null,"Número de investigadores"]
[]
[null,null,"TENDENCIA",null,"Positiva",null,null,"NIVEL DE SEGREGACIÓN *",null,"No Aplica",null,"ESCALA"]
[null,null,null,null,null,null,null,null,null,null,null,"Deficiente","Aceptable","Bueno","Excelente"]
[null,null,null,null,null,null,null,null,null,null,null,"0 - 28","29 - 43","44 - 55",">55"]
[null,null,"ORIGEN DE DATOS",null,"Pagina Colciencias, CvLAC y Nómina de la Universidad de Cundinamarca",null,null,"FRECUENCIA DE LA MEDICIÓN",null,"SEMESTRAL",null,"FRECUENCIA DE RESULTADO",null,"ANUAL"]
[]
[]
[null,null,"RESULTADOS"]
[null,null,null,null,null,null,null,null,null,"ANÁLISIS DE DATOS\nLos datos indican un crecimiento en los acompañamientos entre el primer trimestre y \nel segundo trimestre de mas del 100%, por la contratación del personal de la oficina\nEn el tercer trimestre se muestra un decrecimiento con respecto al periodo anterior\npor las vacaciones a mitad de año, las personas se reintegraron entre julio y agosto."]
[null,null,null,null,null,null,null,null,null,"Para el IPA-2021 se cuenta con 54 docentes categorizados ante el Minciecias de acuerdo a la ultima convocatoria 833 de 2018, relacionados así:\nInvestigador Senior (IS): 3\nInvestigador Asociado (I) : 9\nInvestigador Junior (IJ): 42"]
[]
[]
[]
[]
[]
[null,null,null,null,null,null,null,null,null,"ACCIÓN FORMULADA\nReformular la meta para el próximo año dependiendo de los recursos asignados."]
[null,null,null,null,null,null,null,null,null,"N/A"]
[]
[]
[]
[]
[]
[null,null,null,null,null,null,null,null,null,"RESPONSABLE "]
[null,null,null,null,null,null,null,null,null,{"$f":"E14","v":"Director(a) de Investigación Universitaria"}]
[]
[]
[null,null,"PERIODO DE EVALUACIÓN"]
[null,null,"MES",{"$f":"IF(J23=\"MENSUAL\",\"ENERO\",IF(J23=\"TRIMESTRAL\",\"MARZO\",IF(J23=\"SEMESTRAL\",\"JUNIO\",IF(J23=\"ANUAL\",YEAR(TODAY()),\"\"))))","v":"JUNIO"},{"$f":"IF(J23=\"MENSUAL\",\"FEBRERO\",IF(J23=\"TRIMESTRAL\",\"JUNIO\",IF(J23=\"SEMESTRAL\",\"DICIEMBRE\",\"\")))","v":"DICIEMBRE"},{"$f":"IF(J23=\"MENSUAL\",\"MARZO\",IF(J23=\"TRIMESTRAL\",\"SEPTIEMBRE\",\"\"))","v":""},{"$f":"IF(J23=\"MENSUAL\",\"ABRIL\",IF(J23=\"TRIMESTRAL\",\"DICIEMBRE\",\"\"))","v":""},{"$f":"IF(J23=\"MENSUAL\",\"MAYO\",\"\")","v":""},{"$f":"IF(J23=\"MENSUAL\",\"JUNIO\",\"\")","v":""},{"$f":"IF(J23=\"MENSUAL\",\"JULIO\",\"\")","v":""},{"$f":"IF(J23=\"MENSUAL\",\"AGOSTO\",\"\")","v":""},{"$f":"IF(J23=\"MENSUAL\",\"SEPTIEMBRE\",\"\")","v":""},{"$f":"IF(J23=\"MENSUAL\",\"OCTUBRE\",\"\")","v":""},{"$f":"IF(J23=\"MENSUAL\",\"NOVIEMBRE\",\"\")","v":""},{"$f":"IF(J23=\"MENSUAL\",\"DICIEMBRE\",\"\")","v":""}]
[null,null,{"$f":"E18","v":"Número ponderado de investigadores de la Universidad sujeto a convocatoria de Colciencias"},54]
[null,null,{"$f":"G19","v":0}]
[null,null,"VALOR ",{"$f":"IFERROR(IF($E$17=1,D47/D48,IF($E$17=2,D47,\"\")),\"\")","v":54},0,0,0,0,0,0,0,0,0,0,0]
[null,null,"META PONDERADA",{"$f":"IF(AND(N23=\"ANUAL\",J23=\"MENSUAL\"),N17/12,IF(AND(N23=\"ANUAL\",J23=\"TRIMESTRAL\"),N17/4,IF(AND(N23=\"ANUAL\",J23=\"SEMESTRAL\"),N17/2,IF(AND(N23=\"ANUAL\",J23=\"ANUAL\"),N17,IF(AND(N23=\"SEMESTRAL\",J23=\"MENSUAL\"),N17/6,IF(AND(N23=\"SEMESTRAL\",J23=\"TRIMESTRAL\"),N17/2,IF(AND(N23=\"SEMESTRAL\",J23=\"SEMESTRAL\"),N17,IF(AND(N23=\"SEMESTRAL\",J23=\"ANUAL\"),\"REVISAR FRECUENCIAS\",IF(AND(N23=\"TRIMESTRAL\",J23=\"MENSUAL\"),N17/3,IF(AND(N23=\"TRIMESTRAL\",J23=\"TRIMESTRAL\"),N17,IF(AND(N23=\"TRIMESTRAL\",J23=\"SEMESTRAL\"),\"REVISAR FRECUENCIAS\",IF(AND(N23=\"TRIMESTRAL\",J23=\"ANUAL\"),\"REVISAR FRECUENCIAS\",IF(AND(N23=\"MENSUAL\",J23=\"MENSUAL\"),N17,IF(AND(N23=\"MENSUAL\",J23=\"TRIMESTRAL\"),\"REVISAR FRECUENCIAS\",IF(AND(N23=\"MENSUAL\",J23=\"SEMESTRAL\"),\"REVISAR FRECUENCIAS\",IF(AND(N23=\"MENSUAL\",J23=\"ANUAL\"),\"REVISAR FRECUENCIAS\",\"\"))))))))))))))))","v":27.5},{"$f":"IF(AND(N23=\"ANUAL\",J23=\"MENSUAL\"),N17/12+D50,IF(AND(N23=\"ANUAL\",J23=\"TRIMESTRAL\"),N17/4+D50,IF(AND(N23=\"ANUAL\",J23=\"SEMESTRAL\"),N17/2+D50,IF(AND(N23=\"SEMESTRAL\",J23=\"MENSUAL\"),N17/6+D50,IF(AND(N23=\"SEMESTRAL\",J23=\"TRIMESTRAL\"),N17/2+D50,IF(AND(N23=\"SEMESTRAL\",J23=\"SEMESTRAL\"),N17,IF(AND(N23=\"TRIMESTRAL\",J23=\"MENSUAL\"),N17/3+D50,IF(AND(N23=\"TRIMESTRAL\",J23=\"TRIMESTRAL\"),N17,IF(AND(N23=\"MENSUAL\",J23=\"MENSUAL\"),N17,\"\")))))))))","v":55},{"$f":"IF(AND(N23=\"ANUAL\",J23=\"MENSUAL\"),N17/12+E50,IF(AND(N23=\"ANUAL\",J23=\"TRIMESTRAL\"),N17/4+E50,IF(AND(N23=\"SEMESTRAL\",J23=\"MENSUAL\"),N17/6+E50,IF(AND(N23=\"SEMESTRAL\",J23=\"TRIMESTRAL\"),N17/2,IF(AND(N23=\"TRIMESTRAL\",J23=\"MENSUAL\"),N17/3+E50,IF(AND(N23=\"TRIMESTRAL\",J23=\"TRIMESTRAL\"),N17,IF(AND(N23=\"MENSUAL\",J23=\"MENSUAL\"),N17,\"\")))))))","v":""},{"$f":"IF(AND(N23=\"ANUAL\",J23=\"MENSUAL\"),N17/12+F50,IF(AND(N23=\"ANUAL\",J23=\"TRIMESTRAL\"),N17/4+F50,IF(AND(N23=\"SEMESTRAL\",J23=\"MENSUAL\"),N17/6+F50,IF(AND(N23=\"SEMESTRAL\",J23=\"TRIMESTRAL\"),N17/2+F50,IF(AND(N23=\"TRIMESTRAL\",J23=\"MENSUAL\"),N17/3,IF(AND(N23=\"TRIMESTRAL\",J23=\"TRIMESTRAL\"),N17,IF(AND(N23=\"MENSUAL\",J23=\"MENSUAL\"),N17,\"\")))))))","v":""},{"$f":"IF(AND($N$23=\"ANUAL\",$J$23=\"MENSUAL\"),$N$17/12+G50,IF(AND(N23=\"SEMESTRAL\",J23=\"MENSUAL\"),N17/6+G50,IF(AND(N23=\"TRIMESTRAL\",J23=\"MENSUAL\"),N17/3+G50,IF(AND(N23=\"MENSUAL\",J23=\"MENSUAL\"),N17,\"\"))))","v":""},{"$f":"IF(AND($N$23=\"ANUAL\",$J$23=\"MENSUAL\"),$N$17/12+H50,IF(AND(N23=\"SEMESTRAL\",J23=\"MENSUAL\"),N17/6+H50,IF(AND(N23=\"TRIMESTRAL\",J23=\"MENSUAL\"),N17/3+H50,IF(AND(N23=\"MENSUAL\",J23=\"MENSUAL\"),N17,\"\"))))","v":""},{"$f":"IF(AND($N$23=\"ANUAL\",$J$23=\"MENSUAL\"),$N$17/12+I50,IF(AND(N23=\"SEMESTRAL\",J23=\"MENSUAL\"),N17/6,IF(AND(N23=\"TRIMESTRAL\",J23=\"MENSUAL\"),N17/3,IF(AND(N23=\"MENSUAL\",J23=\"MENSUAL\"),N17,\"\"))))","v":""},{"$f":"IF(AND($N$23=\"ANUAL\",$J$23=\"MENSUAL\"),$N$17/12+J50,IF(AND(N23=\"SEMESTRAL\",J23=\"MENSUAL\"),N17/6+J50,IF(AND(N23=\"TRIMESTRAL\",J23=\"MENSUAL\"),N17/3+J50,IF(AND(N23=\"MENSUAL\",J23=\"MENSUAL\"),N17,\"\"))))","v":""},{"$f":"IF(AND($N$23=\"ANUAL\",$J$23=\"MENSUAL\"),$N$17/12+K50,IF(AND(N23=\"SEMESTRAL\",J23=\"MENSUAL\"),N17/6+K50,IF(AND(N23=\"TRIMESTRAL\",J23=\"MENSUAL\"),N17/3+K50,IF(AND(N23=\"MENSUAL\",J23=\"MENSUAL\"),N17,\"\"))))","v":""},{"$f":"IF(AND($N$23=\"ANUAL\",$J$23=\"MENSUAL\"),$N$17/12+L50,IF(AND(N23=\"SEMESTRAL\",J23=\"MENSUAL\"),N17/6+L50,IF(AND(N23=\"TRIMESTRAL\",J23=\"MENSUAL\"),N17/3,IF(AND(N23=\"MENSUAL\",J23=\"MENSUAL\"),N17,\"\"))))","v":""},{"$f":"IF(AND($N$23=\"ANUAL\",$J$23=\"MENSUAL\"),$N$17/12+M50,IF(AND(N23=\"SEMESTRAL\",J23=\"MENSUAL\"),N17/6+M50,IF(AND(N23=\"TRIMESTRAL\",J23=\"MENSUAL\"),N17/3+M50,IF(AND(N23=\"MENSUAL\",J23=\"MENSUAL\"),N17,\"\"))))","v":""},{"$f":"IF(AND($N$23=\"ANUAL\",$J$23=\"MENSUAL\"),$N$17/12+N50,IF(AND(N23=\"SEMESTRAL\",J23=\"MENSUAL\"),N17/6+N50,IF(AND(N23=\"TRIMESTRAL\",J23=\"MENSUAL\"),N17/3+N50,IF(AND(N23=\"MENSUAL\",J23=\"MENSUAL\"),N17,\"\"))))","v":""}]
[]
[null,null,"NIVEL DE SEGREGACIÓN *"]
[null,null,"UNIDAD SEGREGADA (Ej. Facultad, Programa Académico, Área)",null,null,null,"RESULTADO",null,null,null,"ANÁLISIS DE DATOS SEGREGADO"]
[]
[]
[]
[]
[]
[]
[]
[]
[]
[]
[]
[]
[]
[]
[]
[]
[]
[]
[]
[null,null,null,null,null,null,"Estratégico",null,null,"Eficacia"]
[null,null,null,null,null,null,"Misional",null,null,"Eficiencia"]
[null,null,null,null,null,null,"Apoyo",null,null,"Acreditación"]
[null,null,null,null,null,null,"Seguimiento, Medición, Análisis y Evaluación",null,null,"Positiva"]
[null,null,null,null,null,null,"Direccionamiento Estratégico",null,null,"Negativa"]
[null,null,null,null,null,null,"Planeación Institucional",null,null,"Por Unidad Regional"]
[null,null,null,null,null,null,"Proyectos Especiales y Relaciones Interinstitucionales",null,null,"Por Facultad"]
[null,null,null,null,null,null,"Sistemas Integrados",null,null,"Por Programa Académico"]
[null,null,null,null,null,null,"Autoevaluación y Acreditación",null,null,"Por área"]
[null,null,null,null,null,null,"Comunicaciones",null,null,"Por Laboratorio"]
[null,null,null,null,null,null,"Formación y Aprendizaje",null,null,"Otros"]
[null,null,null,null,null,null,"Ciencia, Tecnología e Innovación",null,null,"No Aplica"]
[null,null,null,null,null,null,"Interacción Social Universitaria"]
[null,null,null,null,null,null,"Bienestar Universitario"]
[null,null,null,null,null,null,"Admisiones y Registro"]
[null,null,null,null,null,null,"Graduados"]
[null,null,null,null,null,null,"Dialogando con el Mundo"]
[null,null,null,null,null,null,"Talento Humano"]
[null,null,null,null,null,null,"Jurídica"]
[null,null,null,null,null,null,"Financiera"]
[null,null,null,null,null,null,"Sistemas y Tecnología"]
[null,null,null,null,null,null,"Bienes y Servicios"]
[null,null,null,null,null,null,"Documental"]
[null,null,null,null,null,null,"Apoyo Académico"]
[null,null,null,null,null,null,"Control Interno"]
[null,null,null,null,null,null,"Control Disciplinario"]
[null,null,null,null,null,null,"Servicio de Atención al Ciudadano"]

{"sheet":"MCT-3","index":8,"n_rows":99,"n_cols":15,"rows_kept":99,"cut":false,"hidden":true,"merged":[[58,2,58,5],[58,6,58,9],[58,10,58,14],[59,2,59,5],[59,6,59,9],[59,10,59,14],[56,2,56,5],[56,6,56,9],[56,10,56,14],[57,2,57,5],[57,6,57,9],[57,10,57,14],[54,2,54,5],[54,6,54,9],[54,10,54,14],[55,2,55,5],[55,6,55,9],[55,10,55,14],[26,18,27,19],[44,2,44,14],[51,2,51,14],[52,2,52,5],[52,6,52,9],[52,10,52,14],[53,2,53,5],[53,6,53,9],[53,10,53,14],[26,17,27,17],[22,7,23,8],[26,20,27,20],[26,21,27,21],[27,9,32,14],[33,9,33,14],[22,9,23,10],[22,11,23,12],[22,13,23,14],[25,2,25,14],[26,2,42,8],[26,9,26,14],[34,9,39,14],[40,9,40,14],[41,9,41,14],[18,20,25,20],[18,21,25,21],[19,2,21,3],[16,15,17,15],[16,16,17,16],[16,17,17,17],[16,18,17,21],[17,2,18,3],[17,4,18,10],[17,11,18,12],[17,13,18,14],[18,17,25,17],[18,18,25,19],[19,4,21,6],[19,7,21,8],[19,9,21,10],[19,11,19,14],[22,2,23,3],[22,4,23,6],[13,2,13,3],[13,4,13,14],[14,2,14,14],[15,2,15,14],[16,2,16,3],[16,4,16,6],[16,7,16,8],[16,9,16,10],[16,11,16,12],[16,13,16,14],[12,2,12,3],[12,4,12,14],[1,1,3,2],[4,2,7,3],[4,4,4,11],[4,12,4,14],[5,4,5,11],[5,12,5,14],[6,4,7,11],[6,12,6,14],[7,12,7,14],[9,2,10,14],[11,2,11,3],[11,4,11,7],[11,8,11,9],[11,10,11,14]]}
[]
[null,"      REGRESAR"]
[]
[]
[null,null,null,null,"MACROPROCESO ESTRATÉGICO",null,null,null,null,null,null,null,"CÓDIGO: ESGr027"]
[null,null,null,null,"PROCESO GESTIÓN SISTEMAS INTEGRADOS",null,null,null,null,null,null,null,"VERSIÓN: 7"]
[null,null,null,null,"MATRIZ DE MEDICIÓN Y SEGUIMIENTO A LOS PROCESOS DE GESTIÓN",null,null,null,null,null,null,null,"VIGENCIA: 2020-03-20"]
[null,null,null,null,null,null,null,null,null,null,null,null,"PÁGINA: 1 de 1"]
[]
[null,null,"FICHA DE INDICADOR"]
[]
[null,null,"MACROPROCESO",null,"Misional",null,null,null,"NOMBRE DEL INDICADOR",null,"Grupos de investigación avalados institucionalmente y registrados ante Colciencias"]
[null,null,"PROCESO GESTIÓN",null,"Ciencia, Tecnología e Innovación"]
[null,null,"RESPONSABLE DE MEDICIÓN",null,"Director(a) de Investigación Universitaria"]
[]
[null,null,"1. COMPORTAMIENTO DE INDICADOR"]
[null,null,"CLASIFICACIÓN DE LA MEDICIÓN ",null,2,null,null,"TIPO DE INDICADOR",null,"Eficiencia",null,"META",null,30]
[null,null,"FÓRMULA",null,"Número ponderado de Grupos de la Universidad sujeto a convocatoria de Colciencias",null,null,null,null,null,null,"UNIDAD DE MEDIDA",null,"Número de grupos "]
[]
[null,null,"TENDENCIA",null,"Positiva",null,null,"NIVEL DE SEGREGACIÓN *",null,"No Aplica",null,"ESCALA"]
[null,null,null,null,null,null,null,null,null,null,null,"Deficiente","Aceptable","Bueno","Excelente"]
[null,null,null,null,null,null,null,null,null,null,null,"0 - 15","16 - 22","23 - 30",">30"]
[null,null,"ORIGEN DE DATOS",null,"Página Colciencias, GrupLAC",null,null,"FRECUENCIA DE LA MEDICIÓN",null,"SEMESTRAL",null,"FRECUENCIA DE RESULTADO",null,"ANUAL"]
[]
[]
[null,null,"RESULTADOS"]
[null,null,null,null,null,null,null,null,null,"ANÁLISIS DE DATOS\nLos datos indican un crecimiento en los acompañamientos entre el primer trimestre y \nel segundo trimestre de mas del 100%, por la contratación del personal de la oficina\nEn el tercer trimestre se muestra un decrecimiento con respecto al periodo anterior\npor las vacaciones a mitad de año, las personas se reintegraron entre julio y agosto."]
[null,null,null,null,null,null,null,null,null,"la Universidad de Cundinamarca, Actualmente cuenta con 33 grupos categorizados por Minciencias de acuerdo a resultados convocatoria 833 de 2018, los cuales se clasifican así: \nCategoría A1: 1\nCategoría A:   1\nCategoría B:  2\nCategoría C: 29\nReconocido: 1"]
[]
[]
[]
[]
[]
[null,null,null,null,null,null,null,null,null,"ACCIÓN FORMULADA\nReformular la meta para el próximo año dependiendo de los recursos asignados."]
[null,null,null,null,null,null,null,null,null,"N/A"]
[]
[]
[]
[]
[]
[null,null,null,null,null,null,null,null,null,"RESPONSABLE "]
[null,null,null,null,null,null,null,null,null,{"$f":"E14","v":"Director(a) de Investigación Universitaria"}]
[]
[]
[null,null,"PERIODO DE EVALUACIÓN"]
[null,null,"MES",{"$f":"IF(J23=\"MENSUAL\",\"ENERO\",IF(J23=\"TRIMESTRAL\",\"MARZO\",IF(J23=\"SEMESTRAL\",\"JUNIO\",IF(J23=\"ANUAL\",YEAR(TODAY()),\"\"))))","v":"JUNIO"},{"$f":"IF(J23=\"MENSUAL\",\"FEBRERO\",IF(J23=\"TRIMESTRAL\",\"JUNIO\",IF(J23=\"SEMESTRAL\",\"DICIEMBRE\",\"\")))","v":"DICIEMBRE"},{"$f":"IF(J23=\"MENSUAL\",\"MARZO\",IF(J23=\"TRIMESTRAL\",\"SEPTIEMBRE\",\"\"))","v":""},{"$f":"IF(J23=\"MENSUAL\",\"ABRIL\",IF(J23=\"TRIMESTRAL\",\"DICIEMBRE\",\"\"))","v":""},{"$f":"IF(J23=\"MENSUAL\",\"MAYO\",\"\")","v":""},{"$f":"IF(J23=\"MENSUAL\",\"JUNIO\",\"\")","v":""},{"$f":"IF(J23=\"MENSUAL\",\"JULIO\",\"\")","v":""},{"$f":"IF(J23=\"MENSUAL\",\"AGOSTO\",\"\")","v":""},{"$f":"IF(J23=\"MENSUAL\",\"SEPTIEMBRE\",\"\")","v":""},{"$f":"IF(J23=\"MENSUAL\",\"OCTUBRE\",\"\")","v":""},{"$f":"IF(J23=\"MENSUAL\",\"NOVIEMBRE\",\"\")","v":""},{"$f":"IF(J23=\"MENSUAL\",\"DICIEMBRE\",\"\")","v":""}]
[null,null,{"$f":"E18","v":"Número ponderado de Grupos de la Universidad sujeto a convocatoria de Colciencias"},33]
[null,null,{"$f":"G19","v":0}]
[null,null,"VALOR ",{"$f":"IFERROR(IF($E$17=1,D47/D48,IF($E$17=2,D47,\"\")),\"\")","v":33},0,0,0,0,0,0,0,0,0,0,0]
[null,null,"META PONDERADA",{"$f":"IF(AND(N23=\"ANUAL\",J23=\"MENSUAL\"),N17/12,IF(AND(N23=\"ANUAL\",J23=\"TRIMESTRAL\"),N17/4,IF(AND(N23=\"ANUAL\",J23=\"SEMESTRAL\"),N17/2,IF(AND(N23=\"ANUAL\",J23=\"ANUAL\"),N17,IF(AND(N23=\"SEMESTRAL\",J23=\"MENSUAL\"),N17/6,IF(AND(N23=\"SEMESTRAL\",J23=\"TRIMESTRAL\"),N17/2,IF(AND(N23=\"SEMESTRAL\",J23=\"SEMESTRAL\"),N17,IF(AND(N23=\"SEMESTRAL\",J23=\"ANUAL\"),\"REVISAR FRECUENCIAS\",IF(AND(N23=\"TRIMESTRAL\",J23=\"MENSUAL\"),N17/3,IF(AND(N23=\"TRIMESTRAL\",J23=\"TRIMESTRAL\"),N17,IF(AND(N23=\"TRIMESTRAL\",J23=\"SEMESTRAL\"),\"REVISAR FRECUENCIAS\",IF(AND(N23=\"TRIMESTRAL\",J23=\"ANUAL\"),\"REVISAR FRECUENCIAS\",IF(AND(N23=\"MENSUAL\",J23=\"MENSUAL\"),N17,IF(AND(N23=\"MENSUAL\",J23=\"TRIMESTRAL\"),\"REVISAR FRECUENCIAS\",IF(AND(N23=\"MENSUAL\",J23=\"SEMESTRAL\"),\"REVISAR FRECUENCIAS\",IF(AND(N23=\"MENSUAL\",J23=\"ANUAL\"),\"REVISAR FRECUENCIAS\",\"\"))))))))))))))))","v":15},{"$f":"IF(AND(N23=\"ANUAL\",J23=\"MENSUAL\"),N17/12+D50,IF(AND(N23=\"ANUAL\",J23=\"TRIMESTRAL\"),N17/4+D50,IF(AND(N23=\"ANUAL\",J23=\"SEMESTRAL\"),N17/2+D50,IF(AND(N23=\"SEMESTRAL\",J23=\"MENSUAL\"),N17/6+D50,IF(AND(N23=\"SEMESTRAL\",J23=\"TRIMESTRAL\"),N17/2+D50,IF(AND(N23=\"SEMESTRAL\",J23=\"SEMESTRAL\"),N17,IF(AND(N23=\"TRIMESTRAL\",J23=\"MENSUAL\"),N17/3+D50,IF(AND(N23=\"TRIMESTRAL\",J23=\"TRIMESTRAL\"),N17,IF(AND(N23=\"MENSUAL\",J23=\"MENSUAL\"),N17,\"\")))))))))","v":30},{"$f":"IF(AND(N23=\"ANUAL\",J23=\"MENSUAL\"),N17/12+E50,IF(AND(N23=\"ANUAL\",J23=\"TRIMESTRAL\"),N17/4+E50,IF(AND(N23=\"SEMESTRAL\",J23=\"MENSUAL\"),N17/6+E50,IF(AND(N23=\"SEMESTRAL\",J23=\"TRIMESTRAL\"),N17/2,IF(AND(N23=\"TRIMESTRAL\",J23=\"MENSUAL\"),N17/3+E50,IF(AND(N23=\"TRIMESTRAL\",J23=\"TRIMESTRAL\"),N17,IF(AND(N23=\"MENSUAL\",J23=\"MENSUAL\"),N17,\"\")))))))","v":""},{"$f":"IF(AND(N23=\"ANUAL\",J23=\"MENSUAL\"),N17/12+F50,IF(AND(N23=\"ANUAL\",J23=\"TRIMESTRAL\"),N17/4+F50,IF(AND(N23=\"SEMESTRAL\",J23=\"MENSUAL\"),N17/6+F50,IF(AND(N23=\"SEMESTRAL\",J23=\"TRIMESTRAL\"),N17/2+F50,IF(AND(N23=\"TRIMESTRAL\",J23=\"MENSUAL\"),N17/3,IF(AND(N23=\"TRIMESTRAL\",J23=\"TRIMESTRAL\"),N17,IF(AND(N23=\"MENSUAL\",J23=\"MENSUAL\"),N17,\"\")))))))","v":""},{"$f":"IF(AND($N$23=\"ANUAL\",$J$23=\"MENSUAL\"),$N$17/12+G50,IF(AND(N23=\"SEMESTRAL\",J23=\"MENSUAL\"),N17/6+G50,IF(AND(N23=\"TRIMESTRAL\",J23=\"MENSUAL\"),N17/3+G50,IF(AND(N23=\"MENSUAL\",J23=\"MENSUAL\"),N17,\"\"))))","v":""},{"$f":"IF(AND($N$23=\"ANUAL\",$J$23=\"MENSUAL\"),$N$17/12+H50,IF(AND(N23=\"SEMESTRAL\",J23=\"MENSUAL\"),N17/6+H50,IF(AND(N23=\"TRIMESTRAL\",J23=\"MENSUAL\"),N17/3+H50,IF(AND(N23=\"MENSUAL\",J23=\"MENSUAL\"),N17,\"\"))))","v":""},{"$f":"IF(AND($N$23=\"ANUAL\",$J$23=\"MENSUAL\"),$N$17/12+I50,IF(AND(N23=\"SEMESTRAL\",J23=\"MENSUAL\"),N17/6,IF(AND(N23=\"TRIMESTRAL\",J23=\"MENSUAL\"),N17/3,IF(AND(N23=\"MENSUAL\",J23=\"MENSUAL\"),N17,\"\"))))","v":""},{"$f":"IF(AND($N$23=\"ANUAL\",$J$23=\"MENSUAL\"),$N$17/12+J50,IF(AND(N23=\"SEMESTRAL\",J23=\"MENSUAL\"),N17/6+J50,IF(AND(N23=\"TRIMESTRAL\",J23=\"MENSUAL\"),N17/3+J50,IF(AND(N23=\"MENSUAL\",J23=\"MENSUAL\"),N17,\"\"))))","v":""},{"$f":"IF(AND($N$23=\"ANUAL\",$J$23=\"MENSUAL\"),$N$17/12+K50,IF(AND(N23=\"SEMESTRAL\",J23=\"MENSUAL\"),N17/6+K50,IF(AND(N23=\"TRIMESTRAL\",J23=\"MENSUAL\"),N17/3+K50,IF(AND(N23=\"MENSUAL\",J23=\"MENSUAL\"),N17,\"\"))))","v":""},{"$f":"IF(AND($N$23=\"ANUAL\",$J$23=\"MENSUAL\"),$N$17/12+L50,IF(AND(N23=\"SEMESTRAL\",J23=\"MENSUAL\"),N17/6+L50,IF(AND(N23=\"TRIMESTRAL\",J23=\"MENSUAL\"),N17/3,IF(AND(N23=\"MENSUAL\",J23=\"MENSUAL\"),N17,\"\"))))","v":""},{"$f":"IF(AND($N$23=\"ANUAL\",$J$23=\"MENSUAL\"),$N$17/12+M50,IF(AND(N23=\"SEMESTRAL\",J23=\"MENSUAL\"),N17/6+M50,IF(AND(N23=\"TRIMESTRAL\",J23=\"MENSUAL\"),N17/3+M50,IF(AND(N23=\"MENSUAL\",J23=\"MENSUAL\"),N17,\"\"))))","v":""},{"$f":"IF(AND($N$23=\"ANUAL\",$J$23=\"MENSUAL\"),$N$17/12+N50,IF(AND(N23=\"SEMESTRAL\",J23=\"MENSUAL\"),N17/6+N50,IF(AND(N23=\"TRIMESTRAL\",J23=\"MENSUAL\"),N17/3+N50,IF(AND(N23=\"MENSUAL\",J23=\"MENSUAL\"),N17,\"\"))))","v":""}]
[]
[null,null,"NIVEL DE SEGREGACIÓN *"]
[null,null,"UNIDAD SEGREGADA (Ej. Facultad, Programa Académico, Área)",null,null,null,"RESULTADO",null,null,null,"ANÁLISIS DE DATOS SEGREGADO"]
[]
[]
[]
[]
[]
[]
[]
[]
[]
[]
[]
[]
[]
[]
[]
[]
[]
[]
[]
[null,null,null,null,null,null,"Estratégico",null,null,"Eficacia"]
[null,null,null,null,null,null,"Misional",null,null,"Eficiencia"]
[null,null,null,null,null,null,"Apoyo",null,null,"Acreditación"]
[null,null,null,null,null,null,"Seguimiento, Medición, Análisis y Evaluación",null,null,"Positiva"]
[null,null,null,null,null,null,"Direccionamiento Estratégico",null,null,"Negativa"]
[null,null,null,null,null,null,"Planeación Institucional",null,null,"Por Unidad Regional"]
[null,null,null,null,null,null,"Proyectos Especiales y Relaciones Interinstitucionales",null,null,"Por Facultad"]
[null,null,null,null,null,null,"Sistemas Integrados",null,null,"Por Programa Académico"]
[null,null,null,null,null,null,"Autoevaluación y Acreditación",null,null,"Por área"]
[null,null,null,null,null,null,"Comunicaciones",null,null,"Por Laboratorio"]
[null,null,null,null,null,null,"Formación y Aprendizaje",null,null,"Otros"]
[null,null,null,null,null,null,"Ciencia, Tecnología e Innovación",null,null,"No Aplica"]
[null,null,null,null,null,null,"Interacción Social Universitaria"]
[null,null,null,null,null,null,"Bienestar Universitario"]
[null,null,null,null,null,null,"Admisiones y Registro"]
[null,null,null,null,null,null,"Graduados"]
[null,null,null,null,null,null,"Dialogando con el Mundo"]
[null,null,null,null,null,null,"Talento Humano"]
[null,null,null,null,null,null,"Jurídica"]
[null,null,null,null,null,null,"Financiera"]
[null,null,null,null,null,null,"Sistemas y Tecnología"]
[null,null,null,null,null,null,"Bienes y Servicios"]
[null,null,null,null,null,null,"Documental"]
[null,null,null,null,null,null,"Apoyo Académico"]
[null,null,null,null,null,null,"Control Interno"]
[null,null,null,null,null,null,"Control Disciplinario"]
[null,null,null,null,null,null,"Servicio de Atención al Ciudadano"]

{"sheet":"MCT-4","index":9,"n_rows":99,"n_cols":15,"rows_kept":99,"cut":false,"hidden":true,"merged":[[58,2,58,5],[58,6,58,9],[58,10,58,14],[59,2,59,5],[59,6,59,9],[59,10,59,14],[56,2,56,5],[56,6,56,9],[56,10,56,14],[57,2,57,5],[57,6,57,9],[57,10,57,14],[54,2,54,5],[54,6,54,9],[54,10,54,14],[55,2,55,5],[55,6,55,9],[55,10,55,14],[26,18,27,19],[44,2,44,14],[51,2,51,14],[52,2,52,5],[52,6,52,9],[52,10,52,14],[53,2,53,5],[53,6,53,9],[53,10,53,14],[26,17,27,17],[22,7,23,8],[26,20,27,20],[26,21,27,21],[27,9,32,14],[33,9,33,14],[22,9,23,10],[22,11,23,12],[22,13,23,14],[25,2,25,14],[26,2,42,8],[26,9,26,14],[34,9,39,14],[40,9,40,14],[41,9,41,14],[18,20,25,20],[18,21,25,21],[19,2,21,3],[16,15,17,15],[16,16,17,16],[16,17,17,17],[16,18,17,21],[17,2,18,3],[17,4,18,10],[17,11,18,12],[17,13,18,14],[18,17,25,17],[18,18,25,19],[19,4,21,6],[19,7,21,8],[19,9,21,10],[19,11,19,14],[22,2,23,3],[22,4,23,6],[13,2,13,3],[13,4,13,14],[14,2,14,14],[15,2,15,14],[16,2,16,3],[16,4,16,6],[16,7,16,8],[16,9,16,10],[16,11,16,12],[16,13,16,14],[12,2,12,3],[12,4,12,14],[1,1,3,2],[4,2,7,3],[4,4,4,11],[4,12,4,14],[5,4,5,11],[5,12,5,14],[6,4,7,11],[6,12,6,14],[7,12,7,14],[9,2,10,14],[11,2,11,3],[11,4,11,7],[11,8,11,9],[11,10,11,14]]}
[]
[null,"      REGRESAR"]
[]
[]
[null,null,null,null,"MACROPROCESO ESTRATÉGICO",null,null,null,null,null,null,null,"CÓDIGO: ESGr027"]
[null,null,null,null,"PROCESO GESTIÓN SISTEMAS INTEGRADOS",null,null,null,null,null,null,null,"VERSIÓN: 7"]
[null,null,null,null,"MATRIZ DE MEDICIÓN Y SEGUIMIENTO A LOS PROCESOS DE GESTIÓN",null,null,null,null,null,null,null,"VIGENCIA: 2020-03-20"]
[null,null,null,null,null,null,null,null,null,null,null,null,"PÁGINA: 1 de 1"]
[]
[null,null,"FICHA DE INDICADOR"]
[]
[null,null,"MACROPROCESO",null,"Misional",null,null,null,"NOMBRE DEL INDICADOR",null,"Publicación de capítulos de libros"]
[null,null,"PROCESO GESTIÓN",null,"Ciencia, Tecnología e Innovación"]
[null,null,"RESPONSABLE DE MEDICIÓN",null,"Director(a) de Investigación Universitaria"]
[]
[null,null,"1. COMPORTAMIENTO DE INDICADOR"]
[null,null,"CLASIFICACIÓN DE LA MEDICIÓN ",null,2,null,null,"TIPO DE INDICADOR",null,"Eficiencia",null,"META",null,35]
[null,null,"FÓRMULA",null,"Número de capítulos de libros publicados en el periodo",null,null,null,null,null,null,"UNIDAD DE MEDIDA",null,"Número capítulos de libro"]
[]
[null,null,"TENDENCIA",null,"Positiva",null,null,"NIVEL DE SEGREGACIÓN *",null,"No Aplica",null,"ESCALA"]
[null,null,null,null,null,null,null,null,null,null,null,"Deficiente","Aceptable","Bueno","Excelente"]
[null,null,null,null,null,null,null,null,null,null,null,"0 - 20","21 - 29","30 - 35",">35"]
[null,null,"ORIGEN DE DATOS",null,"GrupLAC\nVerificador InstituLAC",null,null,"FRECUENCIA DE LA MEDICIÓN",null,"SEMESTRAL",null,"FRECUENCIA DE RESULTADO",null,"ANUAL"]
[]
[]
[null,null,"RESULTADOS"]
[null,null,null,null,null,null,null,null,null,"ANÁLISIS DE DATOS\nLos datos indican un crecimiento en los acompañamientos entre el primer trimestre y \nel segundo trimestre de mas del 100%, por la contratación del personal de la oficina\nEn el tercer trimestre se muestra un decrecimiento con respecto al periodo anterior\npor las vacaciones a mitad de año, las personas se reintegraron entre julio y agosto."]
[null,null,null,null,null,null,null,null,null,"Para el IPA-2021 se encuentran publicados 06 capítulos de libros reportados a atraves del GrupLAC, los cuales pertenecen a la Facultad de Ingeniería. \nse tiene previsto que para el IIPA-2021 se realice la publicación de los demás capítulos de libros proyectados por los Grupos de Investigación. \n\nLos docentes están generando productos de Ciencia tecnología e innovación que se encuentran en proceso de aprobación,  perfeccionamiento y finalización  para darse a conocer en el IIPA de 2021. "]
[]
[]
[]
[]
[]
[null,null,null,null,null,null,null,null,null,"ACCIÓN FORMULADA\nReformular la meta para el próximo año dependiendo de los recursos asignados."]
[null,null,null,null,null,null,null,null,null,"* Solicitar a los Lideres de Grupos de Investigación el reporte de la productividad en cada uno de los GrupLAC \n* Realizar seguimiento al reporte de productividad por los grupos de investigación. "]
[]
[]
[]
[]
[]
[null,null,null,null,null,null,null,null,null,"RESPONSABLE "]
[null,null,null,null,null,null,null,null,null,{"$f":"E14","v":"Director(a) de Investigación Universitaria"}]
[]
[]
[null,null,"PERIODO DE EVALUACIÓN"]
[null,null,"MES",{"$f":"IF(J23=\"MENSUAL\",\"ENERO\",IF(J23=\"TRIMESTRAL\",\"MARZO\",IF(J23=\"SEMESTRAL\",\"JUNIO\",IF(J23=\"ANUAL\",YEAR(TODAY()),\"\"))))","v":"JUNIO"},{"$f":"IF(J23=\"MENSUAL\",\"FEBRERO\",IF(J23=\"TRIMESTRAL\",\"JUNIO\",IF(J23=\"SEMESTRAL\",\"DICIEMBRE\",\"\")))","v":"DICIEMBRE"},{"$f":"IF(J23=\"MENSUAL\",\"MARZO\",IF(J23=\"TRIMESTRAL\",\"SEPTIEMBRE\",\"\"))","v":""},{"$f":"IF(J23=\"MENSUAL\",\"ABRIL\",IF(J23=\"TRIMESTRAL\",\"DICIEMBRE\",\"\"))","v":""},{"$f":"IF(J23=\"MENSUAL\",\"MAYO\",\"\")","v":""},{"$f":"IF(J23=\"MENSUAL\",\"JUNIO\",\"\")","v":""},{"$f":"IF(J23=\"MENSUAL\",\"JULIO\",\"\")","v":""},{"$f":"IF(J23=\"MENSUAL\",\"AGOSTO\",\"\")","v":""},{"$f":"IF(J23=\"MENSUAL\",\"SEPTIEMBRE\",\"\")","v":""},{"$f":"IF(J23=\"MENSUAL\",\"OCTUBRE\",\"\")","v":""},{"$f":"IF(J23=\"MENSUAL\",\"NOVIEMBRE\",\"\")","v":""},{"$f":"IF(J23=\"MENSUAL\",\"DICIEMBRE\",\"\")","v":""}]
[null,null,{"$f":"E18","v":"Número de capítulos de libros publicados en el periodo"},6]
[null,null,{"$f":"G19","v":0}]
[null,null,"VALOR ",{"$f":"IFERROR(IF($E$17=1,D47/D48,IF($E$17=2,D47,\"\")),\"\")","v":6},0,0,0,0,0,0,0,0,0,0,0]
[null,null,"META PONDERADA",{"$f":"IF(AND(N23=\"ANUAL\",J23=\"MENSUAL\"),N17/12,IF(AND(N23=\"ANUAL\",J23=\"TRIMESTRAL\"),N17/4,IF(AND(N23=\"ANUAL\",J23=\"SEMESTRAL\"),N17/2,IF(AND(N23=\"ANUAL\",J23=\"ANUAL\"),N17,IF(AND(N23=\"SEMESTRAL\",J23=\"MENSUAL\"),N17/6,IF(AND(N23=\"SEMESTRAL\",J23=\"TRIMESTRAL\"),N17/2,IF(AND(N23=\"SEMESTRAL\",J23=\"SEMESTRAL\"),N17,IF(AND(N23=\"SEMESTRAL\",J23=\"ANUAL\"),\"REVISAR FRECUENCIAS\",IF(AND(N23=\"TRIMESTRAL\",J23=\"MENSUAL\"),N17/3,IF(AND(N23=\"TRIMESTRAL\",J23=\"TRIMESTRAL\"),N17,IF(AND(N23=\"TRIMESTRAL\",J23=\"SEMESTRAL\"),\"REVISAR FRECUENCIAS\",IF(AND(N23=\"TRIMESTRAL\",J23=\"ANUAL\"),\"REVISAR FRECUENCIAS\",IF(AND(N23=\"MENSUAL\",J23=\"MENSUAL\"),N17,IF(AND(N23=\"MENSUAL\",J23=\"TRIMESTRAL\"),\"REVISAR FRECUENCIAS\",IF(AND(N23=\"MENSUAL\",J23=\"SEMESTRAL\"),\"REVISAR FRECUENCIAS\",IF(AND(N23=\"MENSUAL\",J23=\"ANUAL\"),\"REVISAR FRECUENCIAS\",\"\"))))))))))))))))","v":17.5},{"$f":"IF(AND(N23=\"ANUAL\",J23=\"MENSUAL\"),N17/12+D50,IF(AND(N23=\"ANUAL\",J23=\"TRIMESTRAL\"),N17/4+D50,IF(AND(N23=\"ANUAL\",J23=\"SEMESTRAL\"),N17/2+D50,IF(AND(N23=\"SEMESTRAL\",J23=\"MENSUAL\"),N17/6+D50,IF(AND(N23=\"SEMESTRAL\",J23=\"TRIMESTRAL\"),N17/2+D50,IF(AND(N23=\"SEMESTRAL\",J23=\"SEMESTRAL\"),N17,IF(AND(N23=\"TRIMESTRAL\",J23=\"MENSUAL\"),N17/3+D50,IF(AND(N23=\"TRIMESTRAL\",J23=\"TRIMESTRAL\"),N17,IF(AND(N23=\"MENSUAL\",J23=\"MENSUAL\"),N17,\"\")))))))))","v":35},{"$f":"IF(AND(N23=\"ANUAL\",J23=\"MENSUAL\"),N17/12+E50,IF(AND(N23=\"ANUAL\",J23=\"TRIMESTRAL\"),N17/4+E50,IF(AND(N23=\"SEMESTRAL\",J23=\"MENSUAL\"),N17/6+E50,IF(AND(N23=\"SEMESTRAL\",J23=\"TRIMESTRAL\"),N17/2,IF(AND(N23=\"TRIMESTRAL\",J23=\"MENSUAL\"),N17/3+E50,IF(AND(N23=\"TRIMESTRAL\",J23=\"TRIMESTRAL\"),N17,IF(AND(N23=\"MENSUAL\",J23=\"MENSUAL\"),N17,\"\")))))))","v":""},{"$f":"IF(AND(N23=\"ANUAL\",J23=\"MENSUAL\"),N17/12+F50,IF(AND(N23=\"ANUAL\",J23=\"TRIMESTRAL\"),N17/4+F50,IF(AND(N23=\"SEMESTRAL\",J23=\"MENSUAL\"),N17/6+F50,IF(AND(N23=\"SEMESTRAL\",J23=\"TRIMESTRAL\"),N17/2+F50,IF(AND(N23=\"TRIMESTRAL\",J23=\"MENSUAL\"),N17/3,IF(AND(N23=\"TRIMESTRAL\",J23=\"TRIMESTRAL\"),N17,IF(AND(N23=\"MENSUAL\",J23=\"MENSUAL\"),N17,\"\")))))))","v":""},{"$f":"IF(AND($N$23=\"ANUAL\",$J$23=\"MENSUAL\"),$N$17/12+G50,IF(AND(N23=\"SEMESTRAL\",J23=\"MENSUAL\"),N17/6+G50,IF(AND(N23=\"TRIMESTRAL\",J23=\"MENSUAL\"),N17/3+G50,IF(AND(N23=\"MENSUAL\",J23=\"MENSUAL\"),N17,\"\"))))","v":""},{"$f":"IF(AND($N$23=\"ANUAL\",$J$23=\"MENSUAL\"),$N$17/12+H50,IF(AND(N23=\"SEMESTRAL\",J23=\"MENSUAL\"),N17/6+H50,IF(AND(N23=\"TRIMESTRAL\",J23=\"MENSUAL\"),N17/3+H50,IF(AND(N23=\"MENSUAL\",J23=\"MENSUAL\"),N17,\"\"))))","v":""},{"$f":"IF(AND($N$23=\"ANUAL\",$J$23=\"MENSUAL\"),$N$17/12+I50,IF(AND(N23=\"SEMESTRAL\",J23=\"MENSUAL\"),N17/6,IF(AND(N23=\"TRIMESTRAL\",J23=\"MENSUAL\"),N17/3,IF(AND(N23=\"MENSUAL\",J23=\"MENSUAL\"),N17,\"\"))))","v":""},{"$f":"IF(AND($N$23=\"ANUAL\",$J$23=\"MENSUAL\"),$N$17/12+J50,IF(AND(N23=\"SEMESTRAL\",J23=\"MENSUAL\"),N17/6+J50,IF(AND(N23=\"TRIMESTRAL\",J23=\"MENSUAL\"),N17/3+J50,IF(AND(N23=\"MENSUAL\",J23=\"MENSUAL\"),N17,\"\"))))","v":""},{"$f":"IF(AND($N$23=\"ANUAL\",$J$23=\"MENSUAL\"),$N$17/12+K50,IF(AND(N23=\"SEMESTRAL\",J23=\"MENSUAL\"),N17/6+K50,IF(AND(N23=\"TRIMESTRAL\",J23=\"MENSUAL\"),N17/3+K50,IF(AND(N23=\"MENSUAL\",J23=\"MENSUAL\"),N17,\"\"))))","v":""},{"$f":"IF(AND($N$23=\"ANUAL\",$J$23=\"MENSUAL\"),$N$17/12+L50,IF(AND(N23=\"SEMESTRAL\",J23=\"MENSUAL\"),N17/6+L50,IF(AND(N23=\"TRIMESTRAL\",J23=\"MENSUAL\"),N17/3,IF(AND(N23=\"MENSUAL\",J23=\"MENSUAL\"),N17,\"\"))))","v":""},{"$f":"IF(AND($N$23=\"ANUAL\",$J$23=\"MENSUAL\"),$N$17/12+M50,IF(AND(N23=\"SEMESTRAL\",J23=\"MENSUAL\"),N17/6+M50,IF(AND(N23=\"TRIMESTRAL\",J23=\"MENSUAL\"),N17/3+M50,IF(AND(N23=\"MENSUAL\",J23=\"MENSUAL\"),N17,\"\"))))","v":""},{"$f":"IF(AND($N$23=\"ANUAL\",$J$23=\"MENSUAL\"),$N$17/12+N50,IF(AND(N23=\"SEMESTRAL\",J23=\"MENSUAL\"),N17/6+N50,IF(AND(N23=\"TRIMESTRAL\",J23=\"MENSUAL\"),N17/3+N50,IF(AND(N23=\"MENSUAL\",J23=\"MENSUAL\"),N17,\"\"))))","v":""}]
[]
[null,null,"NIVEL DE SEGREGACIÓN *"]
[null,null,"UNIDAD SEGREGADA (Ej. Facultad, Programa Académico, Área)",null,null,null,"RESULTADO",null,null,null,"ANÁLISIS DE DATOS SEGREGADO"]
[]
[]
[]
[]
[]
[]
[]
[]
[]
[]
[]
[]
[]
[]
[]
[]
[]
[]
[]
[null,null,null,null,null,null,"Estratégico",null,null,"Eficacia"]
[null,null,null,null,null,null,"Misional",null,null,"Eficiencia"]
[null,null,null,null,null,null,"Apoyo",null,null,"Acreditación"]
[null,null,null,null,null,null,"Seguimiento, Medición, Análisis y Evaluación",null,null,"Positiva"]
[null,null,null,null,null,null,"Direccionamiento Estratégico",null,null,"Negativa"]
[null,null,null,null,null,null,"Planeación Institucional",null,null,"Por Unidad Regional"]
[null,null,null,null,null,null,"Proyectos Especiales y Relaciones Interinstitucionales",null,null,"Por Facultad"]
[null,null,null,null,null,null,"Sistemas Integrados",null,null,"Por Programa Académico"]
[null,null,null,null,null,null,"Autoevaluación y Acreditación",null,null,"Por área"]
[null,null,null,null,null,null,"Comunicaciones",null,null,"Por Laboratorio"]
[null,null,null,null,null,null,"Formación y Aprendizaje",null,null,"Otros"]
[null,null,null,null,null,null,"Ciencia, Tecnología e Innovación",null,null,"No Aplica"]
[null,null,null,null,null,null,"Interacción Social Universitaria"]
[null,null,null,null,null,null,"Bienestar Universitario"]
[null,null,null,null,null,null,"Admisiones y Registro"]
[null,null,null,null,null,null,"Graduados"]
[null,null,null,null,null,null,"Dialogando con el Mundo"]
[null,null,null,null,null,null,"Talento Humano"]
[null,null,null,null,null,null,"Jurídica"]
[null,null,null,null,null,null,"Financiera"]
[null,null,null,null,null,null,"Sistemas y Tecnología"]
[null,null,null,null,null,null,"Bienes y Servicios"]
[null,null,null,null,null,null,"Documental"]
[null,null,null,null,null,null,"Apoyo Académico"]
[null,null,null,null,null,null,"Control Interno"]
[null,null,null,null,null,null,"Control Disciplinario"]
[null,null,null,null,null,null,"Servicio de Atención al Ciudadano"]

{"sheet":"MCT-5","index":10,"n_rows":98,"n_cols":15,"rows_kept":98,"cut":false,"hidden":true,"merged":[[58,2,58,5],[58,6,58,9],[58,10,58,14],[59,2,59,5],[59,6,59,9],[59,10,59,14],[56,2,56,5],[56,6,56,9],[56,10,56,14],[57,2,57,5],[57,6,57,9],[57,10,57,14],[54,2,54,5],[54,6,54,9],[54,10,54,14],[55,2,55,5],[55,6,55,9],[55,10,55,14],[53,2,53,5],[53,6,53,9],[53,10,53,14],[26,15,27,15],[27,9,32,14],[33,9,33,14],[34,9,39,14],[40,9,40,14],[41,9,41,14],[44,2,44,14],[51,2,51,14],[52,2,52,5],[52,6,52,9],[52,10,52,14],[22,13,23,14],[23,2,23,3],[23,4,23,6],[25,2,25,14],[26,2,42,8],[26,9,26,14],[42,9,42,14],[22,2,22,3],[22,4,22,6],[22,7,23,8],[22,9,23,10],[22,11,23,12],[19,2,21,3],[19,4,21,6],[19,7,21,8],[19,9,21,10],[19,11,19,14],[16,15,17,15],[17,2,18,3],[17,4,17,5],[17,6,17,10],[17,11,18,12],[17,13,18,14],[18,4,18,5],[18,6,18,10],[16,2,16,3],[16,4,16,6],[16,7,16,8],[16,9,16,10],[16,11,16,12],[16,13,16,14],[15,2,15,14],[8,2,8,14],[9,2,10,14],[11,2,11,3],[11,4,11,7],[11,8,11,9],[11,10,11,14],[12,2,12,3],[12,4,12,14],[13,2,13,3],[13,4,13,14],[14,2,14,14],[1,1,3,2],[4,2,7,3],[4,4,4,11],[4,12,4,14],[5,4,5,11],[5,12,5,14],[6,4,7,11],[6,12,6,14],[7,12,7,14]]}
[]
[null,"      REGRESAR"]
[]
[]
[null,null,null,null,"MACROPROCESO ESTRATÉGICO",null,null,null,null,null,null,null,"CÓDIGO: ESGr027"]
[null,null,null,null,"PROCESO GESTIÓN SISTEMAS INTEGRADOS",null,null,null,null,null,null,null,"VERSIÓN: 7"]
[null,null,null,null,"MATRIZ DE MEDICIÓN Y SEGUIMIENTO A LOS PROCESOS DE GESTIÓN",null,null,null,null,null,null,null,"VIGENCIA: 2020-03-20"]
[null,null,null,null,null,null,null,null,null,null,null,null,"PÁGINA: 1 de 1"]
[]
[null,null,"FICHA DE INDICADOR"]
[]
[null,null,"MACROPROCESO",null,"Misional",null,null,null,"NOMBRE DEL INDICADOR",null,"Resultados de investigación del programa"]
[null,null,"PROCESO GESTIÓN",null,"Ciencia, Tecnología e Innovación"]
[null,null,"RESPONSABLE DE MEDICIÓN",null,"Director(a) de Investigación Universitaria"]
[]
[null,null,"1. COMPORTAMIENTO DE INDICADOR"]
[null,null,"CLASIFICACIÓN DE LA MEDICIÓN",null,1,null,null,"TIPO DE INDICADOR",null,"Eficacia",null,"META ANUAL",null,1]
[null,null,"FÓRMULA",null,"NUMERADOR",null,"Resultados de investigación del programa*100",null,null,null,null,"UNIDAD DE MEDIDA",null,"Porcentual"]
[null,null,null,null,"DENOMINADOR",null,"Total  de resultados de investigación  propuestos "]
[null,null,"TENDENCIA",null,"Positiva",null,null,"NIVEL DE SEGREGACIÓN *",null,"Por programa académico",null,"ESCALA"]
[null,null,null,null,null,null,null,null,null,null,null,"Deficiente","Aceptable","Bueno","Excelente"]
[null,null,null,null,null,null,null,null,null,null,null,"0% - 70%","71% - 89%","90% - 100%","N/A"]
[null,null,"ORIGEN DE DATOS NUMERADOR",null,"Vinculación de estudiantes a la investigación",null,null,"FRECUENCIA DE LA MEDICIÓN",null,"SEMESTRAL",null,"FRECUENCIA DE RESULTADO",null,"ANUAL"]
[null,null,"ORIGEN DE DATOS DENOMINADOR",null,"Base de datos de estudiantes"]
[]
[null,null,"RESULTADOS"]
[null,null,null,null,null,null,null,null,null,"ANÁLISIS DE DATOS"]
[null,null,null,null,null,null,null,null,null,"para el IPA-2021 se han publicado resultados de investigación 105 productos de 256 productos proyectados, se espera que para el IIPA-2020 se realice la publicación de los demás productos proyectados, lo que equivale a un 41%\n\nLos docentes están generando productos de Ciencia tecnología e innovación que se encuentran en proceso de aprobación,  perfeccionamiento y finalización  para darse a conocer en el IIPA de 2020, como ejemplo eventos y ponencias aplazados en el IPA que se desarrollaran de manera virtual en el IIPA de 2021. "]
[]
[]
[]
[]
[]
[null,null,null,null,null,null,null,null,null,"ACCIÓN FORMULADA"]
[null,null,null,null,null,null,null,null,null,"* Solicitar a los Lideres de Grupos de Investigación el reporte de la productividad en cada uno de los GrupLAC \n* Realizar seguimiento al reporte de productividad por los grupos de investigación. "]
[]
[]
[]
[]
[]
[null,null,null,null,null,null,null,null,null,"RESPONSABLE "]
[null,null,null,null,null,null,null,null,null,{"$f":"E14","v":"Director(a) de Investigación Universitaria"}]
[]
[]
[null,null,"PERIODO DE EVALUACIÓN"]
[null,null,"MES",{"$f":"IF(J23=\"MENSUAL\",\"ENERO\",IF(J23=\"TRIMESTRAL\",\"MARZO\",IF(J23=\"SEMESTRAL\",\"JUNIO\",IF(J23=\"ANUAL\",YEAR(TODAY()),\"\"))))","v":"JUNIO"},{"$f":"IF(J23=\"MENSUAL\",\"FEBRERO\",IF(J23=\"TRIMESTRAL\",\"JUNIO\",IF(J23=\"SEMESTRAL\",\"DICIEMBRE\",\"\")))","v":"DICIEMBRE"},{"$f":"IF(J23=\"MENSUAL\",\"MARZO\",IF(J23=\"TRIMESTRAL\",\"SEPTIEMBRE\",\"\"))","v":""},{"$f":"IF(J23=\"MENSUAL\",\"ABRIL\",IF(J23=\"TRIMESTRAL\",\"DICIEMBRE\",\"\"))","v":""},{"$f":"IF(J23=\"MENSUAL\",\"MAYO\",\"\")","v":""},{"$f":"IF(J23=\"MENSUAL\",\"JUNIO\",\"\")","v":""},{"$f":"IF(J23=\"MENSUAL\",\"JULIO\",\"\")","v":""},{"$f":"IF(J23=\"MENSUAL\",\"AGOSTO\",\"\")","v":""},{"$f":"IF(J23=\"MENSUAL\",\"SEPTIEMBRE\",\"\")","v":""},{"$f":"IF(J23=\"MENSUAL\",\"OCTUBRE\",\"\")","v":""},{"$f":"IF(J23=\"MENSUAL\",\"NOVIEMBRE\",\"\")","v":""},{"$f":"IF(J23=\"MENSUAL\",\"DICIEMBRE\",\"\")","v":""}]
[null,null,{"$f":"G18","v":"Resultados de investigación del programa*100"},105]
[null,null,{"$f":"G19","v":"Total  de resultados de investigación  propuestos "},257,257]
[null,null,"VALOR ",{"$f":"IFERROR(IF($E$17=1,D47/D48,IF($E$17=2,D47,\"\")),\"\")","v":0.40856031128404668},0,"","","","","","","","","",""]
[null,null,"META PONDERADA",{"$f":"IF(AND(N23=\"ANUAL\",J23=\"MENSUAL\"),N17/12,IF(AND(N23=\"ANUAL\",J23=\"TRIMESTRAL\"),N17/4,IF(AND(N23=\"ANUAL\",J23=\"SEMESTRAL\"),N17/2,IF(AND(N23=\"ANUAL\",J23=\"ANUAL\"),N17,IF(AND(N23=\"SEMESTRAL\",J23=\"MENSUAL\"),N17/6,IF(AND(N23=\"SEMESTRAL\",J23=\"TRIMESTRAL\"),N17/2,IF(AND(N23=\"SEMESTRAL\",J23=\"SEMESTRAL\"),N17,IF(AND(N23=\"SEMESTRAL\",J23=\"ANUAL\"),\"REVISAR FRECUENCIAS\",IF(AND(N23=\"TRIMESTRAL\",J23=\"MENSUAL\"),N17/3,IF(AND(N23=\"TRIMESTRAL\",J23=\"TRIMESTRAL\"),N17,IF(AND(N23=\"TRIMESTRAL\",J23=\"SEMESTRAL\"),\"REVISAR FRECUENCIAS\",IF(AND(N23=\"TRIMESTRAL\",J23=\"ANUAL\"),\"REVISAR FRECUENCIAS\",IF(AND(N23=\"MENSUAL\",J23=\"MENSUAL\"),N17,IF(AND(N23=\"MENSUAL\",J23=\"TRIMESTRAL\"),\"REVISAR FRECUENCIAS\",IF(AND(N23=\"MENSUAL\",J23=\"SEMESTRAL\"),\"REVISAR FRECUENCIAS\",IF(AND(N23=\"MENSUAL\",J23=\"ANUAL\"),\"REVISAR FRECUENCIAS\",\"\"))))))))))))))))","v":0.5},{"$f":"IF(AND(N23=\"ANUAL\",J23=\"MENSUAL\"),N17/12+D50,IF(AND(N23=\"ANUAL\",J23=\"TRIMESTRAL\"),N17/4+D50,IF(AND(N23=\"ANUAL\",J23=\"SEMESTRAL\"),N17/2+D50,IF(AND(N23=\"SEMESTRAL\",J23=\"MENSUAL\"),N17/6+D50,IF(AND(N23=\"SEMESTRAL\",J23=\"TRIMESTRAL\"),N17/2+D50,IF(AND(N23=\"SEMESTRAL\",J23=\"SEMESTRAL\"),N17,IF(AND(N23=\"TRIMESTRAL\",J23=\"MENSUAL\"),N17/3+D50,IF(AND(N23=\"TRIMESTRAL\",J23=\"TRIMESTRAL\"),N17,IF(AND(N23=\"MENSUAL\",J23=\"MENSUAL\"),N17,\"\")))))))))","v":1},{"$f":"IF(AND(N23=\"ANUAL\",J23=\"MENSUAL\"),N17/12+E50,IF(AND(N23=\"ANUAL\",J23=\"TRIMESTRAL\"),N17/4+E50,IF(AND(N23=\"SEMESTRAL\",J23=\"MENSUAL\"),N17/6+E50,IF(AND(N23=\"SEMESTRAL\",J23=\"TRIMESTRAL\"),N17/2,IF(AND(N23=\"TRIMESTRAL\",J23=\"MENSUAL\"),N17/3+E50,IF(AND(N23=\"TRIMESTRAL\",J23=\"TRIMESTRAL\"),N17,IF(AND(N23=\"MENSUAL\",J23=\"MENSUAL\"),N17,\"\")))))))","v":""},{"$f":"IF(AND(N23=\"ANUAL\",J23=\"MENSUAL\"),N17/12+F50,IF(AND(N23=\"ANUAL\",J23=\"TRIMESTRAL\"),N17/4+F50,IF(AND(N23=\"SEMESTRAL\",J23=\"MENSUAL\"),N17/6+F50,IF(AND(N23=\"SEMESTRAL\",J23=\"TRIMESTRAL\"),N17/2+F50,IF(AND(N23=\"TRIMESTRAL\",J23=\"MENSUAL\"),N17/3,IF(AND(N23=\"TRIMESTRAL\",J23=\"TRIMESTRAL\"),N17,IF(AND(N23=\"MENSUAL\",J23=\"MENSUAL\"),N17,\"\")))))))","v":""},{"$f":"IF(AND($N$23=\"ANUAL\",$J$23=\"MENSUAL\"),$N$17/12+G50,IF(AND(N23=\"SEMESTRAL\",J23=\"MENSUAL\"),N17/6+G50,IF(AND(N23=\"TRIMESTRAL\",J23=\"MENSUAL\"),N17/3+G50,IF(AND(N23=\"MENSUAL\",J23=\"MENSUAL\"),N17,\"\"))))","v":""},{"$f":"IF(AND($N$23=\"ANUAL\",$J$23=\"MENSUAL\"),$N$17/12+H50,IF(AND(N23=\"SEMESTRAL\",J23=\"MENSUAL\"),N17/6+H50,IF(AND(N23=\"TRIMESTRAL\",J23=\"MENSUAL\"),N17/3+H50,IF(AND(N23=\"MENSUAL\",J23=\"MENSUAL\"),N17,\"\"))))","v":""},{"$f":"IF(AND($N$23=\"ANUAL\",$J$23=\"MENSUAL\"),$N$17/12+I50,IF(AND(N23=\"SEMESTRAL\",J23=\"MENSUAL\"),N17/6,IF(AND(N23=\"TRIMESTRAL\",J23=\"MENSUAL\"),N17/3,IF(AND(N23=\"MENSUAL\",J23=\"MENSUAL\"),N17,\"\"))))","v":""},{"$f":"IF(AND($N$23=\"ANUAL\",$J$23=\"MENSUAL\"),$N$17/12+J50,IF(AND(N23=\"SEMESTRAL\",J23=\"MENSUAL\"),N17/6+J50,IF(AND(N23=\"TRIMESTRAL\",J23=\"MENSUAL\"),N17/3+J50,IF(AND(N23=\"MENSUAL\",J23=\"MENSUAL\"),N17,\"\"))))","v":""},{"$f":"IF(AND($N$23=\"ANUAL\",$J$23=\"MENSUAL\"),$N$17/12+K50,IF(AND(N23=\"SEMESTRAL\",J23=\"MENSUAL\"),N17/6+K50,IF(AND(N23=\"TRIMESTRAL\",J23=\"MENSUAL\"),N17/3+K50,IF(AND(N23=\"MENSUAL\",J23=\"MENSUAL\"),N17,\"\"))))","v":""},{"$f":"IF(AND($N$23=\"ANUAL\",$J$23=\"MENSUAL\"),$N$17/12+L50,IF(AND(N23=\"SEMESTRAL\",J23=\"MENSUAL\"),N17/6+L50,IF(AND(N23=\"TRIMESTRAL\",J23=\"MENSUAL\"),N17/3,IF(AND(N23=\"MENSUAL\",J23=\"MENSUAL\"),N17,\"\"))))","v":""},{"$f":"IF(AND($N$23=\"ANUAL\",$J$23=\"MENSUAL\"),$N$17/12+M50,IF(AND(N23=\"SEMESTRAL\",J23=\"MENSUAL\"),N17/6+M50,IF(AND(N23=\"TRIMESTRAL\",J23=\"MENSUAL\"),N17/3+M50,IF(AND(N23=\"MENSUAL\",J23=\"MENSUAL\"),N17,\"\"))))","v":""},{"$f":"IF(AND($N$23=\"ANUAL\",$J$23=\"MENSUAL\"),$N$17/12+N50,IF(AND(N23=\"SEMESTRAL\",J23=\"MENSUAL\"),N17/6+N50,IF(AND(N23=\"TRIMESTRAL\",J23=\"MENSUAL\"),N17/3+N50,IF(AND(N23=\"MENSUAL\",J23=\"MENSUAL\"),N17,\"\"))))","v":""}]
[]
[null,null,"NIVEL DE SEGREGACIÓN *"]
[null,null,"UNIDAD SEGREGADA (Ej. Facultad, Programa Académico, Área)",null,null,null,"RESULTADO",null,null,null,"ANÁLISIS DE DATOS SEGREGADO"]
[null,null,"Ciencias Administrativas, Económicas y Contables ",null,null,null,9,null,null,null,"Se registraron 9 productos de investigación los cuales corresponden a: 6 Productos de Nuevo Conocimiento, 1 Productos de Desarrollo Tecnológico e Innovación, 1 Productos de Apropiación Social del Conocimiento, 1 Productos de Formación del Recurso Humano."]
[null,null,"Ciencias Agropecuarias",null,null,null,32,null,null,null,"Se registraron 32 productos de investigación los cuales corresponden a: 3 Productos de Nuevo Conocimiento, 7 Productos de Apropiación Social del Conocimiento, 22 Productos de Formación del Recurso Humano. "]
[null,null,"Ciencias de la Salud",null,null,null,0,null,null,null,"Para este IPA-2021 no se registraron productos, se espera que su productividad se vea reflejada durante el IIPA-2021"]
[null,null,"Ciencias del Deporte y la Educación Física",null,null,null,0,null,null,null,"Para este IPA-2021 no se registraron productos, se espera que su productividad se vea reflejada durante el IIPA-2021"]
[null,null,"Ciencias Sociales, Humanidades y Ciencias Políticas",null,null,null,3,null,null,null,"Se registraron 3 productos de investigación los cuales corresponden a: 1 Productos de Nuevo Conocimiento, 1 Productos de Apropiación Social del Conocimiento, 1 Productos de Formación del Recurso Humano. "]
[null,null,"Educación",null,null,null,10,null,null,null,"Se registraron 10 productos de investigación los cuáles corresponden a: 4 Productos de Nuevo Conocimiento, 3 Productos de Apropiación Social del Conocimiento, 3 Productos de Formación del Recurso Humano"]
[null,null,"Ingeniería",null,null,null,51,null,null,null,"Se registraron 51  productos de investigación los cuáles corresponden a: 16 Productos de Nuevo Conocimiento, 28 Productos de Apropiación Social del Conocimiento, 7 Productos de Formación del Recurso Humano"]
[]
[]
[]
[]
[]
[]
[]
[]
[]
[]
[]
[null,null,null,null,null,null,"Estratégico",null,null,"Eficacia"]
[null,null,null,null,null,null,"Misional",null,null,"Eficiencia"]
[null,null,null,null,null,null,"Apoyo",null,null,"Acreditación"]
[null,null,null,null,null,null,"Seguimiento, Medición, Análisis y Evaluación",null,null,"Positiva"]
[null,null,null,null,null,null,"Direccionamiento Estratégico",null,null,"Negativa"]
[null,null,null,null,null,null,"Planeación Institucional",null,null,"Por Unidad Regional"]
[null,null,null,null,null,null,"Proyectos Especiales y Relaciones Interinstitucionales",null,null,"Por Facultad"]
[null,null,null,null,null,null,"Sistemas Integrados",null,null,"Por Programa Académico"]
[null,null,null,null,null,null,"Autoevaluación y Acreditación",null,null,"Por área"]
[null,null,null,null,null,null,"Comunicaciones",null,null,"Por Laboratorio"]
[null,null,null,null,null,null,"Formación y Aprendizaje",null,null,"Otros"]
[null,null,null,null,null,null,"Ciencia, Tecnología e Innovación",null,null,"No Aplica"]
[null,null,null,null,null,null,"Interacción Social Universitaria"]
[null,null,null,null,null,null,"Bienestar Universitario"]
[null,null,null,null,null,null,"Admisiones y Registro"]
[null,null,null,null,null,null,"Graduados"]
[null,null,null,null,null,null,"Dialogando con el Mundo"]
[null,null,null,null,null,null,"Talento Humano"]
[null,null,null,null,null,null,"Jurídica"]
[null,null,null,null,null,null,"Financiera"]
[null,null,null,null,null,null,"Sistemas y Tecnología"]
[null,null,null,null,null,null,"Bienes y Servicios"]
[null,null,null,null,null,null,"Documental"]
[null,null,null,null,null,null,"Apoyo Académico"]
[null,null,null,null,null,null,"Control Interno"]
[null,null,null,null,null,null,"Control Disciplinario"]
[null,null,null,null,null,null,"Servicio de Atención al Ciudadano"]

{"sheet":"MCT-6","index":11,"n_rows":87,"n_cols":15,"rows_kept":87,"cut":false,"hidden":true,"merged":[[58,2,58,5],[58,6,58,9],[58,10,58,14],[59,2,59,5],[59,6,59,9],[59,10,59,14],[56,2,56,5],[56,6,56,9],[56,10,56,14],[57,2,57,5],[57,6,57,9],[57,10,57,14],[54,2,54,5],[54,6,54,9],[54,10,54,14],[55,2,55,5],[55,6,55,9],[55,10,55,14],[53,2,53,5],[53,6,53,9],[53,10,53,14],[26,15,27,15],[27,9,32,14],[33,9,33,14],[34,9,39,14],[40,9,40,14],[41,9,41,14],[44,2,44,14],[51,2,51,14],[52,2,52,5],[52,6,52,9],[52,10,52,14],[22,13,23,14],[23,2,23,3],[23,4,23,6],[25,2,25,14],[26,2,42,8],[26,9,26,14],[42,9,42,14],[22,2,22,3],[22,4,22,6],[22,7,23,8],[22,9,23,10],[22,11,23,12],[19,2,21,3],[19,4,21,6],[19,7,21,8],[19,9,21,10],[19,11,19,14],[16,15,17,15],[17,2,18,3],[17,4,17,5],[17,6,17,10],[17,11,18,12],[17,13,18,14],[18,4,18,5],[18,6,18,10],[16,2,16,3],[16,4,16,6],[16,7,16,8],[16,9,16,10],[16,11,16,12],[16,13,16,14],[15,2,15,14],[8,2,8,14],[9,2,10,14],[11,2,11,3],[11,4,11,7],[11,8,11,9],[11,10,11,14],[12,2,12,3],[12,4,12,14],[13,2,13,3],[13,4,13,14],[14,2,14,14],[1,1,3,2],[4,2,7,3],[4,4,4,11],[4,12,4,14],[5,4,5,11],[5,12,5,14],[6,4,7,11],[6,12,6,14],[7,12,7,14]]}
[]
[null,"      REGRESAR"]
[]
[]
[null,null,null,null,"MACROPROCESO ESTRATÉGICO",null,null,null,null,null,null,null,"CÓDIGO: ESGr027"]
[null,null,null,null,"PROCESO GESTIÓN SISTEMAS INTEGRADOS",null,null,null,null,null,null,null,"VERSIÓN: 7"]
[null,null,null,null,"MATRIZ DE MEDICIÓN Y SEGUIMIENTO A LOS PROCESOS DE GESTIÓN",null,null,null,null,null,null,null,"VIGENCIA: 2020-03-20"]
[null,null,null,null,null,null,null,null,null,null,null,null,"PÁGINA: 1 de 1"]
[]
[null,null,"FICHA DE INDICADOR"]
[]
[null,null,"MACROPROCESO",null,"Misional",null,null,null,"NOMBRE DEL INDICADOR",null,"Participación  de estudiantes en Estrategias para la Formación en Investigación e Innovación "]
[null,null,"PROCESO GESTIÓN",null,"Ciencia, Tecnología e Innovación"]
[null,null,"RESPONSABLE DE MEDICIÓN",null,"Director(a) de Investigación Universitaria"]
[]
[null,null,"1. COMPORTAMIENTO DE INDICADOR"]
[null,null,"CLASIFICACIÓN DE LA MEDICIÓN",null,1,null,null,"TIPO DE INDICADOR",null,"Eficacia",null,"META ANUAL",null,1]
[null,null,"FÓRMULA",null,"NUMERADOR",null,"Estudiantes que participen en estrategias para la formación en investigación e innovación del programa*100",null,null,null,null,"UNIDAD DE MEDIDA",null,"Porcentual"]
[null,null,null,null,"DENOMINADOR",null," Total de estudiantes del programa "]
[null,null,"TENDENCIA",null,"Positiva",null,null,"NIVEL DE SEGREGACIÓN *",null,"Por programa académico",null,"ESCALA"]
[null,null,null,null,null,null,null,null,null,null,null,"Deficiente","Aceptable","Bueno","Excelente"]
[null,null,null,null,null,null,null,null,null,null,null,"0% - 70%","71% - 89%","90% - 100%","N/A"]
[null,null,"ORIGEN DE DATOS NUMERADOR",null,"Vinculación de estudiantes a la investigación",null,null,"FRECUENCIA DE LA MEDICIÓN",null,"SEMESTRAL",null,"FRECUENCIA DE RESULTADO",null,"ANUAL"]
[null,null,"ORIGEN DE DATOS DENOMINADOR",null,"Base de datos de estudiantes"]
[]
[null,null,"RESULTADOS"]
[null,null,null,null,null,null,null,null,null,"ANÁLISIS DE DATOS"]
[null,null,null,null,null,null,null,null,null,"para el primer periodo académico se tuvo la participación en la convocatoria REDCOLSI con la participación con  52 proyectos presentados por estudiantes vinculados a semilleros de investigación, se cuenta con la participación de 30 estudiantes vinculados como auxiliares de investigación a proyectos de investigación de convocatorias  externas. y 1 participación en Taller con aval de la RedCOLSI para participar en el encuentro nacional e internacional de semilleros de investigación ENISI\n\nSe tiene previsto que para el IIPA-2021 se desarrollen los demás eventos programados desde la Dirección de Investigación y eventos externos a la Universidad."]
[]
[]
[]
[]
[]
[null,null,null,null,null,null,null,null,null,"ACCIÓN FORMULADA"]
[null,null,null,null,null,null,null,null,null,"*Desarrollar actividades para la participación de estudiantes vinculados a semilleros de investigación de manera virtual. \n* participar en los diferentes eventos y convocatorias que se generen a nivel interno y externo a la Institución. \n* proponer estrategias que permitan la participación de estudiantes semilleristas activos en la Universidad de Cundinamarca"]
[]
[]
[]
[]
[]
[null,null,null,null,null,null,null,null,null,"RESPONSABLE "]
[null,null,null,null,null,null,null,null,null,{"$f":"E14","v":"Director(a) de Investigación Universitaria"}]
[]
[]
[null,null,"PERIODO DE EVALUACIÓN"]
[null,null,"MES",{"$f":"IF(J23=\"MENSUAL\",\"ENERO\",IF(J23=\"TRIMESTRAL\",\"MARZO\",IF(J23=\"SEMESTRAL\",\"JUNIO\",IF(J23=\"ANUAL\",YEAR(TODAY()),\"\"))))","v":"JUNIO"},{"$f":"IF(J23=\"MENSUAL\",\"FEBRERO\",IF(J23=\"TRIMESTRAL\",\"JUNIO\",IF(J23=\"SEMESTRAL\",\"DICIEMBRE\",\"\")))","v":"DICIEMBRE"},{"$f":"IF(J23=\"MENSUAL\",\"MARZO\",IF(J23=\"TRIMESTRAL\",\"SEPTIEMBRE\",\"\"))","v":""},{"$f":"IF(J23=\"MENSUAL\",\"ABRIL\",IF(J23=\"TRIMESTRAL\",\"DICIEMBRE\",\"\"))","v":""},{"$f":"IF(J23=\"MENSUAL\",\"MAYO\",\"\")","v":""},{"$f":"IF(J23=\"MENSUAL\",\"JUNIO\",\"\")","v":""},{"$f":"IF(J23=\"MENSUAL\",\"JULIO\",\"\")","v":""},{"$f":"IF(J23=\"MENSUAL\",\"AGOSTO\",\"\")","v":""},{"$f":"IF(J23=\"MENSUAL\",\"SEPTIEMBRE\",\"\")","v":""},{"$f":"IF(J23=\"MENSUAL\",\"OCTUBRE\",\"\")","v":""},{"$f":"IF(J23=\"MENSUAL\",\"NOVIEMBRE\",\"\")","v":""},{"$f":"IF(J23=\"MENSUAL\",\"DICIEMBRE\",\"\")","v":""}]
[null,null,{"$f":"G18","v":"Estudiantes que participen en estrategias para la formación en investigación e innovación del programa*100"},83]
[null,null,{"$f":"G19","v":" Total de estudiantes del programa "},211]
[null,null,"VALOR ",{"$f":"IFERROR(IF($E$17=1,D47/D48,IF($E$17=2,D47,\"\")),\"\")","v":0.39336492890995262},"","","","","","","","","","",""]
[null,null,"META PONDERADA",{"$f":"IF(AND(N23=\"ANUAL\",J23=\"MENSUAL\"),N17/12,IF(AND(N23=\"ANUAL\",J23=\"TRIMESTRAL\"),N17/4,IF(AND(N23=\"ANUAL\",J23=\"SEMESTRAL\"),N17/2,IF(AND(N23=\"ANUAL\",J23=\"ANUAL\"),N17,IF(AND(N23=\"SEMESTRAL\",J23=\"MENSUAL\"),N17/6,IF(AND(N23=\"SEMESTRAL\",J23=\"TRIMESTRAL\"),N17/2,IF(AND(N23=\"SEMESTRAL\",J23=\"SEMESTRAL\"),N17,IF(AND(N23=\"SEMESTRAL\",J23=\"ANUAL\"),\"REVISAR FRECUENCIAS\",IF(AND(N23=\"TRIMESTRAL\",J23=\"MENSUAL\"),N17/3,IF(AND(N23=\"TRIMESTRAL\",J23=\"TRIMESTRAL\"),N17,IF(AND(N23=\"TRIMESTRAL\",J23=\"SEMESTRAL\"),\"REVISAR FRECUENCIAS\",IF(AND(N23=\"TRIMESTRAL\",J23=\"ANUAL\"),\"REVISAR FRECUENCIAS\",IF(AND(N23=\"MENSUAL\",J23=\"MENSUAL\"),N17,IF(AND(N23=\"MENSUAL\",J23=\"TRIMESTRAL\"),\"REVISAR FRECUENCIAS\",IF(AND(N23=\"MENSUAL\",J23=\"SEMESTRAL\"),\"REVISAR FRECUENCIAS\",IF(AND(N23=\"MENSUAL\",J23=\"ANUAL\"),\"REVISAR FRECUENCIAS\",\"\"))))))))))))))))","v":0.5},{"$f":"IF(AND(N23=\"ANUAL\",J23=\"MENSUAL\"),N17/12+D50,IF(AND(N23=\"ANUAL\",J23=\"TRIMESTRAL\"),N17/4+D50,IF(AND(N23=\"ANUAL\",J23=\"SEMESTRAL\"),N17/2+D50,IF(AND(N23=\"SEMESTRAL\",J23=\"MENSUAL\"),N17/6+D50,IF(AND(N23=\"SEMESTRAL\",J23=\"TRIMESTRAL\"),N17/2+D50,IF(AND(N23=\"SEMESTRAL\",J23=\"SEMESTRAL\"),N17,IF(AND(N23=\"TRIMESTRAL\",J23=\"MENSUAL\"),N17/3+D50,IF(AND(N23=\"TRIMESTRAL\",J23=\"TRIMESTRAL\"),N17,IF(AND(N23=\"MENSUAL\",J23=\"MENSUAL\"),N17,\"\")))))))))","v":1},{"$f":"IF(AND(N23=\"ANUAL\",J23=\"MENSUAL\"),N17/12+E50,IF(AND(N23=\"ANUAL\",J23=\"TRIMESTRAL\"),N17/4+E50,IF(AND(N23=\"SEMESTRAL\",J23=\"MENSUAL\"),N17/6+E50,IF(AND(N23=\"SEMESTRAL\",J23=\"TRIMESTRAL\"),N17/2,IF(AND(N23=\"TRIMESTRAL\",J23=\"MENSUAL\"),N17/3+E50,IF(AND(N23=\"TRIMESTRAL\",J23=\"TRIMESTRAL\"),N17,IF(AND(N23=\"MENSUAL\",J23=\"MENSUAL\"),N17,\"\")))))))","v":""},{"$f":"IF(AND(N23=\"ANUAL\",J23=\"MENSUAL\"),N17/12+F50,IF(AND(N23=\"ANUAL\",J23=\"TRIMESTRAL\"),N17/4+F50,IF(AND(N23=\"SEMESTRAL\",J23=\"MENSUAL\"),N17/6+F50,IF(AND(N23=\"SEMESTRAL\",J23=\"TRIMESTRAL\"),N17/2+F50,IF(AND(N23=\"TRIMESTRAL\",J23=\"MENSUAL\"),N17/3,IF(AND(N23=\"TRIMESTRAL\",J23=\"TRIMESTRAL\"),N17,IF(AND(N23=\"MENSUAL\",J23=\"MENSUAL\"),N17,\"\")))))))","v":""},{"$f":"IF(AND($N$23=\"ANUAL\",$J$23=\"MENSUAL\"),$N$17/12+G50,IF(AND(N23=\"SEMESTRAL\",J23=\"MENSUAL\"),N17/6+G50,IF(AND(N23=\"TRIMESTRAL\",J23=\"MENSUAL\"),N17/3+G50,IF(AND(N23=\"MENSUAL\",J23=\"MENSUAL\"),N17,\"\"))))","v":""},{"$f":"IF(AND($N$23=\"ANUAL\",$J$23=\"MENSUAL\"),$N$17/12+H50,IF(AND(N23=\"SEMESTRAL\",J23=\"MENSUAL\"),N17/6+H50,IF(AND(N23=\"TRIMESTRAL\",J23=\"MENSUAL\"),N17/3+H50,IF(AND(N23=\"MENSUAL\",J23=\"MENSUAL\"),N17,\"\"))))","v":""},{"$f":"IF(AND($N$23=\"ANUAL\",$J$23=\"MENSUAL\"),$N$17/12+I50,IF(AND(N23=\"SEMESTRAL\",J23=\"MENSUAL\"),N17/6,IF(AND(N23=\"TRIMESTRAL\",J23=\"MENSUAL\"),N17/3,IF(AND(N23=\"MENSUAL\",J23=\"MENSUAL\"),N17,\"\"))))","v":""},{"$f":"IF(AND($N$23=\"ANUAL\",$J$23=\"MENSUAL\"),$N$17/12+J50,IF(AND(N23=\"SEMESTRAL\",J23=\"MENSUAL\"),N17/6+J50,IF(AND(N23=\"TRIMESTRAL\",J23=\"MENSUAL\"),N17/3+J50,IF(AND(N23=\"MENSUAL\",J23=\"MENSUAL\"),N17,\"\"))))","v":""},{"$f":"IF(AND($N$23=\"ANUAL\",$J$23=\"MENSUAL\"),$N$17/12+K50,IF(AND(N23=\"SEMESTRAL\",J23=\"MENSUAL\"),N17/6+K50,IF(AND(N23=\"TRIMESTRAL\",J23=\"MENSUAL\"),N17/3+K50,IF(AND(N23=\"MENSUAL\",J23=\"MENSUAL\"),N17,\"\"))))","v":""},{"$f":"IF(AND($N$23=\"ANUAL\",$J$23=\"MENSUAL\"),$N$17/12+L50,IF(AND(N23=\"SEMESTRAL\",J23=\"MENSUAL\"),N17/6+L50,IF(AND(N23=\"TRIMESTRAL\",J23=\"MENSUAL\"),N17/3,IF(AND(N23=\"MENSUAL\",J23=\"MENSUAL\"),N17,\"\"))))","v":""},{"$f":"IF(AND($N$23=\"ANUAL\",$J$23=\"MENSUAL\"),$N$17/12+M50,IF(AND(N23=\"SEMESTRAL\",J23=\"MENSUAL\"),N17/6+M50,IF(AND(N23=\"TRIMESTRAL\",J23=\"MENSUAL\"),N17/3+M50,IF(AND(N23=\"MENSUAL\",J23=\"MENSUAL\"),N17,\"\"))))","v":""},{"$f":"IF(AND($N$23=\"ANUAL\",$J$23=\"MENSUAL\"),$N$17/12+N50,IF(AND(N23=\"SEMESTRAL\",J23=\"MENSUAL\"),N17/6+N50,IF(AND(N23=\"TRIMESTRAL\",J23=\"MENSUAL\"),N17/3+N50,IF(AND(N23=\"MENSUAL\",J23=\"MENSUAL\"),N17,\"\"))))","v":""}]
[]
[null,null,"NIVEL DE SEGREGACIÓN *"]
[null,null,"UNIDAD SEGREGADA (Ej. Facultad, Programa Académico, Área)",null,null,null,"RESULTADO",null,null,null,"ANALISIS DE DATOS SEGREGADO"]
[null,null,"CIENCIAS ADMINISTRATIVAS ECONÓMICAS Y CONTABLES",null,null,null,{"$f":"6","v":6},null,null,null,"6 proyectos presentados a REDCOLSI "]
[null,null,"CIENCIAS AGROPECUARIAS","CIENCIAS AGROPECUARIAS","CIENCIAS AGROPECUARIAS","CIENCIAS AGROPECUARIAS",{"$f":"30+11","v":41},{"$f":"84+9","v":93},{"$f":"84+9","v":93},{"$f":"84+9","v":93},"30 Estudiantes participantes como auxiliares de investigación en proyectos de convocatorias externas y  11 proyectos presentados en REDCOLSI.","84 Estudiantes participantes como axiliares de investigacion en proyectos de convocatorias Internas, Interinstitucionales y externas., Se presentaron 9 proyectos  para participar del XVIII ENCUENTRO REGIONAL DE SEMILLEROS DE INVESTIGACIÓN REDCOLSI NODO BOGOTÁ - CUNDINAMARCA, formulados por 9 Estudiantes. ","84 Estudiantes participantes como axiliares de investigacion en proyectos de convocatorias Internas, Interinstitucionales y externas., Se presentaron 9 proyectos  para participar del XVIII ENCUENTRO REGIONAL DE SEMILLEROS DE INVESTIGACIÓN REDCOLSI NODO BOGOTÁ - CUNDINAMARCA, formulados por 9 Estudiantes. ","84 Estudiantes participantes como axiliares de investigacion en proyectos de convocatorias Internas, Interinstitucionales y externas., Se presentaron 9 proyectos  para participar del XVIII ENCUENTRO REGIONAL DE SEMILLEROS DE INVESTIGACIÓN REDCOLSI NODO BOGOTÁ - CUNDINAMARCA, formulados por 9 Estudiantes. ","84 Estudiantes participantes como axiliares de investigacion en proyectos de convocatorias Internas, Interinstitucionales y externas., Se presentaron 9 proyectos  para participar del XVIII ENCUENTRO REGIONAL DE SEMILLEROS DE INVESTIGACIÓN REDCOLSI NODO BOGOTÁ - CUNDINAMARCA, formulados por 9 Estudiantes. "]
[null,null,"CIENCIAS DE LA SALUD","CIENCIAS DE LA SALUD","CIENCIAS DE LA SALUD","CIENCIAS DE LA SALUD",2,{"$f":"34+7","v":41},{"$f":"34+7","v":41},{"$f":"34+7","v":41},"2 proyectos presentados a REDCOLSI "]
[null,null,"CIENCIAS DEL DEPORTE Y EDUCACIÓN FÍSICA","CIENCIAS DEL DEPORTE Y EDUCACIÓN FÍSICA","CIENCIAS DEL DEPORTE Y EDUCACIÓN FÍSICA","CIENCIAS DEL DEPORTE Y EDUCACIÓN FÍSICA",8,{"$f":"8+2","v":10},{"$f":"8+2","v":10},{"$f":"8+2","v":10},"8 proyectos presentados a REDCOLSI "]
[null,null,"CIENCIAS SOCIALES, HUMANIDADES Y CIENCIAS POLITICAS","CIENCIAS SOCIALES, HUMANIDADES Y CIENCIAS POLITICAS","CIENCIAS SOCIALES, HUMANIDADES Y CIENCIAS POLITICAS","CIENCIAS SOCIALES, HUMANIDADES Y CIENCIAS POLITICAS",4,{"$f":"11+5","v":16},{"$f":"11+5","v":16},{"$f":"11+5","v":16},"4 proyectos presentados a REDCOLSI "]
[null,null,"EDUCACIÓN","EDUCACIÓN","EDUCACIÓN","EDUCACIÓN",5,{"$f":"6+33+10","v":49},{"$f":"6+33+10","v":49},{"$f":"6+33+10","v":49},"5 proyectos presentados a REDCOLSI "]
[null,null,"INGENIERÍA","INGENIERÍA","INGENIERÍA","INGENIERÍA",17,{"$f":"71+19","v":90},{"$f":"71+19","v":90},{"$f":"71+19","v":90},"16 proyectos presentados a REDCOLSI y un Taller con aval de la RedCOLSI para participar en el encuentro nacional e internacional de semilleros de investigación ENISI"]
[null,null,null,null,null,null,"Estratégico",null,null,"Eficacia"]
[null,null,null,null,null,null,"Misional",null,null,"Eficiencia"]
[null,null,null,null,null,null,"Apoyo",null,null,"Acreditación"]
[null,null,null,null,null,null,"Seguimiento, Medición, Análisis y Evaluación",null,null,"Positiva"]
[null,null,null,null,null,null,"Direccionamiento Estratégico",null,null,"Negativa"]
[null,null,null,null,null,null,"Planeación Institucional",null,null,"Por Unidad Regional"]
[null,null,null,null,null,null,"Proyectos Especiales y Relaciones Interinstitucionales",null,null,"Por Facultad"]
[null,null,null,null,null,null,"Sistemas Integrados",null,null,"Por Programa Académico"]
[null,null,null,null,null,null,"Autoevaluación y Acreditación",null,null,"Por área"]
[null,null,null,null,null,null,"Comunicaciones",null,null,"Por Laboratorio"]
[null,null,null,null,null,null,"Formación y Aprendizaje",null,null,"Otros"]
[null,null,null,null,null,null,"Ciencia, Tecnología e Innovación",null,null,"No Aplica"]
[null,null,null,null,null,null,"Interacción Social Universitaria"]
[null,null,null,null,null,null,"Bienestar Universitario"]
[null,null,null,null,null,null,"Admisiones y Registro"]
[null,null,null,null,null,null,"Graduados"]
[null,null,null,null,null,null,"Dialogando con el Mundo"]
[null,null,null,null,null,null,"Talento Humano"]
[null,null,null,null,null,null,"Jurídica"]
[null,null,null,null,null,null,"Financiera"]
[null,null,null,null,null,null,"Sistemas y Tecnología"]
[null,null,null,null,null,null,"Bienes y Servicios"]
[null,null,null,null,null,null,"Documental"]
[null,null,null,null,null,null,"Apoyo Académico"]
[null,null,null,null,null,null,"Control Interno"]
[null,null,null,null,null,null,"Control Disciplinario"]
[null,null,null,null,null,null,"Servicio de Atención al Ciudadano"]

{"sheet":"MDM-1","index":12,"n_rows":98,"n_cols":15,"rows_kept":98,"cut":false,"hidden":true,"merged":[[58,2,58,5],[58,6,58,9],[58,10,58,14],[59,2,59,5],[59,6,59,9],[59,10,59,14],[56,2,56,5],[56,6,56,9],[56,10,56,14],[57,2,57,5],[57,6,57,9],[57,10,57,14],[54,2,54,5],[54,6,54,9],[54,10,54,14],[55,2,55,5],[55,6,55,9],[55,10,55,14],[53,2,53,5],[53,6,53,9],[53,10,53,14],[26,15,27,15],[27,9,32,14],[33,9,33,14],[34,9,39,14],[40,9,40,14],[41,9,41,14],[44,2,44,14],[51,2,51,14],[52,2,52,5],[52,6,52,9],[52,10,52,14],[22,13,23,14],[23,2,23,3],[23,4,23,6],[25,2,25,14],[26,2,42,8],[26,9,26,14],[42,9,42,14],[22,2,22,3],[22,4,22,6],[22,7,23,8],[22,9,23,10],[22,11,23,12],[19,2,21,3],[19,4,21,6],[19,7,21,8],[19,9,21,10],[19,11,19,14],[16,15,17,15],[17,2,18,3],[17,4,17,5],[17,6,17,10],[17,11,18,12],[17,13,18,14],[18,4,18,5],[18,6,18,10],[16,2,16,3],[16,4,16,6],[16,7,16,8],[16,9,16,10],[16,11,16,12],[16,13,16,14],[15,2,15,14],[8,2,8,14],[9,2,10,14],[11,2,11,3],[11,4,11,7],[11,8,11,9],[11,10,11,14],[12,2,12,3],[12,4,12,14],[13,2,13,3],[13,4,13,14],[14,2,14,14],[1,1,3,2],[4,2,7,3],[4,4,4,11],[4,12,4,14],[5,4,5,11],[5,12,5,14],[6,4,7,11],[6,12,6,14],[7,12,7,14]]}
[]
[null,"      REGRESAR"]
[]
[]
[null,null,null,null,"MACROPROCESO ESTRATÉGICO",null,null,null,null,null,null,null,"CÓDIGO: ESGr027"]
[null,null,null,null,"PROCESO GESTIÓN SISTEMAS INTEGRADOS",null,null,null,null,null,null,null,"VERSIÓN: 7"]
[null,null,null,null,"MATRIZ DE MEDICIÓN Y SEGUIMIENTO A LOS PROCESOS DE GESTIÓN",null,null,null,null,null,null,null,"VIGENCIA: 2020-03-20"]
[null,null,null,null,null,null,null,null,null,null,null,null,"PÁGINA: 1 de 1"]
[]
[null,null,"FICHA DE INDICADOR"]
[]
[null,null,"MACROPROCESO",null,"Misional",null,null,null,"NOMBRE DEL INDICADOR",null,"Estudiantes beneficiados con la implementación de la acción estratégica de movilidad académica y alianzas correspondiente a la política Dialogando con el Mundo."]
[null,null,"PROCESO GESTIÓN",null,"Dialogando con el Mundo"]
[null,null,"RESPONSABLE DE MEDICIÓN",null,"Vicerrectoría Académica"]
[]
[null,null,"1. COMPORTAMIENTO DE INDICADOR"]
[null,null,"CLASIFICACIÓN DE LA MEDICIÓN",null,1,null,null,"TIPO DE INDICADOR",null,"Eficacia",null,"META ANUAL",null,0.3]
[null,null,"FÓRMULA",null,"NUMERADOR",null,"Estudiantes de 6 a 10 semestre beneficiados de políticas de gestión institucional y bienestar*100",null,null,null,null,"UNIDAD DE MEDIDA",null,"Porcentual"]
[null,null,null,null,"DENOMINADOR",null,"Total de estudiantes participantes de 6 a 10 semestre  "]
[null,null,"TENDENCIA",null,"Positiva",null,null,"NIVEL DE SEGREGACIÓN *",null,"No Aplica",null,"ESCALA"]
[null,null,null,null,null,null,null,null,null,null,null,"Deficiente","Aceptable","Bueno","Excelente"]
[null,null,null,null,null,null,null,null,null,null,null,"0% - 15%","16%- 22%","23% - 30%",">30%"]
[null,null,"ORIGEN DE DATOS NUMERADOR",null,"Consolidado de estudiantes beneficiados",null,null,"FRECUENCIA DE LA MEDICIÓN",null,"SEMESTRAL",null,"FRECUENCIA DE RESULTADO",null,"ANUAL"]
[null,null,"ORIGEN DE DATOS DENOMINADOR",null,"Total de estudiantes participantes en las estrategias de 6 a 10 semestre  "]
[]
[null,null,"RESULTADOS"]
[null,null,null,null,null,null,null,null,null,"ANÁLISIS DE DATOS"]
[null,null,null,null,null,null,null,null,null,"Este indicadores no se medirá  en el primer semestre de la vigencia 2021 por los lineamientos nacionales derivados por la pandemia del Covid-19 que limitan la movilidad presencial. "]
[]
[]
[]
[]
[]
[null,null,null,null,null,null,null,null,null,"ACCIÓN FORMULADA"]
[]
[]
[]
[]
[]
[]
[null,null,null,null,null,null,null,null,null,"RESPONSABLE "]
[null,null,null,null,null,null,null,null,null,{"$f":"E14","v":"Vicerrectoría Académica"}]
[]
[]
[null,null,"PERIODO DE EVALUACIÓN"]
[null,null,"MES",{"$f":"IF(J23=\"MENSUAL\",\"ENERO\",IF(J23=\"TRIMESTRAL\",\"MARZO\",IF(J23=\"SEMESTRAL\",\"JUNIO\",IF(J23=\"ANUAL\",YEAR(TODAY()),\"\"))))","v":"JUNIO"},{"$f":"IF(J23=\"MENSUAL\",\"FEBRERO\",IF(J23=\"TRIMESTRAL\",\"JUNIO\",IF(J23=\"SEMESTRAL\",\"DICIEMBRE\",\"\")))","v":"DICIEMBRE"},{"$f":"IF(J23=\"MENSUAL\",\"MARZO\",IF(J23=\"TRIMESTRAL\",\"SEPTIEMBRE\",\"\"))","v":""},{"$f":"IF(J23=\"MENSUAL\",\"ABRIL\",IF(J23=\"TRIMESTRAL\",\"DICIEMBRE\",\"\"))","v":""},{"$f":"IF(J23=\"MENSUAL\",\"MAYO\",\"\")","v":""},{"$f":"IF(J23=\"MENSUAL\",\"JUNIO\",\"\")","v":""},{"$f":"IF(J23=\"MENSUAL\",\"JULIO\",\"\")","v":""},{"$f":"IF(J23=\"MENSUAL\",\"AGOSTO\",\"\")","v":""},{"$f":"IF(J23=\"MENSUAL\",\"SEPTIEMBRE\",\"\")","v":""},{"$f":"IF(J23=\"MENSUAL\",\"OCTUBRE\",\"\")","v":""},{"$f":"IF(J23=\"MENSUAL\",\"NOVIEMBRE\",\"\")","v":""},{"$f":"IF(J23=\"MENSUAL\",\"DICIEMBRE\",\"\")","v":""}]
[null,null,{"$f":"G18","v":"Estudiantes de 6 a 10 semestre beneficiados de políticas de gestión institucional y bienestar*100"}]
[null,null,{"$f":"G19","v":"Total de estudiantes participantes de 6 a 10 semestre  "}]
[null,null,"VALOR ",{"$f":"IFERROR(IF($E$17=1,D47/D48,IF($E$17=2,D47,\"\")),\"\")","v":""},"","","","","","","","","","",""]
[null,null,"META PONDERADA",{"$f":"IF(AND(N23=\"ANUAL\",J23=\"MENSUAL\"),N17/12,IF(AND(N23=\"ANUAL\",J23=\"TRIMESTRAL\"),N17/4,IF(AND(N23=\"ANUAL\",J23=\"SEMESTRAL\"),N17/2,IF(AND(N23=\"ANUAL\",J23=\"ANUAL\"),N17,IF(AND(N23=\"SEMESTRAL\",J23=\"MENSUAL\"),N17/6,IF(AND(N23=\"SEMESTRAL\",J23=\"TRIMESTRAL\"),N17/2,IF(AND(N23=\"SEMESTRAL\",J23=\"SEMESTRAL\"),N17,IF(AND(N23=\"SEMESTRAL\",J23=\"ANUAL\"),\"REVISAR FRECUENCIAS\",IF(AND(N23=\"TRIMESTRAL\",J23=\"MENSUAL\"),N17/3,IF(AND(N23=\"TRIMESTRAL\",J23=\"TRIMESTRAL\"),N17,IF(AND(N23=\"TRIMESTRAL\",J23=\"SEMESTRAL\"),\"REVISAR FRECUENCIAS\",IF(AND(N23=\"TRIMESTRAL\",J23=\"ANUAL\"),\"REVISAR FRECUENCIAS\",IF(AND(N23=\"MENSUAL\",J23=\"MENSUAL\"),N17,IF(AND(N23=\"MENSUAL\",J23=\"TRIMESTRAL\"),\"REVISAR FRECUENCIAS\",IF(AND(N23=\"MENSUAL\",J23=\"SEMESTRAL\"),\"REVISAR FRECUENCIAS\",IF(AND(N23=\"MENSUAL\",J23=\"ANUAL\"),\"REVISAR FRECUENCIAS\",\"\"))))))))))))))))","v":0.15},{"$f":"IF(AND(N23=\"ANUAL\",J23=\"MENSUAL\"),N17/12+D50,IF(AND(N23=\"ANUAL\",J23=\"TRIMESTRAL\"),N17/4+D50,IF(AND(N23=\"ANUAL\",J23=\"SEMESTRAL\"),N17/2+D50,IF(AND(N23=\"SEMESTRAL\",J23=\"MENSUAL\"),N17/6+D50,IF(AND(N23=\"SEMESTRAL\",J23=\"TRIMESTRAL\"),N17/2+D50,IF(AND(N23=\"SEMESTRAL\",J23=\"SEMESTRAL\"),N17,IF(AND(N23=\"TRIMESTRAL\",J23=\"MENSUAL\"),N17/3+D50,IF(AND(N23=\"TRIMESTRAL\",J23=\"TRIMESTRAL\"),N17,IF(AND(N23=\"MENSUAL\",J23=\"MENSUAL\"),N17,\"\")))))))))","v":0.3},{"$f":"IF(AND(N23=\"ANUAL\",J23=\"MENSUAL\"),N17/12+E50,IF(AND(N23=\"ANUAL\",J23=\"TRIMESTRAL\"),N17/4+E50,IF(AND(N23=\"SEMESTRAL\",J23=\"MENSUAL\"),N17/6+E50,IF(AND(N23=\"SEMESTRAL\",J23=\"TRIMESTRAL\"),N17/2,IF(AND(N23=\"TRIMESTRAL\",J23=\"MENSUAL\"),N17/3+E50,IF(AND(N23=\"TRIMESTRAL\",J23=\"TRIMESTRAL\"),N17,IF(AND(N23=\"MENSUAL\",J23=\"MENSUAL\"),N17,\"\")))))))","v":""},{"$f":"IF(AND(N23=\"ANUAL\",J23=\"MENSUAL\"),N17/12+F50,IF(AND(N23=\"ANUAL\",J23=\"TRIMESTRAL\"),N17/4+F50,IF(AND(N23=\"SEMESTRAL\",J23=\"MENSUAL\"),N17/6+F50,IF(AND(N23=\"SEMESTRAL\",J23=\"TRIMESTRAL\"),N17/2+F50,IF(AND(N23=\"TRIMESTRAL\",J23=\"MENSUAL\"),N17/3,IF(AND(N23=\"TRIMESTRAL\",J23=\"TRIMESTRAL\"),N17,IF(AND(N23=\"MENSUAL\",J23=\"MENSUAL\"),N17,\"\")))))))","v":""},{"$f":"IF(AND($N$23=\"ANUAL\",$J$23=\"MENSUAL\"),$N$17/12+G50,IF(AND(N23=\"SEMESTRAL\",J23=\"MENSUAL\"),N17/6+G50,IF(AND(N23=\"TRIMESTRAL\",J23=\"MENSUAL\"),N17/3+G50,IF(AND(N23=\"MENSUAL\",J23=\"MENSUAL\"),N17,\"\"))))","v":""},{"$f":"IF(AND($N$23=\"ANUAL\",$J$23=\"MENSUAL\"),$N$17/12+H50,IF(AND(N23=\"SEMESTRAL\",J23=\"MENSUAL\"),N17/6+H50,IF(AND(N23=\"TRIMESTRAL\",J23=\"MENSUAL\"),N17/3+H50,IF(AND(N23=\"MENSUAL\",J23=\"MENSUAL\"),N17,\"\"))))","v":""},{"$f":"IF(AND($N$23=\"ANUAL\",$J$23=\"MENSUAL\"),$N$17/12+I50,IF(AND(N23=\"SEMESTRAL\",J23=\"MENSUAL\"),N17/6,IF(AND(N23=\"TRIMESTRAL\",J23=\"MENSUAL\"),N17/3,IF(AND(N23=\"MENSUAL\",J23=\"MENSUAL\"),N17,\"\"))))","v":""},{"$f":"IF(AND($N$23=\"ANUAL\",$J$23=\"MENSUAL\"),$N$17/12+J50,IF(AND(N23=\"SEMESTRAL\",J23=\"MENSUAL\"),N17/6+J50,IF(AND(N23=\"TRIMESTRAL\",J23=\"MENSUAL\"),N17/3+J50,IF(AND(N23=\"MENSUAL\",J23=\"MENSUAL\"),N17,\"\"))))","v":""},{"$f":"IF(AND($N$23=\"ANUAL\",$J$23=\"MENSUAL\"),$N$17/12+K50,IF(AND(N23=\"SEMESTRAL\",J23=\"MENSUAL\"),N17/6+K50,IF(AND(N23=\"TRIMESTRAL\",J23=\"MENSUAL\"),N17/3+K50,IF(AND(N23=\"MENSUAL\",J23=\"MENSUAL\"),N17,\"\"))))","v":""},{"$f":"IF(AND($N$23=\"ANUAL\",$J$23=\"MENSUAL\"),$N$17/12+L50,IF(AND(N23=\"SEMESTRAL\",J23=\"MENSUAL\"),N17/6+L50,IF(AND(N23=\"TRIMESTRAL\",J23=\"MENSUAL\"),N17/3,IF(AND(N23=\"MENSUAL\",J23=\"MENSUAL\"),N17,\"\"))))","v":""},{"$f":"IF(AND($N$23=\"ANUAL\",$J$23=\"MENSUAL\"),$N$17/12+M50,IF(AND(N23=\"SEMESTRAL\",J23=\"MENSUAL\"),N17/6+M50,IF(AND(N23=\"TRIMESTRAL\",J23=\"MENSUAL\"),N17/3+M50,IF(AND(N23=\"MENSUAL\",J23=\"MENSUAL\"),N17,\"\"))))","v":""},{"$f":"IF(AND($N$23=\"ANUAL\",$J$23=\"MENSUAL\"),$N$17/12+N50,IF(AND(N23=\"SEMESTRAL\",J23=\"MENSUAL\"),N17/6+N50,IF(AND(N23=\"TRIMESTRAL\",J23=\"MENSUAL\"),N17/3+N50,IF(AND(N23=\"MENSUAL\",J23=\"MENSUAL\"),N17,\"\"))))","v":""}]
[]
[null,null,"NIVEL DE SEGREGACIÓN *"]
[null,null,"UNIDAD SEGREGADA (Ej. Facultad, Programa Académico, Área)",null,null,null,"RESULTADO",null,null,null,"ANÁLISIS DE DATOS SEGREGADO"]
[]
[]
[]
[]
[]
[]
[]
[]
[]
[]
[]
[]
[]
[]
[]
[]
[]
[]
[null,null,null,null,null,null,"Estratégico",null,null,"Eficacia"]
[null,null,null,null,null,null,"Misional",null,null,"Eficiencia"]
[null,null,null,null,null,null,"Apoyo",null,null,"Acreditación"]
[null,null,null,null,null,null,"Seguimiento, Medición, Análisis y Evaluación",null,null,"Positiva"]
[null,null,null,null,null,null,"Direccionamiento Estratégico",null,null,"Negativa"]
[null,null,null,null,null,null,"Planeación Institucional",null,null,"Por Unidad Regional"]
[null,null,null,null,null,null,"Proyectos Especiales y Relaciones Interinstitucionales",null,null,"Por Facultad"]
[null,null,null,null,null,null,"Sistemas Integrados",null,null,"Por Programa Académico"]
[null,null,null,null,null,null,"Autoevaluación y Acreditación",null,null,"Por área"]
[null,null,null,null,null,null,"Comunicaciones",null,null,"Por Laboratorio"]
[null,null,null,null,null,null,"Formación y Aprendizaje",null,null,"Otros"]
[null,null,null,null,null,null,"Ciencia, Tecnología e Innovación",null,null,"No Aplica"]
[null,null,null,null,null,null,"Interacción Social Universitaria"]
[null,null,null,null,null,null,"Bienestar Universitario"]
[null,null,null,null,null,null,"Admisiones y Registro"]
[null,null,null,null,null,null,"Graduados"]
[null,null,null,null,null,null,"Dialogando con el Mundo"]
[null,null,null,null,null,null,"Talento Humano"]
[null,null,null,null,null,null,"Jurídica"]
[null,null,null,null,null,null,"Financiera"]
[null,null,null,null,null,null,"Sistemas y Tecnología"]
[null,null,null,null,null,null,"Bienes y Servicios"]
[null,null,null,null,null,null,"Documental"]
[null,null,null,null,null,null,"Apoyo Académico"]
[null,null,null,null,null,null,"Control Interno"]
[null,null,null,null,null,null,"Control Disciplinario"]
[null,null,null,null,null,null,"Servicio de Atención al Ciudadano"]

{"sheet":"MDM-2 ","index":13,"n_rows":99,"n_cols":15,"rows_kept":99,"cut":false,"hidden":true,"merged":[[58,2,58,5],[58,6,58,9],[58,10,58,14],[59,2,59,5],[59,6,59,9],[59,10,59,14],[56,2,56,5],[56,6,56,9],[56,10,56,14],[57,2,57,5],[57,6,57,9],[57,10,57,14],[54,2,54,5],[54,6,54,9],[54,10,54,14],[55,2,55,5],[55,6,55,9],[55,10,55,14],[26,18,27,19],[44,2,44,14],[51,2,51,14],[52,2,52,5],[52,6,52,9],[52,10,52,14],[53,2,53,5],[53,6,53,9],[53,10,53,14],[26,17,27,17],[22,7,23,8],[26,20,27,20],[26,21,27,21],[27,9,32,14],[33,9,33,14],[22,9,23,10],[22,11,23,12],[22,13,23,14],[25,2,25,14],[26,2,42,8],[26,9,26,14],[34,9,39,14],[40,9,40,14],[41,9,41,14],[18,20,25,20],[18,21,25,21],[19,2,21,3],[16,15,17,15],[16,16,17,16],[16,17,17,17],[16,18,17,21],[17,2,18,3],[17,4,18,10],[17,11,18,12],[17,13,18,14],[18,17,25,17],[18,18,25,19],[19,4,21,6],[19,7,21,8],[19,9,21,10],[19,11,19,14],[22,2,23,3],[22,4,23,6],[13,2,13,3],[13,4,13,14],[14,2,14,14],[15,2,15,14],[16,2,16,3],[16,4,16,6],[16,7,16,8],[16,9,16,10],[16,11,16,12],[16,13,16,14],[12,2,12,3],[12,4,12,14],[1,1,3,2],[4,2,7,3],[4,4,4,11],[4,12,4,14],[5,4,5,11],[5,12,5,14],[6,4,7,11],[6,12,6,14],[7,12,7,14],[9,2,10,14],[11,2,11,3],[11,4,11,7],[11,8,11,9],[11,10,11,14]]}
[]
[null,"      REGRESAR"]
[]
[]
[null,null,null,null,"MACROPROCESO ESTRATÉGICO",null,null,null,null,null,null,null,"CÓDIGO: ESGr027"]
[null,null,null,null,"PROCESO GESTIÓN SISTEMAS INTEGRADOS",null,null,null,null,null,null,null,"VERSIÓN: 7"]
[null,null,null,null,"MATRIZ DE MEDICIÓN Y SEGUIMIENTO A LOS PROCESOS DE GESTIÓN",null,null,null,null,null,null,null,"VIGENCIA: 2020-03-20"]
[null,null,null,null,null,null,null,null,null,null,null,null,"PÁGINA: 1 de 1"]
[]
[null,null,"FICHA DE INDICADOR"]
[]
[null,null,"MACROPROCESO",null,"Misional",null,null,null,"NOMBRE DEL INDICADOR",null,"Estudiantes beneficiados con la implementación de la acción estratégica de diálogo común curricular, diálogo con funciones misionales de la UCundinamarca, apoyo al CADI de segunda lengua, correspondientes a la política Dialogando con el Mundo."]
[null,null,"PROCESO GESTIÓN",null,"Dialogando con el Mundo"]
[null,null,"RESPONSABLE DE MEDICIÓN",null,"Vicerrectoría Académica"]
[]
[null,null,"1. COMPORTAMIENTO DE INDICADOR"]
[null,null,"CLASIFICACIÓN DE LA MEDICIÓN ",null,3,null,null,"TIPO DE INDICADOR",null,"Eficacia",null,"META",null,1000]
[null,null,"FÓRMULA",null,"Estrategias de internacionalización de los programas académicos donde  participan estudiantes de 1 a 10 semestre / Participación de  estudiantes de 1 a 10 semestre .",null,null,null,null,null,null,"UNIDAD DE MEDIDA",null,"Participantes en las estrategias"]
[]
[null,null,"TENDENCIA",null,"Positiva",null,null,"NIVEL DE SEGREGACIÓN *",null,"No Aplica",null,"ESCALA"]
[null,null,null,null,null,null,null,null,null,null,null,"Deficiente","Aceptable","Bueno","Excelente"]
[null,null,null,null,null,null,null,null,null,null,null,"0  - 499","500 - 750","751 - 1000",">1000"]
[null,null,"ORIGEN DE DATOS",null,"Consolidado de estudiantes de primero a décimo semestre",null,null,"FRECUENCIA DE LA MEDICIÓN",null,"SEMESTRAL",null,"FRECUENCIA DE RESULTADO",null,"ANUAL"]
[]
[]
[null,null,"RESULTADOS"]
[null,null,null,null,null,null,null,null,null,"ANÁLISIS DE DATOS\nLos datos indican un crecimiento en los acompañamientos entre el primer trimestre y \nel segundo trimestre de mas del 100%, por la contratación del personal de la oficina\nEn el tercer trimestre se muestra un decrecimiento con respecto al periodo anterior\npor las vacaciones a mitad de año, las personas se reintegraron entre julio y agosto."]
[null,null,null,null,null,null,null,null,null," PERIODO ACADÉMICO 2021.1  de acuerdo con el fenómeno de la pandemia COVID-19, Para el periodo 2021,1 no se realizo convocatoria debido a la coyuntura presentada de educación virtual, estrategia de internacionalización en casa,  sin embargo, se logro la participación de 500 estudiantes desde el pluriverso transmoderno, en los siguientes eventos; Cursos, Foros, Aula Espejo, Movilidad digital, Cátedra compartidas,  Congresos, Talleres, Cursos bilingüismo, Simposios, Conversatorios, sensibilizaciones y socializaciones de la  Política Dialogando con el Mundo, se evidencia en el Informe de Gestión presentado a la Vicerrectoría  Académica de fecha mayo 18 de 2021. Por lo tanto, se cumple con la meta propuesta en referencia al valor determinado de 1000 participantes en los eventos de internacionalización digital  para el 2021, según el informe parcial 2021,1.  En conclusión se cumple la meta propuesta según escala Sistema Gestión de la Calidad EXCELENTE de  500 participantes  - estudiantes UDEC, durante la vigencia 2021,1 . Se logro la participación de estudiantes en actividades académicas conjuntas con universidades internacionales de 1 a 10 semestres según campos de aprendizaje  y programa académico. En síntesis de 500 participantes  sobre 500 que es la meta para el primer semestre 2021,1 , es decir, el segundo periodo académico 2021,1 se alcanzaría totalmente con la participación 1000 estudiante en la implementación de la Política Dialogando con el Mundo. "]
[]
[]
[]
[]
[]
[null,null,null,null,null,null,null,null,null,"ACCIÓN FORMULADA"]
[null,null,null,null,null,null,null,null,null,"No.Estudiantes de 1 a 10 semestre participantes  en la implementación de la acción estratégica de diálogo común curricular, diálogo con las  funciones misionales de la UCundinamarca, apoyo al CADI de segunda lengua, correspondientes a la política Dialogando con el Mundo en relación con la participación en los eventos desarrollados 2021,1."]
[]
[]
[]
[]
[]
[null,null,null,null,null,null,null,null,null,"RESPONSABLE "]
[null,null,null,null,null,null,null,null,null,{"$f":"E14","v":"Vicerrectoría Académica"}]
[]
[]
[null,null,"PERIODO DE EVALUACIÓN"]
[null,null,"MES",{"$f":"IF(J23=\"MENSUAL\",\"ENERO\",IF(J23=\"TRIMESTRAL\",\"MARZO\",IF(J23=\"SEMESTRAL\",\"JUNIO\",IF(J23=\"ANUAL\",YEAR(TODAY()),\"\"))))","v":"JUNIO"},{"$f":"IF(J23=\"MENSUAL\",\"FEBRERO\",IF(J23=\"TRIMESTRAL\",\"JUNIO\",IF(J23=\"SEMESTRAL\",\"DICIEMBRE\",\"\")))","v":"DICIEMBRE"},{"$f":"IF(J23=\"MENSUAL\",\"MARZO\",IF(J23=\"TRIMESTRAL\",\"SEPTIEMBRE\",\"\"))","v":""},{"$f":"IF(J23=\"MENSUAL\",\"ABRIL\",IF(J23=\"TRIMESTRAL\",\"DICIEMBRE\",\"\"))","v":""},{"$f":"IF(J23=\"MENSUAL\",\"MAYO\",\"\")","v":""},{"$f":"IF(J23=\"MENSUAL\",\"JUNIO\",\"\")","v":""},{"$f":"IF(J23=\"MENSUAL\",\"JULIO\",\"\")","v":""},{"$f":"IF(J23=\"MENSUAL\",\"AGOSTO\",\"\")","v":""},{"$f":"IF(J23=\"MENSUAL\",\"SEPTIEMBRE\",\"\")","v":""},{"$f":"IF(J23=\"MENSUAL\",\"OCTUBRE\",\"\")","v":""},{"$f":"IF(J23=\"MENSUAL\",\"NOVIEMBRE\",\"\")","v":""},{"$f":"IF(J23=\"MENSUAL\",\"DICIEMBRE\",\"\")","v":""}]
[null,null,{"$f":"E18","v":"Estrategias de internacionalización de los programas académicos donde  participan estudiantes de 1 a 10 semestre / Participación de  estudiantes de 1 a 10 semestre ."},500]
[null,null,{"$f":"G19","v":0}]
[null,null,"VALOR ",{"$f":"IFERROR(IF($E$17=1,D47/D48,IF($E$17=3,D47,\"\")),\"\")","v":500},{"$f":"IFERROR(IF($E$17=1,E47/E48,IF($E$17=3,E47,\"\")),\"\")","v":0},{"$f":"IFERROR(IF($E$17=1,F47/F48,IF($E$17=2,F47,\"\")),\"\")","v":""},"","","","","","","","",""]
[null,null,"META PONDERADA",{"$f":"IF(AND(N23=\"ANUAL\",J23=\"MENSUAL\"),N17/12,IF(AND(N23=\"ANUAL\",J23=\"TRIMESTRAL\"),N17/4,IF(AND(N23=\"ANUAL\",J23=\"SEMESTRAL\"),N17/2,IF(AND(N23=\"ANUAL\",J23=\"ANUAL\"),N17,IF(AND(N23=\"SEMESTRAL\",J23=\"MENSUAL\"),N17/6,IF(AND(N23=\"SEMESTRAL\",J23=\"TRIMESTRAL\"),N17/2,IF(AND(N23=\"SEMESTRAL\",J23=\"SEMESTRAL\"),N17,IF(AND(N23=\"SEMESTRAL\",J23=\"ANUAL\"),\"REVISAR FRECUENCIAS\",IF(AND(N23=\"TRIMESTRAL\",J23=\"MENSUAL\"),N17/3,IF(AND(N23=\"TRIMESTRAL\",J23=\"TRIMESTRAL\"),N17,IF(AND(N23=\"TRIMESTRAL\",J23=\"SEMESTRAL\"),\"REVISAR FRECUENCIAS\",IF(AND(N23=\"TRIMESTRAL\",J23=\"ANUAL\"),\"REVISAR FRECUENCIAS\",IF(AND(N23=\"MENSUAL\",J23=\"MENSUAL\"),N17,IF(AND(N23=\"MENSUAL\",J23=\"TRIMESTRAL\"),\"REVISAR FRECUENCIAS\",IF(AND(N23=\"MENSUAL\",J23=\"SEMESTRAL\"),\"REVISAR FRECUENCIAS\",IF(AND(N23=\"MENSUAL\",J23=\"ANUAL\"),\"REVISAR FRECUENCIAS\",\"\"))))))))))))))))","v":500},{"$f":"IF(AND(N23=\"ANUAL\",J23=\"MENSUAL\"),N17/12+D50,IF(AND(N23=\"ANUAL\",J23=\"TRIMESTRAL\"),N17/4+D50,IF(AND(N23=\"ANUAL\",J23=\"SEMESTRAL\"),N17/2+D50,IF(AND(N23=\"SEMESTRAL\",J23=\"MENSUAL\"),N17/6+D50,IF(AND(N23=\"SEMESTRAL\",J23=\"TRIMESTRAL\"),N17/2+D50,IF(AND(N23=\"SEMESTRAL\",J23=\"SEMESTRAL\"),N17,IF(AND(N23=\"TRIMESTRAL\",J23=\"MENSUAL\"),N17/3+D50,IF(AND(N23=\"TRIMESTRAL\",J23=\"TRIMESTRAL\"),N17,IF(AND(N23=\"MENSUAL\",J23=\"MENSUAL\"),N17,\"\")))))))))","v":1000},null,{"$f":"IF(AND(N23=\"ANUAL\",J23=\"MENSUAL\"),N17/12+F50,IF(AND(N23=\"ANUAL\",J23=\"TRIMESTRAL\"),N17/4+F50,IF(AND(N23=\"SEMESTRAL\",J23=\"MENSUAL\"),N17/6+F50,IF(AND(N23=\"SEMESTRAL\",J23=\"TRIMESTRAL\"),N17/2+F50,IF(AND(N23=\"TRIMESTRAL\",J23=\"MENSUAL\"),N17/3,IF(AND(N23=\"TRIMESTRAL\",J23=\"TRIMESTRAL\"),N17,IF(AND(N23=\"MENSUAL\",J23=\"MENSUAL\"),N17,\"\")))))))","v":""},{"$f":"IF(AND($N$23=\"ANUAL\",$J$23=\"MENSUAL\"),$N$17/12+G50,IF(AND(N23=\"SEMESTRAL\",J23=\"MENSUAL\"),N17/6+G50,IF(AND(N23=\"TRIMESTRAL\",J23=\"MENSUAL\"),N17/3+G50,IF(AND(N23=\"MENSUAL\",J23=\"MENSUAL\"),N17,\"\"))))","v":""},{"$f":"IF(AND($N$23=\"ANUAL\",$J$23=\"MENSUAL\"),$N$17/12+H50,IF(AND(N23=\"SEMESTRAL\",J23=\"MENSUAL\"),N17/6+H50,IF(AND(N23=\"TRIMESTRAL\",J23=\"MENSUAL\"),N17/3+H50,IF(AND(N23=\"MENSUAL\",J23=\"MENSUAL\"),N17,\"\"))))","v":""},{"$f":"IF(AND($N$23=\"ANUAL\",$J$23=\"MENSUAL\"),$N$17/12+I50,IF(AND(N23=\"SEMESTRAL\",J23=\"MENSUAL\"),N17/6,IF(AND(N23=\"TRIMESTRAL\",J23=\"MENSUAL\"),N17/3,IF(AND(N23=\"MENSUAL\",J23=\"MENSUAL\"),N17,\"\"))))","v":""},{"$f":"IF(AND($N$23=\"ANUAL\",$J$23=\"MENSUAL\"),$N$17/12+J50,IF(AND(N23=\"SEMESTRAL\",J23=\"MENSUAL\"),N17/6+J50,IF(AND(N23=\"TRIMESTRAL\",J23=\"MENSUAL\"),N17/3+J50,IF(AND(N23=\"MENSUAL\",J23=\"MENSUAL\"),N17,\"\"))))","v":""},{"$f":"IF(AND($N$23=\"ANUAL\",$J$23=\"MENSUAL\"),$N$17/12+K50,IF(AND(N23=\"SEMESTRAL\",J23=\"MENSUAL\"),N17/6+K50,IF(AND(N23=\"TRIMESTRAL\",J23=\"MENSUAL\"),N17/3+K50,IF(AND(N23=\"MENSUAL\",J23=\"MENSUAL\"),N17,\"\"))))","v":""},{"$f":"IF(AND($N$23=\"ANUAL\",$J$23=\"MENSUAL\"),$N$17/12+L50,IF(AND(N23=\"SEMESTRAL\",J23=\"MENSUAL\"),N17/6+L50,IF(AND(N23=\"TRIMESTRAL\",J23=\"MENSUAL\"),N17/3,IF(AND(N23=\"MENSUAL\",J23=\"MENSUAL\"),N17,\"\"))))","v":""},{"$f":"IF(AND($N$23=\"ANUAL\",$J$23=\"MENSUAL\"),$N$17/12+M50,IF(AND(N23=\"SEMESTRAL\",J23=\"MENSUAL\"),N17/6+M50,IF(AND(N23=\"TRIMESTRAL\",J23=\"MENSUAL\"),N17/3+M50,IF(AND(N23=\"MENSUAL\",J23=\"MENSUAL\"),N17,\"\"))))","v":""},{"$f":"IF(AND($N$23=\"ANUAL\",$J$23=\"MENSUAL\"),$N$17/12+N50,IF(AND(N23=\"SEMESTRAL\",J23=\"MENSUAL\"),N17/6+N50,IF(AND(N23=\"TRIMESTRAL\",J23=\"MENSUAL\"),N17/3+N50,IF(AND(N23=\"MENSUAL\",J23=\"MENSUAL\"),N17,\"\"))))","v":""}]
[]
[null,null,"NIVEL DE SEGREGACIÓN *"]
[null,null,"UNIDAD SEGREGADA (Ej. Facultad, Programa Académico, Área)",null,null,null,"RESULTADO",null,null,null,"ANÁLISIS DE DATOS SEGREGADO"]
[]
[]
[]
[]
[]
[]
[]
[]
[]
[]
[]
[]
[]
[]
[]
[]
[]
[]
[]
[null,null,null,null,null,null,"Estratégico",null,null,"Eficacia"]
[null,null,null,null,null,null,"Misional",null,null,"Eficiencia"]
[null,null,null,null,null,null,"Apoyo",null,null,"Acreditación"]
[null,null,null,null,null,null,"Seguimiento, Medición, Análisis y Evaluación",null,null,"Positiva"]
[null,null,null,null,null,null,"Direccionamiento Estratégico",null,null,"Negativa"]
[null,null,null,null,null,null,"Planeación Institucional",null,null,"Por Unidad Regional"]
[null,null,null,null,null,null,"Proyectos Especiales y Relaciones Interinstitucionales",null,null,"Por Facultad"]
[null,null,null,null,null,null,"Sistemas Integrados",null,null,"Por Programa Académico"]
[null,null,null,null,null,null,"Autoevaluación y Acreditación",null,null,"Por área"]
[null,null,null,null,null,null,"Comunicaciones",null,null,"Por Laboratorio"]
[null,null,null,null,null,null,"Formación y Aprendizaje",null,null,"Otros"]
[null,null,null,null,null,null,"Ciencia, Tecnología e Innovación",null,null,"No Aplica"]
[null,null,null,null,null,null,"Interacción Social Universitaria"]
[null,null,null,null,null,null,"Bienestar Universitario"]
[null,null,null,null,null,null,"Admisiones y Registro"]
[null,null,null,null,null,null,"Graduados"]
[null,null,null,null,null,null,"Dialogando con el Mundo"]
[null,null,null,null,null,null,"Talento Humano"]
[null,null,null,null,null,null,"Jurídica"]
[null,null,null,null,null,null,"Financiera"]
[null,null,null,null,null,null,"Sistemas y Tecnología"]
[null,null,null,null,null,null,"Bienes y Servicios"]
[null,null,null,null,null,null,"Documental"]
[null,null,null,null,null,null,"Apoyo Académico"]
[null,null,null,null,null,null,"Control Interno"]
[null,null,null,null,null,null,"Control Disciplinario"]
[null,null,null,null,null,null,"Servicio de Atención al Ciudadano"]

{"sheet":"MDM-3 ","index":14,"n_rows":98,"n_cols":15,"rows_kept":98,"cut":false,"hidden":true,"merged":[[58,2,58,5],[58,6,58,9],[58,10,58,14],[59,2,59,5],[59,6,59,9],[59,10,59,14],[56,2,56,5],[56,6,56,9],[56,10,56,14],[57,2,57,5],[57,6,57,9],[57,10,57,14],[54,2,54,5],[54,6,54,9],[54,10,54,14],[55,2,55,5],[55,6,55,9],[55,10,55,14],[53,2,53,5],[53,6,53,9],[53,10,53,14],[26,15,27,15],[27,9,32,14],[33,9,33,14],[34,9,39,14],[40,9,40,14],[41,9,41,14],[44,2,44,14],[51,2,51,14],[52,2,52,5],[52,6,52,9],[52,10,52,14],[22,13,23,14],[23,2,23,3],[23,4,23,6],[25,2,25,14],[26,2,42,8],[26,9,26,14],[42,9,42,14],[22,2,22,3],[22,4,22,6],[22,7,23,8],[22,9,23,10],[22,11,23,12],[19,2,21,3],[19,4,21,6],[19,7,21,8],[19,9,21,10],[19,11,19,14],[16,15,17,15],[17,2,18,3],[17,4,17,5],[17,6,17,10],[17,11,18,12],[17,13,18,14],[18,4,18,5],[18,6,18,10],[16,2,16,3],[16,4,16,6],[16,7,16,8],[16,9,16,10],[16,11,16,12],[16,13,16,14],[15,2,15,14],[8,2,8,14],[9,2,10,14],[11,2,11,3],[11,4,11,7],[11,8,11,9],[11,10,11,14],[12,2,12,3],[12,4,12,14],[13,2,13,3],[13,4,13,14],[14,2,14,14],[1,1,3,2],[4,2,7,3],[4,4,4,11],[4,12,4,14],[5,4,5,11],[5,12,5,14],[6,4,7,11],[6,12,6,14],[7,12,7,14]]}
[]
[null,"      REGRESAR"]
[]
[]
[null,null,null,null,"MACROPROCESO ESTRATÉGICO",null,null,null,null,null,null,null,"CÓDIGO: ESGr027"]
[null,null,null,null,"PROCESO GESTIÓN SISTEMAS INTEGRADOS",null,null,null,null,null,null,null,"VERSIÓN: 7"]
[null,null,null,null,"MATRIZ DE MEDICIÓN Y SEGUIMIENTO A LOS PROCESOS DE GESTIÓN",null,null,null,null,null,null,null,"VIGENCIA: 2020-03-20"]
[null,null,null,null,null,null,null,null,null,null,null,null,"PÁGINA: 1 de 1"]
[]
[null,null,"FICHA DE INDICADOR"]
[]
[null,null,"MACROPROCESO",null,"Misional",null,null,null,"NOMBRE DEL INDICADOR",null,"Dinamizar Convenios"]
[null,null,"PROCESO GESTIÓN",null,"Dialogando con el Mundo"]
[null,null,"RESPONSABLE DE MEDICIÓN",null,"Vicerrectoría Académica"]
[]
[null,null,"1. COMPORTAMIENTO DE INDICADOR"]
[null,null,"CLASIFICACIÓN DE LA MEDICIÓN",null,1,null,null,"TIPO DE INDICADOR",null,"Eficacia",null,"META ANUAL",null,0.2]
[null,null,"FÓRMULA",null,"NUMERADOR",null,"Número de convenios dinamizados*100",null,null,null,null,"UNIDAD DE MEDIDA",null,"Porcentual"]
[null,null,null,null,"DENOMINADOR",null,"Número de convenios establecidos en la UDEC "]
[null,null,"TENDENCIA",null,"Positiva",null,null,"NIVEL DE SEGREGACIÓN *",null,"No Aplica",null,"ESCALA"]
[null,null,null,null,null,null,null,null,null,null,null,"Deficiente","Aceptable","Bueno","Excelente"]
[null,null,null,null,null,null,null,null,null,null,null,"0% - 9%","10%-16%","17%-20%",">20%"]
[null,null,"ORIGEN DE DATOS NUMERADOR",null,"Consolidado de convenios",null,null,"FRECUENCIA DE LA MEDICIÓN",null,"SEMESTRAL",null,"FRECUENCIA DE RESULTADO",null,"ANUAL"]
[null,null,"ORIGEN DE DATOS DENOMINADOR",null,"Consolidado de convenios"]
[]
[null,null,"RESULTADOS"]
[null,null,null,null,null,null,null,null,null,"ANÁLISIS DE DATOS"]
[null,null,null,null,null,null,null,null,null,"PERIODO ACADÉMICO 2021.1 De acuerdo con el número de convenios legalizados total 23 se lograron  dinamizar 10 convenios académicos con universidades internacionales, con la finalidad de realizar estrategias académicas virtuales [internacionalización en casa}, para ello,  se implementaron conversatorios, foros, simposio, aula espejo, cátedras comportatidas, webinar, entre otros eventos. Adjunto  evidencia,  relación de convenios dinamizados, informe de gestión de las actividades realizadas del  proceso Dialogando con el Mundo a la Vicerrectoría Académica de fecha mayo 18 de 2021, presentado por el líder Fabián Leal Orjuela.   Es decir, que se cumplió la meta propuesta  del 20% que corresponde al concepto BUENO  de convenios dinamizados, según escala definida por el Sistema  Gestión de Calidad, alcanzando el 43% en referencia con la meta de la vigencia 2021,1 de mas o menos el  50%.equivalente al primer semestre 2021,1,  entre el 17%-20% en este caso. "]
[]
[]
[]
[]
[]
[null,null,null,null,null,null,null,null,null,"ACCIÓN FORMULADA"]
[null,null,null,null,null,null,null,null,null,"Número de convenios dinamizados/ Número de convenios establecidos en la UDEC . "]
[]
[]
[]
[]
[]
[null,null,null,null,null,null,null,null,null,"RESPONSABLE "]
[null,null,null,null,null,null,null,null,null,{"$f":"E14","v":"Vicerrectoría Académica"}]
[]
[]
[null,null,"PERIODO DE EVALUACIÓN"]
[null,null,"MES",{"$f":"IF(J23=\"MENSUAL\",\"ENERO\",IF(J23=\"TRIMESTRAL\",\"MARZO\",IF(J23=\"SEMESTRAL\",\"JUNIO\",IF(J23=\"ANUAL\",YEAR(TODAY()),\"\"))))","v":"JUNIO"},{"$f":"IF(J23=\"MENSUAL\",\"FEBRERO\",IF(J23=\"TRIMESTRAL\",\"JUNIO\",IF(J23=\"SEMESTRAL\",\"DICIEMBRE\",\"\")))","v":"DICIEMBRE"},{"$f":"IF(J23=\"MENSUAL\",\"MARZO\",IF(J23=\"TRIMESTRAL\",\"SEPTIEMBRE\",\"\"))","v":""},{"$f":"IF(J23=\"MENSUAL\",\"ABRIL\",IF(J23=\"TRIMESTRAL\",\"DICIEMBRE\",\"\"))","v":""},{"$f":"IF(J23=\"MENSUAL\",\"MAYO\",\"\")","v":""},{"$f":"IF(J23=\"MENSUAL\",\"JUNIO\",\"\")","v":""},{"$f":"IF(J23=\"MENSUAL\",\"JULIO\",\"\")","v":""},{"$f":"IF(J23=\"MENSUAL\",\"AGOSTO\",\"\")","v":""},{"$f":"IF(J23=\"MENSUAL\",\"SEPTIEMBRE\",\"\")","v":""},{"$f":"IF(J23=\"MENSUAL\",\"OCTUBRE\",\"\")","v":""},{"$f":"IF(J23=\"MENSUAL\",\"NOVIEMBRE\",\"\")","v":""},{"$f":"IF(J23=\"MENSUAL\",\"DICIEMBRE\",\"\")","v":""}]
[null,null,{"$f":"G18","v":"Número de convenios dinamizados*100"},10]
[null,null,{"$f":"G19","v":"Número de convenios establecidos en la UDEC "},23]
[null,null,"VALOR ",{"$f":"IFERROR(IF($E$17=1,D47/D48,IF($E$17=2,D47,\"\")),\"\")","v":0.43478260869565216},"",{"$f":"IFERROR(IF($E$17=1,F47/F4,IF($E$17=2,F47,\"\")),\"\")","v":""},"","","","","","","","",""]
[null,null,"META PONDERADA",{"$f":"IF(AND(N23=\"ANUAL\",J23=\"MENSUAL\"),N17/12,IF(AND(N23=\"ANUAL\",J23=\"TRIMESTRAL\"),N17/4,IF(AND(N23=\"ANUAL\",J23=\"SEMESTRAL\"),N17/2,IF(AND(N23=\"ANUAL\",J23=\"ANUAL\"),N17,IF(AND(N23=\"SEMESTRAL\",J23=\"MENSUAL\"),N17/6,IF(AND(N23=\"SEMESTRAL\",J23=\"TRIMESTRAL\"),N17/2,IF(AND(N23=\"SEMESTRAL\",J23=\"SEMESTRAL\"),N17,IF(AND(N23=\"SEMESTRAL\",J23=\"ANUAL\"),\"REVISAR FRECUENCIAS\",IF(AND(N23=\"TRIMESTRAL\",J23=\"MENSUAL\"),N17/3,IF(AND(N23=\"TRIMESTRAL\",J23=\"TRIMESTRAL\"),N17,IF(AND(N23=\"TRIMESTRAL\",J23=\"SEMESTRAL\"),\"REVISAR FRECUENCIAS\",IF(AND(N23=\"TRIMESTRAL\",J23=\"ANUAL\"),\"REVISAR FRECUENCIAS\",IF(AND(N23=\"MENSUAL\",J23=\"MENSUAL\"),N17,IF(AND(N23=\"MENSUAL\",J23=\"TRIMESTRAL\"),\"REVISAR FRECUENCIAS\",IF(AND(N23=\"MENSUAL\",J23=\"SEMESTRAL\"),\"REVISAR FRECUENCIAS\",IF(AND(N23=\"MENSUAL\",J23=\"ANUAL\"),\"REVISAR FRECUENCIAS\",\"\"))))))))))))))))","v":0.1},{"$f":"IF(AND(N23=\"ANUAL\",J23=\"MENSUAL\"),N17/12+D50,IF(AND(N23=\"ANUAL\",J23=\"TRIMESTRAL\"),N17/4+D50,IF(AND(N23=\"ANUAL\",J23=\"SEMESTRAL\"),N17/2+D50,IF(AND(N23=\"SEMESTRAL\",J23=\"MENSUAL\"),N17/6+D50,IF(AND(N23=\"SEMESTRAL\",J23=\"TRIMESTRAL\"),N17/2+D50,IF(AND(N23=\"SEMESTRAL\",J23=\"SEMESTRAL\"),N17,IF(AND(N23=\"TRIMESTRAL\",J23=\"MENSUAL\"),N17/3+D50,IF(AND(N23=\"TRIMESTRAL\",J23=\"TRIMESTRAL\"),N17,IF(AND(N23=\"MENSUAL\",J23=\"MENSUAL\"),N17,\"\")))))))))","v":0.2},{"$f":"IF(AND(N23=\"ANUAL\",J23=\"MENSUAL\"),N17/12+E50,IF(AND(N23=\"ANUAL\",J23=\"TRIMESTRAL\"),N17/4+E50,IF(AND(N23=\"SEMESTRAL\",J23=\"MENSUAL\"),N17/6+E50,IF(AND(N23=\"SEMESTRAL\",J23=\"TRIMESTRAL\"),N17/2,IF(AND(N23=\"TRIMESTRAL\",J23=\"MENSUAL\"),N17/3+E50,IF(AND(N23=\"TRIMESTRAL\",J23=\"TRIMESTRAL\"),N17,IF(AND(N23=\"MENSUAL\",J23=\"MENSUAL\"),N17,\"\")))))))","v":""},{"$f":"IF(AND(N23=\"ANUAL\",J23=\"MENSUAL\"),N17/12+F50,IF(AND(N23=\"ANUAL\",J23=\"TRIMESTRAL\"),N17/4+F50,IF(AND(N23=\"SEMESTRAL\",J23=\"MENSUAL\"),N17/6+F50,IF(AND(N23=\"SEMESTRAL\",J23=\"TRIMESTRAL\"),N17/2+F50,IF(AND(N23=\"TRIMESTRAL\",J23=\"MENSUAL\"),N17/3,IF(AND(N23=\"TRIMESTRAL\",J23=\"TRIMESTRAL\"),N17,IF(AND(N23=\"MENSUAL\",J23=\"MENSUAL\"),N17,\"\")))))))","v":""},{"$f":"IF(AND($N$23=\"ANUAL\",$J$23=\"MENSUAL\"),$N$17/12+G50,IF(AND(N23=\"SEMESTRAL\",J23=\"MENSUAL\"),N17/6+G50,IF(AND(N23=\"TRIMESTRAL\",J23=\"MENSUAL\"),N17/3+G50,IF(AND(N23=\"MENSUAL\",J23=\"MENSUAL\"),N17,\"\"))))","v":""},{"$f":"IF(AND($N$23=\"ANUAL\",$J$23=\"MENSUAL\"),$N$17/12+H50,IF(AND(N23=\"SEMESTRAL\",J23=\"MENSUAL\"),N17/6+H50,IF(AND(N23=\"TRIMESTRAL\",J23=\"MENSUAL\"),N17/3+H50,IF(AND(N23=\"MENSUAL\",J23=\"MENSUAL\"),N17,\"\"))))","v":""},{"$f":"IF(AND($N$23=\"ANUAL\",$J$23=\"MENSUAL\"),$N$17/12+I50,IF(AND(N23=\"SEMESTRAL\",J23=\"MENSUAL\"),N17/6,IF(AND(N23=\"TRIMESTRAL\",J23=\"MENSUAL\"),N17/3,IF(AND(N23=\"MENSUAL\",J23=\"MENSUAL\"),N17,\"\"))))","v":""},{"$f":"IF(AND($N$23=\"ANUAL\",$J$23=\"MENSUAL\"),$N$17/12+J50,IF(AND(N23=\"SEMESTRAL\",J23=\"MENSUAL\"),N17/6+J50,IF(AND(N23=\"TRIMESTRAL\",J23=\"MENSUAL\"),N17/3+J50,IF(AND(N23=\"MENSUAL\",J23=\"MENSUAL\"),N17,\"\"))))","v":""},{"$f":"IF(AND($N$23=\"ANUAL\",$J$23=\"MENSUAL\"),$N$17/12+K50,IF(AND(N23=\"SEMESTRAL\",J23=\"MENSUAL\"),N17/6+K50,IF(AND(N23=\"TRIMESTRAL\",J23=\"MENSUAL\"),N17/3+K50,IF(AND(N23=\"MENSUAL\",J23=\"MENSUAL\"),N17,\"\"))))","v":""},{"$f":"IF(AND($N$23=\"ANUAL\",$J$23=\"MENSUAL\"),$N$17/12+L50,IF(AND(N23=\"SEMESTRAL\",J23=\"MENSUAL\"),N17/6+L50,IF(AND(N23=\"TRIMESTRAL\",J23=\"MENSUAL\"),N17/3,IF(AND(N23=\"MENSUAL\",J23=\"MENSUAL\"),N17,\"\"))))","v":""},{"$f":"IF(AND($N$23=\"ANUAL\",$J$23=\"MENSUAL\"),$N$17/12+M50,IF(AND(N23=\"SEMESTRAL\",J23=\"MENSUAL\"),N17/6+M50,IF(AND(N23=\"TRIMESTRAL\",J23=\"MENSUAL\"),N17/3+M50,IF(AND(N23=\"MENSUAL\",J23=\"MENSUAL\"),N17,\"\"))))","v":""},{"$f":"IF(AND($N$23=\"ANUAL\",$J$23=\"MENSUAL\"),$N$17/12+N50,IF(AND(N23=\"SEMESTRAL\",J23=\"MENSUAL\"),N17/6+N50,IF(AND(N23=\"TRIMESTRAL\",J23=\"MENSUAL\"),N17/3+N50,IF(AND(N23=\"MENSUAL\",J23=\"MENSUAL\"),N17,\"\"))))","v":""}]
[]
[null,null,"NIVEL DE SEGREGACIÓN *"]
[null,null,"UNIDAD SEGREGADA (Ej. Facultad, Programa Académico, Área)",null,null,null,"RESULTADO",null,null,null,"ANÁLISIS DE DATOS SEGREGADO"]
[]
[]
[]
[]
[]
[]
[]
[]
[]
[]
[]
[]
[]
[]
[]
[]
[]
[]
[null,null,null,null,null,null,"Estratégico",null,null,"Eficacia"]
[null,null,null,null,null,null,"Misional",null,null,"Eficiencia"]
[null,null,null,null,null,null,"Apoyo",null,null,"Acreditación"]
[null,null,null,null,null,null,"Seguimiento, Medición, Análisis y Evaluación",null,null,"Positiva"]
[null,null,null,null,null,null,"Direccionamiento Estratégico",null,null,"Negativa"]
[null,null,null,null,null,null,"Planeación Institucional",null,null,"Por Unidad Regional"]
[null,null,null,null,null,null,"Proyectos Especiales y Relaciones Interinstitucionales",null,null,"Por Facultad"]
[null,null,null,null,null,null,"Sistemas Integrados",null,null,"Por Programa Académico"]
[null,null,null,null,null,null,"Autoevaluación y Acreditación",null,null,"Por área"]
[null,null,null,null,null,null,"Comunicaciones",null,null,"Por Laboratorio"]
[null,null,null,null,null,null,"Formación y Aprendizaje",null,null,"Otros"]
[null,null,null,null,null,null,"Ciencia, Tecnología e Innovación",null,null,"No Aplica"]
[null,null,null,null,null,null,"Interacción Social Universitaria"]
[null,null,null,null,null,null,"Bienestar Universitario"]
[null,null,null,null,null,null,"Admisiones y Registro"]
[null,null,null,null,null,null,"Graduados"]
[null,null,null,null,null,null,"Dialogando con el Mundo"]
[null,null,null,null,null,null,"Talento Humano"]
[null,null,null,null,null,null,"Jurídica"]
[null,null,null,null,null,null,"Financiera"]
[null,null,null,null,null,null,"Sistemas y Tecnología"]
[null,null,null,null,null,null,"Bienes y Servicios"]
[null,null,null,null,null,null,"Documental"]
[null,null,null,null,null,null,"Apoyo Académico"]
[null,null,null,null,null,null,"Control Interno"]
[null,null,null,null,null,null,"Control Disciplinario"]
[null,null,null,null,null,null,"Servicio de Atención al Ciudadano"]

{"sheet":"SCI-3","index":15,"n_rows":101,"n_cols":15,"rows_kept":101,"cut":false,"hidden":true,"merged":[[61,2,61,5],[61,6,61,9],[61,10,61,14],[62,2,62,5],[62,6,62,9],[62,10,62,14],[59,2,59,5],[59,6,59,9],[59,10,59,14],[60,2,60,5],[60,6,60,9],[60,10,60,14],[57,2,57,5],[57,6,57,9],[57,10,57,14],[58,2,58,5],[58,6,58,9],[58,10,58,14],[56,2,56,5],[56,6,56,9],[56,10,56,14],[26,15,27,15],[27,9,39,14],[40,9,40,14],[41,9,42,14],[43,9,43,14],[44,9,44,14],[47,2,47,14],[54,2,54,14],[55,2,55,5],[55,6,55,9],[55,10,55,14],[22,13,23,14],[23,2,23,3],[23,4,23,6],[25,2,25,14],[26,2,45,8],[26,9,26,14],[45,9,45,14],[22,2,22,3],[22,4,22,6],[22,7,23,8],[22,9,23,10],[22,11,23,12],[19,2,21,3],[19,4,21,6],[19,7,21,8],[19,9,21,10],[19,11,19,14],[16,15,17,15],[17,2,18,3],[17,4,17,5],[17,6,17,10],[17,11,18,12],[17,13,18,14],[18,4,18,5],[18,6,18,10],[16,2,16,3],[16,4,16,6],[16,7,16,8],[16,9,16,10],[16,11,16,12],[16,13,16,14],[15,2,15,14],[8,2,8,14],[9,2,10,14],[11,2,11,3],[11,4,11,7],[11,8,11,9],[11,10,11,14],[12,2,12,3],[12,4,12,14],[13,2,13,3],[13,4,13,14],[14,2,14,14],[1,1,3,2],[4,2,7,3],[4,4,4,11],[4,12,4,14],[5,4,5,11],[5,12,5,14],[6,4,7,11],[6,12,6,14],[7,12,7,14]]}
[]
[null,"      REGRESAR"]
[]
[]
[null,null,null,null,"MACROPROCESO ESTRATÉGICO",null,null,null,null,null,null,null,"CÓDIGO: ESGr027"]
[null,null,null,null,"PROCESO GESTIÓN SISTEMAS INTEGRADOS",null,null,null,null,null,null,null,"VERSIÓN: 7"]
[null,null,null,null,"MATRIZ DE MEDICIÓN Y SEGUIMIENTO A LOS PROCESOS DE GESTIÓN",null,null,null,null,null,null,null,"VIGENCIA: 2020-03-20"]
[null,null,null,null,null,null,null,null,null,null,null,null,"PÁGINA: 1 de 1"]
[]
[null,null,"FICHA DE INDICADOR"]
[]
[null,null,"MACROPROCESO",null,"Seguimiento, Medición, Análisis y Evaluación",null,null,null,"NOMBRE DEL INDICADOR",null,"Conformidad de los hallazgos presentados en controversias "]
[null,null,"PROCESO GESTIÓN",null,"Control Interno"]
[null,null,"RESPONSABLE DE MEDICIÓN",null,"Director(a) de Control Interno"]
[]
[null,null,"1. COMPORTAMIENTO DE INDICADOR"]
[null,null,"CLASIFICACIÓN DE LA MEDICIÓN",null,1,null,null,"TIPO DE INDICADOR",null,"Eficacia",null,"META ANUAL",null,0.8]
[null,null,"FÓRMULA",null,"NUMERADOR",null,"hallazgos identificados conforme al criterio de auditoria*100",null,null,null,null,"UNIDAD DE MEDIDA",null,"Porcentual"]
[null,null,null,null,"DENOMINADOR",null,"Total de hallazgos presentados en controversias "]
[null,null,"TENDENCIA",null,"Positiva",null,null,"NIVEL DE SEGREGACIÓN *",null,"No Aplica",null,"ESCALA"]
[null,null,null,null,null,null,null,null,null,null,null,"Deficiente","Aceptable","Bueno","Excelente"]
[null,null,null,null,null,null,null,null,null,null,null,"0%59","60%-74%","75%-80%",">81%"]
[null,null,"ORIGEN DE DATOS NUMERADOR",null,"Informe final de Auditoria",null,null,"FRECUENCIA DE LA MEDICIÓN",null,"SEMESTRAL",null,"FRECUENCIA DE RESULTADO",null,"SEMESTRAL"]
[null,null,"ORIGEN DE DATOS DENOMINADOR",null,"Informe final de Auditoria"]
[]
[null,null,"RESULTADOS"]
[null,null,null,null,null,null,null,null,null,"ANÁLISIS DE DATOS"]
[null,null,null,null,null,null,null,null,null,"SEMESTRE I : \nPara el IPA_2021 se llevan a cabo auditorias internas de Control Interno a los siguientes procesos:\n\nDialogando con el Mundo.\nAdmisiones y Registro.\nDirección de Planeación Institucional.\n\nLas cuales derivaron en  un total de 14 hallazgos , a los cuales se presentaron 14 controversias de las cuales se subsana 1 por parte del proceso de Dialogando con el Mundo,  por subsanación de evidencia. \"Motivo por el cual no se tiene en cuenta este dato en el indicador debido a que el hallazgo subsanado fue por entrega e evidencia en periodo de controversia y no por inconsistencias en el criterio del auditor\". Se hace claridad que para la medición de este indicador no se tiene en cuenta la auditoria realizada Formación y Aprendizaje debido a que aun se encuentra en fase de controversias de auditoria. \n"]
[]
[]
[]
[]
[]
[]
[]
[]
[]
[]
[]
[]
[null,null,null,null,null,null,null,null,null,"ACCIÓN FORMULADA"]
[null,null,null,null,null,null,null,null,null,"N/A"]
[]
[null,null,null,null,null,null,null,null,null,"RESPONSABLE "]
[null,null,null,null,null,null,null,null,null,{"$f":"E14","v":"Director(a) de Control Interno"}]
[]
[]
[null,null,"PERIODO DE EVALUACIÓN"]
[null,null,"MES",{"$f":"IF(J23=\"MENSUAL\",\"ENERO\",IF(J23=\"TRIMESTRAL\",\"MARZO\",IF(J23=\"SEMESTRAL\",\"JUNIO\",IF(J23=\"ANUAL\",YEAR(TODAY()),\"\"))))","v":"JUNIO"},{"$f":"IF(J23=\"MENSUAL\",\"FEBRERO\",IF(J23=\"TRIMESTRAL\",\"JUNIO\",IF(J23=\"SEMESTRAL\",\"DICIEMBRE\",\"\")))","v":"DICIEMBRE"},{"$f":"IF(J23=\"MENSUAL\",\"MARZO\",IF(J23=\"TRIMESTRAL\",\"SEPTIEMBRE\",\"\"))","v":""},{"$f":"IF(J23=\"MENSUAL\",\"ABRIL\",IF(J23=\"TRIMESTRAL\",\"DICIEMBRE\",\"\"))","v":""},{"$f":"IF(J23=\"MENSUAL\",\"MAYO\",\"\")","v":""},{"$f":"IF(J23=\"MENSUAL\",\"JUNIO\",\"\")","v":""},{"$f":"IF(J23=\"MENSUAL\",\"JULIO\",\"\")","v":""},{"$f":"IF(J23=\"MENSUAL\",\"AGOSTO\",\"\")","v":""},{"$f":"IF(J23=\"MENSUAL\",\"SEPTIEMBRE\",\"\")","v":""},{"$f":"IF(J23=\"MENSUAL\",\"OCTUBRE\",\"\")","v":""},{"$f":"IF(J23=\"MENSUAL\",\"NOVIEMBRE\",\"\")","v":""},{"$f":"IF(J23=\"MENSUAL\",\"DICIEMBRE\",\"\")","v":""}]
[null,null,{"$f":"G18","v":"hallazgos identificados conforme al criterio de auditoria*100"},14]
[null,null,{"$f":"G19","v":"Total de hallazgos presentados en controversias "},14]
[null,null,"VALOR ",{"$f":"IFERROR(IF($E$17=1,D50/D51,IF($E$17=2,D50,\"\")),\"\")","v":1},{"$f":"IFERROR(IF($E$17=1,E50/E51,IF($E$17=2,E50,\"\")),\"\")","v":""},"","","","","","","","","",""]
[null,null,"META PONDERADA",{"$f":"IF(AND(N23=\"ANUAL\",J23=\"MENSUAL\"),N17/12,IF(AND(N23=\"ANUAL\",J23=\"TRIMESTRAL\"),N17/4,IF(AND(N23=\"ANUAL\",J23=\"SEMESTRAL\"),N17/2,IF(AND(N23=\"ANUAL\",J23=\"ANUAL\"),N17,IF(AND(N23=\"SEMESTRAL\",J23=\"MENSUAL\"),N17/6,IF(AND(N23=\"SEMESTRAL\",J23=\"TRIMESTRAL\"),N17/2,IF(AND(N23=\"SEMESTRAL\",J23=\"SEMESTRAL\"),N17,IF(AND(N23=\"SEMESTRAL\",J23=\"ANUAL\"),\"REVISAR FRECUENCIAS\",IF(AND(N23=\"TRIMESTRAL\",J23=\"MENSUAL\"),N17/3,IF(AND(N23=\"TRIMESTRAL\",J23=\"TRIMESTRAL\"),N17,IF(AND(N23=\"TRIMESTRAL\",J23=\"SEMESTRAL\"),\"REVISAR FRECUENCIAS\",IF(AND(N23=\"TRIMESTRAL\",J23=\"ANUAL\"),\"REVISAR FRECUENCIAS\",IF(AND(N23=\"MENSUAL\",J23=\"MENSUAL\"),N17,IF(AND(N23=\"MENSUAL\",J23=\"TRIMESTRAL\"),\"REVISAR FRECUENCIAS\",IF(AND(N23=\"MENSUAL\",J23=\"SEMESTRAL\"),\"REVISAR FRECUENCIAS\",IF(AND(N23=\"MENSUAL\",J23=\"ANUAL\"),\"REVISAR FRECUENCIAS\",\"\"))))))))))))))))","v":0.8},{"$f":"IF(AND(N23=\"ANUAL\",J23=\"MENSUAL\"),N17/12+D53,IF(AND(N23=\"ANUAL\",J23=\"TRIMESTRAL\"),N17/4+D53,IF(AND(N23=\"ANUAL\",J23=\"SEMESTRAL\"),N17/2+D53,IF(AND(N23=\"SEMESTRAL\",J23=\"MENSUAL\"),N17/6+D53,IF(AND(N23=\"SEMESTRAL\",J23=\"TRIMESTRAL\"),N17/2+D53,IF(AND(N23=\"SEMESTRAL\",J23=\"SEMESTRAL\"),N17,IF(AND(N23=\"TRIMESTRAL\",J23=\"MENSUAL\"),N17/3+D53,IF(AND(N23=\"TRIMESTRAL\",J23=\"TRIMESTRAL\"),N17,IF(AND(N23=\"MENSUAL\",J23=\"MENSUAL\"),N17,\"\")))))))))","v":0.8},{"$f":"IF(AND(N23=\"ANUAL\",J23=\"MENSUAL\"),N17/12+E53,IF(AND(N23=\"ANUAL\",J23=\"TRIMESTRAL\"),N17/4+E53,IF(AND(N23=\"SEMESTRAL\",J23=\"MENSUAL\"),N17/6+E53,IF(AND(N23=\"SEMESTRAL\",J23=\"TRIMESTRAL\"),N17/2,IF(AND(N23=\"TRIMESTRAL\",J23=\"MENSUAL\"),N17/3+E53,IF(AND(N23=\"TRIMESTRAL\",J23=\"TRIMESTRAL\"),N17,IF(AND(N23=\"MENSUAL\",J23=\"MENSUAL\"),N17,\"\")))))))","v":""},{"$f":"IF(AND(N23=\"ANUAL\",J23=\"MENSUAL\"),N17/12+F53,IF(AND(N23=\"ANUAL\",J23=\"TRIMESTRAL\"),N17/4+F53,IF(AND(N23=\"SEMESTRAL\",J23=\"MENSUAL\"),N17/6+F53,IF(AND(N23=\"SEMESTRAL\",J23=\"TRIMESTRAL\"),N17/2+F53,IF(AND(N23=\"TRIMESTRAL\",J23=\"MENSUAL\"),N17/3,IF(AND(N23=\"TRIMESTRAL\",J23=\"TRIMESTRAL\"),N17,IF(AND(N23=\"MENSUAL\",J23=\"MENSUAL\"),N17,\"\")))))))","v":""},{"$f":"IF(AND($N$23=\"ANUAL\",$J$23=\"MENSUAL\"),$N$17/12+G53,IF(AND(N23=\"SEMESTRAL\",J23=\"MENSUAL\"),N17/6+G53,IF(AND(N23=\"TRIMESTRAL\",J23=\"MENSUAL\"),N17/3+G53,IF(AND(N23=\"MENSUAL\",J23=\"MENSUAL\"),N17,\"\"))))","v":""},{"$f":"IF(AND($N$23=\"ANUAL\",$J$23=\"MENSUAL\"),$N$17/12+H53,IF(AND(N23=\"SEMESTRAL\",J23=\"MENSUAL\"),N17/6+H53,IF(AND(N23=\"TRIMESTRAL\",J23=\"MENSUAL\"),N17/3+H53,IF(AND(N23=\"MENSUAL\",J23=\"MENSUAL\"),N17,\"\"))))","v":""},{"$f":"IF(AND($N$23=\"ANUAL\",$J$23=\"MENSUAL\"),$N$17/12+I53,IF(AND(N23=\"SEMESTRAL\",J23=\"MENSUAL\"),N17/6,IF(AND(N23=\"TRIMESTRAL\",J23=\"MENSUAL\"),N17/3,IF(AND(N23=\"MENSUAL\",J23=\"MENSUAL\"),N17,\"\"))))","v":""},{"$f":"IF(AND($N$23=\"ANUAL\",$J$23=\"MENSUAL\"),$N$17/12+J53,IF(AND(N23=\"SEMESTRAL\",J23=\"MENSUAL\"),N17/6+J53,IF(AND(N23=\"TRIMESTRAL\",J23=\"MENSUAL\"),N17/3+J53,IF(AND(N23=\"MENSUAL\",J23=\"MENSUAL\"),N17,\"\"))))","v":""},{"$f":"IF(AND($N$23=\"ANUAL\",$J$23=\"MENSUAL\"),$N$17/12+K53,IF(AND(N23=\"SEMESTRAL\",J23=\"MENSUAL\"),N17/6+K53,IF(AND(N23=\"TRIMESTRAL\",J23=\"MENSUAL\"),N17/3+K53,IF(AND(N23=\"MENSUAL\",J23=\"MENSUAL\"),N17,\"\"))))","v":""},{"$f":"IF(AND($N$23=\"ANUAL\",$J$23=\"MENSUAL\"),$N$17/12+L53,IF(AND(N23=\"SEMESTRAL\",J23=\"MENSUAL\"),N17/6+L53,IF(AND(N23=\"TRIMESTRAL\",J23=\"MENSUAL\"),N17/3,IF(AND(N23=\"MENSUAL\",J23=\"MENSUAL\"),N17,\"\"))))","v":""},{"$f":"IF(AND($N$23=\"ANUAL\",$J$23=\"MENSUAL\"),$N$17/12+M53,IF(AND(N23=\"SEMESTRAL\",J23=\"MENSUAL\"),N17/6+M53,IF(AND(N23=\"TRIMESTRAL\",J23=\"MENSUAL\"),N17/3+M53,IF(AND(N23=\"MENSUAL\",J23=\"MENSUAL\"),N17,\"\"))))","v":""},{"$f":"IF(AND($N$23=\"ANUAL\",$J$23=\"MENSUAL\"),$N$17/12+N53,IF(AND(N23=\"SEMESTRAL\",J23=\"MENSUAL\"),N17/6+N53,IF(AND(N23=\"TRIMESTRAL\",J23=\"MENSUAL\"),N17/3+N53,IF(AND(N23=\"MENSUAL\",J23=\"MENSUAL\"),N17,\"\"))))","v":""}]
[]
[null,null,"NIVEL DE SEGREGACIÓN *"]
[null,null,"UNIDAD SEGREGADA (Ej. Facultad, Programa Académico, Área)",null,null,null,"RESULTADO",null,null,null,"ANÁLISIS DE DATOS SEGREGADO"]
[]
[]
[]
[]
[]
[]
[]
[]
[]
[]
[]
[]
[]
[]
[]
[]
[]
[]
[null,null,null,null,null,null,"Estratégico",null,null,"Eficacia"]
[null,null,null,null,null,null,"Misional",null,null,"Eficiencia"]
[null,null,null,null,null,null,"Apoyo",null,null,"Acreditación"]
[null,null,null,null,null,null,"Seguimiento, Medición, Análisis y Evaluación",null,null,"Positiva"]
[null,null,null,null,null,null,"Direccionamiento Estratégico",null,null,"Negativa"]
[null,null,null,null,null,null,"Planeación Institucional",null,null,"Por Unidad Regional"]
[null,null,null,null,null,null,"Proyectos Especiales y Relaciones Interinstitucionales",null,null,"Por Facultad"]
[null,null,null,null,null,null,"Sistemas Integrados",null,null,"Por Programa Académico"]
[null,null,null,null,null,null,"Autoevaluación y Acreditación",null,null,"Por área"]
[null,null,null,null,null,null,"Comunicaciones",null,null,"Por Laboratorio"]
[null,null,null,null,null,null,"Formación y Aprendizaje",null,null,"Otros"]
[null,null,null,null,null,null,"Ciencia, Tecnología e Innovación",null,null,"No Aplica"]
[null,null,null,null,null,null,"Interacción Social Universitaria"]
[null,null,null,null,null,null,"Bienestar Universitario"]
[null,null,null,null,null,null,"Admisiones y Registro"]
[null,null,null,null,null,null,"Graduados"]
[null,null,null,null,null,null,"Dialogando con el Mundo"]
[null,null,null,null,null,null,"Talento Humano"]
[null,null,null,null,null,null,"Jurídica"]
[null,null,null,null,null,null,"Financiera"]
[null,null,null,null,null,null,"Sistemas y Tecnología"]
[null,null,null,null,null,null,"Bienes y Servicios"]
[null,null,null,null,null,null,"Documental"]
[null,null,null,null,null,null,"Apoyo Académico"]
[null,null,null,null,null,null,"Control Interno"]
[null,null,null,null,null,null,"Control Disciplinario"]
[null,null,null,null,null,null,"Servicio de Atención al Ciudadano"]

{"sheet":"SCI-6","index":16,"n_rows":98,"n_cols":15,"rows_kept":98,"cut":false,"hidden":true,"merged":[[58,2,58,5],[58,6,58,9],[58,10,58,14],[59,2,59,5],[59,6,59,9],[59,10,59,14],[56,2,56,5],[56,6,56,9],[56,10,56,14],[57,2,57,5],[57,6,57,9],[57,10,57,14],[54,2,54,5],[54,6,54,9],[54,10,54,14],[55,2,55,5],[55,6,55,9],[55,10,55,14],[53,2,53,5],[53,6,53,9],[53,10,53,14],[26,15,27,15],[27,9,32,14],[33,9,33,14],[34,9,39,14],[40,9,40,14],[41,9,41,14],[44,2,44,14],[51,2,51,14],[52,2,52,5],[52,6,52,9],[52,10,52,14],[22,13,23,14],[23,2,23,3],[23,4,23,6],[25,2,25,14],[26,2,42,8],[26,9,26,14],[42,9,42,14],[22,2,22,3],[22,4,22,6],[22,7,23,8],[22,9,23,10],[22,11,23,12],[19,2,21,3],[19,4,21,6],[19,7,21,8],[19,9,21,10],[19,11,19,14],[16,15,17,15],[17,2,18,3],[17,4,17,5],[17,6,17,10],[17,11,18,12],[17,13,18,14],[18,4,18,5],[18,6,18,10],[16,2,16,3],[16,4,16,6],[16,7,16,8],[16,9,16,10],[16,11,16,12],[16,13,16,14],[15,2,15,14],[8,2,8,14],[9,2,10,14],[11,2,11,3],[11,4,11,7],[11,8,11,9],[11,10,11,14],[12,2,12,3],[12,4,12,14],[13,2,13,3],[13,4,13,14],[14,2,14,14],[1,1,3,2],[4,2,7,3],[4,4,4,11],[4,12,4,14],[5,4,5,11],[5,12,5,14],[6,4,7,11],[6,12,6,14],[7,12,7,14]]}
[]
[null,"      REGRESAR"]
[]
[]
[null,null,null,null,"MACROPROCESO ESTRATÉGICO",null,null,null,null,null,null,null,"CÓDIGO: ESGr027"]
[null,null,null,null,"PROCESO GESTIÓN SISTEMAS INTEGRADOS",null,null,null,null,null,null,null,"VERSIÓN: 7"]
[null,null,null,null,"MATRIZ DE MEDICIÓN Y SEGUIMIENTO A LOS PROCESOS DE GESTIÓN",null,null,null,null,null,null,null,"VIGENCIA: 2020-03-20"]
[null,null,null,null,null,null,null,null,null,null,null,null,"PÁGINA: 1 de 1"]
[]
[null,null,"FICHA DE INDICADOR"]
[]
[null,null,"MACROPROCESO",null,"Seguimiento, Medición, Análisis y Evaluación",null,null,null,"NOMBRE DEL INDICADOR",null,"Oportunidad en la entrega de pre -informes de auditoría"]
[null,null,"PROCESO GESTIÓN",null,"Control Interno"]
[null,null,"RESPONSABLE DE MEDICIÓN",null,"Director(a) de Control Interno"]
[]
[null,null,"1. COMPORTAMIENTO DE INDICADOR"]
[null,null,"CLASIFICACIÓN DE LA MEDICIÓN",null,1,null,null,"TIPO DE INDICADOR",null,"Eficacia",null,"META ANUAL",null,0.9]
[null,null,"FÓRMULA",null,"NUMERADOR",null,"Pre-Informes de auditoría entregados a tiempo*100",null,null,null,null,"UNIDAD DE MEDIDA",null,"Porcentual"]
[null,null,null,null,"DENOMINADOR",null,"Total Pre- informes de procesos auditados"]
[null,null,"TENDENCIA",null,"Positiva",null,null,"NIVEL DE SEGREGACIÓN *",null,"No Aplica",null,"ESCALA"]
[null,null,null,null,null,null,null,null,null,null,null,"Deficiente","Aceptable","Bueno","Excelente"]
[null,null,null,null,null,null,null,null,null,null,null,"0 - 59,9%","60% - 79,9%","80% - 89,9%","90% - 100%"]
[null,null,"ORIGEN DE DATOS NUMERADOR",null,"Base de datos indicadores Control Interno",null,null,"FRECUENCIA DE LA MEDICIÓN",null,"SEMESTRAL",null,"FRECUENCIA DE RESULTADO",null,"SEMESTRAL"]
[null,null,"ORIGEN DE DATOS DENOMINADOR",null,"Base de datos indicadores Control Interno"]
[]
[null,null,"RESULTADOS"]
[null,null,null,null,null,null,null,null,null,"ANÁLISIS DE DATOS"]
[null,null,null,null,null,null,null,null,null,"Primer Semestre: \nPara el IPA_2021, se realizan auditorias internas a los procesos de:\n1. Dialogando con el Mundo. A tiempo \n2. Admisiones y Registro. A tiempo\n3. Formación y Aprendizaje. A tiempo\n4. Dirección de Planeación Institucional. Fuera de la fecha establecida ( Aplazamiento reunión de cierre, motivo fuerza mayor).\nLas cuales dan cumplimiento a lo establecido en el Procedimiento SCIP04 \"Auditoria Interna\".\n\nSe hace claridad que el Preinforme de auditoria derivado de la auditoria interna realizada a la Dirección de Planeación Institucional se presenta por fuera de los 20 dias habiles establecidos, esto debido a afectaciones de salud que presentaban los miembros del el equipo auditado por lo cual fue necesario aplazar la reunión de cierre de auditoria, lo cual se cruzo con la finalización de contrato de los funcionarios de las areas (vacaciones colectivas).\n\nAsí las cosas y dando claridad a lo anterior se da por cumplido el indicador jutificando el echo a motivos, causa fuerza mayor.\n"]
[]
[]
[]
[]
[]
[null,null,null,null,null,null,null,null,null,"ACCIÓN FORMULADA"]
[]
[]
[]
[]
[]
[]
[null,null,null,null,null,null,null,null,null,"RESPONSABLE "]
[null,null,null,null,null,null,null,null,null,{"$f":"E14","v":"Director(a) de Control Interno"}]
[]
[]
[null,null,"PERIODO DE EVALUACIÓN"]
[null,null,"MES",{"$f":"IF(J23=\"MENSUAL\",\"ENERO\",IF(J23=\"TRIMESTRAL\",\"MARZO\",IF(J23=\"SEMESTRAL\",\"JUNIO\",IF(J23=\"ANUAL\",YEAR(TODAY()),\"\"))))","v":"JUNIO"},{"$f":"IF(J23=\"MENSUAL\",\"FEBRERO\",IF(J23=\"TRIMESTRAL\",\"JUNIO\",IF(J23=\"SEMESTRAL\",\"DICIEMBRE\",\"\")))","v":"DICIEMBRE"},{"$f":"IF(J23=\"MENSUAL\",\"MARZO\",IF(J23=\"TRIMESTRAL\",\"SEPTIEMBRE\",\"\"))","v":""},{"$f":"IF(J23=\"MENSUAL\",\"ABRIL\",IF(J23=\"TRIMESTRAL\",\"DICIEMBRE\",\"\"))","v":""},{"$f":"IF(J23=\"MENSUAL\",\"MAYO\",\"\")","v":""},{"$f":"IF(J23=\"MENSUAL\",\"JUNIO\",\"\")","v":""},{"$f":"IF(J23=\"MENSUAL\",\"JULIO\",\"\")","v":""},{"$f":"IF(J23=\"MENSUAL\",\"AGOSTO\",\"\")","v":""},{"$f":"IF(J23=\"MENSUAL\",\"SEPTIEMBRE\",\"\")","v":""},{"$f":"IF(J23=\"MENSUAL\",\"OCTUBRE\",\"\")","v":""},{"$f":"IF(J23=\"MENSUAL\",\"NOVIEMBRE\",\"\")","v":""},{"$f":"IF(J23=\"MENSUAL\",\"DICIEMBRE\",\"\")","v":""}]
[null,null,{"$f":"G18","v":"Pre-Informes de auditoría entregados a tiempo*100"},4]
[null,null,{"$f":"G19","v":"Total Pre- informes de procesos auditados"},4]
[null,null,"VALOR ",{"$f":"IFERROR(IF($E$17=1,D47/D48,IF($E$17=2,D47,\"\")),\"\")","v":1},"","","","","","","","","","",""]
[null,null,"META PONDERADA",{"$f":"IF(AND(N23=\"ANUAL\",J23=\"MENSUAL\"),N17/12,IF(AND(N23=\"ANUAL\",J23=\"TRIMESTRAL\"),N17/4,IF(AND(N23=\"ANUAL\",J23=\"SEMESTRAL\"),N17/2,IF(AND(N23=\"ANUAL\",J23=\"ANUAL\"),N17,IF(AND(N23=\"SEMESTRAL\",J23=\"MENSUAL\"),N17/6,IF(AND(N23=\"SEMESTRAL\",J23=\"TRIMESTRAL\"),N17/2,IF(AND(N23=\"SEMESTRAL\",J23=\"SEMESTRAL\"),N17,IF(AND(N23=\"SEMESTRAL\",J23=\"ANUAL\"),\"REVISAR FRECUENCIAS\",IF(AND(N23=\"TRIMESTRAL\",J23=\"MENSUAL\"),N17/3,IF(AND(N23=\"TRIMESTRAL\",J23=\"TRIMESTRAL\"),N17,IF(AND(N23=\"TRIMESTRAL\",J23=\"SEMESTRAL\"),\"REVISAR FRECUENCIAS\",IF(AND(N23=\"TRIMESTRAL\",J23=\"ANUAL\"),\"REVISAR FRECUENCIAS\",IF(AND(N23=\"MENSUAL\",J23=\"MENSUAL\"),N17,IF(AND(N23=\"MENSUAL\",J23=\"TRIMESTRAL\"),\"REVISAR FRECUENCIAS\",IF(AND(N23=\"MENSUAL\",J23=\"SEMESTRAL\"),\"REVISAR FRECUENCIAS\",IF(AND(N23=\"MENSUAL\",J23=\"ANUAL\"),\"REVISAR FRECUENCIAS\",\"\"))))))))))))))))","v":0.9},{"$f":"IF(AND(N23=\"ANUAL\",J23=\"MENSUAL\"),N17/12+D50,IF(AND(N23=\"ANUAL\",J23=\"TRIMESTRAL\"),N17/4+D50,IF(AND(N23=\"ANUAL\",J23=\"SEMESTRAL\"),N17/2+D50,IF(AND(N23=\"SEMESTRAL\",J23=\"MENSUAL\"),N17/6+D50,IF(AND(N23=\"SEMESTRAL\",J23=\"TRIMESTRAL\"),N17/2+D50,IF(AND(N23=\"SEMESTRAL\",J23=\"SEMESTRAL\"),N17,IF(AND(N23=\"TRIMESTRAL\",J23=\"MENSUAL\"),N17/3+D50,IF(AND(N23=\"TRIMESTRAL\",J23=\"TRIMESTRAL\"),N17,IF(AND(N23=\"MENSUAL\",J23=\"MENSUAL\"),N17,\"\")))))))))","v":0.9},{"$f":"IF(AND(N23=\"ANUAL\",J23=\"MENSUAL\"),N17/12+E50,IF(AND(N23=\"ANUAL\",J23=\"TRIMESTRAL\"),N17/4+E50,IF(AND(N23=\"SEMESTRAL\",J23=\"MENSUAL\"),N17/6+E50,IF(AND(N23=\"SEMESTRAL\",J23=\"TRIMESTRAL\"),N17/2,IF(AND(N23=\"TRIMESTRAL\",J23=\"MENSUAL\"),N17/3+E50,IF(AND(N23=\"TRIMESTRAL\",J23=\"TRIMESTRAL\"),N17,IF(AND(N23=\"MENSUAL\",J23=\"MENSUAL\"),N17,\"\")))))))","v":""},{"$f":"IF(AND(N23=\"ANUAL\",J23=\"MENSUAL\"),N17/12+F50,IF(AND(N23=\"ANUAL\",J23=\"TRIMESTRAL\"),N17/4+F50,IF(AND(N23=\"SEMESTRAL\",J23=\"MENSUAL\"),N17/6+F50,IF(AND(N23=\"SEMESTRAL\",J23=\"TRIMESTRAL\"),N17/2+F50,IF(AND(N23=\"TRIMESTRAL\",J23=\"MENSUAL\"),N17/3,IF(AND(N23=\"TRIMESTRAL\",J23=\"TRIMESTRAL\"),N17,IF(AND(N23=\"MENSUAL\",J23=\"MENSUAL\"),N17,\"\")))))))","v":""},{"$f":"IF(AND($N$23=\"ANUAL\",$J$23=\"MENSUAL\"),$N$17/12+G50,IF(AND(N23=\"SEMESTRAL\",J23=\"MENSUAL\"),N17/6+G50,IF(AND(N23=\"TRIMESTRAL\",J23=\"MENSUAL\"),N17/3+G50,IF(AND(N23=\"MENSUAL\",J23=\"MENSUAL\"),N17,\"\"))))","v":""},{"$f":"IF(AND($N$23=\"ANUAL\",$J$23=\"MENSUAL\"),$N$17/12+H50,IF(AND(N23=\"SEMESTRAL\",J23=\"MENSUAL\"),N17/6+H50,IF(AND(N23=\"TRIMESTRAL\",J23=\"MENSUAL\"),N17/3+H50,IF(AND(N23=\"MENSUAL\",J23=\"MENSUAL\"),N17,\"\"))))","v":""},{"$f":"IF(AND($N$23=\"ANUAL\",$J$23=\"MENSUAL\"),$N$17/12+I50,IF(AND(N23=\"SEMESTRAL\",J23=\"MENSUAL\"),N17/6,IF(AND(N23=\"TRIMESTRAL\",J23=\"MENSUAL\"),N17/3,IF(AND(N23=\"MENSUAL\",J23=\"MENSUAL\"),N17,\"\"))))","v":""},{"$f":"IF(AND($N$23=\"ANUAL\",$J$23=\"MENSUAL\"),$N$17/12+J50,IF(AND(N23=\"SEMESTRAL\",J23=\"MENSUAL\"),N17/6+J50,IF(AND(N23=\"TRIMESTRAL\",J23=\"MENSUAL\"),N17/3+J50,IF(AND(N23=\"MENSUAL\",J23=\"MENSUAL\"),N17,\"\"))))","v":""},{"$f":"IF(AND($N$23=\"ANUAL\",$J$23=\"MENSUAL\"),$N$17/12+K50,IF(AND(N23=\"SEMESTRAL\",J23=\"MENSUAL\"),N17/6+K50,IF(AND(N23=\"TRIMESTRAL\",J23=\"MENSUAL\"),N17/3+K50,IF(AND(N23=\"MENSUAL\",J23=\"MENSUAL\"),N17,\"\"))))","v":""},{"$f":"IF(AND($N$23=\"ANUAL\",$J$23=\"MENSUAL\"),$N$17/12+L50,IF(AND(N23=\"SEMESTRAL\",J23=\"MENSUAL\"),N17/6+L50,IF(AND(N23=\"TRIMESTRAL\",J23=\"MENSUAL\"),N17/3,IF(AND(N23=\"MENSUAL\",J23=\"MENSUAL\"),N17,\"\"))))","v":""},{"$f":"IF(AND($N$23=\"ANUAL\",$J$23=\"MENSUAL\"),$N$17/12+M50,IF(AND(N23=\"SEMESTRAL\",J23=\"MENSUAL\"),N17/6+M50,IF(AND(N23=\"TRIMESTRAL\",J23=\"MENSUAL\"),N17/3+M50,IF(AND(N23=\"MENSUAL\",J23=\"MENSUAL\"),N17,\"\"))))","v":""},{"$f":"IF(AND($N$23=\"ANUAL\",$J$23=\"MENSUAL\"),$N$17/12+N50,IF(AND(N23=\"SEMESTRAL\",J23=\"MENSUAL\"),N17/6+N50,IF(AND(N23=\"TRIMESTRAL\",J23=\"MENSUAL\"),N17/3+N50,IF(AND(N23=\"MENSUAL\",J23=\"MENSUAL\"),N17,\"\"))))","v":""}]
[]
[null,null,"NIVEL DE SEGREGACIÓN *"]
[null,null,"UNIDAD SEGREGADA (Ej. Facultad, Programa Académico, Área)",null,null,null,"RESULTADO",null,null,null,"ANÁLISIS DE DATOS SEGREGADO"]
[]
[]
[]
[]
[]
[]
[]
[]
[]
[]
[]
[]
[]
[]
[]
[]
[]
[]
[null,null,null,null,null,null,"Estratégico",null,null,"Eficacia"]
[null,null,null,null,null,null,"Misional",null,null,"Eficiencia"]
[null,null,null,null,null,null,"Apoyo",null,null,"Acreditación"]
[null,null,null,null,null,null,"Seguimiento, Medición, Análisis y Evaluación",null,null,"Positiva"]
[null,null,null,null,null,null,"Direccionamiento Estratégico",null,null,"Negativa"]
[null,null,null,null,null,null,"Planeación Institucional",null,null,"Por Unidad Regional"]
[null,null,null,null,null,null,"Proyectos Especiales y Relaciones Interinstitucionales",null,null,"Por Facultad"]
[null,null,null,null,null,null,"Sistemas Integrados",null,null,"Por Programa Académico"]
[null,null,null,null,null,null,"Autoevaluación y Acreditación",null,null,"Por área"]
[null,null,null,null,null,null,"Comunicaciones",null,null,"Por Laboratorio"]
[null,null,null,null,null,null,"Formación y Aprendizaje",null,null,"Otros"]
[null,null,null,null,null,null,"Ciencia, Tecnología e Innovación",null,null,"No Aplica"]
[null,null,null,null,null,null,"Interacción Social Universitaria"]
[null,null,null,null,null,null,"Bienestar Universitario"]
[null,null,null,null,null,null,"Admisiones y Registro"]
[null,null,null,null,null,null,"Graduados"]
[null,null,null,null,null,null,"Dialogando con el Mundo"]
[null,null,null,null,null,null,"Talento Humano"]
[null,null,null,null,null,null,"Jurídica"]
[null,null,null,null,null,null,"Financiera"]
[null,null,null,null,null,null,"Sistemas y Tecnología"]
[null,null,null,null,null,null,"Bienes y Servicios"]
[null,null,null,null,null,null,"Documental"]
[null,null,null,null,null,null,"Apoyo Académico"]
[null,null,null,null,null,null,"Control Interno"]
[null,null,null,null,null,null,"Control Disciplinario"]
[null,null,null,null,null,null,"Servicio de Atención al Ciudadano"]

{"sheet":"INS-2","index":17,"n_rows":103,"n_cols":15,"rows_kept":103,"cut":false,"hidden":true,"merged":[[63,2,63,5],[63,6,63,9],[63,10,63,14],[64,2,64,5],[64,6,64,9],[64,10,64,14],[61,2,61,5],[61,6,61,9],[61,10,61,14],[62,2,62,5],[62,6,62,9],[62,10,62,14],[59,2,59,5],[59,6,59,9],[59,10,59,14],[60,2,60,5],[60,6,60,9],[60,10,60,14],[58,2,58,5],[58,6,58,9],[58,10,58,14],[26,15,27,15],[27,9,41,14],[42,9,42,14],[43,9,44,14],[45,9,45,14],[46,9,46,14],[49,2,49,14],[56,2,56,14],[57,2,57,5],[57,6,57,9],[57,10,57,14],[22,13,23,14],[23,2,23,3],[23,4,23,6],[25,2,25,14],[26,2,47,8],[26,9,26,14],[47,9,47,14],[22,2,22,3],[22,4,22,6],[22,7,23,8],[22,9,23,10],[22,11,23,12],[19,2,21,3],[19,4,21,6],[19,7,21,8],[19,9,21,10],[19,11,19,14],[16,15,17,15],[17,2,18,3],[17,4,17,5],[17,6,17,10],[17,11,18,12],[17,13,18,14],[18,4,18,5],[18,6,18,10],[16,2,16,3],[16,4,16,6],[16,7,16,8],[16,9,16,10],[16,11,16,12],[16,13,16,14],[15,2,15,14],[8,2,8,14],[9,2,10,14],[11,2,11,3],[11,4,11,7],[11,8,11,9],[11,10,11,14],[12,2,12,3],[12,4,12,14],[13,2,13,3],[13,4,13,14],[14,2,14,14],[1,1,3,2],[4,2,7,3],[4,4,4,11],[4,12,4,14],[5,4,5,11],[5,12,5,14],[6,4,7,11],[6,12,6,14],[7,12,7,14]]}
[]
[null,"      REGRESAR"]
[]
[]
[null,null,null,null,"MACROPROCESO ESTRATÉGICO",null,null,null,null,null,null,null,"CÓDIGO: ESGr027"]
[null,null,null,null,"PROCESO GESTIÓN SISTEMAS INTEGRADOS",null,null,null,null,null,null,null,"VERSIÓN: 7"]
[null,null,null,null,"MATRIZ DE MEDICIÓN Y SEGUIMIENTO A LOS PROCESOS DE GESTIÓN",null,null,null,null,null,null,null,"VIGENCIA: 2020-03-20"]
[null,null,null,null,null,null,null,null,null,null,null,null,"PÁGINA: 1 de 1"]
[]
[null,null,"FICHA DE INDICADOR"]
[]
[null,null,"MACROPROCESO",null,"Seguimiento, Medición, Análisis y Evaluación",null,null,null,"NOMBRE DEL INDICADOR",null,"Nivel de mejoramiento "]
[null,null,"PROCESO GESTIÓN",null,"Control Interno"]
[null,null,"RESPONSABLE DE MEDICIÓN",null,"Director(a) de Control Interno"]
[]
[null,null,"1. COMPORTAMIENTO DE INDICADOR"]
[null,null,"CLASIFICACIÓN DE LA MEDICIÓN",null,1,null,null,"TIPO DE INDICADOR",null,"Eficacia",null,"META ANUAL",null,0.8]
[null,null,"FÓRMULA",null,"NUMERADOR",null,"Mejoras cerradas*100",null,null,null,null,"UNIDAD DE MEDIDA",null,"Porcentual"]
[null,null,null,null,"DENOMINADOR",null,"Total de mejoras por proceso"]
[null,null,"TENDENCIA",null,"Positiva",null,null,"NIVEL DE SEGREGACIÓN *",null,"No Aplica",null,"ESCALA"]
[null,null,null,null,null,null,null,null,null,null,null,"Deficiente","Aceptable","Bueno","Excelente"]
[null,null,null,null,null,null,null,null,null,null,null,"0% - 60%","61% - 70%","71% - 79%","80 %- 100%"]
[null,null,"ORIGEN DE DATOS NUMERADOR",null,"Base de datos seguimiento al avance de planes de mejora",null,null,"FRECUENCIA DE LA MEDICIÓN",null,"TRIMESTRAL",null,"FRECUENCIA DE RESULTADO",null,"TRIMESTRAL"]
[null,null,"ORIGEN DE DATOS DENOMINADOR",null,"Base de datos seguimiento al avance de planes de mejora"]
[]
[null,null,"RESULTADOS"]
[null,null,null,null,null,null,null,null,null,"ANÁLISIS DE DATOS"]
[null,null,null,null,null,null,null,null,null,"TRIMESTRE I:\nPara el primer trimestre de la vigencia 2021 se generan un total de 21 Planes de Mejoramiento Interno y se cierran un total de 2 Planes de Mejoramiento. Lo anterior como resultado del cargue de los hallazgos derivados de la Auditoria Interna tercerizada realizada al Sistema de Gestión de Seguridad y Salud en el Trabajo, Auditoria de ICONTEC  y Auditorias Internas de Control Interno. \n\nAsí las cosas es evidente el número de Planes de Mejoramiento Abiertos con respecto a los cerrados en el Primer trimestre de la Vigencia 2021, lo cual se aduce que es generado por posibles factores los cuales están alineados a los siguientes aspectos:\n\n- Acciones correctivas que esta supeditadas a la ejecución de terceros.\n\n-\tEstablecimiento de Acciones correctivas con metas superiores a una vigencia lo cual representa Planes de Mejoramiento con periodos largos de ejecución.\n\n- Falta fortalecer el autocontol y autogestion de los procesos en temas de administracion de la plataforma de planes de mejoramiento,\n\nMotivo por el cual es importante que se den las acciones necesarias por parte de cada uno del proceso a fin de dar avance y cumplimiento a los Planes de Mejoramiento. \n\nTRIMESTRE II: \nPara el II trimestre de la vigencia 2021 se generan un total de 12 Planes de Mejoramiento Internos, y se cierran un total de 10 Planes de Mejoramiento. Lo anterior como resultado del cargue de los hallazgos derivados de auditorias internas de Control Interno. De igual forma como se manifiesta en la medición del indicador anterior, se evidencia un numero de Planes de Mejoramiento inferior a los aperturados, peroe esto es debido las siguientes posibles causas:\n\n- Acciones correctivas que esta supeditadas a la ejecución de terceros.\n\n- Establecimiento de Acciones correctivas con metas superiores a una vigencia lo cual representa Planes de Mejoramiento con periodos largos de ejecución.\n\n- Falta fortalecer el autocontol y autogestion de los procesos en temas de administracion de la plataforma de planes de mejoramiento,\n\nMotivo por el cual es importante que se den las acciones necesarias por parte de cada uno del proceso a fin de dar avance y cumplimiento a los Planes de Mejoramiento\n\n"]
[]
[]
[]
[]
[]
[]
[]
[]
[]
[]
[]
[]
[]
[]
[null,null,null,null,null,null,null,null,null,"ACCIÓN FORMULADA"]
[null,null,null,null,null,null,null,null,null,"Se establece el Plan de Mejoramiento Interno No. 584 el cual tiene como fin generar lineamientos que permitan generar trazabilidad y medicion de los datos de manera exacta.\n\nDe igual forma se solicita la actualización del Aplicativo de Control Interno \"Acciones Correctivas y de Mejora\", a fin de tener estados de avance en los Planes de Mejoramiento Internos mas exactos, lo cual permite tener analiticas relevantes y oportunas para la toma de decisiones. "]
[]
[null,null,null,null,null,null,null,null,null,"RESPONSABLE "]
[null,null,null,null,null,null,null,null,null,{"$f":"E14","v":"Director(a) de Control Interno"}]
[]
[]
[null,null,"PERIODO DE EVALUACIÓN"]
[null,null,"MES",{"$f":"IF(J23=\"MENSUAL\",\"ENERO\",IF(J23=\"TRIMESTRAL\",\"MARZO\",IF(J23=\"SEMESTRAL\",\"JUNIO\",IF(J23=\"ANUAL\",YEAR(TODAY()),\"\"))))","v":"MARZO"},{"$f":"IF(J23=\"MENSUAL\",\"FEBRERO\",IF(J23=\"TRIMESTRAL\",\"JUNIO\",IF(J23=\"SEMESTRAL\",\"DICIEMBRE\",\"\")))","v":"JUNIO"},{"$f":"IF(J23=\"MENSUAL\",\"MARZO\",IF(J23=\"TRIMESTRAL\",\"SEPTIEMBRE\",\"\"))","v":"SEPTIEMBRE"},{"$f":"IF(J23=\"MENSUAL\",\"ABRIL\",IF(J23=\"TRIMESTRAL\",\"DICIEMBRE\",\"\"))","v":"DICIEMBRE"},{"$f":"IF(J23=\"MENSUAL\",\"MAYO\",\"\")","v":""},{"$f":"IF(J23=\"MENSUAL\",\"JUNIO\",\"\")","v":""},{"$f":"IF(J23=\"MENSUAL\",\"JULIO\",\"\")","v":""},{"$f":"IF(J23=\"MENSUAL\",\"AGOSTO\",\"\")","v":""},{"$f":"IF(J23=\"MENSUAL\",\"SEPTIEMBRE\",\"\")","v":""},{"$f":"IF(J23=\"MENSUAL\",\"OCTUBRE\",\"\")","v":""},{"$f":"IF(J23=\"MENSUAL\",\"NOVIEMBRE\",\"\")","v":""},{"$f":"IF(J23=\"MENSUAL\",\"DICIEMBRE\",\"\")","v":""}]
[null,null,{"$f":"G18","v":"Mejoras cerradas*100"},190,200]
[null,null,{"$f":"G19","v":"Total de mejoras por proceso"},331,343]
[null,null,"VALOR ",{"$f":"IFERROR(IF($E$17=1,D52/D53,IF($E$17=2,D52,\"\")),\"\")","v":0.57401812688821752},0.58309037900874638,"","","","","","","","","",""]
[null,null,"META PONDERADA",{"$f":"IF(AND(N23=\"ANUAL\",J23=\"MENSUAL\"),N17/12,IF(AND(N23=\"ANUAL\",J23=\"TRIMESTRAL\"),N17/4,IF(AND(N23=\"ANUAL\",J23=\"SEMESTRAL\"),N17/2,IF(AND(N23=\"ANUAL\",J23=\"ANUAL\"),N17,IF(AND(N23=\"SEMESTRAL\",J23=\"MENSUAL\"),N17/6,IF(AND(N23=\"SEMESTRAL\",J23=\"TRIMESTRAL\"),N17/2,IF(AND(N23=\"SEMESTRAL\",J23=\"SEMESTRAL\"),N17,IF(AND(N23=\"SEMESTRAL\",J23=\"ANUAL\"),\"REVISAR FRECUENCIAS\",IF(AND(N23=\"TRIMESTRAL\",J23=\"MENSUAL\"),N17/3,IF(AND(N23=\"TRIMESTRAL\",J23=\"TRIMESTRAL\"),N17,IF(AND(N23=\"TRIMESTRAL\",J23=\"SEMESTRAL\"),\"REVISAR FRECUENCIAS\",IF(AND(N23=\"TRIMESTRAL\",J23=\"ANUAL\"),\"REVISAR FRECUENCIAS\",IF(AND(N23=\"MENSUAL\",J23=\"MENSUAL\"),N17,IF(AND(N23=\"MENSUAL\",J23=\"TRIMESTRAL\"),\"REVISAR FRECUENCIAS\",IF(AND(N23=\"MENSUAL\",J23=\"SEMESTRAL\"),\"REVISAR FRECUENCIAS\",IF(AND(N23=\"MENSUAL\",J23=\"ANUAL\"),\"REVISAR FRECUENCIAS\",\"\"))))))))))))))))","v":0.8},{"$f":"IF(AND(N23=\"ANUAL\",J23=\"MENSUAL\"),N17/12+D55,IF(AND(N23=\"ANUAL\",J23=\"TRIMESTRAL\"),N17/4+D55,IF(AND(N23=\"ANUAL\",J23=\"SEMESTRAL\"),N17/2+D55,IF(AND(N23=\"SEMESTRAL\",J23=\"MENSUAL\"),N17/6+D55,IF(AND(N23=\"SEMESTRAL\",J23=\"TRIMESTRAL\"),N17/2+D55,IF(AND(N23=\"SEMESTRAL\",J23=\"SEMESTRAL\"),N17,IF(AND(N23=\"TRIMESTRAL\",J23=\"MENSUAL\"),N17/3+D55,IF(AND(N23=\"TRIMESTRAL\",J23=\"TRIMESTRAL\"),N17,IF(AND(N23=\"MENSUAL\",J23=\"MENSUAL\"),N17,\"\")))))))))","v":0.8},{"$f":"IF(AND(N23=\"ANUAL\",J23=\"MENSUAL\"),N17/12+E55,IF(AND(N23=\"ANUAL\",J23=\"TRIMESTRAL\"),N17/4+E55,IF(AND(N23=\"SEMESTRAL\",J23=\"MENSUAL\"),N17/6+E55,IF(AND(N23=\"SEMESTRAL\",J23=\"TRIMESTRAL\"),N17/2,IF(AND(N23=\"TRIMESTRAL\",J23=\"MENSUAL\"),N17/3+E55,IF(AND(N23=\"TRIMESTRAL\",J23=\"TRIMESTRAL\"),N17,IF(AND(N23=\"MENSUAL\",J23=\"MENSUAL\"),N17,\"\")))))))","v":0.8},{"$f":"IF(AND(N23=\"ANUAL\",J23=\"MENSUAL\"),N17/12+F55,IF(AND(N23=\"ANUAL\",J23=\"TRIMESTRAL\"),N17/4+F55,IF(AND(N23=\"SEMESTRAL\",J23=\"MENSUAL\"),N17/6+F55,IF(AND(N23=\"SEMESTRAL\",J23=\"TRIMESTRAL\"),N17/2+F55,IF(AND(N23=\"TRIMESTRAL\",J23=\"MENSUAL\"),N17/3,IF(AND(N23=\"TRIMESTRAL\",J23=\"TRIMESTRAL\"),N17,IF(AND(N23=\"MENSUAL\",J23=\"MENSUAL\"),N17,\"\")))))))","v":0.8},{"$f":"IF(AND($N$23=\"ANUAL\",$J$23=\"MENSUAL\"),$N$17/12+G55,IF(AND(N23=\"SEMESTRAL\",J23=\"MENSUAL\"),N17/6+G55,IF(AND(N23=\"TRIMESTRAL\",J23=\"MENSUAL\"),N17/3+G55,IF(AND(N23=\"MENSUAL\",J23=\"MENSUAL\"),N17,\"\"))))","v":""},{"$f":"IF(AND($N$23=\"ANUAL\",$J$23=\"MENSUAL\"),$N$17/12+H55,IF(AND(N23=\"SEMESTRAL\",J23=\"MENSUAL\"),N17/6+H55,IF(AND(N23=\"TRIMESTRAL\",J23=\"MENSUAL\"),N17/3+H55,IF(AND(N23=\"MENSUAL\",J23=\"MENSUAL\"),N17,\"\"))))","v":""},{"$f":"IF(AND($N$23=\"ANUAL\",$J$23=\"MENSUAL\"),$N$17/12+I55,IF(AND(N23=\"SEMESTRAL\",J23=\"MENSUAL\"),N17/6,IF(AND(N23=\"TRIMESTRAL\",J23=\"MENSUAL\"),N17/3,IF(AND(N23=\"MENSUAL\",J23=\"MENSUAL\"),N17,\"\"))))","v":""},{"$f":"IF(AND($N$23=\"ANUAL\",$J$23=\"MENSUAL\"),$N$17/12+J55,IF(AND(N23=\"SEMESTRAL\",J23=\"MENSUAL\"),N17/6+J55,IF(AND(N23=\"TRIMESTRAL\",J23=\"MENSUAL\"),N17/3+J55,IF(AND(N23=\"MENSUAL\",J23=\"MENSUAL\"),N17,\"\"))))","v":""},{"$f":"IF(AND($N$23=\"ANUAL\",$J$23=\"MENSUAL\"),$N$17/12+K55,IF(AND(N23=\"SEMESTRAL\",J23=\"MENSUAL\"),N17/6+K55,IF(AND(N23=\"TRIMESTRAL\",J23=\"MENSUAL\"),N17/3+K55,IF(AND(N23=\"MENSUAL\",J23=\"MENSUAL\"),N17,\"\"))))","v":""},{"$f":"IF(AND($N$23=\"ANUAL\",$J$23=\"MENSUAL\"),$N$17/12+L55,IF(AND(N23=\"SEMESTRAL\",J23=\"MENSUAL\"),N17/6+L55,IF(AND(N23=\"TRIMESTRAL\",J23=\"MENSUAL\"),N17/3,IF(AND(N23=\"MENSUAL\",J23=\"MENSUAL\"),N17,\"\"))))","v":""},{"$f":"IF(AND($N$23=\"ANUAL\",$J$23=\"MENSUAL\"),$N$17/12+M55,IF(AND(N23=\"SEMESTRAL\",J23=\"MENSUAL\"),N17/6+M55,IF(AND(N23=\"TRIMESTRAL\",J23=\"MENSUAL\"),N17/3+M55,IF(AND(N23=\"MENSUAL\",J23=\"MENSUAL\"),N17,\"\"))))","v":""},{"$f":"IF(AND($N$23=\"ANUAL\",$J$23=\"MENSUAL\"),$N$17/12+N55,IF(AND(N23=\"SEMESTRAL\",J23=\"MENSUAL\"),N17/6+N55,IF(AND(N23=\"TRIMESTRAL\",J23=\"MENSUAL\"),N17/3+N55,IF(AND(N23=\"MENSUAL\",J23=\"MENSUAL\"),N17,\"\"))))","v":""}]
[]
[null,null,"NIVEL DE SEGREGACIÓN *"]
[null,null,"UNIDAD SEGREGADA (Ej. Facultad, Programa Académico, Área)",null,null,null,"RESULTADO",null,null,null,"ANÁLISIS DE DATOS SEGREGADO"]
[]
[]
[]
[]
[]
[]
[]
[]
[]
[]
[]
[]
[]
[]
[]
[]
[]
[]
[null,null,null,null,null,null,"Estratégico",null,null,"Eficacia"]
[null,null,null,null,null,null,"Misional",null,null,"Eficiencia"]
[null,null,null,null,null,null,"Apoyo",null,null,"Acreditación"]
[null,null,null,null,null,null,"Seguimiento, Medición, Análisis y Evaluación",null,null,"Positiva"]
[null,null,null,null,null,null,"Direccionamiento Estratégico",null,null,"Negativa"]
[null,null,null,null,null,null,"Planeación Institucional",null,null,"Por Unidad Regional"]
[null,null,null,null,null,null,"Proyectos Especiales y Relaciones Interinstitucionales",null,null,"Por Facultad"]
[null,null,null,null,null,null,"Sistemas Integrados",null,null,"Por Programa Académico"]
[null,null,null,null,null,null,"Autoevaluación y Acreditación",null,null,"Por área"]
[null,null,null,null,null,null,"Comunicaciones",null,null,"Por Laboratorio"]
[null,null,null,null,null,null,"Formación y Aprendizaje",null,null,"Otros"]
[null,null,null,null,null,null,"Ciencia, Tecnología e Innovación",null,null,"No Aplica"]
[null,null,null,null,null,null,"Interacción Social Universitaria"]
[null,null,null,null,null,null,"Bienestar Universitario"]
[null,null,null,null,null,null,"Admisiones y Registro"]
[null,null,null,null,null,null,"Graduados"]
[null,null,null,null,null,null,"Dialogando con el Mundo"]
[null,null,null,null,null,null,"Talento Humano"]
[null,null,null,null,null,null,"Jurídica"]
[null,null,null,null,null,null,"Financiera"]
[null,null,null,null,null,null,"Sistemas y Tecnología"]
[null,null,null,null,null,null,"Bienes y Servicios"]
[null,null,null,null,null,null,"Documental"]
[null,null,null,null,null,null,"Apoyo Académico"]
[null,null,null,null,null,null,"Control Interno"]
[null,null,null,null,null,null,"Control Disciplinario"]
[null,null,null,null,null,null,"Servicio de Atención al Ciudadano"]

{"sheet":"INS-5","index":18,"n_rows":94,"n_cols":15,"rows_kept":94,"cut":false,"hidden":true,"merged":[[54,2,54,5],[54,6,54,9],[54,10,54,14],[55,2,55,5],[55,6,55,9],[55,10,55,14],[52,2,52,5],[52,6,52,9],[52,10,52,14],[53,2,53,5],[53,6,53,9],[53,10,53,14],[50,2,50,5],[50,6,50,9],[50,10,50,14],[51,2,51,5],[51,6,51,9],[51,10,51,14],[49,2,49,5],[49,6,49,9],[49,10,49,14],[26,15,27,15],[27,9,32,14],[33,9,33,14],[34,9,35,14],[36,9,36,14],[37,9,37,14],[40,2,40,14],[47,2,47,14],[48,2,48,5],[48,6,48,9],[48,10,48,14],[22,13,23,14],[23,2,23,3],[23,4,23,6],[25,2,25,14],[26,2,38,8],[26,9,26,14],[38,9,38,14],[22,2,22,3],[22,4,22,6],[22,7,23,8],[22,9,23,10],[22,11,23,12],[19,2,21,3],[19,4,21,6],[19,7,21,8],[19,9,21,10],[19,11,19,14],[16,15,17,15],[17,2,18,3],[17,4,17,5],[17,6,17,10],[17,11,18,12],[17,13,18,14],[18,4,18,5],[18,6,18,10],[16,2,16,3],[16,4,16,6],[16,7,16,8],[16,9,16,10],[16,11,16,12],[16,13,16,14],[15,2,15,14],[8,2,8,14],[9,2,10,14],[11,2,11,3],[11,4,11,7],[11,8,11,9],[11,10,11,14],[12,2,12,3],[12,4,12,14],[13,2,13,3],[13,4,13,14],[14,2,14,14],[1,1,3,2],[4,2,7,3],[4,4,4,11],[4,12,4,14],[5,4,5,11],[5,12,5,14],[6,4,7,11],[6,12,6,14],[7,12,7,14]]}
[]
[null,"      REGRESAR"]
[]
[]
[null,null,null,null,"MACROPROCESO ESTRATÉGICO",null,null,null,null,null,null,null,"CÓDIGO: ESGr027"]
[null,null,null,null,"PROCESO GESTIÓN SISTEMAS INTEGRADOS",null,null,null,null,null,null,null,"VERSIÓN: 7"]
[null,null,null,null,"MATRIZ DE MEDICIÓN Y SEGUIMIENTO A LOS PROCESOS DE GESTIÓN",null,null,null,null,null,null,null,"VIGENCIA: 2020-03-20"]
[null,null,null,null,null,null,null,null,null,null,null,null,"PÁGINA: 1 de 1"]
[]
[null,null,"FICHA DE INDICADOR"]
[]
[null,null,"MACROPROCESO",null,"Seguimiento, Medición, Análisis y Evaluación",null,null,null,"NOMBRE DEL INDICADOR",null,"Eficacia en el control de riesgos"]
[null,null,"PROCESO GESTIÓN",null,"Control Interno"]
[null,null,"RESPONSABLE DE MEDICIÓN",null,"Director(a) de Control Interno"]
[]
[null,null,"1. COMPORTAMIENTO DE INDICADOR"]
[null,null,"CLASIFICACIÓN DE LA MEDICIÓN",null,1,null,null,"TIPO DE INDICADOR",null,"Eficacia",null,"META ANUAL",null,0.65]
[null,null,"FÓRMULA",null,"NUMERADOR",null,"No. de riesgos residuales (A - E) residuales operativos institucionales controlados*100",null,null,null,null,"UNIDAD DE MEDIDA",null,"Porcentual"]
[null,null,null,null,"DENOMINADOR",null,"Total de riesgos Altos y Extremos residuales operativos institucionales"]
[null,null,"TENDENCIA",null,"Positiva",null,null,"NIVEL DE SEGREGACIÓN *",null,"No Aplica",null,"ESCALA"]
[null,null,null,null,null,null,null,null,null,null,null,"Deficiente","Aceptable","Bueno","Excelente"]
[null,null,null,null,null,null,null,null,null,null,null,"0%-44%","46%-54%","55%-65%",">66%"]
[null,null,"ORIGEN DE DATOS NUMERADOR",null,"Matrices de Riesgo",null,null,"FRECUENCIA DE LA MEDICIÓN",null,"SEMESTRAL",null,"FRECUENCIA DE RESULTADO",null,"SEMESTRAL"]
[null,null,"ORIGEN DE DATOS DENOMINADOR",null,"Matrices de Riesgo"]
[]
[null,null,"RESULTADOS"]
[null,null,null,null,null,null,null,null,null,"ANÁLISIS DE DATOS"]
[null,null,null,null,null,null,null,null,null,"En abril de 2021 se hace seguimiento a la eficacia en el control de los riesgos de tal manera que se identifican 5 riesgos institucionales materializados asi: 1) Incumplimiento en actividades y metas propias del proceso evidenciandose en el proceso de bienes y servicios incumplimiento al indicador de oportunidad de la compras con corte a diciembre de 2020 el cual refleja un resultado del 59% con una meta del 80%; 2) Inadecuada implementacion del procesos, dado que se evidencia en las auditorias de control interno y las interna de calidad y SGSST incumplimientos en la actualizacion e implementacion de procedimientos al interior de los procesos; 3) Potencial daño o deterioro de activos de la universidad, en tanto que se repiten hallazgos del ente de control externo relacionado con planes de mejoramiento orientados a la chatarrizacion de los vehiculos; 4)sanciones disciplinarias o pecuniarias por parte del ente de control; a la fecha no se ha producido sanciones sin embargo el informe de control interno contable de febrero de 2021 refleja el factor 121 como posible riesgos sancionatorio 5)Aplicacion inadecuada de lineamientos institucionales, llama la atención que no se precisa una alineacion de indicadores de calidad y planeacion con el fin de definir los indicadores estrategicos , esto como resultado de la revision por la direccion 2020."]
[]
[]
[]
[]
[]
[null,null,null,null,null,null,null,null,null,"ACCIÓN FORMULADA"]
[]
[]
[null,null,null,null,null,null,null,null,null,"RESPONSABLE "]
[null,null,null,null,null,null,null,null,null,{"$f":"E14","v":"Director(a) de Control Interno"}]
[]
[]
[null,null,"PERIODO DE EVALUACIÓN"]
[null,null,"MES",{"$f":"IF(J23=\"MENSUAL\",\"ENERO\",IF(J23=\"TRIMESTRAL\",\"MARZO\",IF(J23=\"SEMESTRAL\",\"JUNIO\",IF(J23=\"ANUAL\",YEAR(TODAY()),\"\"))))","v":"JUNIO"},{"$f":"IF(J23=\"MENSUAL\",\"FEBRERO\",IF(J23=\"TRIMESTRAL\",\"JUNIO\",IF(J23=\"SEMESTRAL\",\"DICIEMBRE\",\"\")))","v":"DICIEMBRE"},{"$f":"IF(J23=\"MENSUAL\",\"MARZO\",IF(J23=\"TRIMESTRAL\",\"SEPTIEMBRE\",\"\"))","v":""},{"$f":"IF(J23=\"MENSUAL\",\"ABRIL\",IF(J23=\"TRIMESTRAL\",\"DICIEMBRE\",\"\"))","v":""},{"$f":"IF(J23=\"MENSUAL\",\"MAYO\",\"\")","v":""},{"$f":"IF(J23=\"MENSUAL\",\"JUNIO\",\"\")","v":""},{"$f":"IF(J23=\"MENSUAL\",\"JULIO\",\"\")","v":""},{"$f":"IF(J23=\"MENSUAL\",\"AGOSTO\",\"\")","v":""},{"$f":"IF(J23=\"MENSUAL\",\"SEPTIEMBRE\",\"\")","v":""},{"$f":"IF(J23=\"MENSUAL\",\"OCTUBRE\",\"\")","v":""},{"$f":"IF(J23=\"MENSUAL\",\"NOVIEMBRE\",\"\")","v":""},{"$f":"IF(J23=\"MENSUAL\",\"DICIEMBRE\",\"\")","v":""}]
[null,null,{"$f":"G18","v":"No. de riesgos residuales (A - E) residuales operativos institucionales controlados*100"},5]
[null,null,{"$f":"G19","v":"Total de riesgos Altos y Extremos residuales operativos institucionales"},11]
[null,null,"VALOR ",{"$f":"IFERROR(IF($E$17=1,D43/D44,IF($E$17=2,D43,\"\")),\"\")","v":0.45454545454545453},"","","","","","","","","","",""]
[null,null,"META PONDERADA",{"$f":"IF(AND(N23=\"ANUAL\",J23=\"MENSUAL\"),N17/12,IF(AND(N23=\"ANUAL\",J23=\"TRIMESTRAL\"),N17/4,IF(AND(N23=\"ANUAL\",J23=\"SEMESTRAL\"),N17/2,IF(AND(N23=\"ANUAL\",J23=\"ANUAL\"),N17,IF(AND(N23=\"SEMESTRAL\",J23=\"MENSUAL\"),N17/6,IF(AND(N23=\"SEMESTRAL\",J23=\"TRIMESTRAL\"),N17/2,IF(AND(N23=\"SEMESTRAL\",J23=\"SEMESTRAL\"),N17,IF(AND(N23=\"SEMESTRAL\",J23=\"ANUAL\"),\"REVISAR FRECUENCIAS\",IF(AND(N23=\"TRIMESTRAL\",J23=\"MENSUAL\"),N17/3,IF(AND(N23=\"TRIMESTRAL\",J23=\"TRIMESTRAL\"),N17,IF(AND(N23=\"TRIMESTRAL\",J23=\"SEMESTRAL\"),\"REVISAR FRECUENCIAS\",IF(AND(N23=\"TRIMESTRAL\",J23=\"ANUAL\"),\"REVISAR FRECUENCIAS\",IF(AND(N23=\"MENSUAL\",J23=\"MENSUAL\"),N17,IF(AND(N23=\"MENSUAL\",J23=\"TRIMESTRAL\"),\"REVISAR FRECUENCIAS\",IF(AND(N23=\"MENSUAL\",J23=\"SEMESTRAL\"),\"REVISAR FRECUENCIAS\",IF(AND(N23=\"MENSUAL\",J23=\"ANUAL\"),\"REVISAR FRECUENCIAS\",\"\"))))))))))))))))","v":0.65},{"$f":"IF(AND(N23=\"ANUAL\",J23=\"MENSUAL\"),N17/12+D46,IF(AND(N23=\"ANUAL\",J23=\"TRIMESTRAL\"),N17/4+D46,IF(AND(N23=\"ANUAL\",J23=\"SEMESTRAL\"),N17/2+D46,IF(AND(N23=\"SEMESTRAL\",J23=\"MENSUAL\"),N17/6+D46,IF(AND(N23=\"SEMESTRAL\",J23=\"TRIMESTRAL\"),N17/2+D46,IF(AND(N23=\"SEMESTRAL\",J23=\"SEMESTRAL\"),N17,IF(AND(N23=\"TRIMESTRAL\",J23=\"MENSUAL\"),N17/3+D46,IF(AND(N23=\"TRIMESTRAL\",J23=\"TRIMESTRAL\"),N17,IF(AND(N23=\"MENSUAL\",J23=\"MENSUAL\"),N17,\"\")))))))))","v":0.65},{"$f":"IF(AND(N23=\"ANUAL\",J23=\"MENSUAL\"),N17/12+E46,IF(AND(N23=\"ANUAL\",J23=\"TRIMESTRAL\"),N17/4+E46,IF(AND(N23=\"SEMESTRAL\",J23=\"MENSUAL\"),N17/6+E46,IF(AND(N23=\"SEMESTRAL\",J23=\"TRIMESTRAL\"),N17/2,IF(AND(N23=\"TRIMESTRAL\",J23=\"MENSUAL\"),N17/3+E46,IF(AND(N23=\"TRIMESTRAL\",J23=\"TRIMESTRAL\"),N17,IF(AND(N23=\"MENSUAL\",J23=\"MENSUAL\"),N17,\"\")))))))","v":""},{"$f":"IF(AND(N23=\"ANUAL\",J23=\"MENSUAL\"),N17/12+F46,IF(AND(N23=\"ANUAL\",J23=\"TRIMESTRAL\"),N17/4+F46,IF(AND(N23=\"SEMESTRAL\",J23=\"MENSUAL\"),N17/6+F46,IF(AND(N23=\"SEMESTRAL\",J23=\"TRIMESTRAL\"),N17/2+F46,IF(AND(N23=\"TRIMESTRAL\",J23=\"MENSUAL\"),N17/3,IF(AND(N23=\"TRIMESTRAL\",J23=\"TRIMESTRAL\"),N17,IF(AND(N23=\"MENSUAL\",J23=\"MENSUAL\"),N17,\"\")))))))","v":""},{"$f":"IF(AND($N$23=\"ANUAL\",$J$23=\"MENSUAL\"),$N$17/12+G46,IF(AND(N23=\"SEMESTRAL\",J23=\"MENSUAL\"),N17/6+G46,IF(AND(N23=\"TRIMESTRAL\",J23=\"MENSUAL\"),N17/3+G46,IF(AND(N23=\"MENSUAL\",J23=\"MENSUAL\"),N17,\"\"))))","v":""},{"$f":"IF(AND($N$23=\"ANUAL\",$J$23=\"MENSUAL\"),$N$17/12+H46,IF(AND(N23=\"SEMESTRAL\",J23=\"MENSUAL\"),N17/6+H46,IF(AND(N23=\"TRIMESTRAL\",J23=\"MENSUAL\"),N17/3+H46,IF(AND(N23=\"MENSUAL\",J23=\"MENSUAL\"),N17,\"\"))))","v":""},{"$f":"IF(AND($N$23=\"ANUAL\",$J$23=\"MENSUAL\"),$N$17/12+I46,IF(AND(N23=\"SEMESTRAL\",J23=\"MENSUAL\"),N17/6,IF(AND(N23=\"TRIMESTRAL\",J23=\"MENSUAL\"),N17/3,IF(AND(N23=\"MENSUAL\",J23=\"MENSUAL\"),N17,\"\"))))","v":""},{"$f":"IF(AND($N$23=\"ANUAL\",$J$23=\"MENSUAL\"),$N$17/12+J46,IF(AND(N23=\"SEMESTRAL\",J23=\"MENSUAL\"),N17/6+J46,IF(AND(N23=\"TRIMESTRAL\",J23=\"MENSUAL\"),N17/3+J46,IF(AND(N23=\"MENSUAL\",J23=\"MENSUAL\"),N17,\"\"))))","v":""},{"$f":"IF(AND($N$23=\"ANUAL\",$J$23=\"MENSUAL\"),$N$17/12+K46,IF(AND(N23=\"SEMESTRAL\",J23=\"MENSUAL\"),N17/6+K46,IF(AND(N23=\"TRIMESTRAL\",J23=\"MENSUAL\"),N17/3+K46,IF(AND(N23=\"MENSUAL\",J23=\"MENSUAL\"),N17,\"\"))))","v":""},{"$f":"IF(AND($N$23=\"ANUAL\",$J$23=\"MENSUAL\"),$N$17/12+L46,IF(AND(N23=\"SEMESTRAL\",J23=\"MENSUAL\"),N17/6+L46,IF(AND(N23=\"TRIMESTRAL\",J23=\"MENSUAL\"),N17/3,IF(AND(N23=\"MENSUAL\",J23=\"MENSUAL\"),N17,\"\"))))","v":""},{"$f":"IF(AND($N$23=\"ANUAL\",$J$23=\"MENSUAL\"),$N$17/12+M46,IF(AND(N23=\"SEMESTRAL\",J23=\"MENSUAL\"),N17/6+M46,IF(AND(N23=\"TRIMESTRAL\",J23=\"MENSUAL\"),N17/3+M46,IF(AND(N23=\"MENSUAL\",J23=\"MENSUAL\"),N17,\"\"))))","v":""},{"$f":"IF(AND($N$23=\"ANUAL\",$J$23=\"MENSUAL\"),$N$17/12+N46,IF(AND(N23=\"SEMESTRAL\",J23=\"MENSUAL\"),N17/6+N46,IF(AND(N23=\"TRIMESTRAL\",J23=\"MENSUAL\"),N17/3+N46,IF(AND(N23=\"MENSUAL\",J23=\"MENSUAL\"),N17,\"\"))))","v":""}]
[]
[null,null,"NIVEL DE SEGREGACIÓN *"]
[null,null,"UNIDAD SEGREGADA (Ej. Facultad, Programa Académico, Área)",null,null,null,"RESULTADO",null,null,null,"ANÁLISIS DE DATOS SEGREGADO"]
[]
[]
[]
[]
[]
[]
[]
[]
[]
[]
[]
[]
[]
[]
[]
[]
[]
[]
[null,null,null,null,null,null,"Estratégico",null,null,"Eficacia"]
[null,null,null,null,null,null,"Misional",null,null,"Eficiencia"]
[null,null,null,null,null,null,"Apoyo",null,null,"Acreditación"]
[null,null,null,null,null,null,"Seguimiento, Medición, Análisis y Evaluación",null,null,"Positiva"]
[null,null,null,null,null,null,"Direccionamiento Estratégico",null,null,"Negativa"]
[null,null,null,null,null,null,"Planeación Institucional",null,null,"Por Unidad Regional"]
[null,null,null,null,null,null,"Proyectos Especiales y Relaciones Interinstitucionales",null,null,"Por Facultad"]
[null,null,null,null,null,null,"Sistemas Integrados",null,null,"Por Programa Académico"]
[null,null,null,null,null,null,"Autoevaluación y Acreditación",null,null,"Por área"]
[null,null,null,null,null,null,"Comunicaciones",null,null,"Por Laboratorio"]
[null,null,null,null,null,null,"Formación y Aprendizaje",null,null,"Otros"]
[null,null,null,null,null,null,"Ciencia, Tecnología e Innovación",null,null,"No Aplica"]
[null,null,null,null,null,null,"Interacción Social Universitaria"]
[null,null,null,null,null,null,"Bienestar Universitario"]
[null,null,null,null,null,null,"Admisiones y Registro"]
[null,null,null,null,null,null,"Graduados"]
[null,null,null,null,null,null,"Dialogando con el Mundo"]
[null,null,null,null,null,null,"Talento Humano"]
[null,null,null,null,null,null,"Jurídica"]
[null,null,null,null,null,null,"Financiera"]
[null,null,null,null,null,null,"Sistemas y Tecnología"]
[null,null,null,null,null,null,"Bienes y Servicios"]
[null,null,null,null,null,null,"Documental"]
[null,null,null,null,null,null,"Apoyo Académico"]
[null,null,null,null,null,null,"Control Interno"]
[null,null,null,null,null,null,"Control Disciplinario"]
[null,null,null,null,null,null,"Servicio de Atención al Ciudadano"]

{"sheet":"MGD-1","index":19,"n_rows":98,"n_cols":15,"rows_kept":98,"cut":false,"hidden":false,"merged":[[71,2,71,5],[71,6,71,9],[71,10,71,14],[69,2,69,5],[69,6,69,9],[69,10,69,14],[70,2,70,5],[70,6,70,9],[70,10,70,14],[67,2,67,5],[67,6,67,9],[67,10,67,14],[68,2,68,5],[68,6,68,9],[68,10,68,14],[65,2,65,5],[65,6,65,9],[65,10,65,14],[66,2,66,5],[66,6,66,9],[66,10,66,14],[62,2,62,14],[63,2,63,5],[63,6,63,9],[63,10,63,14],[64,2,64,5],[64,6,64,9],[64,10,64,14],[1,1,3,2],[4,2,7,3],[4,4,4,11],[4,12,4,14],[5,4,5,11],[5,12,5,14],[6,4,7,11],[6,12,6,14],[7,12,7,14],[15,2,15,14],[8,2,8,14],[9,2,10,14],[11,2,11,3],[11,4,11,7],[11,8,11,9],[11,10,11,14],[12,2,12,3],[12,4,12,14],[13,2,13,3],[13,4,13,14],[14,2,14,14],[16,15,17,15],[17,2,18,3],[17,4,17,5],[17,6,17,10],[17,11,18,12],[17,13,18,14],[18,4,18,5],[18,6,18,10],[16,2,16,3],[16,4,16,6],[16,7,16,8],[16,9,16,10],[16,11,16,12],[16,13,16,14],[22,2,22,3],[22,4,22,6],[22,7,23,8],[22,9,23,10],[22,11,23,12],[53,2,53,5],[53,6,53,9],[53,10,53,14],[19,2,21,3],[19,4,21,6],[19,7,21,8],[19,9,21,10],[19,11,19,14],[22,13,23,14],[23,2,23,3],[23,4,23,6],[25,2,25,14],[26,15,27,15],[27,9,32,14],[33,9,33,14],[34,9,39,14],[40,9,40,14],[41,9,41,14],[44,2,44,14],[51,2,51,14],[52,2,52,5],[52,6,52,9],[52,10,52,14],[26,2,42,8],[26,9,26,14],[42,9,42,14],[54,2,54,5],[54,6,54,9],[54,10,54,14],[55,2,55,5],[55,6,55,9],[55,10,55,14],[56,2,56,5],[56,6,56,9],[56,10,56,14],[57,2,57,5],[57,6,57,9],[57,10,57,14],[60,2,60,5],[60,6,60,9],[60,10,60,14],[58,2,58,5],[58,6,58,9],[58,10,58,14],[59,2,59,5],[59,6,59,9],[59,10,59,14]]}
[]
[null,"      REGRESAR"]
[]
[]
[null,null,null,null,"MACROPROCESO ESTRATÉGICO",null,null,null,null,null,null,null,"CÓDIGO: ESGr027"]
[null,null,null,null,"PROCESO GESTIÓN SISTEMAS INTEGRADOS - CALIDAD",null,null,null,null,null,null,null,"VERSIÓN: 8"]
[null,null,null,null,"MATRIZ DE MEDICIÓN Y SEGUIMIENTO A LOS PROCESOS DE GESTIÓN",null,null,null,null,null,null,null,"VIGENCIA: 2023-07-28"]
[null,null,null,null,null,null,null,null,null,null,null,null,"PÁGINA: 2 de 5"]
[]
[null,null,"FICHA DE INDICADOR"]
[]
[null,null,"MACROPROCESO",null,"Misional",null,null,null,"NOMBRE DEL INDICADOR",null,"Satisfacción de Graduados"]
[null,null,"PROCESO GESTIÓN",null,"Graduados"]
[null,null,"RESPONSABLE DE MEDICIÓN",null,"Coordinador(a) Oficina de Graduados"]
[]
[null,null,"1. COMPORTAMIENTO DE INDICADOR"]
[null,null,"CLASIFICACIÓN DE LA MEDICIÓN",null,1,null,null,"TIPO DE INDICADOR",null,"Eficacia",null,"META ANUAL",null,0.6]
[null,null,"FÓRMULA",null,"NUMERADOR",null,"Número de graduados satisfechos *100",null,null,null,null,"UNIDAD DE MEDIDA",null,"Porcentaje"]
[null,null,null,null,"DENOMINADOR",null,"Número de graduados que participan en eventos "]
[null,null,"TENDENCIA",null,"Positiva",null,null,"NIVEL DE SEGREGACIÓN *",null,"Por Unidad Regional",null,"ESCALA"]
[null,null,null,null,null,null,null,null,null,null,null,"Deficiente","Aceptable","Bueno","Excelente"]
[null,null,null,null,null,null,null,null,null,null,null,"0%-20%","21%-44%","45%-59%","60%-100%"]
[null,null,"ORIGEN DE DATOS NUMERADOR",null,"Base de datos resultados encuesta de satisfacción ",null,null,"FRECUENCIA DE LA MEDICIÓN",null,"SEMESTRAL",null,"FRECUENCIA DE RESULTADO",null,"ANUAL"]
[null,null,"ORIGEN DE DATOS DENOMINADOR",null,"Reporte de asistencia actividades"]
[]
[null,null,"RESULTADOS"]
[null,null,null,null,null,null,null,null,null,"ANÁLISIS DE DATOS"]
[null,null,null,null,null,null,null,null,null,"PRIMER SEMESTRE: Teniendo en cuenta la medición para lograr la meta del indicador sobre la participación de los Graduados en las diferentes experiencias que se realizaron durante el IPA 2023, se tiene un cumplimiento del 31% a la meta esperada mediante el desarrollo de las experiencias como acompañamiento a las ceremonias de grado, talleres de normatividad y trámite de tarjeta profesional. \nSEGUNDA SEMESTRE: Teniendo en cuenta la medición para lograr la meta del indicador sobre la participación de los Graduados en las diferentes experiencias que se realizaron durante el IIPA 2023, se tiene un cumplimiento del 52% a la meta esperada mediante el desarrollo de las experiencias como acompañamiento a las ceremonias de grado, talleres de normatividad, V encuentro deportivo y cultural de Graduados, IV congreso de Graduados y trámite de tarjeta profesional. "]
[]
[]
[]
[]
[]
[null,null,null,null,null,null,null,null,null,"ACCIÓN FORMULADA"]
[null,null,null,null,null,null,null,null,null,"Con el propósito de cumplir con éxito cada una de las experiencias propuestas para el IPA y IIPA-2023 por la Oficina de Graduados, se implementaron estrategias como las plataformas digitales mediadas por las TIC y el apoyo de la presencialidad, donde se midió por medio de una encuesta de satisfacción las experiencias virtuales y presenciales, con el propósito de conocer, mejorar y reforzar los aspectos que se presenten en los periodos futuros."]
[]
[]
[]
[]
[]
[null,null,null,null,null,null,null,null,null,"RESPONSABLE "]
[null,null,null,null,null,null,null,null,null,{"$f":"E14","v":"Coordinador(a) Oficina de Graduados"}]
[]
[]
[null,null,"PERIODO DE EVALUACIÓN"]
[null,null,"MES",{"$f":"IF(J23=\"MENSUAL\",\"ENERO\",IF(J23=\"TRIMESTRAL\",\"MARZO\",IF(J23=\"SEMESTRAL\",\"JUNIO\",IF(J23=\"ANUAL\",YEAR(TODAY()),\"\"))))","v":"JUNIO"},{"$f":"IF(J23=\"MENSUAL\",\"FEBRERO\",IF(J23=\"TRIMESTRAL\",\"JUNIO\",IF(J23=\"SEMESTRAL\",\"DICIEMBRE\",\"\")))","v":"DICIEMBRE"},{"$f":"IF(J23=\"MENSUAL\",\"MARZO\",IF(J23=\"TRIMESTRAL\",\"SEPTIEMBRE\",\"\"))","v":""},{"$f":"IF(J23=\"MENSUAL\",\"ABRIL\",IF(J23=\"TRIMESTRAL\",\"DICIEMBRE\",\"\"))","v":""},{"$f":"IF(J23=\"MENSUAL\",\"MAYO\",\"\")","v":""},{"$f":"IF(J23=\"MENSUAL\",\"JUNIO\",\"\")","v":""},{"$f":"IF(J23=\"MENSUAL\",\"JULIO\",\"\")","v":""},{"$f":"IF(J23=\"MENSUAL\",\"AGOSTO\",\"\")","v":""},{"$f":"IF(J23=\"MENSUAL\",\"SEPTIEMBRE\",\"\")","v":""},{"$f":"IF(J23=\"MENSUAL\",\"OCTUBRE\",\"\")","v":""},{"$f":"IF(J23=\"MENSUAL\",\"NOVIEMBRE\",\"\")","v":""},{"$f":"IF(J23=\"MENSUAL\",\"DICIEMBRE\",\"\")","v":""}]
[null,null,{"$f":"G18","v":"Número de graduados satisfechos *100"},1572,2580]
[null,null,{"$f":"G19","v":"Número de graduados que participan en eventos "},5000,5000]
[null,null,"VALOR ",{"$f":"IFERROR(IF($E$17=1,D47/D48,IF($E$17=2,D47,\"\")),\"\")","v":0.31440000000000001},{"$f":"IFERROR(IF($E$17=1,E47/E48,IF($E$17=2,E47,\"\")),\"\")","v":0.51600000000000001},{"$f":"IFERROR(IF($E$17=1,F47/F48,IF($E$17=2,F47,\"\")),\"\")","v":""},"","","","","","","","",""]
[null,null,"META PONDERADA",{"$f":"IF(AND(N23=\"ANUAL\",J23=\"MENSUAL\"),N17/12,IF(AND(N23=\"ANUAL\",J23=\"TRIMESTRAL\"),N17/4,IF(AND(N23=\"ANUAL\",J23=\"SEMESTRAL\"),N17/2,IF(AND(N23=\"ANUAL\",J23=\"ANUAL\"),N17,IF(AND(N23=\"SEMESTRAL\",J23=\"MENSUAL\"),N17/6,IF(AND(N23=\"SEMESTRAL\",J23=\"TRIMESTRAL\"),N17/2,IF(AND(N23=\"SEMESTRAL\",J23=\"SEMESTRAL\"),N17,IF(AND(N23=\"SEMESTRAL\",J23=\"ANUAL\"),\"REVISAR FRECUENCIAS\",IF(AND(N23=\"TRIMESTRAL\",J23=\"MENSUAL\"),N17/3,IF(AND(N23=\"TRIMESTRAL\",J23=\"TRIMESTRAL\"),N17,IF(AND(N23=\"TRIMESTRAL\",J23=\"SEMESTRAL\"),\"REVISAR FRECUENCIAS\",IF(AND(N23=\"TRIMESTRAL\",J23=\"ANUAL\"),\"REVISAR FRECUENCIAS\",IF(AND(N23=\"MENSUAL\",J23=\"MENSUAL\"),N17,IF(AND(N23=\"MENSUAL\",J23=\"TRIMESTRAL\"),\"REVISAR FRECUENCIAS\",IF(AND(N23=\"MENSUAL\",J23=\"SEMESTRAL\"),\"REVISAR FRECUENCIAS\",IF(AND(N23=\"MENSUAL\",J23=\"ANUAL\"),\"REVISAR FRECUENCIAS\",\"\"))))))))))))))))","v":0.3},{"$f":"IF(AND(N23=\"ANUAL\",J23=\"MENSUAL\"),N17/12+D50,IF(AND(N23=\"ANUAL\",J23=\"TRIMESTRAL\"),N17/4+D50,IF(AND(N23=\"ANUAL\",J23=\"SEMESTRAL\"),N17/2+D50,IF(AND(N23=\"SEMESTRAL\",J23=\"MENSUAL\"),N17/6+D50,IF(AND(N23=\"SEMESTRAL\",J23=\"TRIMESTRAL\"),N17/2+D50,IF(AND(N23=\"SEMESTRAL\",J23=\"SEMESTRAL\"),N17,IF(AND(N23=\"TRIMESTRAL\",J23=\"MENSUAL\"),N17/3+D50,IF(AND(N23=\"TRIMESTRAL\",J23=\"TRIMESTRAL\"),N17,IF(AND(N23=\"MENSUAL\",J23=\"MENSUAL\"),N17,\"\")))))))))","v":0.6},{"$f":"IF(AND(N23=\"ANUAL\",J23=\"MENSUAL\"),N17/12+E50,IF(AND(N23=\"ANUAL\",J23=\"TRIMESTRAL\"),N17/4+E50,IF(AND(N23=\"SEMESTRAL\",J23=\"MENSUAL\"),N17/6+E50,IF(AND(N23=\"SEMESTRAL\",J23=\"TRIMESTRAL\"),N17/2,IF(AND(N23=\"TRIMESTRAL\",J23=\"MENSUAL\"),N17/3+E50,IF(AND(N23=\"TRIMESTRAL\",J23=\"TRIMESTRAL\"),N17,IF(AND(N23=\"MENSUAL\",J23=\"MENSUAL\"),N17,\"\")))))))","v":""},{"$f":"IF(AND(N23=\"ANUAL\",J23=\"MENSUAL\"),N17/12+F50,IF(AND(N23=\"ANUAL\",J23=\"TRIMESTRAL\"),N17/4+F50,IF(AND(N23=\"SEMESTRAL\",J23=\"MENSUAL\"),N17/6+F50,IF(AND(N23=\"SEMESTRAL\",J23=\"TRIMESTRAL\"),N17/2+F50,IF(AND(N23=\"TRIMESTRAL\",J23=\"MENSUAL\"),N17/3,IF(AND(N23=\"TRIMESTRAL\",J23=\"TRIMESTRAL\"),N17,IF(AND(N23=\"MENSUAL\",J23=\"MENSUAL\"),N17,\"\")))))))","v":""},{"$f":"IF(AND($N$23=\"ANUAL\",$J$23=\"MENSUAL\"),$N$17/12+G50,IF(AND(N23=\"SEMESTRAL\",J23=\"MENSUAL\"),N17/6+G50,IF(AND(N23=\"TRIMESTRAL\",J23=\"MENSUAL\"),N17/3+G50,IF(AND(N23=\"MENSUAL\",J23=\"MENSUAL\"),N17,\"\"))))","v":""},{"$f":"IF(AND($N$23=\"ANUAL\",$J$23=\"MENSUAL\"),$N$17/12+H50,IF(AND(N23=\"SEMESTRAL\",J23=\"MENSUAL\"),N17/6+H50,IF(AND(N23=\"TRIMESTRAL\",J23=\"MENSUAL\"),N17/3+H50,IF(AND(N23=\"MENSUAL\",J23=\"MENSUAL\"),N17,\"\"))))","v":""},{"$f":"IF(AND($N$23=\"ANUAL\",$J$23=\"MENSUAL\"),$N$17/12+I50,IF(AND(N23=\"SEMESTRAL\",J23=\"MENSUAL\"),N17/6,IF(AND(N23=\"TRIMESTRAL\",J23=\"MENSUAL\"),N17/3,IF(AND(N23=\"MENSUAL\",J23=\"MENSUAL\"),N17,\"\"))))","v":""},{"$f":"IF(AND($N$23=\"ANUAL\",$J$23=\"MENSUAL\"),$N$17/12+J50,IF(AND(N23=\"SEMESTRAL\",J23=\"MENSUAL\"),N17/6+J50,IF(AND(N23=\"TRIMESTRAL\",J23=\"MENSUAL\"),N17/3+J50,IF(AND(N23=\"MENSUAL\",J23=\"MENSUAL\"),N17,\"\"))))","v":""},{"$f":"IF(AND($N$23=\"ANUAL\",$J$23=\"MENSUAL\"),$N$17/12+K50,IF(AND(N23=\"SEMESTRAL\",J23=\"MENSUAL\"),N17/6+K50,IF(AND(N23=\"TRIMESTRAL\",J23=\"MENSUAL\"),N17/3+K50,IF(AND(N23=\"MENSUAL\",J23=\"MENSUAL\"),N17,\"\"))))","v":""},{"$f":"IF(AND($N$23=\"ANUAL\",$J$23=\"MENSUAL\"),$N$17/12+L50,IF(AND(N23=\"SEMESTRAL\",J23=\"MENSUAL\"),N17/6+L50,IF(AND(N23=\"TRIMESTRAL\",J23=\"MENSUAL\"),N17/3,IF(AND(N23=\"MENSUAL\",J23=\"MENSUAL\"),N17,\"\"))))","v":""},{"$f":"IF(AND($N$23=\"ANUAL\",$J$23=\"MENSUAL\"),$N$17/12+M50,IF(AND(N23=\"SEMESTRAL\",J23=\"MENSUAL\"),N17/6+M50,IF(AND(N23=\"TRIMESTRAL\",J23=\"MENSUAL\"),N17/3+M50,IF(AND(N23=\"MENSUAL\",J23=\"MENSUAL\"),N17,\"\"))))","v":""},{"$f":"IF(AND($N$23=\"ANUAL\",$J$23=\"MENSUAL\"),$N$17/12+N50,IF(AND(N23=\"SEMESTRAL\",J23=\"MENSUAL\"),N17/6+N50,IF(AND(N23=\"TRIMESTRAL\",J23=\"MENSUAL\"),N17/3+N50,IF(AND(N23=\"MENSUAL\",J23=\"MENSUAL\"),N17,\"\"))))","v":""}]
[]
[null,null,"NIVEL DE SEGREGACIÓN SEMESTRE I"]
[null,null,"UNIDAD SEGREGADA (Ej. Facultad, Programa Académico, Área)",null,null,null,"RESULTADO",null,null,null,"ANÁLISIS DE DATOS SEGREGADO"]
[null,null,"EXTENSIÓN CHÍA ",null,null,null,9.1999999999999998E-3]
[null,null,"EXTENSIÓN FACATATIVÁ  ",null,null,null,0.10150000000000001]
[null,null,"SEDE FUSAGASUGÁ",null,null,null,0.25580000000000003]
[null,null,"SECCIONAL GIRARDOT ",null,null,null,1.6199999999999999E-2]
[null,null,"EXTENSIÓN SOACHA ",null,null,null,3.0099999999999998E-2]
[null,null,"SECCIONAL UBATÉ ",null,null,null,8.0000000000000002E-3]
[null,null,"EXTENSIÓN ZIPAQUIRÁ",null,null,null,1E-3]
[null,null,"TOTAL ",null,null,null,{"$f":"SUM(G54:G60)","v":0.42180000000000006}]
[]
[null,null,"NIVEL DE SEGREGACIÓN SEMESTRE II"]
[null,null,"UNIDAD SEGREGADA (Ej. Facultad, Programa Académico, Área)",null,null,null,"RESULTADO",null,null,null,"ANÁLISIS DE DATOS SEGREGADO"]
[null,null,"EXTENSIÓN CHÍA ",null,null,null,2E-3]
[null,null,"EXTENSIÓN FACATATIVÁ  ",null,null,null,9.6000000000000002E-2]
[null,null,"SEDE FUSAGASUGÁ",null,null,null,0.24759999999999999]
[null,null,"SECCIONAL GIRARDOT ",null,null,null,0.1002]
[null,null,"EXTENSIÓN SOACHA ",null,null,null,1.9E-3]
[null,null,"SECCIONAL UBATÉ ",null,null,null,7.1499999999999994E-2]
[null,null,"EXTENSIÓN ZIPAQUIRÁ",null,null,null,8.0000000000000004E-4]
[null,null,"TOTAL",null,null,null,{"$f":"SUM(G65:G71)","v":0.52}]
[]
[null,null,null,null,null,null,"Apoyo",null,null,"Acreditación"]
[null,null,null,null,null,null,"Seguimiento, Medición, Análisis y Evaluación",null,null,"Positiva"]
[null,null,null,null,null,null,"Direccionamiento Estratégico",null,null,"Negativa"]
[null,null,null,null,null,null,"Planeación Institucional",null,null,"Por Unidad Regional"]
[null,null,null,null,null,null,"Proyectos Especiales y Relaciones Interinstitucionales",null,null,"Por Facultad"]
[null,null,null,null,null,null,"Sistemas Integrados",null,null,"Por Programa Académico"]
[null,null,null,null,null,null,"Autoevaluación y Acreditación",null,null,"Por área"]
[null,null,null,null,null,null,"Comunicaciones",null,null,"Por Laboratorio"]
[null,null,null,null,null,null,"Formación y Aprendizaje",null,null,"Otros"]
[null,null,null,null,null,null,"Ciencia, Tecnología e Innovación",null,null,"No Aplica"]
[null,null,null,null,null,null,"Interacción Social Universitaria"]
[null,null,null,null,null,null,"Bienestar Universitario"]
[null,null,null,null,null,null,"Admisiones y Registro"]
[null,null,null,null,null,null,"Graduados"]
[null,null,null,null,null,null,"Dialogando con el Mundo"]
[null,null,null,null,null,null,"Talento Humano"]
[null,null,null,null,null,null,"Jurídica"]
[null,null,null,null,null,null,"Financiera"]
[null,null,null,null,null,null,"Sistemas y Tecnología"]
[null,null,null,null,null,null,"Bienes y Servicios"]
[null,null,null,null,null,null,"Documental"]
[null,null,null,null,null,null,"Apoyo Académico"]
[null,null,null,null,null,null,"Control Interno"]
[null,null,null,null,null,null,"Control Disciplinario"]
[null,null,null,null,null,null,"Servicio de Atención al Ciudadano"]

{"sheet":"MGD-2","index":20,"n_rows":98,"n_cols":15,"rows_kept":98,"cut":false,"hidden":false,"merged":[[71,2,71,5],[71,6,71,9],[71,10,71,14],[69,2,69,5],[69,6,69,9],[69,10,69,14],[70,2,70,5],[70,6,70,9],[70,10,70,14],[67,2,67,5],[67,6,67,9],[67,10,67,14],[68,2,68,5],[68,6,68,9],[68,10,68,14],[65,2,65,5],[65,6,65,9],[65,10,65,14],[66,2,66,5],[66,6,66,9],[66,10,66,14],[62,2,62,14],[63,2,63,5],[63,6,63,9],[63,10,63,14],[64,2,64,5],[64,6,64,9],[64,10,64,14],[1,1,3,2],[4,2,7,3],[4,4,4,11],[4,12,4,14],[5,4,5,11],[5,12,5,14],[6,4,7,11],[6,12,6,14],[7,12,7,14],[15,2,15,14],[8,2,8,14],[9,2,10,14],[11,2,11,3],[11,4,11,7],[11,8,11,9],[11,10,11,14],[12,2,12,3],[12,4,12,14],[13,2,13,3],[13,4,13,14],[14,2,14,14],[16,15,17,15],[17,2,18,3],[17,4,17,5],[17,6,17,10],[17,11,18,12],[17,13,18,14],[18,4,18,5],[18,6,18,10],[16,2,16,3],[16,4,16,6],[16,7,16,8],[16,9,16,10],[16,11,16,12],[16,13,16,14],[22,2,22,3],[22,4,22,6],[22,7,23,8],[22,9,23,10],[22,11,23,12],[53,2,53,5],[53,6,53,9],[53,10,53,14],[19,2,21,3],[19,4,21,6],[19,7,21,8],[19,9,21,10],[19,11,19,14],[22,13,23,14],[23,2,23,3],[23,4,23,6],[25,2,25,14],[26,15,27,15],[27,9,32,14],[33,9,33,14],[34,9,39,14],[40,9,40,14],[41,9,41,14],[44,2,44,14],[51,2,51,14],[52,2,52,5],[52,6,52,9],[52,10,52,14],[26,2,42,8],[26,9,26,14],[42,9,42,14],[54,2,54,5],[54,6,54,9],[54,10,54,14],[55,2,55,5],[55,6,55,9],[55,10,55,14],[56,2,56,5],[56,6,56,9],[56,10,56,14],[57,2,57,5],[57,6,57,9],[57,10,57,14],[60,2,60,5],[60,6,60,9],[60,10,60,14],[58,2,58,5],[58,6,58,9],[58,10,58,14],[59,2,59,5],[59,6,59,9],[59,10,59,14]]}
[]
[null,"      REGRESAR"]
[]
[]
[null,null,null,null,"MACROPROCESO ESTRATÉGICO",null,null,null,null,null,null,null,"CÓDIGO: ESGr027"]
[null,null,null,null,"PROCESO GESTIÓN SISTEMAS INTEGRADOS - CALIDAD",null,null,null,null,null,null,null,"VERSIÓN: 8"]
[null,null,null,null,"MATRIZ DE MEDICIÓN Y SEGUIMIENTO A LOS PROCESOS DE GESTIÓN",null,null,null,null,null,null,null,"VIGENCIA: 2023-07-28"]
[null,null,null,null,null,null,null,null,null,null,null,null,"PÁGINA: 3 de 5"]
[]
[null,null,"FICHA DE INDICADOR"]
[]
[null,null,"MACROPROCESO",null,"Misional",null,null,null,"NOMBRE DEL INDICADOR",null,"Participación de los Graduados en los eventos institucionales"]
[null,null,"PROCESO GESTIÓN",null,"Graduados"]
[null,null,"RESPONSABLE DE MEDICIÓN",null,"Coordinador(a) Oficina de Graduados"]
[]
[null,null,"1. COMPORTAMIENTO DE INDICADOR"]
[null,null,"CLASIFICACIÓN DE LA MEDICIÓN",null,1,null,null,"TIPO DE INDICADOR",null,"Eficacia",null,"META ANUAL",null,0.6]
[null,null,"FÓRMULA",null,"NUMERADOR",null,"Número de graduados vinculados a la dinámica institucional *100",null,null,null,null,"UNIDAD DE MEDIDA",null,"Porcentaje"]
[null,null,null,null,"DENOMINADOR",null,"Número de graduados esperados para la vigencia 2023 (5.000) "]
[null,null,"TENDENCIA",null,"Positiva",null,null,"NIVEL DE SEGREGACIÓN *",null,"Por Unidad Regional",null,"ESCALA"]
[null,null,null,null,null,null,null,null,null,null,null,"Deficiente","Aceptable","Bueno","Excelente"]
[null,null,null,null,null,null,null,null,null,null,null,"0%-20%","21%-44%","45%-59%","60%-100%"]
[null,null,"ORIGEN DE DATOS NUMERADOR",null,"Reporte de asistencia actividades",null,null,"FRECUENCIA DE LA MEDICIÓN",null,"SEMESTRAL",null,"FRECUENCIA DE RESULTADO",null,"ANUAL"]
[null,null,"ORIGEN DE DATOS DENOMINADOR",null,"Informe de gestión graduados 2018 a 2023"]
[]
[null,null,"RESULTADOS"]
[null,null,null,null,null,null,null,null,null,"ANÁLISIS DE DATOS"]
[null,null,null,null,null,null,null,null,null,"PRIMER SEMESTRE: Teniendo en cuenta la medición para lograr la meta del indicador sobre la participación de los Graduados en las diferentes experiencias que se realizaron durante el IPA 2023, se tiene un cumplimiento del 31% a la meta esperada mediante el desarrollo de las experiencias como acompañamiento a las ceremonias de grado, talleres de normatividad y trámite de tarjeta profesional. \nSEGUNDA SEMESTRE: Teniendo en cuenta la medición para lograr la meta del indicador sobre la participación de los Graduados en las diferentes experiencias que se realizaron durante el IIPA 2023, se tiene un cumplimiento del 52% a la meta esperada mediante el desarrollo de las experiencias como acompañamiento a las ceremonias de grado, talleres de normatividad, V encuentro deportivo y cultural de Graduados, IV congreso de Graduados y trámite de tarjeta profesional. "]
[]
[]
[]
[]
[]
[null,null,null,null,null,null,null,null,null,"ACCIÓN FORMULADA"]
[null,null,null,null,null,null,null,null,null,"Se fortalecieron los procesos de divulgación utilizando plataformas digitales, redes sociales, correos electrónicos institucionales, divulgaciones de la información voz a voz, en la página de Ucundinamarca, Teams y presencialmente, con el propósito de cumplir la meta establecida de cada una de las experiencias propuestas para el IIPA 2023, en sede, seccionales y extensiones, con la apertura de la institución se decidió retomar los procesos presenciales sin dejar de lado la virtualidad para el beneficio del graduado"]
[]
[]
[]
[]
[]
[null,null,null,null,null,null,null,null,null,"RESPONSABLE "]
[null,null,null,null,null,null,null,null,null,{"$f":"E14","v":"Coordinador(a) Oficina de Graduados"}]
[]
[]
[null,null,"PERIODO DE EVALUACIÓN"]
[null,null,"MES",{"$f":"IF(J23=\"MENSUAL\",\"ENERO\",IF(J23=\"TRIMESTRAL\",\"MARZO\",IF(J23=\"SEMESTRAL\",\"JUNIO\",IF(J23=\"ANUAL\",YEAR(TODAY()),\"\"))))","v":"JUNIO"},{"$f":"IF(J23=\"MENSUAL\",\"FEBRERO\",IF(J23=\"TRIMESTRAL\",\"JUNIO\",IF(J23=\"SEMESTRAL\",\"DICIEMBRE\",\"\")))","v":"DICIEMBRE"},{"$f":"IF(J23=\"MENSUAL\",\"MARZO\",IF(J23=\"TRIMESTRAL\",\"SEPTIEMBRE\",\"\"))","v":""},{"$f":"IF(J23=\"MENSUAL\",\"ABRIL\",IF(J23=\"TRIMESTRAL\",\"DICIEMBRE\",\"\"))","v":""},{"$f":"IF(J23=\"MENSUAL\",\"MAYO\",\"\")","v":""},{"$f":"IF(J23=\"MENSUAL\",\"JUNIO\",\"\")","v":""},{"$f":"IF(J23=\"MENSUAL\",\"JULIO\",\"\")","v":""},{"$f":"IF(J23=\"MENSUAL\",\"AGOSTO\",\"\")","v":""},{"$f":"IF(J23=\"MENSUAL\",\"SEPTIEMBRE\",\"\")","v":""},{"$f":"IF(J23=\"MENSUAL\",\"OCTUBRE\",\"\")","v":""},{"$f":"IF(J23=\"MENSUAL\",\"NOVIEMBRE\",\"\")","v":""},{"$f":"IF(J23=\"MENSUAL\",\"DICIEMBRE\",\"\")","v":""}]
[null,null,{"$f":"G18","v":"Número de graduados vinculados a la dinámica institucional *100"},1572,2580]
[null,null,{"$f":"G19","v":"Número de graduados esperados para la vigencia 2023 (5.000) "},5000,5000]
[null,null,"VALOR ",{"$f":"IFERROR(IF($E$17=1,D47/D48,IF($E$17=2,D47,\"\")),\"\")","v":0.31440000000000001},{"$f":"IFERROR(IF($E$17=1,E47/E48,IF($E$17=2,E47,\"\")),\"\")","v":0.51600000000000001},{"$f":"IFERROR(IF($E$17=1,F47/F48,IF($E$17=2,F47,\"\")),\"\")","v":""},"","","","","","","","",""]
[null,null,"META PONDERADA",{"$f":"IF(AND(N23=\"ANUAL\",J23=\"MENSUAL\"),N17/12,IF(AND(N23=\"ANUAL\",J23=\"TRIMESTRAL\"),N17/4,IF(AND(N23=\"ANUAL\",J23=\"SEMESTRAL\"),N17/2,IF(AND(N23=\"ANUAL\",J23=\"ANUAL\"),N17,IF(AND(N23=\"SEMESTRAL\",J23=\"MENSUAL\"),N17/6,IF(AND(N23=\"SEMESTRAL\",J23=\"TRIMESTRAL\"),N17/2,IF(AND(N23=\"SEMESTRAL\",J23=\"SEMESTRAL\"),N17,IF(AND(N23=\"SEMESTRAL\",J23=\"ANUAL\"),\"REVISAR FRECUENCIAS\",IF(AND(N23=\"TRIMESTRAL\",J23=\"MENSUAL\"),N17/3,IF(AND(N23=\"TRIMESTRAL\",J23=\"TRIMESTRAL\"),N17,IF(AND(N23=\"TRIMESTRAL\",J23=\"SEMESTRAL\"),\"REVISAR FRECUENCIAS\",IF(AND(N23=\"TRIMESTRAL\",J23=\"ANUAL\"),\"REVISAR FRECUENCIAS\",IF(AND(N23=\"MENSUAL\",J23=\"MENSUAL\"),N17,IF(AND(N23=\"MENSUAL\",J23=\"TRIMESTRAL\"),\"REVISAR FRECUENCIAS\",IF(AND(N23=\"MENSUAL\",J23=\"SEMESTRAL\"),\"REVISAR FRECUENCIAS\",IF(AND(N23=\"MENSUAL\",J23=\"ANUAL\"),\"REVISAR FRECUENCIAS\",\"\"))))))))))))))))","v":0.3},{"$f":"IF(AND(N23=\"ANUAL\",J23=\"MENSUAL\"),N17/12+D50,IF(AND(N23=\"ANUAL\",J23=\"TRIMESTRAL\"),N17/4+D50,IF(AND(N23=\"ANUAL\",J23=\"SEMESTRAL\"),N17/2+D50,IF(AND(N23=\"SEMESTRAL\",J23=\"MENSUAL\"),N17/6+D50,IF(AND(N23=\"SEMESTRAL\",J23=\"TRIMESTRAL\"),N17/2+D50,IF(AND(N23=\"SEMESTRAL\",J23=\"SEMESTRAL\"),N17,IF(AND(N23=\"TRIMESTRAL\",J23=\"MENSUAL\"),N17/3+D50,IF(AND(N23=\"TRIMESTRAL\",J23=\"TRIMESTRAL\"),N17,IF(AND(N23=\"MENSUAL\",J23=\"MENSUAL\"),N17,\"\")))))))))","v":0.6},{"$f":"IF(AND(N23=\"ANUAL\",J23=\"MENSUAL\"),N17/12+E50,IF(AND(N23=\"ANUAL\",J23=\"TRIMESTRAL\"),N17/4+E50,IF(AND(N23=\"SEMESTRAL\",J23=\"MENSUAL\"),N17/6+E50,IF(AND(N23=\"SEMESTRAL\",J23=\"TRIMESTRAL\"),N17/2,IF(AND(N23=\"TRIMESTRAL\",J23=\"MENSUAL\"),N17/3+E50,IF(AND(N23=\"TRIMESTRAL\",J23=\"TRIMESTRAL\"),N17,IF(AND(N23=\"MENSUAL\",J23=\"MENSUAL\"),N17,\"\")))))))","v":""},{"$f":"IF(AND(N23=\"ANUAL\",J23=\"MENSUAL\"),N17/12+F50,IF(AND(N23=\"ANUAL\",J23=\"TRIMESTRAL\"),N17/4+F50,IF(AND(N23=\"SEMESTRAL\",J23=\"MENSUAL\"),N17/6+F50,IF(AND(N23=\"SEMESTRAL\",J23=\"TRIMESTRAL\"),N17/2+F50,IF(AND(N23=\"TRIMESTRAL\",J23=\"MENSUAL\"),N17/3,IF(AND(N23=\"TRIMESTRAL\",J23=\"TRIMESTRAL\"),N17,IF(AND(N23=\"MENSUAL\",J23=\"MENSUAL\"),N17,\"\")))))))","v":""},{"$f":"IF(AND($N$23=\"ANUAL\",$J$23=\"MENSUAL\"),$N$17/12+G50,IF(AND(N23=\"SEMESTRAL\",J23=\"MENSUAL\"),N17/6+G50,IF(AND(N23=\"TRIMESTRAL\",J23=\"MENSUAL\"),N17/3+G50,IF(AND(N23=\"MENSUAL\",J23=\"MENSUAL\"),N17,\"\"))))","v":""},{"$f":"IF(AND($N$23=\"ANUAL\",$J$23=\"MENSUAL\"),$N$17/12+H50,IF(AND(N23=\"SEMESTRAL\",J23=\"MENSUAL\"),N17/6+H50,IF(AND(N23=\"TRIMESTRAL\",J23=\"MENSUAL\"),N17/3+H50,IF(AND(N23=\"MENSUAL\",J23=\"MENSUAL\"),N17,\"\"))))","v":""},{"$f":"IF(AND($N$23=\"ANUAL\",$J$23=\"MENSUAL\"),$N$17/12+I50,IF(AND(N23=\"SEMESTRAL\",J23=\"MENSUAL\"),N17/6,IF(AND(N23=\"TRIMESTRAL\",J23=\"MENSUAL\"),N17/3,IF(AND(N23=\"MENSUAL\",J23=\"MENSUAL\"),N17,\"\"))))","v":""},{"$f":"IF(AND($N$23=\"ANUAL\",$J$23=\"MENSUAL\"),$N$17/12+J50,IF(AND(N23=\"SEMESTRAL\",J23=\"MENSUAL\"),N17/6+J50,IF(AND(N23=\"TRIMESTRAL\",J23=\"MENSUAL\"),N17/3+J50,IF(AND(N23=\"MENSUAL\",J23=\"MENSUAL\"),N17,\"\"))))","v":""},{"$f":"IF(AND($N$23=\"ANUAL\",$J$23=\"MENSUAL\"),$N$17/12+K50,IF(AND(N23=\"SEMESTRAL\",J23=\"MENSUAL\"),N17/6+K50,IF(AND(N23=\"TRIMESTRAL\",J23=\"MENSUAL\"),N17/3+K50,IF(AND(N23=\"MENSUAL\",J23=\"MENSUAL\"),N17,\"\"))))","v":""},{"$f":"IF(AND($N$23=\"ANUAL\",$J$23=\"MENSUAL\"),$N$17/12+L50,IF(AND(N23=\"SEMESTRAL\",J23=\"MENSUAL\"),N17/6+L50,IF(AND(N23=\"TRIMESTRAL\",J23=\"MENSUAL\"),N17/3,IF(AND(N23=\"MENSUAL\",J23=\"MENSUAL\"),N17,\"\"))))","v":""},{"$f":"IF(AND($N$23=\"ANUAL\",$J$23=\"MENSUAL\"),$N$17/12+M50,IF(AND(N23=\"SEMESTRAL\",J23=\"MENSUAL\"),N17/6+M50,IF(AND(N23=\"TRIMESTRAL\",J23=\"MENSUAL\"),N17/3+M50,IF(AND(N23=\"MENSUAL\",J23=\"MENSUAL\"),N17,\"\"))))","v":""},{"$f":"IF(AND($N$23=\"ANUAL\",$J$23=\"MENSUAL\"),$N$17/12+N50,IF(AND(N23=\"SEMESTRAL\",J23=\"MENSUAL\"),N17/6+N50,IF(AND(N23=\"TRIMESTRAL\",J23=\"MENSUAL\"),N17/3+N50,IF(AND(N23=\"MENSUAL\",J23=\"MENSUAL\"),N17,\"\"))))","v":""}]
[]
[null,null,"NIVEL DE SEGREGACIÓN SEMESTRE I"]
[null,null,"UNIDAD SEGREGADA (Ej. Facultad, Programa Académico, Área)",null,null,null,"RESULTADO",null,null,null,"ANÁLISIS DE DATOS SEGREGADO"]
[null,null,"EXTENSIÓN CHÍA ",null,null,null,3.1199999999999999E-2]
[null,null,"EXTENSIÓN FACATATIVÁ  ",null,null,null,5.33E-2]
[null,null,"SEDE FUSAGASUGÁ",null,null,null,0.16070000000000001]
[null,null,"SECCIONAL GIRARDOT ",null,null,null,3.3000000000000002E-2]
[null,null,"EXTENSIÓN SOACHA ",null,null,null,1.1299999999999999E-2]
[null,null,"SECCIONAL UBATÉ ",null,null,null,2.1899999999999999E-2]
[null,null,"EXTENSIÓN ZIPAQUIRÁ",null,null,null,3.0000000000000001E-3]
[null,null,"TOTAL",null,null,null,{"$f":"SUM(G54:G60)","v":0.31439999999999996}]
[]
[null,null,"NIVEL DE SEGREGACIÓN SEMESTRE II"]
[null,null,"UNIDAD SEGREGADA (Ej. Facultad, Programa Académico, Área)",null,null,null,"RESULTADO",null,null,null,"ANÁLISIS DE DATOS SEGREGADO"]
[null,null,"EXTENSIÓN CHÍA ",null,null,null,2E-3]
[null,null,"EXTENSIÓN FACATATIVÁ  ",null,null,null,9.6000000000000002E-2]
[null,null,"SEDE FUSAGASUGÁ",null,null,null,0.24759999999999999]
[null,null,"SECCIONAL GIRARDOT ",null,null,null,0.1002]
[null,null,"EXTENSIÓN SOACHA ",null,null,null,1.9E-3]
[null,null,"SECCIONAL UBATÉ ",null,null,null,7.1499999999999994E-2]
[null,null,"EXTENSIÓN ZIPAQUIRÁ",null,null,null,8.0000000000000004E-4]
[null,null,"TOTAL",null,null,null,{"$f":"SUM(G65:G71)","v":0.52}]
[null,null,null,null,null,null,"Misional",null,null,"Eficiencia"]
[null,null,null,null,null,null,"Apoyo",null,null,"Acreditación"]
[null,null,null,null,null,null,"Seguimiento, Medición, Análisis y Evaluación",null,null,"Positiva"]
[null,null,null,null,null,null,"Direccionamiento Estratégico",null,null,"Negativa"]
[null,null,null,null,null,null,"Planeación Institucional",null,null,"Por Unidad Regional"]
[null,null,null,null,null,null,"Proyectos Especiales y Relaciones Interinstitucionales",null,null,"Por Facultad"]
[null,null,null,null,null,null,"Sistemas Integrados",null,null,"Por Programa Académico"]
[null,null,null,null,null,null,"Autoevaluación y Acreditación",null,null,"Por área"]
[null,null,null,null,null,null,"Comunicaciones",null,null,"Por Laboratorio"]
[null,null,null,null,null,null,"Formación y Aprendizaje",null,null,"Otros"]
[null,null,null,null,null,null,"Ciencia, Tecnología e Innovación",null,null,"No Aplica"]
[null,null,null,null,null,null,"Interacción Social Universitaria"]
[null,null,null,null,null,null,"Bienestar Universitario"]
[null,null,null,null,null,null,"Admisiones y Registro"]
[null,null,null,null,null,null,"Graduados"]
[null,null,null,null,null,null,"Dialogando con el Mundo"]
[null,null,null,null,null,null,"Talento Humano"]
[null,null,null,null,null,null,"Jurídica"]
[null,null,null,null,null,null,"Financiera"]
[null,null,null,null,null,null,"Sistemas y Tecnología"]
[null,null,null,null,null,null,"Bienes y Servicios"]
[null,null,null,null,null,null,"Documental"]
[null,null,null,null,null,null,"Apoyo Académico"]
[null,null,null,null,null,null,"Control Interno"]
[null,null,null,null,null,null,"Control Disciplinario"]
[null,null,null,null,null,null,"Servicio de Atención al Ciudadano"]

{"sheet":"MGD-3 ","index":21,"n_rows":149,"n_cols":20,"rows_kept":149,"cut":false,"hidden":true,"merged":[[1,1,3,2],[4,2,7,3],[4,4,4,11],[4,12,4,14],[5,4,5,11],[5,12,5,14],[6,4,7,11],[6,12,6,14],[7,12,7,14],[12,2,12,3],[12,4,12,14],[13,2,13,3],[13,4,13,14],[14,2,14,14],[15,2,15,14],[8,2,8,14],[9,2,10,14],[11,2,11,3],[11,4,11,7],[11,8,11,9],[11,10,11,14],[16,15,17,15],[17,2,18,3],[17,4,17,5],[17,6,17,10],[17,11,18,12],[17,13,18,14],[18,4,18,5],[18,6,18,10],[16,2,16,3],[16,4,16,6],[16,7,16,8],[16,9,16,10],[16,11,16,12],[16,13,16,14],[19,2,21,3],[19,4,21,6],[19,7,21,8],[19,9,21,10],[19,11,19,14],[22,2,22,3],[22,4,22,6],[22,7,23,8],[22,9,23,10],[22,11,23,12],[26,15,27,15],[27,9,32,14],[33,9,33,14],[34,9,39,14],[40,9,40,14],[41,9,41,14],[22,13,23,14],[23,2,23,3],[23,4,23,6],[25,2,25,14],[26,2,42,8],[26,9,26,14],[42,9,42,14],[54,2,54,5],[54,6,54,9],[54,10,54,14],[55,2,55,5],[55,6,55,9],[55,10,55,14],[44,2,44,14],[51,2,51,14],[52,2,52,5],[52,6,52,9],[52,10,52,14],[53,2,53,5],[53,6,53,9],[53,10,53,13],[58,2,58,5],[58,6,58,9],[58,10,58,14],[59,2,59,5],[59,6,59,9],[59,10,59,14],[56,2,56,5],[56,6,56,9],[56,10,56,14],[57,2,57,5],[57,6,57,9],[57,10,57,14],[62,2,62,5],[62,6,62,9],[62,10,62,14],[63,2,63,5],[63,6,63,9],[63,10,63,14],[60,2,60,5],[60,6,60,9],[60,10,60,14],[61,2,61,5],[61,6,61,9],[61,10,61,14],[66,2,66,5],[66,6,66,9],[66,10,66,14],[67,2,67,5],[67,6,67,9],[67,10,67,14],[64,2,64,5],[64,6,64,9],[64,10,64,14],[65,2,65,5],[65,6,65,9],[65,10,65,14],[70,2,70,5],[70,6,70,9],[70,10,70,14],[71,2,71,5],[71,6,71,9],[71,10,71,14],[68,2,68,5],[68,6,68,9],[68,10,68,14],[69,2,69,5],[69,6,69,9],[69,10,69,14],[74,2,74,5],[74,6,74,9],[74,10,74,14],[75,2,75,5],[75,6,75,9],[75,10,75,14],[72,2,72,5],[72,6,72,9],[72,10,72,14],[73,2,73,5],[73,6,73,9],[73,10,73,14],[78,2,78,5],[78,6,78,9],[78,10,78,14],[79,2,79,5],[79,6,79,9],[79,10,79,14],[76,2,76,5],[76,6,76,9],[76,10,76,14],[77,2,77,5],[77,6,77,9],[77,10,77,14],[82,2,82,5],[82,6,82,9],[82,10,82,14],[83,2,83,5],[83,6,83,9],[83,10,83,14],[80,2,80,5],[80,6,80,9],[80,10,80,14],[81,2,81,5],[81,6,81,9],[81,10,81,14],[86,2,86,5],[86,6,86,9],[86,10,86,14],[87,2,87,5],[87,6,87,9],[87,10,87,14],[84,2,84,5],[84,6,84,9],[84,10,84,14],[85,2,85,5],[85,6,85,9],[85,10,85,14],[90,2,90,5],[90,6,90,9],[90,10,90,14],[91,2,91,5],[91,6,91,9],[91,10,91,14],[88,2,88,5],[88,6,88,9],[88,10,88,14],[89,2,89,5],[89,6,89,9],[89,10,89,14],[94,2,94,5],[94,6,94,9],[94,10,94,14],[95,2,95,5],[95,6,95,9],[95,10,95,14],[92,2,92,5],[92,6,92,9],[92,10,92,14],[93,2,93,5],[93,6,93,9],[93,10,93,14],[98,2,98,5],[98,6,98,9],[98,10,98,14],[99,2,99,5],[99,6,99,9],[99,10,99,14],[96,2,96,5],[96,6,96,9],[96,10,96,14],[97,2,97,5],[97,6,97,9],[97,10,97,14],[102,2,102,5],[102,6,102,9],[102,10,102,14],[103,2,103,5],[103,6,103,9],[103,10,103,14],[100,2,100,5],[100,6,100,9],[100,10,100,14],[101,2,101,5],[101,6,101,9],[101,10,101,14],[106,2,106,5],[106,6,106,9],[106,10,106,14],[107,2,107,5],[107,6,107,9],[107,10,107,14],[104,2,104,5],[104,6,104,9],[104,10,104,14],[105,2,105,5],[105,6,105,9],[105,10,105,14],[110,2,110,5],[110,6,110,9],[110,10,110,14],[108,2,108,5],[108,6,108,9],[108,10,108,14],[109,2,109,5],[109,6,109,9],[109,10,109,14]]}
[]
[null,"      REGRESAR"]
[]
[]
[null,null,null,null,"MACROPROCESO ESTRATÉGICO",null,null,null,null,null,null,null,"CÓDIGO: ESGr027"]
[null,null,null,null,"PROCESO GESTIÓN SISTEMAS INTEGRADOS",null,null,null,null,null,null,null,"VERSIÓN: 7"]
[null,null,null,null,"MATRIZ DE MEDICIÓN Y SEGUIMIENTO A LOS PROCESOS DE GESTIÓN",null,null,null,null,null,null,null,"VIGENCIA: 2020-03-31"]
[null,null,null,null,null,null,null,null,null,null,null,null,"PÁGINA: 1 de 1"]
[]
[null,null,"FICHA DE INDICADOR"]
[]
[null,null,"MACROPROCESO",null,"Misional",null,null,null,"NOMBRE DEL INDICADOR",null,"Tasa de graduación efectiva"]
[null,null,"PROCESO GESTIÓN",null,"Graduados"]
[null,null,"RESPONSABLE DE MEDICIÓN",null,"Coordinador(a) Oficina de Graduados"]
[]
[null,null,"1. COMPORTAMIENTO DE INDICADOR"]
[null,null,"CLASIFICACIÓN DE LA MEDICIÓN",null,1,null,null,"TIPO DE INDICADOR",null,"Eficacia",null,"META ANUAL",null,0.9]
[null,null,"FORMULA",null,"NUMERADOR",null,"Número de graduados oportunos (Plan de estudios + 1 semestre) * 100",null,null,null,null,"UNIDAD DE MEDIDA",null,"Porcentaje"]
[null,null,null,null,"DENOMINADOR",null,"Total de estudiantes inscritos de cada programa académico de la vigencia actual a medir"]
[null,null,"TENDENCIA",null,"Positiva",null,null,"NIVEL DE SEGREGACIÓN *",null,"Por Programa Académico",null,"ESCALA"]
[null,null,null,null,null,null,null,null,null,null,null,"Deficiente","Aceptable","Bueno","Excelente"]
[null,null,null,null,null,null,null,null,null,null,null,"0 - 60%","61% - 80%","81% - 90%","91% - 100%"]
[null,null,"ORIGEN DE DATOS NUMERADOR",null,"Reporteador aplicativo academusoft",null,null,"FRECUENCIA DE LA MEDICIÓN",null,"SEMESTRAL",null,"FRECUENCIA DE RESULTADO",null,"SEMESTRAL"]
[null,null,"ORIGEN DE DATOS DENOMINADOR",null,"Reporteador aplicativo academusoft"]
[]
[null,null,"RESULTADOS"]
[null,null,null,null,null,null,null,null,null,"ANÁLISIS DE DATOS"]
[null,null,null,null,null,null,null,null,null,"PRIMER SEMESTRE: En las ceremonias de grado efectuadas en el IPA2021 para los diferentes programas y títulos recibidos, se cumple a cabalidad con el proceso establecido, desde la revisión de carpeta, paz y salvo académico y financiero, el reporte tanto del acta como de Diploma al título generado para cada estudiante que aplica a su proceso; dando cumplimiento a la entrega de los mismos, por medio de ceremonia presencial en cada una de las sedes teniendo en cuenta las medidas y protocolos pertinentes y a tener en cuenta, para con la Pandemia Mundial Covid-19.\n\nSEGUNDO SEMESTRE: Se logra evidenciar el compromiso adquirido tanto por las partes interesadas - Estudiantes a graduarse, como por la Comunidad Universitaria - Administrativa, quienes manejan los procesos adecuados para dar cumplimiento a la tramitología del proceso a Grado; así mismo; se refleja lo anteriormente citado en el % adquirido al cumplimiento al proceso y en un 47%, finiquitado, para aquellos estudiantes que culminan su proceso de Aprendizaje en el tiempo determinado, incluido un semestre de más a su Plan de Estudios."]
[]
[]
[]
[]
[]
[null,null,null,null,null,null,null,null,null,"ACCIÓN FORMULADA"]
[null,null,null,null,null,null,null,null,null,"PRIMER SEMESTRE: Para culminar con éxito su proceso de formación y recibir su título académico, el estudiante debe cumplir a cabalidad con todos los requisitos exigidos; dentro el cargue de documentos exigidos para revisión posterior, estar a Paz y Salvo por todo concepto, tanto Académico como Financiero con la institución y legalizar mediante el pago de sus derechos a grado, para que el proceso termine con rotundo éxito."]
[]
[]
[]
[]
[]
[null,null,null,null,null,null,null,null,null,"RESPONSABLE "]
[null,null,null,null,null,null,null,null,null,{"$f":"E14","v":"Coordinador(a) Oficina de Graduados"}]
[]
[]
[null,null,"PERIODO DE EVALUACIÓN"]
[null,null,"MES",{"$f":"IF(J23=\"MENSUAL\",\"ENERO\",IF(J23=\"TRIMESTRAL\",\"MARZO\",IF(J23=\"SEMESTRAL\",\"JUNIO\",IF(J23=\"ANUAL\",YEAR(TODAY()),\"\"))))","v":"JUNIO"},{"$f":"IF(J23=\"MENSUAL\",\"FEBRERO\",IF(J23=\"TRIMESTRAL\",\"JUNIO\",IF(J23=\"SEMESTRAL\",\"DICIEMBRE\",\"\")))","v":"DICIEMBRE"},{"$f":"IF(J23=\"MENSUAL\",\"MARZO\",IF(J23=\"TRIMESTRAL\",\"SEPTIEMBRE\",\"\"))","v":""},{"$f":"IF(J23=\"MENSUAL\",\"ABRIL\",IF(J23=\"TRIMESTRAL\",\"DICIEMBRE\",\"\"))","v":""},{"$f":"IF(J23=\"MENSUAL\",\"MAYO\",\"\")","v":""},{"$f":"IF(J23=\"MENSUAL\",\"JUNIO\",\"\")","v":""},{"$f":"IF(J23=\"MENSUAL\",\"JULIO\",\"\")","v":""},{"$f":"IF(J23=\"MENSUAL\",\"AGOSTO\",\"\")","v":""},{"$f":"IF(J23=\"MENSUAL\",\"SEPTIEMBRE\",\"\")","v":""},{"$f":"IF(J23=\"MENSUAL\",\"OCTUBRE\",\"\")","v":""},{"$f":"IF(J23=\"MENSUAL\",\"NOVIEMBRE\",\"\")","v":""},{"$f":"IF(J23=\"MENSUAL\",\"DICIEMBRE\",\"\")","v":""}]
[null,null,{"$f":"G18","v":"Número de graduados oportunos (Plan de estudios + 1 semestre) * 100"}]
[null,null,{"$f":"G19","v":"Total de estudiantes inscritos de cada programa académico de la vigencia actual a medir"}]
[null,null,"VALOR ",{"$f":"IFERROR(IF($E$17=1,D47/D48,IF($E$17=2,D47,\"\")),\"\")","v":""},{"$f":"IFERROR(IF($E$17=1,E47/E48,IF($E$17=2,E47,\"\")),\"\")","v":""},"","","","","","","","","",""]
[null,null,"META PONDERADA",{"$f":"IF(AND(N23=\"ANUAL\",J23=\"MENSUAL\"),N17/12,IF(AND(N23=\"ANUAL\",J23=\"TRIMESTRAL\"),N17/4,IF(AND(N23=\"ANUAL\",J23=\"SEMESTRAL\"),N17/2,IF(AND(N23=\"ANUAL\",J23=\"ANUAL\"),N17,IF(AND(N23=\"SEMESTRAL\",J23=\"MENSUAL\"),N17/6,IF(AND(N23=\"SEMESTRAL\",J23=\"TRIMESTRAL\"),N17/2,IF(AND(N23=\"SEMESTRAL\",J23=\"SEMESTRAL\"),N17,IF(AND(N23=\"SEMESTRAL\",J23=\"ANUAL\"),\"REVISAR FRECUENCIAS\",IF(AND(N23=\"TRIMESTRAL\",J23=\"MENSUAL\"),N17/3,IF(AND(N23=\"TRIMESTRAL\",J23=\"TRIMESTRAL\"),N17,IF(AND(N23=\"TRIMESTRAL\",J23=\"SEMESTRAL\"),\"REVISAR FRECUENCIAS\",IF(AND(N23=\"TRIMESTRAL\",J23=\"ANUAL\"),\"REVISAR FRECUENCIAS\",IF(AND(N23=\"MENSUAL\",J23=\"MENSUAL\"),N17,IF(AND(N23=\"MENSUAL\",J23=\"TRIMESTRAL\"),\"REVISAR FRECUENCIAS\",IF(AND(N23=\"MENSUAL\",J23=\"SEMESTRAL\"),\"REVISAR FRECUENCIAS\",IF(AND(N23=\"MENSUAL\",J23=\"ANUAL\"),\"REVISAR FRECUENCIAS\",\"\"))))))))))))))))","v":0.9},{"$f":"IF(AND(N23=\"ANUAL\",J23=\"MENSUAL\"),N17/12+D50,IF(AND(N23=\"ANUAL\",J23=\"TRIMESTRAL\"),N17/4+D50,IF(AND(N23=\"ANUAL\",J23=\"SEMESTRAL\"),N17/2+D50,IF(AND(N23=\"SEMESTRAL\",J23=\"MENSUAL\"),N17/6+D50,IF(AND(N23=\"SEMESTRAL\",J23=\"TRIMESTRAL\"),N17/2+D50,IF(AND(N23=\"SEMESTRAL\",J23=\"SEMESTRAL\"),N17,IF(AND(N23=\"TRIMESTRAL\",J23=\"MENSUAL\"),N17/3+D50,IF(AND(N23=\"TRIMESTRAL\",J23=\"TRIMESTRAL\"),N17,IF(AND(N23=\"MENSUAL\",J23=\"MENSUAL\"),N17,\"\")))))))))","v":0.9},{"$f":"IF(AND(N23=\"ANUAL\",J23=\"MENSUAL\"),N17/12+E50,IF(AND(N23=\"ANUAL\",J23=\"TRIMESTRAL\"),N17/4+E50,IF(AND(N23=\"SEMESTRAL\",J23=\"MENSUAL\"),N17/6+E50,IF(AND(N23=\"SEMESTRAL\",J23=\"TRIMESTRAL\"),N17/2,IF(AND(N23=\"TRIMESTRAL\",J23=\"MENSUAL\"),N17/3+E50,IF(AND(N23=\"TRIMESTRAL\",J23=\"TRIMESTRAL\"),N17,IF(AND(N23=\"MENSUAL\",J23=\"MENSUAL\"),N17,\"\")))))))","v":""},{"$f":"IF(AND(N23=\"ANUAL\",J23=\"MENSUAL\"),N17/12+F50,IF(AND(N23=\"ANUAL\",J23=\"TRIMESTRAL\"),N17/4+F50,IF(AND(N23=\"SEMESTRAL\",J23=\"MENSUAL\"),N17/6+F50,IF(AND(N23=\"SEMESTRAL\",J23=\"TRIMESTRAL\"),N17/2+F50,IF(AND(N23=\"TRIMESTRAL\",J23=\"MENSUAL\"),N17/3,IF(AND(N23=\"TRIMESTRAL\",J23=\"TRIMESTRAL\"),N17,IF(AND(N23=\"MENSUAL\",J23=\"MENSUAL\"),N17,\"\")))))))","v":""},{"$f":"IF(AND($N$23=\"ANUAL\",$J$23=\"MENSUAL\"),$N$17/12+G50,IF(AND(N23=\"SEMESTRAL\",J23=\"MENSUAL\"),N17/6+G50,IF(AND(N23=\"TRIMESTRAL\",J23=\"MENSUAL\"),N17/3+G50,IF(AND(N23=\"MENSUAL\",J23=\"MENSUAL\"),N17,\"\"))))","v":""},{"$f":"IF(AND($N$23=\"ANUAL\",$J$23=\"MENSUAL\"),$N$17/12+H50,IF(AND(N23=\"SEMESTRAL\",J23=\"MENSUAL\"),N17/6+H50,IF(AND(N23=\"TRIMESTRAL\",J23=\"MENSUAL\"),N17/3+H50,IF(AND(N23=\"MENSUAL\",J23=\"MENSUAL\"),N17,\"\"))))","v":""},{"$f":"IF(AND($N$23=\"ANUAL\",$J$23=\"MENSUAL\"),$N$17/12+I50,IF(AND(N23=\"SEMESTRAL\",J23=\"MENSUAL\"),N17/6,IF(AND(N23=\"TRIMESTRAL\",J23=\"MENSUAL\"),N17/3,IF(AND(N23=\"MENSUAL\",J23=\"MENSUAL\"),N17,\"\"))))","v":""},{"$f":"IF(AND($N$23=\"ANUAL\",$J$23=\"MENSUAL\"),$N$17/12+J50,IF(AND(N23=\"SEMESTRAL\",J23=\"MENSUAL\"),N17/6+J50,IF(AND(N23=\"TRIMESTRAL\",J23=\"MENSUAL\"),N17/3+J50,IF(AND(N23=\"MENSUAL\",J23=\"MENSUAL\"),N17,\"\"))))","v":""},{"$f":"IF(AND($N$23=\"ANUAL\",$J$23=\"MENSUAL\"),$N$17/12+K50,IF(AND(N23=\"SEMESTRAL\",J23=\"MENSUAL\"),N17/6+K50,IF(AND(N23=\"TRIMESTRAL\",J23=\"MENSUAL\"),N17/3+K50,IF(AND(N23=\"MENSUAL\",J23=\"MENSUAL\"),N17,\"\"))))","v":""},{"$f":"IF(AND($N$23=\"ANUAL\",$J$23=\"MENSUAL\"),$N$17/12+L50,IF(AND(N23=\"SEMESTRAL\",J23=\"MENSUAL\"),N17/6+L50,IF(AND(N23=\"TRIMESTRAL\",J23=\"MENSUAL\"),N17/3,IF(AND(N23=\"MENSUAL\",J23=\"MENSUAL\"),N17,\"\"))))","v":""},{"$f":"IF(AND($N$23=\"ANUAL\",$J$23=\"MENSUAL\"),$N$17/12+M50,IF(AND(N23=\"SEMESTRAL\",J23=\"MENSUAL\"),N17/6+M50,IF(AND(N23=\"TRIMESTRAL\",J23=\"MENSUAL\"),N17/3+M50,IF(AND(N23=\"MENSUAL\",J23=\"MENSUAL\"),N17,\"\"))))","v":""},{"$f":"IF(AND($N$23=\"ANUAL\",$J$23=\"MENSUAL\"),$N$17/12+N50,IF(AND(N23=\"SEMESTRAL\",J23=\"MENSUAL\"),N17/6+N50,IF(AND(N23=\"TRIMESTRAL\",J23=\"MENSUAL\"),N17/3+N50,IF(AND(N23=\"MENSUAL\",J23=\"MENSUAL\"),N17,\"\"))))","v":""}]
[]
[null,null,"NIVEL DE SEGREGACIÓN *"]
[null,null,"UNIDAD SEGREGADA (Ej. Facultad, Programa Académico, Área)",null,null,null,"RESULTADO",null,null,null,"ANÁLISIS DE DATOS SEGREGADO",null,null,null,null,null,"GRADUADOS VIGENCIA 2021-1",null,"GRADUADOS OPORTUNAMENTE"]
[null,null,"UNIDAD REGIONAL, EXTENSIÓN CHÍA",null,null,null,null,null,null,null,null,null,null,null,null,null,0,null,0]
[null,null,"ADMINISTRACIÓN DE EMPRESAS 2007",null,null,null,0.5,null,null,null,null,null,null,null,null,null,92,null,46,{"$f":"S55/Q55","v":0.5}]
[null,null,"CONTADURÍA PÚBLICA 2008 - 2",null,null,null,1,null,null,null,null,null,null,null,null,null,13,null,13,{"$f":"S56/Q56","v":1}]
[null,null,"INGENIERÍA DE SISTEMAS 2007",null,null,null,0.7142857142857143,null,null,null,null,null,null,null,null,null,14,null,10,0.7142857142857143]
[null,null,"INGENIERÍA DE SISTEMAS 2013",null,null,null,0.7142857142857143,null,null,null,null,null,null,null,null,null,14,null,10,0.7142857142857143]
[null,null,"MAESTRÍA EN EDUCACIÓN",null,null,null,1,null,null,null,null,null,null,null,null,null,8,null,8,1]
[null,null,"UNIDAD REGIONAL, EXTENSIÓN FACATATIVÁ",null,null,null,null,null,null,null,null,null,null,null,null,null,null,null,null,0]
[null,null,"ADMINISTRACIÓN DE EMPRESAS 2007",null,null,null,0.53703703703703709,null,null,null,null,null,null,null,null,null,54,null,29,0.53703703703703709]
[null,null,"CONTADURÍA PÚBLICA 2008 - 2",null,null,null,0.64583333333333337,null,null,null,null,null,null,null,null,null,48,null,31,0.64583333333333337]
[null,null,"ESPECIALIZACIÓN EN EDUCACIÓN  AMBIENTAL Y DESARROLLO DE LA COMUNIDAD",null,null,null,0,null,null,null,null,null,null,null,null,null,11,null,0,0]
[null,null,"INGENIERÍA AGRONÓMICA 2007",null,null,null,0,null,null,null,null,null,null,null,null,null,1,null,0,0]
[null,null,"INGENIERÍA AGRONÓMICA 2013",null,null,null,0.45833333333333331,null,null,null,null,null,null,null,null,null,24,null,11,0.45833333333333331]
[null,null,"INGENIERÍA AMBIENTAL 20082",null,null,null,0.15254237288135594,null,null,null,null,null,null,null,null,null,59,null,9,0.15254237288135594]
[null,null,"INGENIERÍA DE SISTEMAS 2013",null,null,null,0.55555555555555558,null,null,null,null,null,null,null,null,null,18,null,10,0.55555555555555558]
[null,null,"PSICOLOGÍA 2011",null,null,null,0.54,null,null,null,null,null,null,null,null,null,50,null,27,0.54]
[null,null,"UNIDAD REGIONAL, EXTENSIÓN SOACHA",null,null,null,null,null,null,null,null,null,null,null,null,null,null,null,null,0]
[null,null,"CIENCIAS DEL DEPORTE Y LA EDUCACIÓN FÍSICA - 2007",null,null,null,0.57894736842105265,null,null,null,null,null,null,null,null,null,38,null,22,0.57894736842105265]
[null,null,"ESP. EN PROCESOS PEDAGÓGICOS DEL ENTRENAMIENTO DEPORTIVO",null,null,null,0.75,null,null,null,null,null,null,null,null,null,16,null,12,0.75]
[null,null,"INGENIERÍA INDUSTRIAL",null,null,null,0.2,null,null,null,null,null,null,null,null,null,45,null,9,0.2]
[null,null,"TECNOLOGÍA EN DESARROLLO DE SOFTWARE 2011",null,null,null,0.2,null,null,null,null,null,null,null,null,null,5,null,1,0.2]
[null,null,"UNIDAD REGIONAL, EXTENSIÓN ZIPAQUIRÁ",null,null,null,null,null,null,null,null,null,null,null,null,null,null,null,null,0]
[null,null,"MÚSICA 2010 1",null,null,null,0.33333333333333331,null,null,null,null,null,null,null,null,null,18,null,6,0.33333333333333331]
[null,null,"UNIDAD REGIONAL, SECCIONAL GIRARDOT",null,null,null,null,null,null,null,null,null,null,null,null,null,null,null,null,0]
[null,null,"ADMINISTRACIÓN DE EMPRESAS 2007",null,null,null,0.63265306122448983,null,null,null,null,null,null,null,null,null,49,null,31,0.63265306122448983]
[null,null,"ENFERMERÍA 2009",null,null,null,0.41025641025641024,null,null,null,null,null,null,null,null,null,39,null,16,0.41025641025641024]
[null,null,"ESPECIALIZACIÓN  EN  GERENCIA PARA EL DESARROLLO ORGANIZACIONAL",null,null,null,0.66666666666666663,null,null,null,null,null,null,null,null,null,3,null,2,0.66666666666666663]
[null,null,"ESPECIALIZACIÓN EN EDUCACIÓN  AMBIENTAL Y DESARROLLO DE LA COMUNIDAD",null,null,null,0.1,null,null,null,null,null,null,null,null,null,10,null,1,0.1]
[null,null,"INGENIERÍA AMBIENTAL 20082",null,null,null,0.26923076923076922,null,null,null,null,null,null,null,null,null,78,null,21,0.26923076923076922]
[null,null,"LIC.EN EDUC. BASICA/ENF/HUMAN/LENG/CAST/ING 2007",null,null,null,0.58823529411764708,null,null,null,null,null,null,null,null,null,17,null,10,0.58823529411764708]
[null,null,"TECNOLOGÍA EN GESTIÓN TURISTICA Y HOTELERA 2008-2",null,null,null,0.91666666666666663,null,null,null,null,null,null,null,null,null,12,null,11,0.91666666666666663]
[null,null,"UNIDAD REGIONAL, SECCIONAL UBATÉ",null,null,null,null,null,null,null,null,null,null,null,null,null,null,null,null,0]
[null,null,"ADMINISTRACIÓN AGROPECUARIA 2007",null,null,null,0,null,null,null,null,null,null,null,null,null,1,null,0,0]
[null,null,"ADMINISTRACIÓN DE EMPRESAS 2007",null,null,null,0.5,null,null,null,null,null,null,null,null,null,18,null,9,0.5]
[null,null,"CONTADURÍA PÚBLICA 2008 - 2",null,null,null,0.69047619047619047,null,null,null,null,null,null,null,null,null,42,null,29,0.69047619047619047]
[null,null,"INGENIERÍA DE SISTEMAS 2013",null,null,null,0,null,null,null,null,null,null,null,null,null,2,null,0,0]
[null,null,"ZOOTECNIA 2007",null,null,null,0.1111111111111111,null,null,null,null,null,null,null,null,null,9,null,1,0.1111111111111111]
[null,null,"UNIDAD REGIONAL, SEDE FUSAGASUGÁ",null,null,null,null,null,null,null,null,null,null,null,null,null,null,null,null,0]
[null,null,"ADMINISTRACIÓN DE EMPRESAS 2007",null,null,null,0.55813953488372092,null,null,null,null,null,null,null,null,null,43,null,24,0.55813953488372092]
[null,null,"CONTADURÍA PÚBLICA 2008 - 2",null,null,null,0.73684210526315785,null,null,null,null,null,null,null,null,null,38,null,28,0.73684210526315785]
[null,null,"ESP. GERENCIA PARA EL DESARROLLO ORGANIZACIONAL",null,null,null,0.25,null,null,null,null,null,null,null,null,null,4,null,1,0.25]
[null,null,"ESPECIALIZACION  EN  GERENCIA PARA EL DESARROLLO ORGANIZACIONAL",null,null,null,0,null,null,null,null,null,null,null,null,null,2,null,0,0]
[null,null,"ESPECIALIZACIÓN EN EDUCACIÓN  AMBIENTAL Y DESARROLLO DE LA COMUNIDAD",null,null,null,0.5,null,null,null,null,null,null,null,null,null,6,null,3,0.5]
[null,null,"ESPECIALIZACIÓN EN GESTIÓN DE SISTEMAS DE INFORMACIÓN GERENCIAL",null,null,null,0.15,null,null,null,null,null,null,null,null,null,40,null,6,0.15]
[null,null,"ESPECIALIZACIÓN EN NEGOCIOS Y COMERCIO ELECTRÓNICO",null,null,null,0.18181818181818182,null,null,null,null,null,null,null,null,null,11,null,2,0.18181818181818182]
[null,null,"INGENIERÍA AGRONÓMICA 2007",null,null,null,0,null,null,null,null,null,null,null,null,null,2,null,0,0]
[null,null,"INGENIERÍA AGRONÓMICA 2013",null,null,null,0.11764705882352941,null,null,null,null,null,null,null,null,null,34,null,4,0.11764705882352941]
[null,null,"INGENIERÍA DE SISTEMAS 2013",null,null,null,0.4,null,null,null,null,null,null,null,null,null,30,null,12,0.4]
[null,null,"INGENIERÍA ELECTRÓNICA 2007",null,null,null,0.31818181818181818,null,null,null,null,null,null,null,null,null,22,null,7,0.31818181818181818]
[null,null,"LIC. EN EDUC. BAS. CON ENF.  EN EDUCACIÓN FÍSICA, RECREACIÓN Y DEPORTE",null,null,null,0.70454545454545459,null,null,null,null,null,null,null,null,null,44,null,31,0.70454545454545459]
[null,null,"LIC. EN EDUCACIÓN BÁSICA CON ÉNFASIS EN CIENCIAS SOCIALES 2012",null,null,null,0.625,null,null,null,null,null,null,null,null,null,24,null,15,0.625]
[null,null,"LICENCIATURA EN EDUCACIÓN BÁSICA CON ÉNFASIS EN CIENCIAS SOCIALES 2007",null,null,null,0,null,null,null,null,null,null,null,null,null,2,null,0,0]
[null,null,"LICENCIATURA EN MATEMÁTICAS 2007",null,null,null,0.6,null,null,null,null,null,null,null,null,null,5,null,3,0.6]
[null,null,"MAESTRÍA EN CIENCIAS AMBIENTALES",null,null,null,0.9285714285714286,null,null,null,null,null,null,null,null,null,14,null,13,0.9285714285714286]
[null,null,"MAESTRÍA EN EDUCACIÓN",null,null,null,1,null,null,null,null,null,null,null,null,null,12,null,12,1]
[null,null,"TECNOLOGÍA EN CARTOGRAFÍA",null,null,null,0.66666666666666696,null,null,null,null,null,null,null,null,null,3,null,2,0.66666666666666663]
[null,null,"ZOOTECNIA 2007",null,null,null,0.25714285714285712,null,null,null,null,null,null,null,null,null,35,null,9,0.25714285714285712]
[null,null,"Total general",null,null,null,0.47243426632739599,null,null,null,null,null,null,null,null,null,1179,null,557,0.4724342663273961]
[]
[]
[]
[]
[]
[]
[]
[]
[]
[]
[]
[]
[null,null,null,null,null,null,"Estratégico",null,null,"Eficacia"]
[null,null,null,null,null,null,"Misional",null,null,"Eficiencia"]
[null,null,null,null,null,null,"Apoyo",null,null,"Acreditación"]
[null,null,null,null,null,null,"Seguimiento, Medición, Análisis y Evaluación",null,null,"Positiva"]
[null,null,null,null,null,null,"Direccionamiento Estratégico",null,null,"Negativa"]
[null,null,null,null,null,null,"Planeación Institucional",null,null,"Por Unidad Regional"]
[null,null,null,null,null,null,"Proyectos Especiales y Relaciones Interinstitucionales",null,null,"Por Facultad"]
[null,null,null,null,null,null,"Sistemas Integrados",null,null,"Por Programa Académico"]
[null,null,null,null,null,null,"Autoevaluación y Acreditación",null,null,"Por área"]
[null,null,null,null,null,null,"Comunicaciones",null,null,"Por Laboratorio"]
[null,null,null,null,null,null,"Formación y Aprendizaje",null,null,"Otros"]
[null,null,null,null,null,null,"Ciencia, Tecnología e Innovación",null,null,"No Aplica"]
[null,null,null,null,null,null,"Interacción Social Universitaria"]
[null,null,null,null,null,null,"Bienestar Universitario"]
[null,null,null,null,null,null,"Admisiones y Registro"]
[null,null,null,null,null,null,"Graduados"]
[null,null,null,null,null,null,"Dialogando con el Mundo"]
[null,null,null,null,null,null,"Talento Humano"]
[null,null,null,null,null,null,"Jurídica"]
[null,null,null,null,null,null,"Financiera"]
[null,null,null,null,null,null,"Sistemas y Tecnología"]
[null,null,null,null,null,null,"Bienes y Servicios"]
[null,null,null,null,null,null,"Documental"]
[null,null,null,null,null,null,"Apoyo Académico"]
[null,null,null,null,null,null,"Control Interno"]
[null,null,null,null,null,null,"Control Disciplinario"]
[null,null,null,null,null,null,"Servicio de Atención al Ciudadano"]

{"sheet":"MGD-4","index":22,"n_rows":98,"n_cols":15,"rows_kept":98,"cut":false,"hidden":false,"merged":[[71,2,71,5],[71,6,71,9],[71,10,71,14],[69,2,69,5],[69,6,69,9],[69,10,69,14],[70,2,70,5],[70,6,70,9],[70,10,70,14],[67,2,67,5],[67,6,67,9],[67,10,67,14],[68,2,68,5],[68,6,68,9],[68,10,68,14],[65,2,65,5],[65,6,65,9],[65,10,65,14],[66,2,66,5],[66,6,66,9],[66,10,66,14],[62,2,62,14],[63,2,63,5],[63,6,63,9],[63,10,63,14],[64,2,64,5],[64,6,64,9],[64,10,64,14],[1,1,3,2],[4,2,7,3],[4,4,4,11],[4,12,4,14],[5,4,5,11],[5,12,5,14],[6,4,7,11],[6,12,6,14],[7,12,7,14],[15,2,15,14],[8,2,8,14],[9,2,10,14],[11,2,11,3],[11,4,11,7],[11,8,11,9],[11,10,11,14],[12,2,12,3],[12,4,12,14],[13,2,13,3],[13,4,13,14],[14,2,14,14],[16,15,17,15],[17,2,18,3],[17,4,17,5],[17,6,17,10],[17,11,18,12],[17,13,18,14],[18,4,18,5],[18,6,18,10],[16,2,16,3],[16,4,16,6],[16,7,16,8],[16,9,16,10],[16,11,16,12],[16,13,16,14],[22,2,22,3],[22,4,22,6],[22,7,23,8],[22,9,23,10],[22,11,23,12],[53,2,53,5],[53,6,53,9],[53,10,53,14],[19,2,21,3],[19,4,21,6],[19,7,21,8],[19,9,21,10],[19,11,19,14],[22,13,23,14],[23,2,23,3],[23,4,23,6],[25,2,25,14],[26,15,27,15],[27,9,32,14],[33,9,33,14],[34,9,39,14],[40,9,40,14],[41,9,41,14],[44,2,44,14],[51,2,51,14],[52,2,52,5],[52,6,52,9],[52,10,52,14],[26,2,42,8],[26,9,26,14],[42,9,42,14],[54,2,54,5],[54,6,54,9],[54,10,54,14],[55,2,55,5],[55,6,55,9],[55,10,55,14],[56,2,56,5],[56,6,56,9],[56,10,56,14],[57,2,57,5],[57,6,57,9],[57,10,57,14],[60,2,60,5],[60,6,60,9],[60,10,60,14],[58,2,58,5],[58,6,58,9],[58,10,58,14],[59,2,59,5],[59,6,59,9],[59,10,59,14]]}
[]
[null,"      REGRESAR"]
[]
[]
[null,null,null,null,"MACROPROCESO ESTRATÉGICO",null,null,null,null,null,null,null,"CÓDIGO: ESGr027"]
[null,null,null,null,"PROCESO GESTIÓN SISTEMAS INTEGRADOS - CALIDAD",null,null,null,null,null,null,null,"VERSIÓN: 8"]
[null,null,null,null,"MATRIZ DE MEDICIÓN Y SEGUIMIENTO A LOS PROCESOS DE GESTIÓN",null,null,null,null,null,null,null,"VIGENCIA: 2023-07-28"]
[null,null,null,null,null,null,null,null,null,null,null,null,"PÁGINA: 4 de 5"]
[]
[null,null,"FICHA DE INDICADOR"]
[]
[null,null,"MACROPROCESO",null,"Misional",null,null,null,"NOMBRE DEL INDICADOR",null,"Eficacia en la certificación de cursos "]
[null,null,"PROCESO GESTIÓN",null,"Graduados"]
[null,null,"RESPONSABLE DE MEDICIÓN",null,"Coordinador(a) Oficina de Graduados"]
[]
[null,null,"1. COMPORTAMIENTO DE INDICADOR"]
[null,null,"CLASIFICACIÓN DE LA MEDICIÓN",null,1,null,null,"TIPO DE INDICADOR",null,"Eficacia",null,"META ANUAL",null,0.2]
[null,null,"FÓRMULA",null,"NUMERADOR",null,"Número de certificados *100",null,null,null,null,"UNIDAD DE MEDIDA",null,"Porcentaje"]
[null,null,null,null,"DENOMINADOR",null,"Número de inscritos"]
[null,null,"TENDENCIA",null,"Positiva",null,null,"NIVEL DE SEGREGACIÓN *",null,"Otros",null,"ESCALA"]
[null,null,null,null,null,null,null,null,null,null,null,"Deficiente","Aceptable","Bueno","Excelente"]
[null,null,null,null,null,null,null,null,null,null,null,"0%-9%","10%-14%","15%-19%","20%-100%"]
[null,null,"ORIGEN DE DATOS NUMERADOR",null,"Reporte de asistencia actividades",null,null,"FRECUENCIA DE LA MEDICIÓN",null,"SEMESTRAL",null,"FRECUENCIA DE RESULTADO",null,"SEMESTRAL"]
[null,null,"ORIGEN DE DATOS DENOMINADOR",null,"Informe de gestión graduados 2018 a 2023"]
[]
[null,null,"RESULTADOS"]
[null,null,null,null,null,null,null,null,null,"ANÁLISIS DE DATOS"]
[null,null,null,null,null,null,null,null,null,"PRIMER SEMESTRE: Teniendo en cuenta la meta propuesta en el indicador del IPA 2023, se realizaron cursos auto gestionables de educación continuada contando con un total de 333 graduados inscritos, con un total de 17 graduados certificados para un porcentaje del 5,11% del total de participantes. El cual demuestra que no se cumplió con la meta fijada en el primer semestre del año 2023.\nSEGNDO SEMESTRE: Teniendo en cuenta la meta propuesta en el indicador del IIPA-2023, se realizaron cursos auto gestionables de educación continuada contando con un total de 11 graduados inscritos, con un total de 03 graduados certificados para un porcentaje del 27% del total de participantes. \nEs así, que la Universidad de Cundinamarca comprometida con la formación para la vida de sus graduados abrió espacios para la participación de nuestros profesionales en el Programa de Formación y Desarrollo gratuito en los cursos en modalidad virtual, certificables, cada uno con duración de 48 horas. Durante del segundo periodo académico se ofertaron u total de19 cursos, sin embargo, en esta implementación fue baja, con relación a las anteriores. Como acción de mejora para las implementaciones, se planea divulgar la apertura, con un rango de tiempo que permita llegar a más profesionales, adicionalmente manejar las fechas de inscripción y seguimiento de manera independiente."]
[]
[]
[]
[]
[]
[null,null,null,null,null,null,null,null,null,"ACCIÓN FORMULADA"]
[null,null,null,null,null,null,null,null,null,"Con el propósito de cumplir con éxito la meta propuesta se tendrá en cuenta en este indicador una serie de cursos de educación continuada gratuitos que beneficie al graduado y su interés en culminarlos en el IIPA 2023 gestionados por la Oficina de Graduados teniendo en cuenta la mejora y reforzar los procesos hacia futuro."]
[]
[]
[]
[]
[]
[null,null,null,null,null,null,null,null,null,"RESPONSABLE "]
[null,null,null,null,null,null,null,null,null,{"$f":"E14","v":"Coordinador(a) Oficina de Graduados"}]
[]
[]
[null,null,"PERIODO DE EVALUACIÓN"]
[null,null,"MES",{"$f":"IF(J23=\"MENSUAL\",\"ENERO\",IF(J23=\"TRIMESTRAL\",\"MARZO\",IF(J23=\"SEMESTRAL\",\"JUNIO\",IF(J23=\"ANUAL\",YEAR(TODAY()),\"\"))))","v":"JUNIO"},{"$f":"IF(J23=\"MENSUAL\",\"FEBRERO\",IF(J23=\"TRIMESTRAL\",\"JUNIO\",IF(J23=\"SEMESTRAL\",\"DICIEMBRE\",\"\")))","v":"DICIEMBRE"},{"$f":"IF(J23=\"MENSUAL\",\"MARZO\",IF(J23=\"TRIMESTRAL\",\"SEPTIEMBRE\",\"\"))","v":""},{"$f":"IF(J23=\"MENSUAL\",\"ABRIL\",IF(J23=\"TRIMESTRAL\",\"DICIEMBRE\",\"\"))","v":""},{"$f":"IF(J23=\"MENSUAL\",\"MAYO\",\"\")","v":""},{"$f":"IF(J23=\"MENSUAL\",\"JUNIO\",\"\")","v":""},{"$f":"IF(J23=\"MENSUAL\",\"JULIO\",\"\")","v":""},{"$f":"IF(J23=\"MENSUAL\",\"AGOSTO\",\"\")","v":""},{"$f":"IF(J23=\"MENSUAL\",\"SEPTIEMBRE\",\"\")","v":""},{"$f":"IF(J23=\"MENSUAL\",\"OCTUBRE\",\"\")","v":""},{"$f":"IF(J23=\"MENSUAL\",\"NOVIEMBRE\",\"\")","v":""},{"$f":"IF(J23=\"MENSUAL\",\"DICIEMBRE\",\"\")","v":""}]
[null,null,{"$f":"G18","v":"Número de certificados *100"},17,3]
[null,null,{"$f":"G19","v":"Número de inscritos"},333,11]
[null,null,"VALOR ",{"$f":"IFERROR(IF($E$17=1,D47/D48,IF($E$17=2,D47,\"\")),\"\")","v":5.1051051051051052E-2},{"$f":"IFERROR(IF($E$17=1,E47/E48,IF($E$17=2,E47,\"\")),\"\")","v":0.27272727272727271},{"$f":"IFERROR(IF($E$17=1,F47/F48,IF($E$17=2,F47,\"\")),\"\")","v":""},"","","","","","","","",""]
[null,null,"META PONDERADA",{"$f":"IF(AND(N23=\"ANUAL\",J23=\"MENSUAL\"),N17/12,IF(AND(N23=\"ANUAL\",J23=\"TRIMESTRAL\"),N17/4,IF(AND(N23=\"ANUAL\",J23=\"SEMESTRAL\"),N17/2,IF(AND(N23=\"ANUAL\",J23=\"ANUAL\"),N17,IF(AND(N23=\"SEMESTRAL\",J23=\"MENSUAL\"),N17/6,IF(AND(N23=\"SEMESTRAL\",J23=\"TRIMESTRAL\"),N17/2,IF(AND(N23=\"SEMESTRAL\",J23=\"SEMESTRAL\"),N17,IF(AND(N23=\"SEMESTRAL\",J23=\"ANUAL\"),\"REVISAR FRECUENCIAS\",IF(AND(N23=\"TRIMESTRAL\",J23=\"MENSUAL\"),N17/3,IF(AND(N23=\"TRIMESTRAL\",J23=\"TRIMESTRAL\"),N17,IF(AND(N23=\"TRIMESTRAL\",J23=\"SEMESTRAL\"),\"REVISAR FRECUENCIAS\",IF(AND(N23=\"TRIMESTRAL\",J23=\"ANUAL\"),\"REVISAR FRECUENCIAS\",IF(AND(N23=\"MENSUAL\",J23=\"MENSUAL\"),N17,IF(AND(N23=\"MENSUAL\",J23=\"TRIMESTRAL\"),\"REVISAR FRECUENCIAS\",IF(AND(N23=\"MENSUAL\",J23=\"SEMESTRAL\"),\"REVISAR FRECUENCIAS\",IF(AND(N23=\"MENSUAL\",J23=\"ANUAL\"),\"REVISAR FRECUENCIAS\",\"\"))))))))))))))))","v":0.2},{"$f":"IF(AND(N23=\"ANUAL\",J23=\"MENSUAL\"),N17/12+D50,IF(AND(N23=\"ANUAL\",J23=\"TRIMESTRAL\"),N17/4+D50,IF(AND(N23=\"ANUAL\",J23=\"SEMESTRAL\"),N17/2+D50,IF(AND(N23=\"SEMESTRAL\",J23=\"MENSUAL\"),N17/6+D50,IF(AND(N23=\"SEMESTRAL\",J23=\"TRIMESTRAL\"),N17/2+D50,IF(AND(N23=\"SEMESTRAL\",J23=\"SEMESTRAL\"),N17,IF(AND(N23=\"TRIMESTRAL\",J23=\"MENSUAL\"),N17/3+D50,IF(AND(N23=\"TRIMESTRAL\",J23=\"TRIMESTRAL\"),N17,IF(AND(N23=\"MENSUAL\",J23=\"MENSUAL\"),N17,\"\")))))))))","v":0.2},{"$f":"IF(AND(N23=\"ANUAL\",J23=\"MENSUAL\"),N17/12+E50,IF(AND(N23=\"ANUAL\",J23=\"TRIMESTRAL\"),N17/4+E50,IF(AND(N23=\"SEMESTRAL\",J23=\"MENSUAL\"),N17/6+E50,IF(AND(N23=\"SEMESTRAL\",J23=\"TRIMESTRAL\"),N17/2,IF(AND(N23=\"TRIMESTRAL\",J23=\"MENSUAL\"),N17/3+E50,IF(AND(N23=\"TRIMESTRAL\",J23=\"TRIMESTRAL\"),N17,IF(AND(N23=\"MENSUAL\",J23=\"MENSUAL\"),N17,\"\")))))))","v":""},{"$f":"IF(AND(N23=\"ANUAL\",J23=\"MENSUAL\"),N17/12+F50,IF(AND(N23=\"ANUAL\",J23=\"TRIMESTRAL\"),N17/4+F50,IF(AND(N23=\"SEMESTRAL\",J23=\"MENSUAL\"),N17/6+F50,IF(AND(N23=\"SEMESTRAL\",J23=\"TRIMESTRAL\"),N17/2+F50,IF(AND(N23=\"TRIMESTRAL\",J23=\"MENSUAL\"),N17/3,IF(AND(N23=\"TRIMESTRAL\",J23=\"TRIMESTRAL\"),N17,IF(AND(N23=\"MENSUAL\",J23=\"MENSUAL\"),N17,\"\")))))))","v":""},{"$f":"IF(AND($N$23=\"ANUAL\",$J$23=\"MENSUAL\"),$N$17/12+G50,IF(AND(N23=\"SEMESTRAL\",J23=\"MENSUAL\"),N17/6+G50,IF(AND(N23=\"TRIMESTRAL\",J23=\"MENSUAL\"),N17/3+G50,IF(AND(N23=\"MENSUAL\",J23=\"MENSUAL\"),N17,\"\"))))","v":""},{"$f":"IF(AND($N$23=\"ANUAL\",$J$23=\"MENSUAL\"),$N$17/12+H50,IF(AND(N23=\"SEMESTRAL\",J23=\"MENSUAL\"),N17/6+H50,IF(AND(N23=\"TRIMESTRAL\",J23=\"MENSUAL\"),N17/3+H50,IF(AND(N23=\"MENSUAL\",J23=\"MENSUAL\"),N17,\"\"))))","v":""},{"$f":"IF(AND($N$23=\"ANUAL\",$J$23=\"MENSUAL\"),$N$17/12+I50,IF(AND(N23=\"SEMESTRAL\",J23=\"MENSUAL\"),N17/6,IF(AND(N23=\"TRIMESTRAL\",J23=\"MENSUAL\"),N17/3,IF(AND(N23=\"MENSUAL\",J23=\"MENSUAL\"),N17,\"\"))))","v":""},{"$f":"IF(AND($N$23=\"ANUAL\",$J$23=\"MENSUAL\"),$N$17/12+J50,IF(AND(N23=\"SEMESTRAL\",J23=\"MENSUAL\"),N17/6+J50,IF(AND(N23=\"TRIMESTRAL\",J23=\"MENSUAL\"),N17/3+J50,IF(AND(N23=\"MENSUAL\",J23=\"MENSUAL\"),N17,\"\"))))","v":""},{"$f":"IF(AND($N$23=\"ANUAL\",$J$23=\"MENSUAL\"),$N$17/12+K50,IF(AND(N23=\"SEMESTRAL\",J23=\"MENSUAL\"),N17/6+K50,IF(AND(N23=\"TRIMESTRAL\",J23=\"MENSUAL\"),N17/3+K50,IF(AND(N23=\"MENSUAL\",J23=\"MENSUAL\"),N17,\"\"))))","v":""},{"$f":"IF(AND($N$23=\"ANUAL\",$J$23=\"MENSUAL\"),$N$17/12+L50,IF(AND(N23=\"SEMESTRAL\",J23=\"MENSUAL\"),N17/6+L50,IF(AND(N23=\"TRIMESTRAL\",J23=\"MENSUAL\"),N17/3,IF(AND(N23=\"MENSUAL\",J23=\"MENSUAL\"),N17,\"\"))))","v":""},{"$f":"IF(AND($N$23=\"ANUAL\",$J$23=\"MENSUAL\"),$N$17/12+M50,IF(AND(N23=\"SEMESTRAL\",J23=\"MENSUAL\"),N17/6+M50,IF(AND(N23=\"TRIMESTRAL\",J23=\"MENSUAL\"),N17/3+M50,IF(AND(N23=\"MENSUAL\",J23=\"MENSUAL\"),N17,\"\"))))","v":""},{"$f":"IF(AND($N$23=\"ANUAL\",$J$23=\"MENSUAL\"),$N$17/12+N50,IF(AND(N23=\"SEMESTRAL\",J23=\"MENSUAL\"),N17/6+N50,IF(AND(N23=\"TRIMESTRAL\",J23=\"MENSUAL\"),N17/3+N50,IF(AND(N23=\"MENSUAL\",J23=\"MENSUAL\"),N17,\"\"))))","v":""}]
[]
[null,null,"NIVEL DE SEGREGACIÓN SEMESTRE I"]
[null,null,"UNIDAD SEGREGADA (Ej. Facultad, Programa Académico, Área)",null,null,null,"RESULTADO",null,null,null,"ANÁLISIS DE DATOS SEGREGADO"]
[null,null,"EXTENSIÓN CHÍA ",null,null,null,1.47E-2]
[null,null,"EXTENSIÓN FACATATIVÁ  ",null,null,null,0]
[null,null,"SEDE FUSAGASUGÁ",null,null,null,2.1399999999999999E-2]
[null,null,"SECCIONAL GIRARDOT ",null,null,null,1.24E-2]
[null,null,"EXTENSIÓN SOACHA ",null,null,null,1.2999999999999999E-3]
[null,null,"SECCIONAL UBATÉ ",null,null,null,1.2999999999999999E-3]
[null,null,"EXTENSIÓN ZIPAQUIRÁ",null,null,null,0]
[null,null,"TOTAL",null,null,null,{"$f":"SUM(G54:G60)","v":5.1100000000000007E-2}]
[]
[null,null,"NIVEL DE SEGREGACIÓN SEMESTRE II"]
[null,null,"UNIDAD SEGREGADA (Ej. Facultad, Programa Académico, Área)",null,null,null,"RESULTADO",null,null,null,"ANÁLISIS DE DATOS SEGREGADO"]
[null,null,"EXTENSIÓN CHÍA ",null,null,null,0]
[null,null,"EXTENSIÓN FACATATIVÁ  ",null,null,null,8.3299999999999999E-2]
[null,null,"SEDE FUSAGASUGÁ",null,null,null,0.1867]
[null,null,"SECCIONAL GIRARDOT ",null,null,null,0]
[null,null,"EXTENSIÓN SOACHA ",null,null,null,0]
[null,null,"SECCIONAL UBATÉ ",null,null,null,0]
[null,null,"EXTENSIÓN ZIPAQUIRÁ",null,null,null,0]
[null,null,"TOTAL",null,null,null,{"$f":"SUM(G65:G71)","v":0.27}]
[null,null,null,null,null,null,"Misional",null,null,"Eficiencia"]
[null,null,null,null,null,null,"Apoyo",null,null,"Acreditación"]
[null,null,null,null,null,null,"Seguimiento, Medición, Análisis y Evaluación",null,null,"Positiva"]
[null,null,null,null,null,null,"Direccionamiento Estratégico",null,null,"Negativa"]
[null,null,null,null,null,null,"Planeación Institucional",null,null,"Por Unidad Regional"]
[null,null,null,null,null,null,"Proyectos Especiales y Relaciones Interinstitucionales",null,null,"Por Facultad"]
[null,null,null,null,null,null,"Sistemas Integrados",null,null,"Por Programa Académico"]
[null,null,null,null,null,null,"Autoevaluación y Acreditación",null,null,"Por área"]
[null,null,null,null,null,null,"Comunicaciones",null,null,"Por Laboratorio"]
[null,null,null,null,null,null,"Formación y Aprendizaje",null,null,"Otros"]
[null,null,null,null,null,null,"Ciencia, Tecnología e Innovación",null,null,"No Aplica"]
[null,null,null,null,null,null,"Interacción Social Universitaria"]
[null,null,null,null,null,null,"Bienestar Universitario"]
[null,null,null,null,null,null,"Admisiones y Registro"]
[null,null,null,null,null,null,"Graduados"]
[null,null,null,null,null,null,"Dialogando con el Mundo"]
[null,null,null,null,null,null,"Talento Humano"]
[null,null,null,null,null,null,"Jurídica"]
[null,null,null,null,null,null,"Financiera"]
[null,null,null,null,null,null,"Sistemas y Tecnología"]
[null,null,null,null,null,null,"Bienes y Servicios"]
[null,null,null,null,null,null,"Documental"]
[null,null,null,null,null,null,"Apoyo Académico"]
[null,null,null,null,null,null,"Control Interno"]
[null,null,null,null,null,null,"Control Disciplinario"]
[null,null,null,null,null,null,"Servicio de Atención al Ciudadano"]

{"sheet":"ACTUALIZACIONES","index":23,"n_rows":29,"n_cols":5,"rows_kept":29,"cut":false,"hidden":false,"merged":[[28,1,28,4],[1,1,4,1],[1,2,1,3],[2,2,2,3],[3,2,4,3],[6,1,6,4],[25,1,25,4]]}
[]
[null,null,"MACROPROCESO ESTRATÉGICO",null,"CÓDIGO: ESGr027"]
[null,null,"PROCESO GESTIÓN SISTEMAS INTEGRADOS - CALIDAD",null,"VERSIÓN: 8"]
[null,null,"MATRIZ DE MEDICIÓN Y SEGUIMIENTO A LOS PROCESOS DE GESTIÓN",null,"VIGENCIA: 2023-07-28"]
[null,null,null,null,"PÁGINA: 5 de 5"]
[]
[null,"CONTROL DE ACTUALIZACIONES"]
[null,"FECHA","DESCRIPCIÓN DE LA ACTUALIZACIÓN","RESPONSABLE","CARGO"]
[null,"2021-06-19","MGD: Se crearon 2 Indicadores para el proceso Gestión graduados, con medición semestral y resultado anual.\n1.Satisfacción de Graduados.\n2. Participación de los Graduados en los eventos institucionales.","María Eulalia Buenahora Ochoa","Vicerrectoría Académica"]
[null,"00/09/2022","El indicador MGD-3 Tasa de graduación efectiva pasa a ser medido por el proceso de Admisiones y Registro, toda vez que son ellos quienes cuentas con la data necesaria para ser medido.","Víctor Hugo Londoño Aguirre","Vicerrector Académico"]
[null,"2023-03-13","Se modifica la escala de los indicadores MGD-1 & MGD-2 y quedan de la siguiente manera: \nDeficiente:0% - 20%\nAceptable: 21% - 50%\nBueno: 51% - 55%\nExcelente: 56% - 100%\nCambia el denominador del indicador MGD-2 y queda de la siguiente manera \"Número de graduados esperados para la vigencia 2023 (5.000)\" teniendo en cuenta el cambio de la vigencia ","Víctor Hugo Londoño Aguirre","Vicerrector Académico"]
[null,"2023-04-25","Se crea el indicador MGD-4 Eficacia en la certificación de cursos, el cual será medición semestral y resultado semestral.\nAdicional la meta de los indicadores MGD-1 & MGD-2 incrementan la meta en un 5%, pasando de 55% a 60% respectivamente.\nSe modifica la escala de los indicadores MGD-1 & MGD-2 y quedan de la siguiente manera:\n- Deficiente:0% - 20%\n- Aceptable: 21% - 44%\n- Bueno: 45% - 59%\n- Excelente: 60% - 100%","Víctor Hugo Londoño Aguirre","Vicerrector Académico"]
[]
[]
[]
[]
[]
[]
[]
[]
[]
[]
[]
[]
[]
[null,"Diagonal 18 No. 20-29 Fusagasugá – Cundinamarca\nTeléfono (601)  8281483 Línea Gratuita 018000180414\nwww.ucundinamarca.edu.co   E-mail:  info@ucundinamarca.edu.co\nNIT: 890.680.062-2                                                                             "]
[]
[]
[null,"Documento controlado por el Sistema de Gestión de la Calidad\nAsegúrese que corresponde a la última versión consultando el Portal Institucional"]

{"sheet":"ITEM","index":24,"n_rows":4,"n_cols":3,"rows_kept":4,"cut":false,"hidden":true,"merged":[]}
["MENSUAL",null,"NÚMERO"]
["TRIMESTRAL",null,"PORCENTAJE"]
["SEMESTRAL"]
["ANUAL"]